Workbook

Sheet Title
C41: The following individuals contributed to these budgets in their specialty area
D42: Robert J. Wright | G42: Extension Entomologist
D43: Tamra A. Jackson-Ziems | G43: Plant Pathologist - Corn and Sorghum
D44: Loren J. Giesler | G44: Plant Pathologist - Soybean and Turf
D45: Stephen N. Wegulo | G45: Plant Pathologist - Wheat and Ornamental
D46: Paul J. Jasa | G46: Extension Biological Systems Engineer
D47: James A. Schild | G47: Extension Educator in Scotts Bluff and Morrill Counties

Sheet General Variables
A1: Farm Wide Inputs
P2: Region
A3: Year | B3: 2018 | E3: Real Estate Values
A4: Wage Rate | B4: 20 | C4: / Hr | E4: Description | F4: Value | P4: Eastern Nebraska
A5: Diesel Price | B5: 2.45 | C5: / gal | E5: Dryland (State) | F5: 3145
A6: Lube Factor | B6: 1.15 | E6: Dryland (Panhandle) | F6: 715
A7: Diesel & Lube | B7: =B5*B6 -> 2.8175 | C7: / gal | E7: Gravity (State) | F7: 6070
A8: Elect. Price | B8: 0.11 | C8: / kwh | E8: Gravity (Panhandle) | F8: 2580 | P8: Tillage System
A9: Taxes, Ins., Housing Factor | B9: 0.02 | E9: Pivot (State) | F9: 6295
A10: Investment Interest Rate | B10: 0.03 | E10: Pivot (Panhandle) | F10: 2815 | P10: Conventional Tillage
A11: Operations Borrowing Rate | B11: 0.055 | E11: Dryland (Southwest) | F11: 1710 | P11: No Till
A12: Operations Borrowing Time | B12: 6 | C12: months | E12: Fall Establishment | F12: 0 | P12: Ridge Till
A13: Real Estate Tax Rate | B13: 0.01 | E13: Pivot (Marginal Land) | F13: =F9*0.7 -> 4406.5 | P13: Strip Till
A14: Overhead Cost per Acre | B14: 20 | E14: Dryland (Eastern) | F14: 5790 | P14: Stubble Mulch Fallow
P15: Clean Till Fallow
A16: Crop Insurance | P16: Ecofallow
A17: Crop | B17: Premium | P17: Reduced Till
A18: Corn Dryland | B18: 23 | P18: Tilled Seed Bed
A19: Corn Dryland Ecofallow | B19: 20 | P19: No Till Drilled 7.5-inch Rows
A20: Corn Irrigated | B20: 10 | P20: One Pass Zone-Tillage
A21: Dry Beans | B21: 21 | P21: Cropping System
A22: Grain Sorghum Dryland | B22: 11
A23: Grain Sorghum Irrigated | B23: 10 | P23: Continuous
A24: Millet | B24: 15 | P24: Following Corn
A25: Oats | B25: 11 | P25: Following Beans
A26: Soybeans Dryland | B26: 16 | P26: Ecofallow Follows Wheat (2 crops in 3 years)
A27: Soybeans Irrigated | B27: 8.5 | P27: Ecofallow Before Corn (2 crops in 3 years)
A28: Sugar Beets | B28: 20 | P28: 1 crop in 2 years
A29: Sunflower Dryland | B29: 14 | P29: Fall Establishment
A30: Sunflower Irrigated | B30: 19
A31: Wheat After Crop | B31: 14.5 | P31: Water Source
A32: Wheat Fallowed | B32: 9.5 | M32: Budget | N32: County | P32: Pivot Irrigated Diesel
A33: Wheat Irrigated | B33: 13.25 | L33: 1 | M33: Alfalfa | N33: N/A | P33: Pivot Irrigated Electric
L34: 2 | M34: Alfalfa | N34: N/A | P34: Gravity Irrigated, fed by a well
L35: 3 | M35: Alfalfa | N35: N/A | P35: Pivot Irrigated, fed by canal
L36: 4 | M36: Alfalfa | N36: N/A | P36: Gravity Irrigated, fed by canal
L37: 5 | M37: Alfalfa | N37: N/A | P37: Dryland
L38: 6 | M38: Alfalfa | N38: N/A
L39: 7 | M39: Alfalfa | N39: N/A
A40: Budget | B40: County | D40: Budget | F40: County | H40: Budget | I40: County | L40: 8 | M40: Alfalfa | N40: N/A
A41: =CONCATENATE(L33,"-",M33) -> 1-Alfalfa | B41: =N33 -> N/A | D41: =CONCATENATE(L56,"-",M56) -> 24-Corn | E41: =CONCATENATE(P36,"-",Q33) -> Gravity Irrigated, fed by canal- | F41: =N56 -> Buffalo | H41: =CONCATENATE(L78,"-",M78) -> 46-Soybeans | I41: =N78 -> Buffalo | L41: 9 | M41: Alfalfa | N41: N/A
A42: =CONCATENATE(L34,"-",M34) -> 2-Alfalfa | B42: =N34 -> N/A | D42: 25-Corn | E42: =CONCATENATE(P37,"-",Q34) -> Dryland- | F42: =N57 -> Buffalo | H42: 47-Soybeans | I42: =N79 -> Buffalo | L42: 10 | M42: Alfalfa | N42: N/A
A43: 3-Alfalfa | B43: N/A | D43: 26-Corn | E43: =CONCATENATE(#REF!,"-",Q35) ->  | F43: Buffalo | H43: 48-Soybeans | I43: Buffalo | L43: 11 | M43: Alfalfa | N43: N/A
A44: 4-Alfalfa | B44: N/A | D44: 27-Corn | E44: =CONCATENATE(#REF!,"-",Q36) ->  | F44: Buffalo | H44: 49-Soybeans | I44: Buffalo | L44: 12 | M44: Alfalfa | N44: N/A
A45: 5-Alfalfa | B45: N/A | D45: 28-Corn | E45: =CONCATENATE(#REF!,"-",Q37) ->  | F45: Buffalo | H45: 50-Soybeans | I45: Buffalo | L45: 13 | M45: Alfalfa | N45: N/A
A46: 6-Alfalfa | B46: N/A | D46: 29-Corn | E46: =CONCATENATE(P38,"-",Q38) -> - | F46: Buffalo | H46: 51-Soybeans | I46: Buffalo | L46: 14 | M46: Alfalfa | N46: N/A
A47: 7-Alfalfa | B47: N/A | D47: 30-Dry Beans | E47: - | F47: Cheyenne | H47: 52-Soybeans | I47: Buffalo | L47: 15 | M47: Corn | N47: Buffalo
A48: 8-Alfalfa | B48: N/A | D48: 31-Dry Beans | E48: - | F48: Cheyenne | H48: 53-Soybeans | I48: Buffalo | L48: 16 | M48: Corn | N48: Buffalo
A49: 9-Alfalfa | B49: N/A | D49: 32-Dry Beans | E49: - | F49: Cheyenne | H49: 54-Sugar Beets | I49: Box Butte | L49: 17 | M49: Corn | N49: Buffalo
A50: 10-Alfalfa | B50: N/A | D50: 33-Dry Beans | E50: - | F50: Cheyenne | H50: 55-Sugar Beets | I50: Box Butte | L50: 18 | M50: Corn | N50: Buffalo
A51: 11-Alfalfa | B51: N/A | D51: 34-Grain Sorghum | E51: - | F51: Jefferson | H51: 56-Sugar Beets | I51: Box Butte | L51: 19 | M51: Corn | N51: Perkins
A52: 12-Alfalfa | B52: N/A | D52: 35-Grain Sorghum | E52: - | F52: Jefferson | H52: 57-Sugar Beets | I52: Box Butte | L52: 20 | M52: Corn | N52: Buffalo
A53: 13-Alfalfa | B53: N/A | D53: 36-Grain Sorghum | E53: - | F53: Jefferson | H53: 58-Sunflower | I53: Perkins | L53: 21 | M53: Corn | N53: Buffalo
A54: 14-Alfalfa | B54: N/A | D54: 37-Grain Sorghum | E54: - | F54: Jefferson | H54: 59-Sunflower | I54: Perkins | L54: 22 | M54: Corn | N54: Buffalo
A55: 15-Corn | B55: Buffalo | D55: 38-Grass | E55: - | F55: N/A | H55: 60-Sunflower | I55: Perkins | L55: 23 | M55: Corn | N55: Buffalo
A56: 16-Corn | B56: Buffalo | D56: 39-Grass Hay | E56: - | F56: N/A | H56: 61-Wheat | I56: Keith | L56: 24 | M56: Corn | N56: Buffalo
A57: 17-Corn | B57: Buffalo | D57: 40-Millet | E57: - | F57: Cheyenne | H57: 62-Wheat | I57: Keith | L57: 25 | M57: Corn | N57: Buffalo
A58: 18-Corn | B58: Buffalo | D58: 41-Millet | E58: - | F58: Cheyenne | H58: 63-Wheat | I58: Keith | L58: 26 | M58: Corn | N58: Buffalo
A59: 19-Corn | B59: Perkins | D59: 42-Oats | E59: - | F59: Burt | H59: 64-Wheat | I59: Keith | L59: 27 | M59: Corn | N59: Buffalo
A60: 20-Corn | B60: Buffalo | D60: 43-Pasture | E60: - | F60: N/A | H60: 65-Wheat | I60: Keith | L60: 28 | M60: Corn | N60: Buffalo
A61: 21-Corn | B61: Buffalo | D61: 44-Peas | E61: - | F61: N/A | H61: 66-Wheat | I61: Keith | L61: 29 | M61: Corn | N61: Buffalo
A62: 22-Corn | B62: Buffalo | D62: 45-Sorghum-Sudan | E62: - | F62: N/A | H62: 67-Wheat | I62: Keith | L62: 30 | M62: Dry Beans | N62: Cheyenne
A63: 23-Corn | B63: Buffalo | L63: 31 | M63: Dry Beans | N63: Cheyenne
L64: 32 | M64: Dry Beans | N64: Cheyenne
L65: 33 | M65: Dry Beans | N65: Cheyenne
L66: 34 | M66: Grain Sorghum | N66: Jefferson
L67: 35 | M67: Grain Sorghum | N67: Jefferson
L68: 36 | M68: Grain Sorghum | N68: Jefferson
L69: 37 | M69: Grain Sorghum | N69: Jefferson
L70: 38 | M70: Grass | N70: N/A
L71: 39 | M71: Grass Hay | N71: N/A
L72: 40 | M72: Millet | N72: Cheyenne
L73: 41 | M73: Millet | N73: Cheyenne
L74: 42 | M74: Oats | N74: Burt
L75: 43 | M75: Pasture | N75: N/A
L76: 44 | M76: Peas | N76: N/A
L77: 45 | M77: Sorghum-Sudan | N77: N/A
L78: 46 | M78: Soybeans | N78: Buffalo
L79: 47 | M79: Soybeans | N79: Buffalo
L80: 48 | M80: Soybeans | N80: Buffalo
L81: 49 | M81: Soybeans | N81: Buffalo
L82: 50 | M82: Soybeans | N82: Buffalo
L83: 51 | M83: Soybeans | N83: Buffalo
L84: 52 | M84: Soybeans | N84: Buffalo
L85: 53 | M85: Soybeans | N85: Buffalo
L86: 54 | M86: Sugar Beets | N86: Box Butte
L87: 55 | M87: Sugar Beets | N87: Box Butte
L88: 56 | M88: Sugar Beets | N88: Box Butte
L89: 57 | M89: Sugar Beets | N89: Box Butte
L90: 58 | M90: Sunflower | N90: Perkins
L91: 59 | M91: Sunflower | N91: Perkins
L92: 60 | M92: Sunflower | N92: Perkins
L93: 61 | M93: Wheat | N93: Keith
L94: 62 | M94: Wheat | N94: Keith
L95: 63 | M95: Wheat | N95: Keith
L96: 64 | M96: Wheat | N96: Keith
L97: 65 | M97: Wheat | N97: Keith
L98: 66 | M98: Wheat | N98: Keith
L99: 67 | M99: Wheat | N99: Keith

Sheet Power Units (hidden)
A1: Name | B1: Repair Category | C1: Depreciation Category | D1: List Price | E1: Beg Yr Value | F1: Age | G1: Tach Hours | H1: Est. Hours per Year | I1: Calculated List Price | J1: Repairs per Hour | K1: Calculated Beg Yr. Value | L1: Calculated End Yr. Value | M1: Depreciation per Hour | N1: TIH per Hour | O1: Opportunity Cost per Hour | P1: Ownership Cost per Hour | R1: Machine | S1: Catogory | T1: RF1 | U1: RF2 | V1: Estimated Life | X1: Equipment type | Y1: Machine | Z1: C1 | AA1: C2 | AB1: C3
A2: Large Tractor | B2: 4 wheel drive & crawler | C2: Farm tractors (>150hp) | D2: 331066 | F2: 10 | G2: 1500 | H2: 300 | I2: =IF(PowerUnits[[#This Row],[List Price]]>1,PowerUnits[[#This Row],[List Price]],IF(C2="",0,PowerUnits[[#This Row],[Beg Yr Value]]/(VLOOKUP(PowerUnits[[#This Row],[Depreciation Category]],PwrDepreciation,2,FALSE)-VLOOKUP(PowerUnits[[#This Row],[Depreciation Category]],PwrDepreciation,3,FALSE)*PowerUnits[[#This Row],[Age]]^0.5-VLOOKUP(PowerUnits[[#This Row],[Depreciation Category]],PwrDepreciation,4,FALSE)*PowerUnits[[#This Row],[Tach Hours]]^0.5)^2)) -> 331066 | J2: =IF(PowerUnits[[#This Row],[Est. Hours per Year]]=0,0,IF(PowerUnits[[#This Row],[Repair Category]]=0,0,(VLOOKUP(PowerUnits[[#This Row],[Repair Category]],PwrRepairs[],3,FALSE)*PowerUnits[[#This Row],[Calculated List Price]]*((PowerUnits[[#This Row],[Tach Hours]]+PowerUnits[[#This Row],[Est. Hours per Year]])/1000)^VLOOKUP(PowerUnits[[#This Row],[Repair Category]],PwrRepairs[],4,FALSE)-VLOOKUP(PowerUnits[[#This Row],[Repair Category]],PwrRepairs[],3,FALSE)*PowerUnits[[#This Row],[Calculated List Price]]*(PowerUnits[[#This Row],[Tach Hours]]/1000)^VLOOKUP(PowerUnits[[#This Row],[Repair Category]],PwrRepairs[],4,FALSE))/PowerUnits[[#This Row],[Est. Hours per Year]])) -> 3.2775534 | K2: =IF(PowerUnits[[#This Row],[Depreciation Category]]=0,0,PowerUnits[[#This Row],[Calculated List Price]]*(VLOOKUP(PowerUnits[[#This Row],[Depreciation Category]],PwrDepreciation,2,FALSE)-VLOOKUP(PowerUnits[[#This Row],[Depreciation Category]],PwrDepreciation,3,FALSE)*PowerUnits[[#This Row],[Age]]^0.5-VLOOKUP(PowerUnits[[#This Row],[Depreciation Category]],PwrDepreciation,4,FALSE)*PowerUnits[[#This Row],[Tach Hours]]^0.5)^2) -> 91633.64051 | L2: =IF(PowerUnits[[#This Row],[Depreciation Category]]=0,0,PowerUnits[[#This Row],[Calculated List Price]]*(VLOOKUP(PowerUnits[[#This Row],[Depreciation Category]],PwrDepreciation,2,FALSE)-VLOOKUP(PowerUnits[[#This Row],[Depreciation Category]],PwrDepreciation,3,FALSE)*(PowerUnits[[#This Row],[Age]]+1)^0.5-VLOOKUP(PowerUnits[[#This Row],[Depreciation Category]],PwrDepreciation,4,FALSE)*(PowerUnits[[#This Row],[Tach Hours]]+PowerUnits[[#This Row],[Est. Hours per Year]])^0.5)^2) -> 83002.21339 | M2: =IF(PowerUnits[[#This Row],[Est. Hours per Year]]=0,0,(PowerUnits[[#This Row],[Calculated Beg Yr. Value]]-PowerUnits[[#This Row],[Calculated End Yr. Value]])/PowerUnits[[#This Row],[Est. Hours per Year]]) -> 28.77142373 | N2: =IF(PowerUnits[[#This Row],[Est. Hours per Year]]=0,0,PowerUnits[[#This Row],[Calculated Beg Yr. Value]]*'General Variables'!$B$9/PowerUnits[[#This Row],[Est. Hours per Year]]) -> 6.108909368 | O2: =IF(PowerUnits[[#This Row],[Est. Hours per Year]]=0,0,PowerUnits[[#This Row],[Calculated Beg Yr. Value]]*'General Variables'!$B$10/PowerUnits[[#This Row],[Est. Hours per Year]]) -> 9.163364051 | P2: =SUM(PowerUnits[[#This Row],[Depreciation per Hour]:[Opportunity Cost per Hour]]) -> 44.04369715 | R2: 2 wheel drive & stationary tractor | S2: TRACTORS | T2: 0.007 | U2: 2.0 | V2: 12000 | X2: Farm tractors | Y2: Farm tractors (<80hp) | Z2: 0.981 | AA2: 0.093 | AB2: 0.0058
A3: Medium Tractor | B3: 2 wheel drive & stationary tractor | C3: Farm tractors (>150hp) | D3: 224262 | F3: 5 | G3: 2500 | H3: 500 | I3: =IF(PowerUnits[[#This Row],[List Price]]>1,PowerUnits[[#This Row],[List Price]],IF(C3="",0,PowerUnits[[#This Row],[Beg Yr Value]]/(VLOOKUP(PowerUnits[[#This Row],[Depreciation Category]],PwrDepreciation,2,FALSE)-VLOOKUP(PowerUnits[[#This Row],[Depreciation Category]],PwrDepreciation,3,FALSE)*PowerUnits[[#This Row],[Age]]^0.5-VLOOKUP(PowerUnits[[#This Row],[Depreciation Category]],PwrDepreciation,4,FALSE)*PowerUnits[[#This Row],[Tach Hours]]^0.5)^2)) -> 224262 | J3: =IF(PowerUnits[[#This Row],[Est. Hours per Year]]=0,0,IF(PowerUnits[[#This Row],[Repair Category]]=0,0,(VLOOKUP(PowerUnits[[#This Row],[Repair Category]],PwrRepairs[],3,FALSE)*PowerUnits[[#This Row],[Calculated List Price]]*((PowerUnits[[#This Row],[Tach Hours]]+PowerUnits[[#This Row],[Est. Hours per Year]])/1000)^VLOOKUP(PowerUnits[[#This Row],[Repair Category]],PwrRepairs[],4,FALSE)-VLOOKUP(PowerUnits[[#This Row],[Repair Category]],PwrRepairs[],3,FALSE)*PowerUnits[[#This Row],[Calculated List Price]]*(PowerUnits[[#This Row],[Tach Hours]]/1000)^VLOOKUP(PowerUnits[[#This Row],[Repair Category]],PwrRepairs[],4,FALSE))/PowerUnits[[#This Row],[Est. Hours per Year]])) -> 8.634087 | K3: =IF(PowerUnits[[#This Row],[Depreciation Category]]=0,0,PowerUnits[[#This Row],[Calculated List Price]]*(VLOOKUP(PowerUnits[[#This Row],[Depreciation Category]],PwrDepreciation,2,FALSE)-VLOOKUP(PowerUnits[[#This Row],[Depreciation Category]],PwrDepreciation,3,FALSE)*PowerUnits[[#This Row],[Age]]^0.5-VLOOKUP(PowerUnits[[#This Row],[Depreciation Category]],PwrDepreciation,4,FALSE)*PowerUnits[[#This Row],[Tach Hours]]^0.5)^2) -> 84796.09473 | L3: =IF(PowerUnits[[#This Row],[Depreciation Category]]=0,0,PowerUnits[[#This Row],[Calculated List Price]]*(VLOOKUP(PowerUnits[[#This Row],[Depreciation Category]],PwrDepreciation,2,FALSE)-VLOOKUP(PowerUnits[[#This Row],[Depreciation Category]],PwrDepreciation,3,FALSE)*(PowerUnits[[#This Row],[Age]]+1)^0.5-VLOOKUP(PowerUnits[[#This Row],[Depreciation Category]],PwrDepreciation,4,FALSE)*(PowerUnits[[#This Row],[Tach Hours]]+PowerUnits[[#This Row],[Est. Hours per Year]])^0.5)^2) -> 75557.13773 | M3: =IF(PowerUnits[[#This Row],[Est. Hours per Year]]=0,0,(PowerUnits[[#This Row],[Calculated Beg Yr. Value]]-PowerUnits[[#This Row],[Calculated End Yr. Value]])/PowerUnits[[#This Row],[Est. Hours per Year]]) -> 18.47791398 | N3: =IF(PowerUnits[[#This Row],[Est. Hours per Year]]=0,0,PowerUnits[[#This Row],[Calculated Beg Yr. Value]]*'General Variables'!$B$9/PowerUnits[[#This Row],[Est. Hours per Year]]) -> 3.391843789 | O3: =IF(PowerUnits[[#This Row],[Est. Hours per Year]]=0,0,PowerUnits[[#This Row],[Calculated Beg Yr. Value]]*'General Variables'!$B$10/PowerUnits[[#This Row],[Est. Hours per Year]]) -> 5.087765684 | P3: =SUM(PowerUnits[[#This Row],[Depreciation per Hour]:[Opportunity Cost per Hour]]) -> 26.95752345 | R3: 4 wheel drive & crawler | S3: TRACTORS | T3: 0.003 | U3: 2.0 | V3: 16000 | X3: Farm tractors | Y3: Farm tractors (80-150hp) | Z3: 0.942 | AA3: 0.100 | AB3: 0.0008
A4: Combine | B4: Combine(SP) | C4: Combines | D4: 351122 | F4: 10 | G4: 1500 | H4: 300 | I4: =IF(PowerUnits[[#This Row],[List Price]]>1,PowerUnits[[#This Row],[List Price]],IF(C4="",0,PowerUnits[[#This Row],[Beg Yr Value]]/(VLOOKUP(PowerUnits[[#This Row],[Depreciation Category]],PwrDepreciation,2,FALSE)-VLOOKUP(PowerUnits[[#This Row],[Depreciation Category]],PwrDepreciation,3,FALSE)*PowerUnits[[#This Row],[Age]]^0.5-VLOOKUP(PowerUnits[[#This Row],[Depreciation Category]],PwrDepreciation,4,FALSE)*PowerUnits[[#This Row],[Tach Hours]]^0.5)^2)) -> 351122 | J4: =IF(PowerUnits[[#This Row],[Est. Hours per Year]]=0,0,IF(PowerUnits[[#This Row],[Repair Category]]=0,0,(VLOOKUP(PowerUnits[[#This Row],[Repair Category]],PwrRepairs[],3,FALSE)*PowerUnits[[#This Row],[Calculated List Price]]*((PowerUnits[[#This Row],[Tach Hours]]+PowerUnits[[#This Row],[Est. Hours per Year]])/1000)^VLOOKUP(PowerUnits[[#This Row],[Repair Category]],PwrRepairs[],4,FALSE)-VLOOKUP(PowerUnits[[#This Row],[Repair Category]],PwrRepairs[],3,FALSE)*PowerUnits[[#This Row],[Calculated List Price]]*(PowerUnits[[#This Row],[Tach Hours]]/1000)^VLOOKUP(PowerUnits[[#This Row],[Repair Category]],PwrRepairs[],4,FALSE))/PowerUnits[[#This Row],[Est. Hours per Year]])) -> 51.17236749 | K4: =IF(PowerUnits[[#This Row],[Depreciation Category]]=0,0,PowerUnits[[#This Row],[Calculated List Price]]*(VLOOKUP(PowerUnits[[#This Row],[Depreciation Category]],PwrDepreciation,2,FALSE)-VLOOKUP(PowerUnits[[#This Row],[Depreciation Category]],PwrDepreciation,3,FALSE)*PowerUnits[[#This Row],[Age]]^0.5-VLOOKUP(PowerUnits[[#This Row],[Depreciation Category]],PwrDepreciation,4,FALSE)*PowerUnits[[#This Row],[Tach Hours]]^0.5)^2) -> 32504.49973 | L4: =IF(PowerUnits[[#This Row],[Depreciation Category]]=0,0,PowerUnits[[#This Row],[Calculated List Price]]*(VLOOKUP(PowerUnits[[#This Row],[Depreciation Category]],PwrDepreciation,2,FALSE)-VLOOKUP(PowerUnits[[#This Row],[Depreciation Category]],PwrDepreciation,3,FALSE)*(PowerUnits[[#This Row],[Age]]+1)^0.5-VLOOKUP(PowerUnits[[#This Row],[Depreciation Category]],PwrDepreciation,4,FALSE)*(PowerUnits[[#This Row],[Tach Hours]]+PowerUnits[[#This Row],[Est. Hours per Year]])^0.5)^2) -> 21872.90523 | M4: =IF(PowerUnits[[#This Row],[Est. Hours per Year]]=0,0,(PowerUnits[[#This Row],[Calculated Beg Yr. Value]]-PowerUnits[[#This Row],[Calculated End Yr. Value]])/PowerUnits[[#This Row],[Est. Hours per Year]]) -> 35.43864832 | N4: =IF(PowerUnits[[#This Row],[Est. Hours per Year]]=0,0,PowerUnits[[#This Row],[Calculated Beg Yr. Value]]*'General Variables'!$B$9/PowerUnits[[#This Row],[Est. Hours per Year]]) -> 2.166966648 | O4: =IF(PowerUnits[[#This Row],[Est. Hours per Year]]=0,0,PowerUnits[[#This Row],[Calculated Beg Yr. Value]]*'General Variables'!$B$10/PowerUnits[[#This Row],[Est. Hours per Year]]) -> 3.250449973 | P4: =SUM(PowerUnits[[#This Row],[Depreciation per Hour]:[Opportunity Cost per Hour]]) -> 40.85606494 | R4: Combine(SP) | S4: HARVESTING | T4: 0.04 | U4: 2.1 | V4: 3000 | X4: Farm tractors | Y4: Farm tractors (>150hp) | Z4: 0.976 | AA4: 0.119 | AB4: 0.0019
A5: Diesel Pump | B5: 2 wheel drive & stationary tractor | C5: Farm tractors (80-150hp) | D5: 15750 | F5: 10 | G5: 2400 | H5: 800 | I5: =IF(PowerUnits[[#This Row],[List Price]]>1,PowerUnits[[#This Row],[List Price]],IF(C5="",0,PowerUnits[[#This Row],[Beg Yr Value]]/(VLOOKUP(PowerUnits[[#This Row],[Depreciation Category]],PwrDepreciation,2,FALSE)-VLOOKUP(PowerUnits[[#This Row],[Depreciation Category]],PwrDepreciation,3,FALSE)*PowerUnits[[#This Row],[Age]]^0.5-VLOOKUP(PowerUnits[[#This Row],[Depreciation Category]],PwrDepreciation,4,FALSE)*PowerUnits[[#This Row],[Tach Hours]]^0.5)^2)) -> 15750 | J5: =IF(PowerUnits[[#This Row],[Est. Hours per Year]]=0,0,IF(PowerUnits[[#This Row],[Repair Category]]=0,0,(VLOOKUP(PowerUnits[[#This Row],[Repair Category]],PwrRepairs[],3,FALSE)*PowerUnits[[#This Row],[Calculated List Price]]*((PowerUnits[[#This Row],[Tach Hours]]+PowerUnits[[#This Row],[Est. Hours per Year]])/1000)^VLOOKUP(PowerUnits[[#This Row],[Repair Category]],PwrRepairs[],4,FALSE)-VLOOKUP(PowerUnits[[#This Row],[Repair Category]],PwrRepairs[],3,FALSE)*PowerUnits[[#This Row],[Calculated List Price]]*(PowerUnits[[#This Row],[Tach Hours]]/1000)^VLOOKUP(PowerUnits[[#This Row],[Repair Category]],PwrRepairs[],4,FALSE))/PowerUnits[[#This Row],[Est. Hours per Year]])) -> 0.6174 | K5: =IF(PowerUnits[[#This Row],[Depreciation Category]]=0,0,PowerUnits[[#This Row],[Calculated List Price]]*(VLOOKUP(PowerUnits[[#This Row],[Depreciation Category]],PwrDepreciation,2,FALSE)-VLOOKUP(PowerUnits[[#This Row],[Depreciation Category]],PwrDepreciation,3,FALSE)*PowerUnits[[#This Row],[Age]]^0.5-VLOOKUP(PowerUnits[[#This Row],[Depreciation Category]],PwrDepreciation,4,FALSE)*PowerUnits[[#This Row],[Tach Hours]]^0.5)^2) -> 5419.205874 | L5: =IF(PowerUnits[[#This Row],[Depreciation Category]]=0,0,PowerUnits[[#This Row],[Calculated List Price]]*(VLOOKUP(PowerUnits[[#This Row],[Depreciation Category]],PwrDepreciation,2,FALSE)-VLOOKUP(PowerUnits[[#This Row],[Depreciation Category]],PwrDepreciation,3,FALSE)*(PowerUnits[[#This Row],[Age]]+1)^0.5-VLOOKUP(PowerUnits[[#This Row],[Depreciation Category]],PwrDepreciation,4,FALSE)*(PowerUnits[[#This Row],[Tach Hours]]+PowerUnits[[#This Row],[Est. Hours per Year]])^0.5)^2) -> 5029.265479 | M5: =IF(PowerUnits[[#This Row],[Est. Hours per Year]]=0,0,(PowerUnits[[#This Row],[Calculated Beg Yr. Value]]-PowerUnits[[#This Row],[Calculated End Yr. Value]])/PowerUnits[[#This Row],[Est. Hours per Year]]) -> 0.4874254938 | N5: =IF(PowerUnits[[#This Row],[Est. Hours per Year]]=0,0,PowerUnits[[#This Row],[Calculated Beg Yr. Value]]*'General Variables'!$B$9/PowerUnits[[#This Row],[Est. Hours per Year]]) -> 0.1354801469 | O5: =IF(PowerUnits[[#This Row],[Est. Hours per Year]]=0,0,PowerUnits[[#This Row],[Calculated Beg Yr. Value]]*'General Variables'!$B$10/PowerUnits[[#This Row],[Est. Hours per Year]]) -> 0.2032202203 | P5: =SUM(PowerUnits[[#This Row],[Depreciation per Hour]:[Opportunity Cost per Hour]]) -> 0.826125861 | R5: Cotton picker(SP) | S5: HARVESTING | T5: 0.11 | U5: 1.8 | V5: 3000 | X5: Harvest equipment | Y5: Combines | Z5: 1.132 | AA5: 0.165 | AB5: 0.0079
A6: Electric Pump | B6: Electric Motor | C6: Farm tractors (<80hp) | D6: 10500 | F6: 5 | G6: 2400 | H6: 800 | I6: =IF(PowerUnits[[#This Row],[List Price]]>1,PowerUnits[[#This Row],[List Price]],IF(C6="",0,PowerUnits[[#This Row],[Beg Yr Value]]/(VLOOKUP(PowerUnits[[#This Row],[Depreciation Category]],PwrDepreciation,2,FALSE)-VLOOKUP(PowerUnits[[#This Row],[Depreciation Category]],PwrDepreciation,3,FALSE)*PowerUnits[[#This Row],[Age]]^0.5-VLOOKUP(PowerUnits[[#This Row],[Depreciation Category]],PwrDepreciation,4,FALSE)*PowerUnits[[#This Row],[Tach Hours]]^0.5)^2)) -> 10500 | J6: =IF(PowerUnits[[#This Row],[Est. Hours per Year]]=0,0,IF(PowerUnits[[#This Row],[Repair Category]]=0,0,(VLOOKUP(PowerUnits[[#This Row],[Repair Category]],PwrRepairs[],3,FALSE)*PowerUnits[[#This Row],[Calculated List Price]]*((PowerUnits[[#This Row],[Tach Hours]]+PowerUnits[[#This Row],[Est. Hours per Year]])/1000)^VLOOKUP(PowerUnits[[#This Row],[Repair Category]],PwrRepairs[],4,FALSE)-VLOOKUP(PowerUnits[[#This Row],[Repair Category]],PwrRepairs[],3,FALSE)*PowerUnits[[#This Row],[Calculated List Price]]*(PowerUnits[[#This Row],[Tach Hours]]/1000)^VLOOKUP(PowerUnits[[#This Row],[Repair Category]],PwrRepairs[],4,FALSE))/PowerUnits[[#This Row],[Est. Hours per Year]])) -> 0.5266458776 | K6: =IF(PowerUnits[[#This Row],[Depreciation Category]]=0,0,PowerUnits[[#This Row],[Calculated List Price]]*(VLOOKUP(PowerUnits[[#This Row],[Depreciation Category]],PwrDepreciation,2,FALSE)-VLOOKUP(PowerUnits[[#This Row],[Depreciation Category]],PwrDepreciation,3,FALSE)*PowerUnits[[#This Row],[Age]]^0.5-VLOOKUP(PowerUnits[[#This Row],[Depreciation Category]],PwrDepreciation,4,FALSE)*PowerUnits[[#This Row],[Tach Hours]]^0.5)^2) -> 2509.793684 | L6: =IF(PowerUnits[[#This Row],[Depreciation Category]]=0,0,PowerUnits[[#This Row],[Calculated List Price]]*(VLOOKUP(PowerUnits[[#This Row],[Depreciation Category]],PwrDepreciation,2,FALSE)-VLOOKUP(PowerUnits[[#This Row],[Depreciation Category]],PwrDepreciation,3,FALSE)*(PowerUnits[[#This Row],[Age]]+1)^0.5-VLOOKUP(PowerUnits[[#This Row],[Depreciation Category]],PwrDepreciation,4,FALSE)*(PowerUnits[[#This Row],[Tach Hours]]+PowerUnits[[#This Row],[Est. Hours per Year]])^0.5)^2) -> 1897.454279 | M6: =IF(PowerUnits[[#This Row],[Est. Hours per Year]]=0,0,(PowerUnits[[#This Row],[Calculated Beg Yr. Value]]-PowerUnits[[#This Row],[Calculated End Yr. Value]])/PowerUnits[[#This Row],[Est. Hours per Year]]) -> 0.7654242562 | N6: =IF(PowerUnits[[#This Row],[Est. Hours per Year]]=0,0,PowerUnits[[#This Row],[Calculated Beg Yr. Value]]*'General Variables'!$B$9/PowerUnits[[#This Row],[Est. Hours per Year]]) -> 0.06274484209 | O6: =IF(PowerUnits[[#This Row],[Est. Hours per Year]]=0,0,PowerUnits[[#This Row],[Calculated Beg Yr. Value]]*'General Variables'!$B$10/PowerUnits[[#This Row],[Est. Hours per Year]]) -> 0.09411726314 | P6: =SUM(PowerUnits[[#This Row],[Depreciation per Hour]:[Opportunity Cost per Hour]]) -> 0.9222863615 | R6: Forage harvester(SP) | S6: HARVESTING | T6: 0.03 | U6: 2.0 | V6: 4000 | X6: Harvest equipment | Y6: Swathers and all other harvest equipment | Z6: 0.791 | AA6: 0.091
A7: Diesel Pump for Pipe | B7: 2 wheel drive & stationary tractor | C7: Farm tractors (<80hp) | D7: 15750 | F7: 10 | G7: 2400 | H7: 800 | I7: =IF(PowerUnits[[#This Row],[List Price]]>1,PowerUnits[[#This Row],[List Price]],IF(C7="",0,PowerUnits[[#This Row],[Beg Yr Value]]/(VLOOKUP(PowerUnits[[#This Row],[Depreciation Category]],PwrDepreciation,2,FALSE)-VLOOKUP(PowerUnits[[#This Row],[Depreciation Category]],PwrDepreciation,3,FALSE)*PowerUnits[[#This Row],[Age]]^0.5-VLOOKUP(PowerUnits[[#This Row],[Depreciation Category]],PwrDepreciation,4,FALSE)*PowerUnits[[#This Row],[Tach Hours]]^0.5)^2)) -> 15750 | J7: =IF(PowerUnits[[#This Row],[Est. Hours per Year]]=0,0,IF(PowerUnits[[#This Row],[Repair Category]]=0,0,(VLOOKUP(PowerUnits[[#This Row],[Repair Category]],PwrRepairs[],3,FALSE)*PowerUnits[[#This Row],[Calculated List Price]]*((PowerUnits[[#This Row],[Tach Hours]]+PowerUnits[[#This Row],[Est. Hours per Year]])/1000)^VLOOKUP(PowerUnits[[#This Row],[Repair Category]],PwrRepairs[],4,FALSE)-VLOOKUP(PowerUnits[[#This Row],[Repair Category]],PwrRepairs[],3,FALSE)*PowerUnits[[#This Row],[Calculated List Price]]*(PowerUnits[[#This Row],[Tach Hours]]/1000)^VLOOKUP(PowerUnits[[#This Row],[Repair Category]],PwrRepairs[],4,FALSE))/PowerUnits[[#This Row],[Est. Hours per Year]])) -> 0.6174 | K7: =IF(PowerUnits[[#This Row],[Depreciation Category]]=0,0,PowerUnits[[#This Row],[Calculated List Price]]*(VLOOKUP(PowerUnits[[#This Row],[Depreciation Category]],PwrDepreciation,2,FALSE)-VLOOKUP(PowerUnits[[#This Row],[Depreciation Category]],PwrDepreciation,3,FALSE)*PowerUnits[[#This Row],[Age]]^0.5-VLOOKUP(PowerUnits[[#This Row],[Depreciation Category]],PwrDepreciation,4,FALSE)*PowerUnits[[#This Row],[Tach Hours]]^0.5)^2) -> 2554.989448 | L7: =IF(PowerUnits[[#This Row],[Depreciation Category]]=0,0,PowerUnits[[#This Row],[Calculated List Price]]*(VLOOKUP(PowerUnits[[#This Row],[Depreciation Category]],PwrDepreciation,2,FALSE)-VLOOKUP(PowerUnits[[#This Row],[Depreciation Category]],PwrDepreciation,3,FALSE)*(PowerUnits[[#This Row],[Age]]+1)^0.5-VLOOKUP(PowerUnits[[#This Row],[Depreciation Category]],PwrDepreciation,4,FALSE)*(PowerUnits[[#This Row],[Tach Hours]]+PowerUnits[[#This Row],[Est. Hours per Year]])^0.5)^2) -> 1868.740267 | M7: =IF(PowerUnits[[#This Row],[Est. Hours per Year]]=0,0,(PowerUnits[[#This Row],[Calculated Beg Yr. Value]]-PowerUnits[[#This Row],[Calculated End Yr. Value]])/PowerUnits[[#This Row],[Est. Hours per Year]]) -> 0.8578114764 | N7: =IF(PowerUnits[[#This Row],[Est. Hours per Year]]=0,0,PowerUnits[[#This Row],[Calculated Beg Yr. Value]]*'General Variables'!$B$9/PowerUnits[[#This Row],[Est. Hours per Year]]) -> 0.06387473621 | O7: =IF(PowerUnits[[#This Row],[Est. Hours per Year]]=0,0,PowerUnits[[#This Row],[Calculated Beg Yr. Value]]*'General Variables'!$B$10/PowerUnits[[#This Row],[Est. Hours per Year]]) -> 0.09581210431 | P7: =SUM(PowerUnits[[#This Row],[Depreciation per Hour]:[Opportunity Cost per Hour]]) -> 1.017498317 | R7: Windrower(SP) | S7: HARVESTING | T7: 0.06 | U7: 2.0 | V7: 3000 | X7: Miscellaneousequipment | Y7: Skid-steerloaders and all other vechicles | Z7: 0.786 | AA7: 0.063 | AB7: 0.0033
A8: Windrower | B8: Forage harvester(SP) | C8: Swathers and all other harvest equipment | D8: 150309 | F8: 10 | G8: 2500 | H8: 120 | I8: =IF(PowerUnits[[#This Row],[List Price]]>1,PowerUnits[[#This Row],[List Price]],IF(C8="",0,PowerUnits[[#This Row],[Beg Yr Value]]/(VLOOKUP(PowerUnits[[#This Row],[Depreciation Category]],PwrDepreciation,2,FALSE)-VLOOKUP(PowerUnits[[#This Row],[Depreciation Category]],PwrDepreciation,3,FALSE)*PowerUnits[[#This Row],[Age]]^0.5-VLOOKUP(PowerUnits[[#This Row],[Depreciation Category]],PwrDepreciation,4,FALSE)*PowerUnits[[#This Row],[Tach Hours]]^0.5)^2)) -> 150309 | J8: =IF(PowerUnits[[#This Row],[Est. Hours per Year]]=0,0,IF(PowerUnits[[#This Row],[Repair Category]]=0,0,(VLOOKUP(PowerUnits[[#This Row],[Repair Category]],PwrRepairs[],3,FALSE)*PowerUnits[[#This Row],[Calculated List Price]]*((PowerUnits[[#This Row],[Tach Hours]]+PowerUnits[[#This Row],[Est. Hours per Year]])/1000)^VLOOKUP(PowerUnits[[#This Row],[Repair Category]],PwrRepairs[],4,FALSE)-VLOOKUP(PowerUnits[[#This Row],[Repair Category]],PwrRepairs[],3,FALSE)*PowerUnits[[#This Row],[Calculated List Price]]*(PowerUnits[[#This Row],[Tach Hours]]/1000)^VLOOKUP(PowerUnits[[#This Row],[Repair Category]],PwrRepairs[],4,FALSE))/PowerUnits[[#This Row],[Est. Hours per Year]])) -> 23.0874624 | K8: =IF(PowerUnits[[#This Row],[Depreciation Category]]=0,0,PowerUnits[[#This Row],[Calculated List Price]]*(VLOOKUP(PowerUnits[[#This Row],[Depreciation Category]],PwrDepreciation,2,FALSE)-VLOOKUP(PowerUnits[[#This Row],[Depreciation Category]],PwrDepreciation,3,FALSE)*PowerUnits[[#This Row],[Age]]^0.5-VLOOKUP(PowerUnits[[#This Row],[Depreciation Category]],PwrDepreciation,4,FALSE)*PowerUnits[[#This Row],[Tach Hours]]^0.5)^2) -> 38064.72967 | L8: =IF(PowerUnits[[#This Row],[Depreciation Category]]=0,0,PowerUnits[[#This Row],[Calculated List Price]]*(VLOOKUP(PowerUnits[[#This Row],[Depreciation Category]],PwrDepreciation,2,FALSE)-VLOOKUP(PowerUnits[[#This Row],[Depreciation Category]],PwrDepreciation,3,FALSE)*(PowerUnits[[#This Row],[Age]]+1)^0.5-VLOOKUP(PowerUnits[[#This Row],[Depreciation Category]],PwrDepreciation,4,FALSE)*(PowerUnits[[#This Row],[Tach Hours]]+PowerUnits[[#This Row],[Est. Hours per Year]])^0.5)^2) -> 35969.55424 | M8: =IF(PowerUnits[[#This Row],[Est. Hours per Year]]=0,0,(PowerUnits[[#This Row],[Calculated Beg Yr. Value]]-PowerUnits[[#This Row],[Calculated End Yr. Value]])/PowerUnits[[#This Row],[Est. Hours per Year]]) -> 17.45979518 | N8: =IF(PowerUnits[[#This Row],[Est. Hours per Year]]=0,0,PowerUnits[[#This Row],[Calculated Beg Yr. Value]]*'General Variables'!$B$9/PowerUnits[[#This Row],[Est. Hours per Year]]) -> 6.344121611 | O8: =IF(PowerUnits[[#This Row],[Est. Hours per Year]]=0,0,PowerUnits[[#This Row],[Calculated Beg Yr. Value]]*'General Variables'!$B$10/PowerUnits[[#This Row],[Est. Hours per Year]]) -> 9.516182417 | P8: =SUM(PowerUnits[[#This Row],[Depreciation per Hour]:[Opportunity Cost per Hour]]) -> 33.32009921 | R8: Electric Motor | S8: See Table 5-5* | T8: 0.02 | U8: 1.5
A9: none | I9: =IF(PowerUnits[[#This Row],[List Price]]>1,PowerUnits[[#This Row],[List Price]],IF(C9="",0,PowerUnits[[#This Row],[Beg Yr Value]]/(VLOOKUP(PowerUnits[[#This Row],[Depreciation Category]],PwrDepreciation,2,FALSE)-VLOOKUP(PowerUnits[[#This Row],[Depreciation Category]],PwrDepreciation,3,FALSE)*PowerUnits[[#This Row],[Age]]^0.5-VLOOKUP(PowerUnits[[#This Row],[Depreciation Category]],PwrDepreciation,4,FALSE)*PowerUnits[[#This Row],[Tach Hours]]^0.5)^2)) -> 0 | J9: =IF(PowerUnits[[#This Row],[Est. Hours per Year]]=0,0,IF(PowerUnits[[#This Row],[Repair Category]]=0,0,(VLOOKUP(PowerUnits[[#This Row],[Repair Category]],PwrRepairs[],3,FALSE)*PowerUnits[[#This Row],[Calculated List Price]]*((PowerUnits[[#This Row],[Tach Hours]]+PowerUnits[[#This Row],[Est. Hours per Year]])/1000)^VLOOKUP(PowerUnits[[#This Row],[Repair Category]],PwrRepairs[],4,FALSE)-VLOOKUP(PowerUnits[[#This Row],[Repair Category]],PwrRepairs[],3,FALSE)*PowerUnits[[#This Row],[Calculated List Price]]*(PowerUnits[[#This Row],[Tach Hours]]/1000)^VLOOKUP(PowerUnits[[#This Row],[Repair Category]],PwrRepairs[],4,FALSE))/PowerUnits[[#This Row],[Est. Hours per Year]])) -> 0 | K9: =IF(PowerUnits[[#This Row],[Depreciation Category]]=0,0,PowerUnits[[#This Row],[Calculated List Price]]*(VLOOKUP(PowerUnits[[#This Row],[Depreciation Category]],PwrDepreciation,2,FALSE)-VLOOKUP(PowerUnits[[#This Row],[Depreciation Category]],PwrDepreciation,3,FALSE)*PowerUnits[[#This Row],[Age]]^0.5-VLOOKUP(PowerUnits[[#This Row],[Depreciation Category]],PwrDepreciation,4,FALSE)*PowerUnits[[#This Row],[Tach Hours]]^0.5)^2) -> 0 | L9: =IF(PowerUnits[[#This Row],[Depreciation Category]]=0,0,PowerUnits[[#This Row],[Calculated List Price]]*(VLOOKUP(PowerUnits[[#This Row],[Depreciation Category]],PwrDepreciation,2,FALSE)-VLOOKUP(PowerUnits[[#This Row],[Depreciation Category]],PwrDepreciation,3,FALSE)*(PowerUnits[[#This Row],[Age]]+1)^0.5-VLOOKUP(PowerUnits[[#This Row],[Depreciation Category]],PwrDepreciation,4,FALSE)*(PowerUnits[[#This Row],[Tach Hours]]+PowerUnits[[#This Row],[Est. Hours per Year]])^0.5)^2) -> 0 | M9: =IF(PowerUnits[[#This Row],[Est. Hours per Year]]=0,0,(PowerUnits[[#This Row],[Calculated Beg Yr. Value]]-PowerUnits[[#This Row],[Calculated End Yr. Value]])/PowerUnits[[#This Row],[Est. Hours per Year]]) -> 0 | N9: =IF(PowerUnits[[#This Row],[Est. Hours per Year]]=0,0,PowerUnits[[#This Row],[Calculated Beg Yr. Value]]*'General Variables'!$B$9/PowerUnits[[#This Row],[Est. Hours per Year]]) -> 0 | O9: =IF(PowerUnits[[#This Row],[Est. Hours per Year]]=0,0,PowerUnits[[#This Row],[Calculated Beg Yr. Value]]*'General Variables'!$B$10/PowerUnits[[#This Row],[Est. Hours per Year]]) -> 0 | P9: =SUM(PowerUnits[[#This Row],[Depreciation per Hour]:[Opportunity Cost per Hour]]) -> 0
I10: =IF(PowerUnits[[#This Row],[List Price]]>1,PowerUnits[[#This Row],[List Price]],IF(C10="",0,PowerUnits[[#This Row],[Beg Yr Value]]/(VLOOKUP(PowerUnits[[#This Row],[Depreciation Category]],PwrDepreciation,2,FALSE)-VLOOKUP(PowerUnits[[#This Row],[Depreciation Category]],PwrDepreciation,3,FALSE)*PowerUnits[[#This Row],[Age]]^0.5-VLOOKUP(PowerUnits[[#This Row],[Depreciation Category]],PwrDepreciation,4,FALSE)*PowerUnits[[#This Row],[Tach Hours]]^0.5)^2)) -> 0 | J10: =IF(PowerUnits[[#This Row],[Est. Hours per Year]]=0,0,IF(PowerUnits[[#This Row],[Repair Category]]=0,0,(VLOOKUP(PowerUnits[[#This Row],[Repair Category]],PwrRepairs[],3,FALSE)*PowerUnits[[#This Row],[Calculated List Price]]*((PowerUnits[[#This Row],[Tach Hours]]+PowerUnits[[#This Row],[Est. Hours per Year]])/1000)^VLOOKUP(PowerUnits[[#This Row],[Repair Category]],PwrRepairs[],4,FALSE)-VLOOKUP(PowerUnits[[#This Row],[Repair Category]],PwrRepairs[],3,FALSE)*PowerUnits[[#This Row],[Calculated List Price]]*(PowerUnits[[#This Row],[Tach Hours]]/1000)^VLOOKUP(PowerUnits[[#This Row],[Repair Category]],PwrRepairs[],4,FALSE))/PowerUnits[[#This Row],[Est. Hours per Year]])) -> 0 | K10: =IF(PowerUnits[[#This Row],[Depreciation Category]]=0,0,PowerUnits[[#This Row],[Calculated List Price]]*(VLOOKUP(PowerUnits[[#This Row],[Depreciation Category]],PwrDepreciation,2,FALSE)-VLOOKUP(PowerUnits[[#This Row],[Depreciation Category]],PwrDepreciation,3,FALSE)*PowerUnits[[#This Row],[Age]]^0.5-VLOOKUP(PowerUnits[[#This Row],[Depreciation Category]],PwrDepreciation,4,FALSE)*PowerUnits[[#This Row],[Tach Hours]]^0.5)^2) -> 0 | L10: =IF(PowerUnits[[#This Row],[Depreciation Category]]=0,0,PowerUnits[[#This Row],[Calculated List Price]]*(VLOOKUP(PowerUnits[[#This Row],[Depreciation Category]],PwrDepreciation,2,FALSE)-VLOOKUP(PowerUnits[[#This Row],[Depreciation Category]],PwrDepreciation,3,FALSE)*(PowerUnits[[#This Row],[Age]]+1)^0.5-VLOOKUP(PowerUnits[[#This Row],[Depreciation Category]],PwrDepreciation,4,FALSE)*(PowerUnits[[#This Row],[Tach Hours]]+PowerUnits[[#This Row],[Est. Hours per Year]])^0.5)^2) -> 0 | M10: =IF(PowerUnits[[#This Row],[Est. Hours per Year]]=0,0,(PowerUnits[[#This Row],[Calculated Beg Yr. Value]]-PowerUnits[[#This Row],[Calculated End Yr. Value]])/PowerUnits[[#This Row],[Est. Hours per Year]]) -> 0 | N10: =IF(PowerUnits[[#This Row],[Est. Hours per Year]]=0,0,PowerUnits[[#This Row],[Calculated Beg Yr. Value]]*'General Variables'!$B$9/PowerUnits[[#This Row],[Est. Hours per Year]]) -> 0 | O10: =IF(PowerUnits[[#This Row],[Est. Hours per Year]]=0,0,PowerUnits[[#This Row],[Calculated Beg Yr. Value]]*'General Variables'!$B$10/PowerUnits[[#This Row],[Est. Hours per Year]]) -> 0 | P10: =SUM(PowerUnits[[#This Row],[Depreciation per Hour]:[Opportunity Cost per Hour]]) -> 0
I11: =IF(PowerUnits[[#This Row],[List Price]]>1,PowerUnits[[#This Row],[List Price]],IF(C11="",0,PowerUnits[[#This Row],[Beg Yr Value]]/(VLOOKUP(PowerUnits[[#This Row],[Depreciation Category]],PwrDepreciation,2,FALSE)-VLOOKUP(PowerUnits[[#This Row],[Depreciation Category]],PwrDepreciation,3,FALSE)*PowerUnits[[#This Row],[Age]]^0.5-VLOOKUP(PowerUnits[[#This Row],[Depreciation Category]],PwrDepreciation,4,FALSE)*PowerUnits[[#This Row],[Tach Hours]]^0.5)^2)) -> 0 | J11: =IF(PowerUnits[[#This Row],[Est. Hours per Year]]=0,0,IF(PowerUnits[[#This Row],[Repair Category]]=0,0,(VLOOKUP(PowerUnits[[#This Row],[Repair Category]],PwrRepairs[],3,FALSE)*PowerUnits[[#This Row],[Calculated List Price]]*((PowerUnits[[#This Row],[Tach Hours]]+PowerUnits[[#This Row],[Est. Hours per Year]])/1000)^VLOOKUP(PowerUnits[[#This Row],[Repair Category]],PwrRepairs[],4,FALSE)-VLOOKUP(PowerUnits[[#This Row],[Repair Category]],PwrRepairs[],3,FALSE)*PowerUnits[[#This Row],[Calculated List Price]]*(PowerUnits[[#This Row],[Tach Hours]]/1000)^VLOOKUP(PowerUnits[[#This Row],[Repair Category]],PwrRepairs[],4,FALSE))/PowerUnits[[#This Row],[Est. Hours per Year]])) -> 0 | K11: =IF(PowerUnits[[#This Row],[Depreciation Category]]=0,0,PowerUnits[[#This Row],[Calculated List Price]]*(VLOOKUP(PowerUnits[[#This Row],[Depreciation Category]],PwrDepreciation,2,FALSE)-VLOOKUP(PowerUnits[[#This Row],[Depreciation Category]],PwrDepreciation,3,FALSE)*PowerUnits[[#This Row],[Age]]^0.5-VLOOKUP(PowerUnits[[#This Row],[Depreciation Category]],PwrDepreciation,4,FALSE)*PowerUnits[[#This Row],[Tach Hours]]^0.5)^2) -> 0 | L11: =IF(PowerUnits[[#This Row],[Depreciation Category]]=0,0,PowerUnits[[#This Row],[Calculated List Price]]*(VLOOKUP(PowerUnits[[#This Row],[Depreciation Category]],PwrDepreciation,2,FALSE)-VLOOKUP(PowerUnits[[#This Row],[Depreciation Category]],PwrDepreciation,3,FALSE)*(PowerUnits[[#This Row],[Age]]+1)^0.5-VLOOKUP(PowerUnits[[#This Row],[Depreciation Category]],PwrDepreciation,4,FALSE)*(PowerUnits[[#This Row],[Tach Hours]]+PowerUnits[[#This Row],[Est. Hours per Year]])^0.5)^2) -> 0 | M11: =IF(PowerUnits[[#This Row],[Est. Hours per Year]]=0,0,(PowerUnits[[#This Row],[Calculated Beg Yr. Value]]-PowerUnits[[#This Row],[Calculated End Yr. Value]])/PowerUnits[[#This Row],[Est. Hours per Year]]) -> 0 | N11: =IF(PowerUnits[[#This Row],[Est. Hours per Year]]=0,0,PowerUnits[[#This Row],[Calculated Beg Yr. Value]]*'General Variables'!$B$9/PowerUnits[[#This Row],[Est. Hours per Year]]) -> 0 | O11: =IF(PowerUnits[[#This Row],[Est. Hours per Year]]=0,0,PowerUnits[[#This Row],[Calculated Beg Yr. Value]]*'General Variables'!$B$10/PowerUnits[[#This Row],[Est. Hours per Year]]) -> 0 | P11: =SUM(PowerUnits[[#This Row],[Depreciation per Hour]:[Opportunity Cost per Hour]]) -> 0
I12: =IF(PowerUnits[[#This Row],[List Price]]>1,PowerUnits[[#This Row],[List Price]],IF(C12="",0,PowerUnits[[#This Row],[Beg Yr Value]]/(VLOOKUP(PowerUnits[[#This Row],[Depreciation Category]],PwrDepreciation,2,FALSE)-VLOOKUP(PowerUnits[[#This Row],[Depreciation Category]],PwrDepreciation,3,FALSE)*PowerUnits[[#This Row],[Age]]^0.5-VLOOKUP(PowerUnits[[#This Row],[Depreciation Category]],PwrDepreciation,4,FALSE)*PowerUnits[[#This Row],[Tach Hours]]^0.5)^2)) -> 0 | J12: =IF(PowerUnits[[#This Row],[Est. Hours per Year]]=0,0,IF(PowerUnits[[#This Row],[Repair Category]]=0,0,(VLOOKUP(PowerUnits[[#This Row],[Repair Category]],PwrRepairs[],3,FALSE)*PowerUnits[[#This Row],[Calculated List Price]]*((PowerUnits[[#This Row],[Tach Hours]]+PowerUnits[[#This Row],[Est. Hours per Year]])/1000)^VLOOKUP(PowerUnits[[#This Row],[Repair Category]],PwrRepairs[],4,FALSE)-VLOOKUP(PowerUnits[[#This Row],[Repair Category]],PwrRepairs[],3,FALSE)*PowerUnits[[#This Row],[Calculated List Price]]*(PowerUnits[[#This Row],[Tach Hours]]/1000)^VLOOKUP(PowerUnits[[#This Row],[Repair Category]],PwrRepairs[],4,FALSE))/PowerUnits[[#This Row],[Est. Hours per Year]])) -> 0 | K12: =IF(PowerUnits[[#This Row],[Depreciation Category]]=0,0,PowerUnits[[#This Row],[Calculated List Price]]*(VLOOKUP(PowerUnits[[#This Row],[Depreciation Category]],PwrDepreciation,2,FALSE)-VLOOKUP(PowerUnits[[#This Row],[Depreciation Category]],PwrDepreciation,3,FALSE)*PowerUnits[[#This Row],[Age]]^0.5-VLOOKUP(PowerUnits[[#This Row],[Depreciation Category]],PwrDepreciation,4,FALSE)*PowerUnits[[#This Row],[Tach Hours]]^0.5)^2) -> 0 | L12: =IF(PowerUnits[[#This Row],[Depreciation Category]]=0,0,PowerUnits[[#This Row],[Calculated List Price]]*(VLOOKUP(PowerUnits[[#This Row],[Depreciation Category]],PwrDepreciation,2,FALSE)-VLOOKUP(PowerUnits[[#This Row],[Depreciation Category]],PwrDepreciation,3,FALSE)*(PowerUnits[[#This Row],[Age]]+1)^0.5-VLOOKUP(PowerUnits[[#This Row],[Depreciation Category]],PwrDepreciation,4,FALSE)*(PowerUnits[[#This Row],[Tach Hours]]+PowerUnits[[#This Row],[Est. Hours per Year]])^0.5)^2) -> 0 | M12: =IF(PowerUnits[[#This Row],[Est. Hours per Year]]=0,0,(PowerUnits[[#This Row],[Calculated Beg Yr. Value]]-PowerUnits[[#This Row],[Calculated End Yr. Value]])/PowerUnits[[#This Row],[Est. Hours per Year]]) -> 0 | N12: =IF(PowerUnits[[#This Row],[Est. Hours per Year]]=0,0,PowerUnits[[#This Row],[Calculated Beg Yr. Value]]*'General Variables'!$B$9/PowerUnits[[#This Row],[Est. Hours per Year]]) -> 0 | O12: =IF(PowerUnits[[#This Row],[Est. Hours per Year]]=0,0,PowerUnits[[#This Row],[Calculated Beg Yr. Value]]*'General Variables'!$B$10/PowerUnits[[#This Row],[Est. Hours per Year]]) -> 0 | P12: =SUM(PowerUnits[[#This Row],[Depreciation per Hour]:[Opportunity Cost per Hour]]) -> 0

Sheet Materials
A1: Index | B1: Material | C1: Category | D1: Purchase Price | E1: Purchase Unit | F1: Applied Unit | G1: Applied Units / Purchased Units | H1: Applied Price
A2: 1 | B2: 21-0-0-24S | C2: Additive | D2: 0.28 | E2: pound | F2: pound | G2: 1 | H2: =IF(G2=0,0,D2/G2) -> 0.28
A3: 2 | B3: Approved adjuvant | C3: Additive | D3: 2.5 | E3: acre | F3: acre | G3: 1 | H3: 2.5
A4: 3 | B4: Crop Oil Concentrate | C4: Additive | D4: 8.3 | E4: gallon | F4: pint | G4: 8 | H4: 1.0375
A5: 4 | B5: MSO | C5: Additive | D5: 20 | E5: gallon | F5: ounce | G5: 128 | H5: 0.15625
A6: 5 | B6: NIS | C6: Additive | D6: 11 | E6: gallon | F6: ounce | G6: 128 | H6: 0.0859375
A7: 6 | B7: UAN | C7: Additive | D7: 1.3 | E7: gallon | F7: pint | G7: 8 | H7: 0.1625
A8: 7 | B8: Aerial Spray | C8: Custom | D8: 10 | E8: acre | F8: acre | G8: 1 | H8: 10
A9: 8 | B9: Bale Lg Sq 1360 lb | C9: Custom | D9: 15 | E9: bale | F9: ton | G9: =1360/2000 -> 0.68 | H9: =IF(G9=0,0,D9/G9) -> 22.05882353
A10: 9 | B10: Broadcast Seed | C10: Custom | D10: 5 | E10: acre | F10: acre | G10: 1 | H10: 5
A11: 10 | B11: Chop, Haul, Pack | C11: Custom | D11: 10.75 | E11: ton | F11: ton | G11: 1 | H11: 10.75
A12: 11 | B12: Dry 2 Points Removed | C12: Custom | D12: 0.08 | E12: bushel | F12: bushel | G12: 1 | H12: 0.08
A13: 12 | B13: Haul & Apply Manure | C13: Custom | D13: 6 | E13: ton | F13: ton | G13: 1 | H13: 6
A14: 13 | B14: Haul Beets | C14: Custom | D14: 5 | E14: ton | F14: ton | G14: 1 | H14: 5
A15: 14 | B15: Haul Grain (Dry Beans) | C15: Custom | D15: 0.28 | E15: cwt | F15: cwt | G15: 1 | H15: 0.28
A16: 15 | B16: Haul Grain (Millet) | C16: Custom | D16: 0.24 | E16: cwt | F16: cwt | G16: 1 | H16: 0.24
A17: 16 | B17: Haul Grain (Sunflower) | C17: Custom | D17: 0.3 | E17: cwt | F17: cwt | G17: 1 | H17: 0.3
A18: 17 | B18: Haul Grain Bushels | C18: Custom | D18: 0.11 | E18: bushel | F18: bushel | G18: 1 | H18: 0.11
A19: 18 | B19: Load Large Square Bales | C19: Custom | D19: 2 | E19: bale | F19: ton | G19: =1362/2000 -> 0.681 | H19: 2.936857562
A20: 19 | B20: Spray | C20: Custom | D20: 7 | E20: acre | F20: acre | G20: 1 | H20: 7
A21: 20 | B21: 10-34-0 | C21: Fertilizer | D21: 2.3 | E21: gallon | F21: gallon | G21: 1 | H21: 2.3
A22: 21 | B22: 10-34-0-1Zn | C22: Fertilizer | D22: 2.35 | E22: gallon | F22: gallon | G22: 1 | H22: 2.35
A23: 22 | B23: 11-52-0 | C23: Fertilizer | D23: 0.24 | E23: pound | F23: pound | G23: 1 | H23: 0.24
A24: 23 | B24: 28-0-0 | C24: Fertilizer | D24: 1.1 | E24: gallon | F24: lbs N | G24: 3 | H24: 0.3666666667
A25: 24 | B25: 32-0-0 | C25: Fertilizer | D25: 0.32 | E25: lbs N | F25: lbs N | G25: 1 | H25: 0.32
A26: 25 | B26: 32-0-0 (Applied by Pivot) | C26: Fertilizer | D26: 0.32 | E26: lbs N | F26: lbs N | G26: 1 | H26: 0.32
A27: 26 | B27: 32-0-0 (Applied by R2) | C27: Fertilizer | D27: 0.32 | E27: lbs N | F27: lbs N | G27: 1 | H27: 0.32
A28: 27 | B28: 46-0-0 | C28: Fertilizer | D28: 0.36 | E28: lb N | F28: lbs N | G28: 1 | H28: 0.36
A29: 28 | B29: 82-0-0 | C29: Fertilizer | D29: 0.26 | E29: lb N | F29: lbs N | G29: 1 | H29: 0.26
A30: 29 | B30: Uncomposted manure | C30: Fertilizer | D30: 1 | E30: ton | F30: ton | G30: 1 | H30: 1
A31: 30 | B31: Copper | C31: Fungicide | D31: 3.5 | E31: pint | F31: pint | G31: 1 | H31: 3.5
A32: 31 | B32: Headline AMP | C32: Fungicide | D32: 330 | E32: gallon | F32: ounce | G32: 128 | H32: 2.578125
A33: 32 | B33: Pea Seed Innoculent | C33: Fungicide | D33: 8 | E33: pound | F33: pound | G33: 1 | H33: 8
A34: 33 | B34: Priaxor | C34: Fungicide | D34: 700 | E34: gallon | F34: ounce | G34: 128 | H34: 5.46875
A35: 34 | B35: Quadris | C35: Fungicide | D35: 300 | E35: gallon | F35: ounce | G35: 128 | H35: 2.34375
A36: 35 | B36: Quilt Xcel | C36: Fungicide | D36: 210 | E36: gallon | F36: ounce | G36: 128 | H36: 1.640625
A37: 36 | B37: Stratego YLD | C37: Fungicide | D37: 570 | E37: gallon | F37: ounce | G37: 128 | H37: 4.453125
A38: 37 | B38: Tilt | C38: Fungicide | D38: 100 | E38: gallon | F38: ounce | G38: 128 | H38: 0.78125
A39: 38 | B39: 2,4-D Amine | C39: Herbicide | D39: 13 | E39: gallon | F39: pint | G39: 8 | H39: 1.625
A40: 39 | B40: 2,4-D Ester LV4 | C40: Herbicide | D40: 17 | E40: gallon | F40: pint | G40: 8 | H40: 2.125
A41: 40 | B41: AAtrex 4L | C41: Herbicide | D41: 18 | E41: gallon | F41: quart | G41: 4 | H41: =IF(G41=0,0,D41/G41) -> 4.5
A42: 41 | B42: Acuron | C42: Herbicide | D42: 60 | E42: gallon | F42: quart | G42: 4 | H42: 15
A43: 42 | B43: Aim 2EC | C43: Herbicide | D43: 190 | E43: quart | F43: ounce | G43: 32 | H43: 5.9375
A44: 43 | B44: Ally Extra SGW/TOTSOL | C44: Herbicide | D44: 9 | E44: ounce | F44: ounce | G44: 1 | H44: 9
A45: 44 | B45: Armezon Pro | C45: Herbicide | D45: 170 | E45: gallon | F45: ounce | G45: 128 | H45: 1.328125
A46: 45 | B46: Atrazine 4L | C46: Herbicide | D46: 14 | E46: gallon | F46: quart | G46: 4 | H46: 3.5
A47: 46 | B47: Atrazine 90 DF | C47: Herbicide | D47: 3.8 | E47: pound | F47: pound | G47: 1 | H47: 3.8
A48: 47 | B48: Authority First DF | C48: Herbicide | D48: 90 | E48: pound | F48: ounce | G48: 16 | H48: 5.625
A49: 48 | B49: Balance Flexx | C49: Herbicide | D49: 5 | E49: ounce | F49: ounce | G49: 1 | H49: 5
A50: 49 | B50: Basagran | C50: Herbicide | D50: 80 | E50: gallon | F50: pint | G50: 8 | H50: 10
A51: 50 | B51: Beyond | C51: Herbicide | D51: 610 | E51: gallon | F51: ounce | G51: 128 | H51: 4.765625
A52: 51 | B52: Bicep II Magnum | C52: Herbicide | D52: 45 | E52: gallon | F52: quart | G52: 4 | H52: 11.25
A53: 52 | B53: Brox 2EC | C53: Herbicide | D53: 34 | E53: gallon | F53: pint | G53: 8 | H53: 4.25
A54: 53 | B54: Dicamba | C54: Herbicide | D54: 44 | E54: gallon | F54: ounce | G54: 128 | H54: 0.34375
A55: 54 | B55: DiFlexx | C55: Herbicide | D55: 220 | E55: gallon | F55: ounce | G55: 128 | H55: 1.71875
A56: 55 | B56: Distinct | C56: Herbicide | D56: 40 | E56: gallon | F56: ounce | G56: 128 | H56: 0.3125
A57: 56 | B57: Engenia | C57: Herbicide | D57: 120 | E57: gallon | F57: ounce | G57: 128 | H57: 0.9375
A58: 57 | B58: FeXapan | C58: Herbicide | D58: 70 | E58: gallon | F58: ounce | G58: 128 | H58: 0.546875
A59: 58 | B59: Glyphosate w/Surfactant | C59: Herbicide | D59: 15 | E59: gallon | F59: ounce | G59: 128 | H59: 0.1171875
A60: 59 | B60: Gramoxone SL | C60: Herbicide | D60: 20 | E60: gallon | F60: pint | G60: 8 | H60: 2.5
A61: 60 | B61: Huskie | C61: Herbicide | D61: 120 | E61: gallon | F61: ounce | G61: 128 | H61: 0.9375
A62: 61 | B62: Landmaster BW | C62: Herbicide | D62: 17 | E62: gallon | F62: ounce | G62: 128 | H62: 0.1328125
A63: 62 | B63: Laudis | C63: Herbicide | D63: 800 | E63: gallon | F63: ounce | G63: 128 | H63: 6.25
A64: 63 | B64: Lumax EZ | C64: Herbicide | D64: 80 | E64: gallon | F64: quart | G64: 4 | H64: 20
A65: 64 | B65: Outlook | C65: Herbicide | D65: 150 | E65: gallon | F65: ounce | G65: 128 | H65: 1.171875
A66: 65 | B66: Peak | C66: Herbicide | D66: 18 | E66: ounce | F66: ounce | G66: 1 | H66: 18
A67: 66 | B67: Prowl H2O | C67: Herbicide | D67: 52 | E67: gallon | F67: pint | G67: 8 | H67: 6.5
A68: 67 | B68: Pursuit | C68: Herbicide | D68: 480 | E68: gallon | F68: ounce | G68: 128 | H68: 3.75
A69: 68 | B69: Raptor | C69: Herbicide | D69: 610 | E69: gallon | F69: ounce | G69: 128 | H69: 4.765625
A70: 69 | B70: Roundup WeatherMax | C70: Herbicide | D70: 32 | E70: gallon | F70: ounce | G70: 128 | H70: 0.25
A71: 70 | B71: Rugged | C71: Herbicide | D71: 40 | E71: gallon | F71: quart | G71: 4 | H71: 10
A72: 71 | B72: Select Max | C72: Herbicide | D72: 110 | E72: gallon | F72: ounce | G72: 128 | H72: 0.859375
A73: 72 | B73: Sharpen | C73: Herbicide | D73: 870 | E73: gallon | F73: ounce | G73: 128 | H73: =IF(G73=0,0,D73/G73) -> 6.796875
A74: 73 | B74: Spartan 4F | C74: Herbicide | D74: 270 | E74: gallon | F74: ounce | G74: 128 | H74: 2.109375
A75: 74 | B75: Spirit | C75: Herbicide | D75: 12 | E75: ounce | F75: ounce | G75: 1 | H75: 12
A76: 75 | B76: Status | C76: Herbicide | D76: 4.3 | E76: ounce | F76: ounce | G76: 1 | H76: 4.3
A77: 76 | B77: Valor XLT | C77: Herbicide | D77: 92 | E77: pound | F77: ounce | G77: 16 | H77: 5.75
A78: 77 | B78: Velpar 75DF | C78: Herbicide | D78: 40 | E78: pound | F78: pound | G78: 1 | H78: 40
A79: 78 | B79: Vida | C79: Herbicide | D79: 520 | E79: gallon | F79: ounce | G79: 128 | H79: 4.0625
A80: 79 | B80: Asana XL | C80: Insecticide | D80: 70 | E80: gallon | F80: ounce | G80: 128 | H80: 0.546875
A81: 80 | B81: Brigade 2EC | C81: Insecticide | D81: 90 | E81: gallon | F81: ounce | G81: 128 | H81: 0.703125
A82: 81 | B82: Capture LFR | C82: Insecticide | D82: 300 | E82: gallon | F82: ounce | G82: 128 | H82: 2.34375
A83: 82 | B83: Lorsban 15 G | C83: Insecticide | D83: 2.65 | E83: pound | F83: pound | G83: 1 | H83: 2.65
A84: 83 | B84: Lorsban 4 E | C84: Insecticide | D84: 55 | E84: gallon | F84: pint | G84: 8 | H84: 6.875
A85: 84 | B85: Lorsban Advanced | C85: Insecticide | D85: 55 | E85: gallon | F85: pint | G85: 8 | H85: 6.875
A86: 85 | B86: Mustang Max EC | C86: Insecticide | D86: 180 | E86: gallon | F86: ounce | G86: 128 | H86: 1.40625
A87: 86 | B87: Regent 4 SC | C87: Insecticide | D87: 9.7 | E87: ounce | F87: ounce | G87: 1 | H87: 9.7
A88: 87 | B88: Warrior II/Zeon | C88: Insecticide | D88: 370 | E88: gallon | F88: ounce | G88: 128 | H88: 2.890625
A89: 88 | B89: Electricity Fixed | C89: Other | D89: 30 | E89: acre | F89: acre | G89: 1 | H89: 30
A90: 89 | B90: Electricity Usage | C90: Other | D90: 0.105 | E90: kw | F90: kw | G90: 1 | H90: 0.105
A91: 90 | B91: Fence/Water Repairs | C91: Other | D91: 260 | E91: circle | F91: acre | G91: 130 | H91: 2
A92: 91 | B92: Irrigation District O&M Charge | C92: Other | D92: 30 | E92: acre | F92: acre | G92: 1 | H92: 30
A93: 92 | B93: Move Cattle | C93: Other | D93: 20 | E93: hour | F93: hour | G93: 1 | H93: 20
A94: 93 | B94: Twine Large Round | C94: Other | D94: 0.7 | E94: bale | F94: ton | G94: =1539/2000 -> 0.7695 | H94: 0.9096816114
A95: 94 | B95: Twine Large Square | C95: Other | D95: 1.23 | E95: bale | F95: ton | G95: =1362/2000 -> 0.681 | H95: 1.806167401
A96: 95 | B96: Twine Small Square | C96: Other | D96: 0.07 | E96: bale | F96: ton | G96: =60/2000 -> 0.03 | H96: 2.333333333
A97: 96 | B97: Grass Drill | C97: Rental | D97: 15 | E97: acre | F97: acre | G97: 1 | H97: 15
A98: 97 | B98: Seeder/Packer | C98: Rental | D98: 13 | E98: acre | F98: acre | G98: 1 | H98: 13
A99: 98 | B99: Scouting Dry Beans | C99: Scouting | D99: 10 | E99: acre | F99: acre | G99: 1 | H99: 10
A100: 99 | B100: Scouting Dryland Corn | C100: Scouting | D100: 7 | E100: acre | F100: acre | G100: 1 | H100: 7
A101: 100 | B101: Scouting Dryland Soybeans | C101: Scouting | D101: 7 | E101: acre | F101: acre | G101: 1 | H101: 7
A102: 101 | B102: Scouting Dryland Wheat | C102: Scouting | D102: 7 | E102: acre | F102: acre | G102: 1 | H102: 7
A103: 102 | B103: Scouting Grain Sorghum | C103: Scouting | D103: 7 | E103: acre | F103: acre | G103: 1 | H103: 7
A104: 103 | B104: Scouting Irrigated Corn | C104: Scouting | D104: 9 | E104: acre | F104: acre | G104: 1 | H104: 9
A105: 104 | B105: Scouting Irrigated Soybeans | C105: Scouting | D105: 9 | E105: acre | F105: acre | G105: 1 | H105: =IF(G105=0,0,D105/G105) -> 9
A106: 105 | B106: Scouting Irrigated Wheat | C106: Scouting | D106: 9 | E106: acre | F106: acre | G106: 2 | H106: 4.5
A107: 106 | B107: Scouting Sugar Beets | C107: Scouting | D107: 16 | E107: acre | F107: acre | G107: 1 | H107: 16
A108: 107 | B108: Alfalfa RR w/Inoculant | C108: Seed | D108: 9 | E108: pound | F108: pound | G108: 1 | H108: 9
A109: 108 | B109: Alfalfa w/Inoculant | C109: Seed | D109: 6 | E109: pound | F109: pound | G109: 1 | H109: 6
A110: 109 | B110: Corn | C110: Seed | D110: 190 | E110: bag | F110: k seed | G110: 80 | H110: 2.375
A111: 110 | B111: Corn Bt, ECB, & RIB | C111: Seed | D111: 220 | E111: bag | F111: k seed | G111: 80 | H111: 2.75
A112: 111 | B112: Corn Bt, ECB, RR2, & RIB | C112: Seed | D112: 240 | E112: bag | F112: k seed | G112: 80 | H112: 3
A113: 112 | B113: Corn Bt, ECB, RW, & RIB | C113: Seed | D113: 250 | E113: bag | F113: k seed | G113: 80 | H113: 3.125
A114: 113 | B114: Corn Bt, ECB, RW, RR2, & RIB | C114: Seed | D114: 270 | E114: bag | F114: k seed | G114: 80 | H114: 3.375
A115: 114 | B115: Corn RR2 | C115: Seed | D115: 220 | E115: bag | F115: k seed | G115: 80 | H115: 2.75
A116: 115 | B116: Corn SmartStax RIB Complete | C116: Seed | D116: 300 | E116: bag | F116: k seed | G116: 80 | H116: 3.75
A117: 116 | B117: Cover Crop | C117: Seed | D117: 15 | E117: acre | F117: acre | G117: 1 | H117: 15
A118: 117 | B118: Cover Crop Legume | C118: Seed | D118: 30 | E118: acre | F118: acre | G118: 1 | H118: 30
A119: 118 | B119: Edible Beans | C119: Seed | D119: 92 | E119: cwt | F119: cwt | G119: 1 | H119: 92
A120: 119 | B120: Grass Seed | C120: Seed | D120: 75 | E120: acre | F120: acre | G120: 1 | H120: 75
A121: 120 | B121: Millet | C121: Seed | D121: 0.45 | E121: pound | F121: pound | G121: 1 | H121: 0.45
A122: 121 | B122: Oats | C122: Seed | D122: 11 | E122: bushel | F122: bushel | G122: 1 | H122: 11
A123: 122 | B123: Peas | C123: Seed | D123: 18 | E123: bushel | F123: bushel | G123: 1 | H123: 18
A124: 123 | B124: RR2 Soybeans | C124: Seed | D124: 50 | E124: bag | F124: bag | G124: 1 | H124: 50
A125: 124 | B125: RR2 Soybeans Treated | C125: Seed | D125: 62 | E125: bag | F125: bag | G125: 1 | H125: 62
A126: 125 | B126: RR2 Soybeans Xtend | C126: Seed | D126: 65 | E126: bag | F126: bag | G126: 1 | H126: 65
A127: 126 | B127: RR2 Soybeans Xtend Treated | C127: Seed | D127: 77 | E127: bag | F127: bag | G127: 1 | H127: 77
A128: 127 | B128: Sorghum Safened/Insect | C128: Seed | D128: 3 | E128: pound | F128: pound | G128: 1 | H128: 3
A129: 128 | B129: Sorghum Sudan | C129: Seed | D129: 0.9 | E129: pound | F129: pound | G129: 1 | H129: 0.9
A130: 129 | B130: Sorghum Sudan (Treated) | C130: Seed | D130: 1.1 | E130: pound | F130: pound | G130: 1 | H130: 1.1
A131: 130 | B131: Sorghum Sudan Brown (Treated) | C131: Seed | D131: 1.4 | E131: pound | F131: pound | G131: 1 | H131: 1.4
A132: 131 | B132: Sorghum Sudan Brown Midrib | C132: Seed | D132: 1.2 | E132: pound | F132: pound | G132: 1 | H132: 1.2
A133: 132 | B133: Sugar Beets RR Poncho | C133: Seed | D133: 180 | E133: acre | F133: acre | G133: 1 | H133: 180
A134: 133 | B134: Sunflower Clearfield | C134: Seed | D134: 360 | E134: bag | F134: thousand | G134: 250 | H134: 1.44
A135: 134 | B135: Wheat | C135: Seed | D135: 0.1 | E135: pound | F135: pound | G135: 1 | H135: 0.1
A136: 135 | B136: Wheat (Certified and Treated) | C136: Seed | D136: 0.23 | E136: pound | F136: pound | G136: 1 | H136: 0.23

Sheet Operations
A1: Op Name | B1: Unit | C1: Repair Category | D1: Depreciation Category | E1: List Price | F1: Begin Yr. Value | G1: Age | H1: Annual Use | I1: Units per Hour | J1: Labor Factor | K1: Power Source | L1: Diesel Use per Hour | M1: Kw Use per Hour | N1: Calc List Price | O1: Repairs per Unit | P1: Calc Beg Yr. Value | Q1: Calc End Yr. Value | R1: Depreciation per Unit | S1: TIH per Unit | T1: Opportunity Cost per Unit | U1: Ownership Cost per Unit | W1: Machine | X1: Catogory | Y1: RF1 | Z1: RF2 | AA1: Estimated Life | AD1: Equipment type | AE1: Machine | AF1: C1 | AG1: C2 | AH1: C3 | AK1: Table 5-5. Average Annual Maintenance Costs for Sprinkler Irrigation Systems | AO1: Power Unit
A2: Aerial Spray | B2: Custom | N2: =IF(Operations!$E2>1,Operations!$E2,IF(Operations!$D2=0,0,Operations!$F2/(VLOOKUP(Operations!$D2,ImpDepLookup,2,FALSE)-VLOOKUP(Operations!$D2,ImpDepLookup,3,FALSE)*Operations!$G2^0.5-VLOOKUP(Operations!$D2,ImpDepLookup,4,FALSE)*(Operations!$G2*(Operations!$G2*Operations!$H2/Operations!$I2)^0.5))^2)) -> 0 | O2: =IF(Operations!$C2="",0,(((Operations!$G2+1)*Operations!$H2/Operations!$I2/1000)^VLOOKUP(Operations!$C2,ImpRepairFac[],4,FALSE)-(Operations!$G2*Operations!$H2/Operations!$I2/1000)^VLOOKUP(Operations!$C2,ImpRepairFac[],4,FALSE))*Operations!$N2*VLOOKUP(Operations!$C2,ImpRepairFac[],3,FALSE)/Operations!$H2) -> 0 | P2: =IF(Operations!$N2=0,0,Operations!$N2*(VLOOKUP(Operations!$D2,ImpDepLookup,2,FALSE)-VLOOKUP(Operations!$D2,ImpDepLookup,3,FALSE)*Operations!$G2^0.5-VLOOKUP(Operations!$D2,ImpDepLookup,4,FALSE)*(Operations!$G2*Operations!$H2/Operations!$I2)^0.5)^2) -> 0 | Q2: =IF(Operations!$N2=0,0,Operations!$N2*(VLOOKUP(Operations!$D2,ImpDepLookup,2,FALSE)-VLOOKUP(Operations!$D2,ImpDepLookup,3,FALSE)*(Operations!$G2+1)^0.5-VLOOKUP(Operations!$D2,ImpDepLookup,4,FALSE)*(Operations!$G2*Operations!$H2/Operations!$I2)^0.5)^2) -> 0 | R2: =IF(Operations!$N2=0,0,IF(Operations!$I2*Operations!$H2=0,0,(Operations!$P2-Operations!$Q2)/(Operations!$H2))) -> 0 | S2: =IF(Operations!$H2=0,0,Operations!$P2*'General Variables'!$B$9/Operations!$H2) -> 0 | T2: =IF(Operations!$H2=0,0,Operations!$P2*'General Variables'!$B$10/Operations!$H2) -> 0 | U2: =SUM(Table3[[#This Row],[Depreciation per Unit]:[Opportunity Cost per Unit]]) -> 0 | W2: Baler - Large rectangular | X2: HARVESTING | Y2: 0.10 | Z2: 1.8 | AA2: 3000 | AD2: Harvest equipment | AE2: Combines | AF2: 1.132 | AG2: 0.165 | AH2: 0 | AO2: =IF(PowerUnits[[#This Row],[Name]]=0,"",PowerUnits[[#This Row],[Name]]) -> Large Tractor
A3: Anhydrous Application | B3: acre | C3: Chisel plow (Coulter) | D3: Manure spreaders and all other miscellaneous equipment | F3: 15500 | G3: 5 | H3: 500 | I3: 12 | J3: 1.1 | K3: Medium Tractor | L3: 6.364285714 | N3: =IF(Operations!$E3>1,Operations!$E3,IF(Operations!$D3=0,0,Operations!$F3/(VLOOKUP(Operations!$D3,ImpDepLookup,2,FALSE)-VLOOKUP(Operations!$D3,ImpDepLookup,3,FALSE)*Operations!$G3^0.5-VLOOKUP(Operations!$D3,ImpDepLookup,4,FALSE)*(Operations!$G3*(Operations!$G3*Operations!$H3/Operations!$I3)^0.5))^2)) -> 32108.24077 | O3: =IF(Operations!$C3="",0,(((Operations!$G3+1)*Operations!$H3/Operations!$I3/1000)^VLOOKUP(Operations!$C3,ImpRepairFac[],4,FALSE)-(Operations!$G3*Operations!$H3/Operations!$I3/1000)^VLOOKUP(Operations!$C3,ImpRepairFac[],4,FALSE))*Operations!$N3*VLOOKUP(Operations!$C3,ImpRepairFac[],3,FALSE)/Operations!$H3) -> 0.5816183114 | P3: =IF(Operations!$N3=0,0,Operations!$N3*(VLOOKUP(Operations!$D3,ImpDepLookup,2,FALSE)-VLOOKUP(Operations!$D3,ImpDepLookup,3,FALSE)*Operations!$G3^0.5-VLOOKUP(Operations!$D3,ImpDepLookup,4,FALSE)*(Operations!$G3*Operations!$H3/Operations!$I3)^0.5)^2) -> 15500 | Q3: =IF(Operations!$N3=0,0,Operations!$N3*(VLOOKUP(Operations!$D3,ImpDepLookup,2,FALSE)-VLOOKUP(Operations!$D3,ImpDepLookup,3,FALSE)*(Operations!$G3+1)^0.5-VLOOKUP(Operations!$D3,ImpDepLookup,4,FALSE)*(Operations!$G3*Operations!$H3/Operations!$I3)^0.5)^2) -> 14461.04177 | R3: =IF(Operations!$N3=0,0,IF(Operations!$I3*Operations!$H3=0,0,(Operations!$P3-Operations!$Q3)/(Operations!$H3))) -> 2.077916452 | S3: =IF(Operations!$H3=0,0,Operations!$P3*'General Variables'!$B$9/Operations!$H3) -> 0.62 | T3: =IF(Operations!$H3=0,0,Operations!$P3*'General Variables'!$B$10/Operations!$H3) -> 0.93 | U3: =SUM(Table3[[#This Row],[Depreciation per Unit]:[Opportunity Cost per Unit]]) -> 3.627916452 | W3: Baler - Large round | X3: HARVESTING | Y3: 0.43 | Z3: 1.8 | AA3: 1500 | AD3: Harvest equipment | AE3: Mowers | AF3: 0.756 | AG3: 0.067 | AK3: System Type | AL3: Life-yrs | AM3: Maintenance, % of capital cost | AO3: =IF(PowerUnits[[#This Row],[Name]]=0,"",PowerUnits[[#This Row],[Name]]) -> Medium Tractor
A4: Bale Small Square | B4: Ton | C4: Baler - Rectangular | D4: Balers | E4: 24555 | G4: 5 | H4: 1250 | I4: 4 | J4: 1.1 | K4: Medium Tractor | L4: 3.5 | N4: =IF(Operations!$E4>1,Operations!$E4,IF(Operations!$D4=0,0,Operations!$F4/(VLOOKUP(Operations!$D4,ImpDepLookup,2,FALSE)-VLOOKUP(Operations!$D4,ImpDepLookup,3,FALSE)*Operations!$G4^0.5-VLOOKUP(Operations!$D4,ImpDepLookup,4,FALSE)*(Operations!$G4*(Operations!$G4*Operations!$H4/Operations!$I4)^0.5))^2)) -> 24555 | O4: =IF(Operations!$C4="",0,(((Operations!$G4+1)*Operations!$H4/Operations!$I4/1000)^VLOOKUP(Operations!$C4,ImpRepairFac[],4,FALSE)-(Operations!$G4*Operations!$H4/Operations!$I4/1000)^VLOOKUP(Operations!$C4,ImpRepairFac[],4,FALSE))*Operations!$N4*VLOOKUP(Operations!$C4,ImpRepairFac[],3,FALSE)/Operations!$H4) -> 3.918813808 | P4: =IF(Operations!$N4=0,0,Operations!$N4*(VLOOKUP(Operations!$D4,ImpDepLookup,2,FALSE)-VLOOKUP(Operations!$D4,ImpDepLookup,3,FALSE)*Operations!$G4^0.5-VLOOKUP(Operations!$D4,ImpDepLookup,4,FALSE)*(Operations!$G4*Operations!$H4/Operations!$I4)^0.5)^2) -> 9627.346543 | Q4: =IF(Operations!$N4=0,0,Operations!$N4*(VLOOKUP(Operations!$D4,ImpDepLookup,2,FALSE)-VLOOKUP(Operations!$D4,ImpDepLookup,3,FALSE)*(Operations!$G4+1)^0.5-VLOOKUP(Operations!$D4,ImpDepLookup,4,FALSE)*(Operations!$G4*Operations!$H4/Operations!$I4)^0.5)^2) -> 8975.90879 | R4: =IF(Operations!$N4=0,0,IF(Operations!$I4*Operations!$H4=0,0,(Operations!$P4-Operations!$Q4)/(Operations!$H4))) -> 0.5211502026 | S4: =IF(Operations!$H4=0,0,Operations!$P4*'General Variables'!$B$9/Operations!$H4) -> 0.1540375447 | T4: =IF(Operations!$H4=0,0,Operations!$P4*'General Variables'!$B$10/Operations!$H4) -> 0.231056317 | U4: =SUM(Table3[[#This Row],[Depreciation per Unit]:[Opportunity Cost per Unit]]) -> 0.9062440643 | W4: Baler - Rectangular | X4: HARVESTING | Y4: 0.23 | Z4: 1.8 | AA4: 2000 | AD4: Harvest equipment | AE4: Balers | AF4: 0.852 | AG4: 0.101 | AK4: Hand move lateral | AL4: 15 | AM4: 2 | AO4: =IF(PowerUnits[[#This Row],[Name]]=0,"",PowerUnits[[#This Row],[Name]]) -> Combine
A5: Cart | B5: bushel | C5: Wagon - Forage | D5: Manure spreaders and all other miscellaneous equipment | E5: 42000 | G5: 5 | H5: =2000*220 -> 440000 | I5: =7*220 -> 1540 | J5: 1.1 | K5: Medium Tractor | L5: 3 | N5: =IF(Operations!$E5>1,Operations!$E5,IF(Operations!$D5=0,0,Operations!$F5/(VLOOKUP(Operations!$D5,ImpDepLookup,2,FALSE)-VLOOKUP(Operations!$D5,ImpDepLookup,3,FALSE)*Operations!$G5^0.5-VLOOKUP(Operations!$D5,ImpDepLookup,4,FALSE)*(Operations!$G5*(Operations!$G5*Operations!$H5/Operations!$I5)^0.5))^2)) -> 42000 | O5: =IF(Operations!$C5="",0,(((Operations!$G5+1)*Operations!$H5/Operations!$I5/1000)^VLOOKUP(Operations!$C5,ImpRepairFac[],4,FALSE)-(Operations!$G5*Operations!$H5/Operations!$I5/1000)^VLOOKUP(Operations!$C5,ImpRepairFac[],4,FALSE))*Operations!$N5*VLOOKUP(Operations!$C5,ImpRepairFac[],3,FALSE)/Operations!$H5) -> 0.009153802328 | P5: =IF(Operations!$N5=0,0,Operations!$N5*(VLOOKUP(Operations!$D5,ImpDepLookup,2,FALSE)-VLOOKUP(Operations!$D5,ImpDepLookup,3,FALSE)*Operations!$G5^0.5-VLOOKUP(Operations!$D5,ImpDepLookup,4,FALSE)*(Operations!$G5*Operations!$H5/Operations!$I5)^0.5)^2) -> 20275.16875 | Q5: =IF(Operations!$N5=0,0,Operations!$N5*(VLOOKUP(Operations!$D5,ImpDepLookup,2,FALSE)-VLOOKUP(Operations!$D5,ImpDepLookup,3,FALSE)*(Operations!$G5+1)^0.5-VLOOKUP(Operations!$D5,ImpDepLookup,4,FALSE)*(Operations!$G5*Operations!$H5/Operations!$I5)^0.5)^2) -> 18916.13305 | R5: =IF(Operations!$N5=0,0,IF(Operations!$I5*Operations!$H5=0,0,(Operations!$P5-Operations!$Q5)/(Operations!$H5))) -> 0.003088717502 | S5: =IF(Operations!$H5=0,0,Operations!$P5*'General Variables'!$B$9/Operations!$H5) -> 0.0009215985797 | T5: =IF(Operations!$H5=0,0,Operations!$P5*'General Variables'!$B$10/Operations!$H5) -> 0.00138239787 | U5: =SUM(Table3[[#This Row],[Depreciation per Unit]:[Opportunity Cost per Unit]]) -> 0.005392713951 | W5: Bean puller-windrower | X5: MISCELLANEOUS | Y5: 0.20 | Z5: 1.6 | AA5: 2000 | AD5: Harvest equipment | AE5: Swathers and all other harvest equipment | AF5: 0.791 | AG5: 0.091 | AK5: End tow lateral | AL5: 10 | AM5: 3 | AO5: =IF(PowerUnits[[#This Row],[Name]]=0,"",PowerUnits[[#This Row],[Name]]) -> Diesel Pump
A6: Chisel | B6: acre | C6: Chisel plow (Coulter) | D6: Disks and all other tillage equipment | E6: 59791 | G6: 5 | H6: 2000 | I6: 11.09243697 | J6: 1.1 | K6: Medium Tractor | L6: 8.263865546 | N6: =IF(Operations!$E6>1,Operations!$E6,IF(Operations!$D6=0,0,Operations!$F6/(VLOOKUP(Operations!$D6,ImpDepLookup,2,FALSE)-VLOOKUP(Operations!$D6,ImpDepLookup,3,FALSE)*Operations!$G6^0.5-VLOOKUP(Operations!$D6,ImpDepLookup,4,FALSE)*(Operations!$G6*(Operations!$G6*Operations!$H6/Operations!$I6)^0.5))^2)) -> 59791 | O6: =IF(Operations!$C6="",0,(((Operations!$G6+1)*Operations!$H6/Operations!$I6/1000)^VLOOKUP(Operations!$C6,ImpRepairFac[],4,FALSE)-(Operations!$G6*Operations!$H6/Operations!$I6/1000)^VLOOKUP(Operations!$C6,ImpRepairFac[],4,FALSE))*Operations!$N6*VLOOKUP(Operations!$C6,ImpRepairFac[],3,FALSE)/Operations!$H6) -> 2.105219386 | P6: =IF(Operations!$N6=0,0,Operations!$N6*(VLOOKUP(Operations!$D6,ImpDepLookup,2,FALSE)-VLOOKUP(Operations!$D6,ImpDepLookup,3,FALSE)*Operations!$G6^0.5-VLOOKUP(Operations!$D6,ImpDepLookup,4,FALSE)*(Operations!$G6*Operations!$H6/Operations!$I6)^0.5)^2) -> 24877.05931 | Q6: =IF(Operations!$N6=0,0,Operations!$N6*(VLOOKUP(Operations!$D6,ImpDepLookup,2,FALSE)-VLOOKUP(Operations!$D6,ImpDepLookup,3,FALSE)*(Operations!$G6+1)^0.5-VLOOKUP(Operations!$D6,ImpDepLookup,4,FALSE)*(Operations!$G6*Operations!$H6/Operations!$I6)^0.5)^2) -> 23099.17784 | R6: =IF(Operations!$N6=0,0,IF(Operations!$I6*Operations!$H6=0,0,(Operations!$P6-Operations!$Q6)/(Operations!$H6))) -> 0.8889407323 | S6: =IF(Operations!$H6=0,0,Operations!$P6*'General Variables'!$B$9/Operations!$H6) -> 0.2487705931 | T6: =IF(Operations!$H6=0,0,Operations!$P6*'General Variables'!$B$10/Operations!$H6) -> 0.3731558896 | U6: =SUM(Table3[[#This Row],[Depreciation per Unit]:[Opportunity Cost per Unit]]) -> 1.510867215 | W6: Beet topper | X6: MISCELLANEOUS | Y6: 0.28 | Z6: 1.4 | AA6: 1200 | AD6: Tillage equipment | AE6: Plows | AF6: 0.738 | AG6: 0.051 | AK6: Side roll lateral | AL6: 15 | AM6: 2 | AO6: =IF(PowerUnits[[#This Row],[Name]]=0,"",PowerUnits[[#This Row],[Name]]) -> Electric Pump
A7: Chop Silage | B7: Custom | N7: =IF(Operations!$E7>1,Operations!$E7,IF(Operations!$D7=0,0,Operations!$F7/(VLOOKUP(Operations!$D7,ImpDepLookup,2,FALSE)-VLOOKUP(Operations!$D7,ImpDepLookup,3,FALSE)*Operations!$G7^0.5-VLOOKUP(Operations!$D7,ImpDepLookup,4,FALSE)*(Operations!$G7*(Operations!$G7*Operations!$H7/Operations!$I7)^0.5))^2)) -> 0 | O7: =IF(Operations!$C7="",0,(((Operations!$G7+1)*Operations!$H7/Operations!$I7/1000)^VLOOKUP(Operations!$C7,ImpRepairFac[],4,FALSE)-(Operations!$G7*Operations!$H7/Operations!$I7/1000)^VLOOKUP(Operations!$C7,ImpRepairFac[],4,FALSE))*Operations!$N7*VLOOKUP(Operations!$C7,ImpRepairFac[],3,FALSE)/Operations!$H7) -> 0 | P7: =IF(Operations!$N7=0,0,Operations!$N7*(VLOOKUP(Operations!$D7,ImpDepLookup,2,FALSE)-VLOOKUP(Operations!$D7,ImpDepLookup,3,FALSE)*Operations!$G7^0.5-VLOOKUP(Operations!$D7,ImpDepLookup,4,FALSE)*(Operations!$G7*Operations!$H7/Operations!$I7)^0.5)^2) -> 0 | Q7: =IF(Operations!$N7=0,0,Operations!$N7*(VLOOKUP(Operations!$D7,ImpDepLookup,2,FALSE)-VLOOKUP(Operations!$D7,ImpDepLookup,3,FALSE)*(Operations!$G7+1)^0.5-VLOOKUP(Operations!$D7,ImpDepLookup,4,FALSE)*(Operations!$G7*Operations!$H7/Operations!$I7)^0.5)^2) -> 0 | R7: =IF(Operations!$N7=0,0,IF(Operations!$I7*Operations!$H7=0,0,(Operations!$P7-Operations!$Q7)/(Operations!$H7))) -> 0 | S7: =IF(Operations!$H7=0,0,Operations!$P7*'General Variables'!$B$9/Operations!$H7) -> 0 | T7: =IF(Operations!$H7=0,0,Operations!$P7*'General Variables'!$B$10/Operations!$H7) -> 0 | U7: =SUM(Table3[[#This Row],[Depreciation per Unit]:[Opportunity Cost per Unit]]) -> 0 | W7: Chisel plow (Coulter) | X7: TILLAGE&PLANTING | Y7: 0.28 | Z7: 1.4 | AA7: 2000 | AD7: Tillage equipment | AE7: Disks and all other tillage equipment | AF7: 0.891 | AG7: 0.110 | AK7: Lateral | AL7: 10 | AM7: 6 | AO7: =IF(PowerUnits[[#This Row],[Name]]=0,"",PowerUnits[[#This Row],[Name]]) -> Diesel Pump for Pipe
A8: Chop Stalks | B8: acre | C8: Stalk chopper | D8: Swathers and all other harvest equipment | E8: 19971 | G8: 5 | H8: 500 | I8: 12.3364486 | J8: 1.1 | K8: Medium Tractor | L8: 5.736448598 | N8: =IF(Operations!$E8>1,Operations!$E8,IF(Operations!$D8=0,0,Operations!$F8/(VLOOKUP(Operations!$D8,ImpDepLookup,2,FALSE)-VLOOKUP(Operations!$D8,ImpDepLookup,3,FALSE)*Operations!$G8^0.5-VLOOKUP(Operations!$D8,ImpDepLookup,4,FALSE)*(Operations!$G8*(Operations!$G8*Operations!$H8/Operations!$I8)^0.5))^2)) -> 19971 | O8: =IF(Operations!$C8="",0,(((Operations!$G8+1)*Operations!$H8/Operations!$I8/1000)^VLOOKUP(Operations!$C8,ImpRepairFac[],4,FALSE)-(Operations!$G8*Operations!$H8/Operations!$I8/1000)^VLOOKUP(Operations!$C8,ImpRepairFac[],4,FALSE))*Operations!$N8*VLOOKUP(Operations!$C8,ImpRepairFac[],3,FALSE)/Operations!$H8) -> 0.3480237654 | P8: =IF(Operations!$N8=0,0,Operations!$N8*(VLOOKUP(Operations!$D8,ImpDepLookup,2,FALSE)-VLOOKUP(Operations!$D8,ImpDepLookup,3,FALSE)*Operations!$G8^0.5-VLOOKUP(Operations!$D8,ImpDepLookup,4,FALSE)*(Operations!$G8*Operations!$H8/Operations!$I8)^0.5)^2) -> 6893.533498 | Q8: =IF(Operations!$N8=0,0,Operations!$N8*(VLOOKUP(Operations!$D8,ImpDepLookup,2,FALSE)-VLOOKUP(Operations!$D8,ImpDepLookup,3,FALSE)*(Operations!$G8+1)^0.5-VLOOKUP(Operations!$D8,ImpDepLookup,4,FALSE)*(Operations!$G8*Operations!$H8/Operations!$I8)^0.5)^2) -> 6445.31188 | R8: =IF(Operations!$N8=0,0,IF(Operations!$I8*Operations!$H8=0,0,(Operations!$P8-Operations!$Q8)/(Operations!$H8))) -> 0.8964432367 | S8: =IF(Operations!$H8=0,0,Operations!$P8*'General Variables'!$B$9/Operations!$H8) -> 0.2757413399 | T8: =IF(Operations!$H8=0,0,Operations!$P8*'General Variables'!$B$10/Operations!$H8) -> 0.4136120099 | U8: =SUM(Table3[[#This Row],[Depreciation per Unit]:[Opportunity Cost per Unit]]) -> 1.585796587 | W8: Combine | X8: HARVESTING | Y8: 0.12 | Z8: 2.3 | AA8: 2000 | AD8: Miscellaneousequipment | AE8: Skid-steerloaders and all other vechicles | AF8: 0.786 | AG8: 0.063 | AH8: 0 | AK8: Traveling gun | AL8: 15 | AM8: 6 | AO8: =IF(PowerUnits[[#This Row],[Name]]=0,"",PowerUnits[[#This Row],[Name]]) -> Windrower
A9: Combine Dryland Corn | B9: acre | C9: Combine | D9: Combines | E9: 53013 | G9: 5 | H9: 1000 | I9: 7 | J9: 1.1 | K9: Combine | L9: 10.5 | N9: =IF(Operations!$E9>1,Operations!$E9,IF(Operations!$D9=0,0,Operations!$F9/(VLOOKUP(Operations!$D9,ImpDepLookup,2,FALSE)-VLOOKUP(Operations!$D9,ImpDepLookup,3,FALSE)*Operations!$G9^0.5-VLOOKUP(Operations!$D9,ImpDepLookup,4,FALSE)*(Operations!$G9*(Operations!$G9*Operations!$H9/Operations!$I9)^0.5))^2)) -> 53013 | O9: =IF(Operations!$C9="",0,(((Operations!$G9+1)*Operations!$H9/Operations!$I9/1000)^VLOOKUP(Operations!$C9,ImpRepairFac[],4,FALSE)-(Operations!$G9*Operations!$H9/Operations!$I9/1000)^VLOOKUP(Operations!$C9,ImpRepairFac[],4,FALSE))*Operations!$N9*VLOOKUP(Operations!$C9,ImpRepairFac[],3,FALSE)/Operations!$H9) -> 1.52851892 | P9: =IF(Operations!$N9=0,0,Operations!$N9*(VLOOKUP(Operations!$D9,ImpDepLookup,2,FALSE)-VLOOKUP(Operations!$D9,ImpDepLookup,3,FALSE)*Operations!$G9^0.5-VLOOKUP(Operations!$D9,ImpDepLookup,4,FALSE)*(Operations!$G9*Operations!$H9/Operations!$I9)^0.5)^2) -> 30866.47182 | Q9: =IF(Operations!$N9=0,0,Operations!$N9*(VLOOKUP(Operations!$D9,ImpDepLookup,2,FALSE)-VLOOKUP(Operations!$D9,ImpDepLookup,3,FALSE)*(Operations!$G9+1)^0.5-VLOOKUP(Operations!$D9,ImpDepLookup,4,FALSE)*(Operations!$G9*Operations!$H9/Operations!$I9)^0.5)^2) -> 28083.24507 | R9: =IF(Operations!$N9=0,0,IF(Operations!$I9*Operations!$H9=0,0,(Operations!$P9-Operations!$Q9)/(Operations!$H9))) -> 2.783226747 | S9: =IF(Operations!$H9=0,0,Operations!$P9*'General Variables'!$B$9/Operations!$H9) -> 0.6173294364 | T9: =IF(Operations!$H9=0,0,Operations!$P9*'General Variables'!$B$10/Operations!$H9) -> 0.9259941546 | U9: =SUM(Table3[[#This Row],[Depreciation per Unit]:[Opportunity Cost per Unit]]) -> 4.326550338 | W9: Corn picker-sheller | X9: HARVESTING | Y9: 0.14 | Z9: 2.3 | AA9: 2000 | AD9: Miscellaneousequipment | AE9: Planters | AF9: 0.883 | AG9: 0.078 | AK9: Center Pivot | AL9: 15 | AM9: 6 | AO9: =IF(PowerUnits[[#This Row],[Name]]=0,"",PowerUnits[[#This Row],[Name]]) -> none
A10: Combine Dryland SB | B10: acre | C10: Combine | D10: Combines | E10: 32435 | G10: 5 | H10: 1000 | I10: 6.5 | J10: 1.1 | K10: Combine | L10: 10.5 | N10: =IF(Operations!$E10>1,Operations!$E10,IF(Operations!$D10=0,0,Operations!$F10/(VLOOKUP(Operations!$D10,ImpDepLookup,2,FALSE)-VLOOKUP(Operations!$D10,ImpDepLookup,3,FALSE)*Operations!$G10^0.5-VLOOKUP(Operations!$D10,ImpDepLookup,4,FALSE)*(Operations!$G10*(Operations!$G10*Operations!$H10/Operations!$I10)^0.5))^2)) -> 32435 | O10: =IF(Operations!$C10="",0,(((Operations!$G10+1)*Operations!$H10/Operations!$I10/1000)^VLOOKUP(Operations!$C10,ImpRepairFac[],4,FALSE)-(Operations!$G10*Operations!$H10/Operations!$I10/1000)^VLOOKUP(Operations!$C10,ImpRepairFac[],4,FALSE))*Operations!$N10*VLOOKUP(Operations!$C10,ImpRepairFac[],3,FALSE)/Operations!$H10) -> 1.108988675 | P10: =IF(Operations!$N10=0,0,Operations!$N10*(VLOOKUP(Operations!$D10,ImpDepLookup,2,FALSE)-VLOOKUP(Operations!$D10,ImpDepLookup,3,FALSE)*Operations!$G10^0.5-VLOOKUP(Operations!$D10,ImpDepLookup,4,FALSE)*(Operations!$G10*Operations!$H10/Operations!$I10)^0.5)^2) -> 18885.06618 | Q10: =IF(Operations!$N10=0,0,Operations!$N10*(VLOOKUP(Operations!$D10,ImpDepLookup,2,FALSE)-VLOOKUP(Operations!$D10,ImpDepLookup,3,FALSE)*(Operations!$G10+1)^0.5-VLOOKUP(Operations!$D10,ImpDepLookup,4,FALSE)*(Operations!$G10*Operations!$H10/Operations!$I10)^0.5)^2) -> 17182.20161 | R10: =IF(Operations!$N10=0,0,IF(Operations!$I10*Operations!$H10=0,0,(Operations!$P10-Operations!$Q10)/(Operations!$H10))) -> 1.702864572 | S10: =IF(Operations!$H10=0,0,Operations!$P10*'General Variables'!$B$9/Operations!$H10) -> 0.3777013236 | T10: =IF(Operations!$H10=0,0,Operations!$P10*'General Variables'!$B$10/Operations!$H10) -> 0.5665519854 | U10: =SUM(Table3[[#This Row],[Depreciation per Unit]:[Opportunity Cost per Unit]]) -> 2.647117881 | W10: Cultivator - Field | X10: TILLAGE&PLANTING | Y10: 0.27 | Z10: 1.4 | AA10: 2000 | AD10: Miscellaneous equipment | AE10: Manure spreaders and all other miscellaneous equipment | AF10: 0.943 | AG10: 0.111 | AK10: Center Pivot w/corner | AL10: 15 | AM10: 6 | AO10: =IF(PowerUnits[[#This Row],[Name]]=0,"",PowerUnits[[#This Row],[Name]]) -> 
A11: Combine Dryland SG | B11: acre | C11: Combine | D11: Combines | E11: 32435 | G11: 5 | H11: 1000 | I11: 6.5 | J11: 1.1 | K11: Combine | L11: 10.5 | N11: =IF(Operations!$E11>1,Operations!$E11,IF(Operations!$D11=0,0,Operations!$F11/(VLOOKUP(Operations!$D11,ImpDepLookup,2,FALSE)-VLOOKUP(Operations!$D11,ImpDepLookup,3,FALSE)*Operations!$G11^0.5-VLOOKUP(Operations!$D11,ImpDepLookup,4,FALSE)*(Operations!$G11*(Operations!$G11*Operations!$H11/Operations!$I11)^0.5))^2)) -> 32435 | O11: =IF(Operations!$C11="",0,(((Operations!$G11+1)*Operations!$H11/Operations!$I11/1000)^VLOOKUP(Operations!$C11,ImpRepairFac[],4,FALSE)-(Operations!$G11*Operations!$H11/Operations!$I11/1000)^VLOOKUP(Operations!$C11,ImpRepairFac[],4,FALSE))*Operations!$N11*VLOOKUP(Operations!$C11,ImpRepairFac[],3,FALSE)/Operations!$H11) -> 1.108988675 | P11: =IF(Operations!$N11=0,0,Operations!$N11*(VLOOKUP(Operations!$D11,ImpDepLookup,2,FALSE)-VLOOKUP(Operations!$D11,ImpDepLookup,3,FALSE)*Operations!$G11^0.5-VLOOKUP(Operations!$D11,ImpDepLookup,4,FALSE)*(Operations!$G11*Operations!$H11/Operations!$I11)^0.5)^2) -> 18885.06618 | Q11: =IF(Operations!$N11=0,0,Operations!$N11*(VLOOKUP(Operations!$D11,ImpDepLookup,2,FALSE)-VLOOKUP(Operations!$D11,ImpDepLookup,3,FALSE)*(Operations!$G11+1)^0.5-VLOOKUP(Operations!$D11,ImpDepLookup,4,FALSE)*(Operations!$G11*Operations!$H11/Operations!$I11)^0.5)^2) -> 17182.20161 | R11: =IF(Operations!$N11=0,0,IF(Operations!$I11*Operations!$H11=0,0,(Operations!$P11-Operations!$Q11)/(Operations!$H11))) -> 1.702864572 | S11: =IF(Operations!$H11=0,0,Operations!$P11*'General Variables'!$B$9/Operations!$H11) -> 0.3777013236 | T11: =IF(Operations!$H11=0,0,Operations!$P11*'General Variables'!$B$10/Operations!$H11) -> 0.5665519854 | U11: =SUM(Table3[[#This Row],[Depreciation per Unit]:[Opportunity Cost per Unit]]) -> 2.647117881 | W11: Cultivator - Row crop | X11: TILLAGE&PLANTING | Y11: 0.17 | Z11: 2.2 | AA11: 2000 | AD11: Center Pivot | AE11: Pivots | AF11: 0.891 | AG11: 0.110 | AK11: Linear move with ditch | AL11: 15 | AM11: 6 | AO11: =IF(PowerUnits[[#This Row],[Name]]=0,"",PowerUnits[[#This Row],[Name]]) -> 
A12: Combine Irr Corn | B12: acre | C12: Combine | D12: Combines | E12: 53013 | G12: 5 | H12: 1000 | I12: 7 | J12: 1.1 | K12: Combine | L12: 10.5 | N12: =IF(Operations!$E12>1,Operations!$E12,IF(Operations!$D12=0,0,Operations!$F12/(VLOOKUP(Operations!$D12,ImpDepLookup,2,FALSE)-VLOOKUP(Operations!$D12,ImpDepLookup,3,FALSE)*Operations!$G12^0.5-VLOOKUP(Operations!$D12,ImpDepLookup,4,FALSE)*(Operations!$G12*(Operations!$G12*Operations!$H12/Operations!$I12)^0.5))^2)) -> 53013 | O12: =IF(Operations!$C12="",0,(((Operations!$G12+1)*Operations!$H12/Operations!$I12/1000)^VLOOKUP(Operations!$C12,ImpRepairFac[],4,FALSE)-(Operations!$G12*Operations!$H12/Operations!$I12/1000)^VLOOKUP(Operations!$C12,ImpRepairFac[],4,FALSE))*Operations!$N12*VLOOKUP(Operations!$C12,ImpRepairFac[],3,FALSE)/Operations!$H12) -> 1.52851892 | P12: =IF(Operations!$N12=0,0,Operations!$N12*(VLOOKUP(Operations!$D12,ImpDepLookup,2,FALSE)-VLOOKUP(Operations!$D12,ImpDepLookup,3,FALSE)*Operations!$G12^0.5-VLOOKUP(Operations!$D12,ImpDepLookup,4,FALSE)*(Operations!$G12*Operations!$H12/Operations!$I12)^0.5)^2) -> 30866.47182 | Q12: =IF(Operations!$N12=0,0,Operations!$N12*(VLOOKUP(Operations!$D12,ImpDepLookup,2,FALSE)-VLOOKUP(Operations!$D12,ImpDepLookup,3,FALSE)*(Operations!$G12+1)^0.5-VLOOKUP(Operations!$D12,ImpDepLookup,4,FALSE)*(Operations!$G12*Operations!$H12/Operations!$I12)^0.5)^2) -> 28083.24507 | R12: =IF(Operations!$N12=0,0,IF(Operations!$I12*Operations!$H12=0,0,(Operations!$P12-Operations!$Q12)/(Operations!$H12))) -> 2.783226747 | S12: =IF(Operations!$H12=0,0,Operations!$P12*'General Variables'!$B$9/Operations!$H12) -> 0.6173294364 | T12: =IF(Operations!$H12=0,0,Operations!$P12*'General Variables'!$B$10/Operations!$H12) -> 0.9259941546 | U12: =SUM(Table3[[#This Row],[Depreciation per Unit]:[Opportunity Cost per Unit]]) -> 4.326550338 | W12: Disk - Heavy-duty | X12: TILLAGE&PLANTING | Y12: 0.18 | Z12: 1.7 | AA12: 2000 | AK12: Linear move with pipe | AL12: 15 | AM12: 6
A13: Combine Irr Dry Beans | B13: acre | C13: Combine | D13: Combines | E13: 32435 | G13: 5 | H13: 1000 | I13: 5 | J13: 1.1 | K13: Combine | L13: 10.5 | N13: =IF(Operations!$E13>1,Operations!$E13,IF(Operations!$D13=0,0,Operations!$F13/(VLOOKUP(Operations!$D13,ImpDepLookup,2,FALSE)-VLOOKUP(Operations!$D13,ImpDepLookup,3,FALSE)*Operations!$G13^0.5-VLOOKUP(Operations!$D13,ImpDepLookup,4,FALSE)*(Operations!$G13*(Operations!$G13*Operations!$H13/Operations!$I13)^0.5))^2)) -> 32435 | O13: =IF(Operations!$C13="",0,(((Operations!$G13+1)*Operations!$H13/Operations!$I13/1000)^VLOOKUP(Operations!$C13,ImpRepairFac[],4,FALSE)-(Operations!$G13*Operations!$H13/Operations!$I13/1000)^VLOOKUP(Operations!$C13,ImpRepairFac[],4,FALSE))*Operations!$N13*VLOOKUP(Operations!$C13,ImpRepairFac[],3,FALSE)/Operations!$H13) -> 2.02766788 | P13: =IF(Operations!$N13=0,0,Operations!$N13*(VLOOKUP(Operations!$D13,ImpDepLookup,2,FALSE)-VLOOKUP(Operations!$D13,ImpDepLookup,3,FALSE)*Operations!$G13^0.5-VLOOKUP(Operations!$D13,ImpDepLookup,4,FALSE)*(Operations!$G13*Operations!$H13/Operations!$I13)^0.5)^2) -> 18885.06618 | Q13: =IF(Operations!$N13=0,0,Operations!$N13*(VLOOKUP(Operations!$D13,ImpDepLookup,2,FALSE)-VLOOKUP(Operations!$D13,ImpDepLookup,3,FALSE)*(Operations!$G13+1)^0.5-VLOOKUP(Operations!$D13,ImpDepLookup,4,FALSE)*(Operations!$G13*Operations!$H13/Operations!$I13)^0.5)^2) -> 17182.20161 | R13: =IF(Operations!$N13=0,0,IF(Operations!$I13*Operations!$H13=0,0,(Operations!$P13-Operations!$Q13)/(Operations!$H13))) -> 1.702864572 | S13: =IF(Operations!$H13=0,0,Operations!$P13*'General Variables'!$B$9/Operations!$H13) -> 0.3777013236 | T13: =IF(Operations!$H13=0,0,Operations!$P13*'General Variables'!$B$10/Operations!$H13) -> 0.5665519854 | U13: =SUM(Table3[[#This Row],[Depreciation per Unit]:[Opportunity Cost per Unit]]) -> 2.647117881 | W13: Diskharrow - Tandem | X13: TILLAGE&PLANTING | Y13: 0.18 | Z13: 1.7 | AA13: 2000 | AK13: Portable solid set | AL13: 15 | AM13: 2
A14: Combine Irr SB | B14: acre | C14: Combine | D14: Combines | E14: 32435 | G14: 5 | H14: 1000 | I14: 6 | J14: 1.1 | K14: Combine | L14: 10.5 | N14: =IF(Operations!$E14>1,Operations!$E14,IF(Operations!$D14=0,0,Operations!$F14/(VLOOKUP(Operations!$D14,ImpDepLookup,2,FALSE)-VLOOKUP(Operations!$D14,ImpDepLookup,3,FALSE)*Operations!$G14^0.5-VLOOKUP(Operations!$D14,ImpDepLookup,4,FALSE)*(Operations!$G14*(Operations!$G14*Operations!$H14/Operations!$I14)^0.5))^2)) -> 32435 | O14: =IF(Operations!$C14="",0,(((Operations!$G14+1)*Operations!$H14/Operations!$I14/1000)^VLOOKUP(Operations!$C14,ImpRepairFac[],4,FALSE)-(Operations!$G14*Operations!$H14/Operations!$I14/1000)^VLOOKUP(Operations!$C14,ImpRepairFac[],4,FALSE))*Operations!$N14*VLOOKUP(Operations!$C14,ImpRepairFac[],3,FALSE)/Operations!$H14) -> 1.333152882 | P14: =IF(Operations!$N14=0,0,Operations!$N14*(VLOOKUP(Operations!$D14,ImpDepLookup,2,FALSE)-VLOOKUP(Operations!$D14,ImpDepLookup,3,FALSE)*Operations!$G14^0.5-VLOOKUP(Operations!$D14,ImpDepLookup,4,FALSE)*(Operations!$G14*Operations!$H14/Operations!$I14)^0.5)^2) -> 18885.06618 | Q14: =IF(Operations!$N14=0,0,Operations!$N14*(VLOOKUP(Operations!$D14,ImpDepLookup,2,FALSE)-VLOOKUP(Operations!$D14,ImpDepLookup,3,FALSE)*(Operations!$G14+1)^0.5-VLOOKUP(Operations!$D14,ImpDepLookup,4,FALSE)*(Operations!$G14*Operations!$H14/Operations!$I14)^0.5)^2) -> 17182.20161 | R14: =IF(Operations!$N14=0,0,IF(Operations!$I14*Operations!$H14=0,0,(Operations!$P14-Operations!$Q14)/(Operations!$H14))) -> 1.702864572 | S14: =IF(Operations!$H14=0,0,Operations!$P14*'General Variables'!$B$9/Operations!$H14) -> 0.3777013236 | T14: =IF(Operations!$H14=0,0,Operations!$P14*'General Variables'!$B$10/Operations!$H14) -> 0.5665519854 | U14: =SUM(Table3[[#This Row],[Depreciation per Unit]:[Opportunity Cost per Unit]]) -> 2.647117881 | W14: Drill - Grain | X14: TILLAGE&PLANTING | Y14: 0.32 | Z14: 2.1 | AA14: 1500 | AK14: Permanent solid set | AL14: 20 | AM14: 1
A15: Combine Irr SG | B15: acre | C15: Combine | D15: Combines | E15: 32435 | G15: 5 | H15: 1000 | I15: 6.5 | J15: 1.1 | K15: Combine | L15: 10.5 | N15: =IF(Operations!$E15>1,Operations!$E15,IF(Operations!$D15=0,0,Operations!$F15/(VLOOKUP(Operations!$D15,ImpDepLookup,2,FALSE)-VLOOKUP(Operations!$D15,ImpDepLookup,3,FALSE)*Operations!$G15^0.5-VLOOKUP(Operations!$D15,ImpDepLookup,4,FALSE)*(Operations!$G15*(Operations!$G15*Operations!$H15/Operations!$I15)^0.5))^2)) -> 32435 | O15: =IF(Operations!$C15="",0,(((Operations!$G15+1)*Operations!$H15/Operations!$I15/1000)^VLOOKUP(Operations!$C15,ImpRepairFac[],4,FALSE)-(Operations!$G15*Operations!$H15/Operations!$I15/1000)^VLOOKUP(Operations!$C15,ImpRepairFac[],4,FALSE))*Operations!$N15*VLOOKUP(Operations!$C15,ImpRepairFac[],3,FALSE)/Operations!$H15) -> 1.108988675 | P15: =IF(Operations!$N15=0,0,Operations!$N15*(VLOOKUP(Operations!$D15,ImpDepLookup,2,FALSE)-VLOOKUP(Operations!$D15,ImpDepLookup,3,FALSE)*Operations!$G15^0.5-VLOOKUP(Operations!$D15,ImpDepLookup,4,FALSE)*(Operations!$G15*Operations!$H15/Operations!$I15)^0.5)^2) -> 18885.06618 | Q15: =IF(Operations!$N15=0,0,Operations!$N15*(VLOOKUP(Operations!$D15,ImpDepLookup,2,FALSE)-VLOOKUP(Operations!$D15,ImpDepLookup,3,FALSE)*(Operations!$G15+1)^0.5-VLOOKUP(Operations!$D15,ImpDepLookup,4,FALSE)*(Operations!$G15*Operations!$H15/Operations!$I15)^0.5)^2) -> 17182.20161 | R15: =IF(Operations!$N15=0,0,IF(Operations!$I15*Operations!$H15=0,0,(Operations!$P15-Operations!$Q15)/(Operations!$H15))) -> 1.702864572 | S15: =IF(Operations!$H15=0,0,Operations!$P15*'General Variables'!$B$9/Operations!$H15) -> 0.3777013236 | T15: =IF(Operations!$H15=0,0,Operations!$P15*'General Variables'!$B$10/Operations!$H15) -> 0.5665519854 | U15: =SUM(Table3[[#This Row],[Depreciation per Unit]:[Opportunity Cost per Unit]]) -> 2.647117881 | W15: Fertilizer spreader | X15: MISCELLANEOUS | Y15: 0.63 | Z15: 1.3 | AA15: 1200 | AK15: Orchard hose-pull | AL15: 15 | AM15: 3
A16: Combine Irrigated Dry Beans with Draper Flex Platform | B16: acre | C16: Combine | D16: Combines | E16: 32435 | G16: 5 | H16: 1000 | I16: 5 | J16: 1.1 | K16: Combine | L16: 10.5 | N16: =IF(Operations!$E16>1,Operations!$E16,IF(Operations!$D16=0,0,Operations!$F16/(VLOOKUP(Operations!$D16,ImpDepLookup,2,FALSE)-VLOOKUP(Operations!$D16,ImpDepLookup,3,FALSE)*Operations!$G16^0.5-VLOOKUP(Operations!$D16,ImpDepLookup,4,FALSE)*(Operations!$G16*(Operations!$G16*Operations!$H16/Operations!$I16)^0.5))^2)) -> 32435 | O16: =IF(Operations!$C16="",0,(((Operations!$G16+1)*Operations!$H16/Operations!$I16/1000)^VLOOKUP(Operations!$C16,ImpRepairFac[],4,FALSE)-(Operations!$G16*Operations!$H16/Operations!$I16/1000)^VLOOKUP(Operations!$C16,ImpRepairFac[],4,FALSE))*Operations!$N16*VLOOKUP(Operations!$C16,ImpRepairFac[],3,FALSE)/Operations!$H16) -> 2.02766788 | P16: =IF(Operations!$N16=0,0,Operations!$N16*(VLOOKUP(Operations!$D16,ImpDepLookup,2,FALSE)-VLOOKUP(Operations!$D16,ImpDepLookup,3,FALSE)*Operations!$G16^0.5-VLOOKUP(Operations!$D16,ImpDepLookup,4,FALSE)*(Operations!$G16*Operations!$H16/Operations!$I16)^0.5)^2) -> 18885.06618 | Q16: =IF(Operations!$N16=0,0,Operations!$N16*(VLOOKUP(Operations!$D16,ImpDepLookup,2,FALSE)-VLOOKUP(Operations!$D16,ImpDepLookup,3,FALSE)*(Operations!$G16+1)^0.5-VLOOKUP(Operations!$D16,ImpDepLookup,4,FALSE)*(Operations!$G16*Operations!$H16/Operations!$I16)^0.5)^2) -> 17182.20161 | R16: =IF(Operations!$N16=0,0,IF(Operations!$I16*Operations!$H16=0,0,(Operations!$P16-Operations!$Q16)/(Operations!$H16))) -> 1.702864572 | S16: =IF(Operations!$H16=0,0,Operations!$P16*'General Variables'!$B$9/Operations!$H16) -> 0.3777013236 | T16: =IF(Operations!$H16=0,0,Operations!$P16*'General Variables'!$B$10/Operations!$H16) -> 0.5665519854 | U16: =SUM(Table3[[#This Row],[Depreciation per Unit]:[Opportunity Cost per Unit]]) -> 2.647117881 | W16: Forage blower | X16: MISCELLANEOUS | Y16: 0.22 | Z16: 1.8 | AA16: 1500 | AK16: From "Selection of Irrigation Methods for Agriculture" by C.M. Burt, A.J. Clemmens, R.Bliesner, J.L. Merriam, and L. Hardy. ©2000 by American Society of Civil Engineers, 1801 Alexander Bell Drive, Reston, Virginia, 20191-4400. page 112
A17: Combine Small Grain | B17: acre | C17: Combine | D17: Combines | E17: 32435 | F17: 15000 | G17: 5 | H17: 1000 | I17: 7 | J17: 1.1 | K17: Combine | L17: 10.46803279 | N17: =IF(Operations!$E17>1,Operations!$E17,IF(Operations!$D17=0,0,Operations!$F17/(VLOOKUP(Operations!$D17,ImpDepLookup,2,FALSE)-VLOOKUP(Operations!$D17,ImpDepLookup,3,FALSE)*Operations!$G17^0.5-VLOOKUP(Operations!$D17,ImpDepLookup,4,FALSE)*(Operations!$G17*(Operations!$G17*Operations!$H17/Operations!$I17)^0.5))^2)) -> 32435 | O17: =IF(Operations!$C17="",0,(((Operations!$G17+1)*Operations!$H17/Operations!$I17/1000)^VLOOKUP(Operations!$C17,ImpRepairFac[],4,FALSE)-(Operations!$G17*Operations!$H17/Operations!$I17/1000)^VLOOKUP(Operations!$C17,ImpRepairFac[],4,FALSE))*Operations!$N17*VLOOKUP(Operations!$C17,ImpRepairFac[],3,FALSE)/Operations!$H17) -> 0.9351953518 | P17: =IF(Operations!$N17=0,0,Operations!$N17*(VLOOKUP(Operations!$D17,ImpDepLookup,2,FALSE)-VLOOKUP(Operations!$D17,ImpDepLookup,3,FALSE)*Operations!$G17^0.5-VLOOKUP(Operations!$D17,ImpDepLookup,4,FALSE)*(Operations!$G17*Operations!$H17/Operations!$I17)^0.5)^2) -> 18885.06618 | Q17: =IF(Operations!$N17=0,0,Operations!$N17*(VLOOKUP(Operations!$D17,ImpDepLookup,2,FALSE)-VLOOKUP(Operations!$D17,ImpDepLookup,3,FALSE)*(Operations!$G17+1)^0.5-VLOOKUP(Operations!$D17,ImpDepLookup,4,FALSE)*(Operations!$G17*Operations!$H17/Operations!$I17)^0.5)^2) -> 17182.20161 | R17: =IF(Operations!$N17=0,0,IF(Operations!$I17*Operations!$H17=0,0,(Operations!$P17-Operations!$Q17)/(Operations!$H17))) -> 1.702864572 | S17: =IF(Operations!$H17=0,0,Operations!$P17*'General Variables'!$B$9/Operations!$H17) -> 0.3777013236 | T17: =IF(Operations!$H17=0,0,Operations!$P17*'General Variables'!$B$10/Operations!$H17) -> 0.5665519854 | U17: =SUM(Table3[[#This Row],[Depreciation per Unit]:[Opportunity Cost per Unit]]) -> 2.647117881 | W17: Forage harvester | X17: HARVESTING | Y17: 0.15 | Z17: 1.6 | AA17: 2500
A18: Combine Sunflowers | B18: acre | C18: Combine | D18: Combines | E18: 53013 | G18: 5 | H18: 1000 | I18: 7 | J18: 1.1 | K18: Combine | L18: 10.5 | N18: =IF(Operations!$E18>1,Operations!$E18,IF(Operations!$D18=0,0,Operations!$F18/(VLOOKUP(Operations!$D18,ImpDepLookup,2,FALSE)-VLOOKUP(Operations!$D18,ImpDepLookup,3,FALSE)*Operations!$G18^0.5-VLOOKUP(Operations!$D18,ImpDepLookup,4,FALSE)*(Operations!$G18*(Operations!$G18*Operations!$H18/Operations!$I18)^0.5))^2)) -> 53013 | O18: =IF(Operations!$C18="",0,(((Operations!$G18+1)*Operations!$H18/Operations!$I18/1000)^VLOOKUP(Operations!$C18,ImpRepairFac[],4,FALSE)-(Operations!$G18*Operations!$H18/Operations!$I18/1000)^VLOOKUP(Operations!$C18,ImpRepairFac[],4,FALSE))*Operations!$N18*VLOOKUP(Operations!$C18,ImpRepairFac[],3,FALSE)/Operations!$H18) -> 1.52851892 | P18: =IF(Operations!$N18=0,0,Operations!$N18*(VLOOKUP(Operations!$D18,ImpDepLookup,2,FALSE)-VLOOKUP(Operations!$D18,ImpDepLookup,3,FALSE)*Operations!$G18^0.5-VLOOKUP(Operations!$D18,ImpDepLookup,4,FALSE)*(Operations!$G18*Operations!$H18/Operations!$I18)^0.5)^2) -> 30866.47182 | Q18: =IF(Operations!$N18=0,0,Operations!$N18*(VLOOKUP(Operations!$D18,ImpDepLookup,2,FALSE)-VLOOKUP(Operations!$D18,ImpDepLookup,3,FALSE)*(Operations!$G18+1)^0.5-VLOOKUP(Operations!$D18,ImpDepLookup,4,FALSE)*(Operations!$G18*Operations!$H18/Operations!$I18)^0.5)^2) -> 28083.24507 | R18: =IF(Operations!$N18=0,0,IF(Operations!$I18*Operations!$H18=0,0,(Operations!$P18-Operations!$Q18)/(Operations!$H18))) -> 2.783226747 | S18: =IF(Operations!$H18=0,0,Operations!$P18*'General Variables'!$B$9/Operations!$H18) -> 0.6173294364 | T18: =IF(Operations!$H18=0,0,Operations!$P18*'General Variables'!$B$10/Operations!$H18) -> 0.9259941546 | U18: =SUM(Table3[[#This Row],[Depreciation per Unit]:[Opportunity Cost per Unit]]) -> 4.326550338 | W18: Harrow - Spring tooth | X18: TILLAGE&PLANTING | Y18: 0.27 | Z18: 1.4 | AA18: 2000
A19: Corrugate | B19: acre | C19: Cultivator - Field | D19: Disks and all other tillage equipment | E19: 30000 | G19: 5 | H19: 300 | I19: 7.021276596 | J19: 1.1 | K19: Medium Tractor | L19: 4.388297872 | N19: =IF(Operations!$E19>1,Operations!$E19,IF(Operations!$D19=0,0,Operations!$F19/(VLOOKUP(Operations!$D19,ImpDepLookup,2,FALSE)-VLOOKUP(Operations!$D19,ImpDepLookup,3,FALSE)*Operations!$G19^0.5-VLOOKUP(Operations!$D19,ImpDepLookup,4,FALSE)*(Operations!$G19*(Operations!$G19*Operations!$H19/Operations!$I19)^0.5))^2)) -> 30000 | O19: =IF(Operations!$C19="",0,(((Operations!$G19+1)*Operations!$H19/Operations!$I19/1000)^VLOOKUP(Operations!$C19,ImpRepairFac[],4,FALSE)-(Operations!$G19*Operations!$H19/Operations!$I19/1000)^VLOOKUP(Operations!$C19,ImpRepairFac[],4,FALSE))*Operations!$N19*VLOOKUP(Operations!$C19,ImpRepairFac[],3,FALSE)/Operations!$H19) -> 0.9046493546 | P19: =IF(Operations!$N19=0,0,Operations!$N19*(VLOOKUP(Operations!$D19,ImpDepLookup,2,FALSE)-VLOOKUP(Operations!$D19,ImpDepLookup,3,FALSE)*Operations!$G19^0.5-VLOOKUP(Operations!$D19,ImpDepLookup,4,FALSE)*(Operations!$G19*Operations!$H19/Operations!$I19)^0.5)^2) -> 12482.00865 | Q19: =IF(Operations!$N19=0,0,Operations!$N19*(VLOOKUP(Operations!$D19,ImpDepLookup,2,FALSE)-VLOOKUP(Operations!$D19,ImpDepLookup,3,FALSE)*(Operations!$G19+1)^0.5-VLOOKUP(Operations!$D19,ImpDepLookup,4,FALSE)*(Operations!$G19*Operations!$H19/Operations!$I19)^0.5)^2) -> 11589.96062 | R19: =IF(Operations!$N19=0,0,IF(Operations!$I19*Operations!$H19=0,0,(Operations!$P19-Operations!$Q19)/(Operations!$H19))) -> 2.973493443 | S19: =IF(Operations!$H19=0,0,Operations!$P19*'General Variables'!$B$9/Operations!$H19) -> 0.8321339101 | T19: =IF(Operations!$H19=0,0,Operations!$P19*'General Variables'!$B$10/Operations!$H19) -> 1.248200865 | U19: =SUM(Table3[[#This Row],[Depreciation per Unit]:[Opportunity Cost per Unit]]) -> 5.053828218 | W19: Mower | X19: HARVESTING | Y19: 0.46 | Z19: 1.7 | AA19: 2000
A20: Disk | B20: acre | C20: Disk - Heavy-duty | D20: Disks and all other tillage equipment | E20: 44962 | G20: 5 | H20: 2000 | I20: 10.90909091 | J20: 1.1 | K20: Large Tractor | L20: 8.290909091 | N20: =IF(Operations!$E20>1,Operations!$E20,IF(Operations!$D20=0,0,Operations!$F20/(VLOOKUP(Operations!$D20,ImpDepLookup,2,FALSE)-VLOOKUP(Operations!$D20,ImpDepLookup,3,FALSE)*Operations!$G20^0.5-VLOOKUP(Operations!$D20,ImpDepLookup,4,FALSE)*(Operations!$G20*(Operations!$G20*Operations!$H20/Operations!$I20)^0.5))^2)) -> 44962 | O20: =IF(Operations!$C20="",0,(((Operations!$G20+1)*Operations!$H20/Operations!$I20/1000)^VLOOKUP(Operations!$C20,ImpRepairFac[],4,FALSE)-(Operations!$G20*Operations!$H20/Operations!$I20/1000)^VLOOKUP(Operations!$C20,ImpRepairFac[],4,FALSE))*Operations!$N20*VLOOKUP(Operations!$C20,ImpRepairFac[],3,FALSE)/Operations!$H20) -> 1.268164459 | P20: =IF(Operations!$N20=0,0,Operations!$N20*(VLOOKUP(Operations!$D20,ImpDepLookup,2,FALSE)-VLOOKUP(Operations!$D20,ImpDepLookup,3,FALSE)*Operations!$G20^0.5-VLOOKUP(Operations!$D20,ImpDepLookup,4,FALSE)*(Operations!$G20*Operations!$H20/Operations!$I20)^0.5)^2) -> 18707.20243 | Q20: =IF(Operations!$N20=0,0,Operations!$N20*(VLOOKUP(Operations!$D20,ImpDepLookup,2,FALSE)-VLOOKUP(Operations!$D20,ImpDepLookup,3,FALSE)*(Operations!$G20+1)^0.5-VLOOKUP(Operations!$D20,ImpDepLookup,4,FALSE)*(Operations!$G20*Operations!$H20/Operations!$I20)^0.5)^2) -> 17370.26031 | R20: =IF(Operations!$N20=0,0,IF(Operations!$I20*Operations!$H20=0,0,(Operations!$P20-Operations!$Q20)/(Operations!$H20))) -> 0.6684710609 | S20: =IF(Operations!$H20=0,0,Operations!$P20*'General Variables'!$B$9/Operations!$H20) -> 0.1870720243 | T20: =IF(Operations!$H20=0,0,Operations!$P20*'General Variables'!$B$10/Operations!$H20) -> 0.2806080365 | U20: =SUM(Table3[[#This Row],[Depreciation per Unit]:[Opportunity Cost per Unit]]) -> 1.136151122 | W20: Mower(rotary) | X20: HARVESTING | Y20: 0.44 | Z20: 2.0 | AA20: 2000
A21: Ditch Irrigation | B21: acre-inch | G21: 5 | H21: 1000 | I21: 1.8 | J21: 0.1 | K21: none | L21: 0 | N21: =IF(Operations!$E21>1,Operations!$E21,IF(Operations!$D21=0,0,Operations!$F21/(VLOOKUP(Operations!$D21,ImpDepLookup,2,FALSE)-VLOOKUP(Operations!$D21,ImpDepLookup,3,FALSE)*Operations!$G21^0.5-VLOOKUP(Operations!$D21,ImpDepLookup,4,FALSE)*(Operations!$G21*(Operations!$G21*Operations!$H21/Operations!$I21)^0.5))^2)) -> 0 | O21: =IF(Operations!$C21="",0,(((Operations!$G21+1)*Operations!$H21/Operations!$I21/1000)^VLOOKUP(Operations!$C21,ImpRepairFac[],4,FALSE)-(Operations!$G21*Operations!$H21/Operations!$I21/1000)^VLOOKUP(Operations!$C21,ImpRepairFac[],4,FALSE))*Operations!$N21*VLOOKUP(Operations!$C21,ImpRepairFac[],3,FALSE)/Operations!$H21) -> 0 | P21: =IF(Operations!$N21=0,0,Operations!$N21*(VLOOKUP(Operations!$D21,ImpDepLookup,2,FALSE)-VLOOKUP(Operations!$D21,ImpDepLookup,3,FALSE)*Operations!$G21^0.5-VLOOKUP(Operations!$D21,ImpDepLookup,4,FALSE)*(Operations!$G21*Operations!$H21/Operations!$I21)^0.5)^2) -> 0 | Q21: =IF(Operations!$N21=0,0,Operations!$N21*(VLOOKUP(Operations!$D21,ImpDepLookup,2,FALSE)-VLOOKUP(Operations!$D21,ImpDepLookup,3,FALSE)*(Operations!$G21+1)^0.5-VLOOKUP(Operations!$D21,ImpDepLookup,4,FALSE)*(Operations!$G21*Operations!$H21/Operations!$I21)^0.5)^2) -> 0 | R21: =IF(Operations!$N21=0,0,IF(Operations!$I21*Operations!$H21=0,0,(Operations!$P21-Operations!$Q21)/(Operations!$H21))) -> 0 | S21: =IF(Operations!$H21=0,0,Operations!$P21*'General Variables'!$B$9/Operations!$H21) -> 0 | T21: =IF(Operations!$H21=0,0,Operations!$P21*'General Variables'!$B$10/Operations!$H21) -> 0 | U21: =SUM(Table3[[#This Row],[Depreciation per Unit]:[Opportunity Cost per Unit]]) -> 0 | W21: Mower-conditioner | X21: HARVESTING | Y21: 0.18 | Z21: 1.6 | AA21: 2500
A22: Double Windrows | B22: acre | C22: Rake - Side delivery | D22: Swathers and all other harvest equipment | E22: 7403 | G22: 20 | H22: 300 | I22: 20 | J22: 1.1 | K22: Medium Tractor | L22: 2.107042254 | N22: =IF(Operations!$E22>1,Operations!$E22,IF(Operations!$D22=0,0,Operations!$F22/(VLOOKUP(Operations!$D22,ImpDepLookup,2,FALSE)-VLOOKUP(Operations!$D22,ImpDepLookup,3,FALSE)*Operations!$G22^0.5-VLOOKUP(Operations!$D22,ImpDepLookup,4,FALSE)*(Operations!$G22*(Operations!$G22*Operations!$H22/Operations!$I22)^0.5))^2)) -> 7403 | O22: =IF(Operations!$C22="",0,(((Operations!$G22+1)*Operations!$H22/Operations!$I22/1000)^VLOOKUP(Operations!$C22,ImpRepairFac[],4,FALSE)-(Operations!$G22*Operations!$H22/Operations!$I22/1000)^VLOOKUP(Operations!$C22,ImpRepairFac[],4,FALSE))*Operations!$N22*VLOOKUP(Operations!$C22,ImpRepairFac[],3,FALSE)/Operations!$H22) -> 0.05496451792 | P22: =IF(Operations!$N22=0,0,Operations!$N22*(VLOOKUP(Operations!$D22,ImpDepLookup,2,FALSE)-VLOOKUP(Operations!$D22,ImpDepLookup,3,FALSE)*Operations!$G22^0.5-VLOOKUP(Operations!$D22,ImpDepLookup,4,FALSE)*(Operations!$G22*Operations!$H22/Operations!$I22)^0.5)^2) -> 1091.819341 | Q22: =IF(Operations!$N22=0,0,Operations!$N22*(VLOOKUP(Operations!$D22,ImpDepLookup,2,FALSE)-VLOOKUP(Operations!$D22,ImpDepLookup,3,FALSE)*(Operations!$G22+1)^0.5-VLOOKUP(Operations!$D22,ImpDepLookup,4,FALSE)*(Operations!$G22*Operations!$H22/Operations!$I22)^0.5)^2) -> 1035.422355 | R22: =IF(Operations!$N22=0,0,IF(Operations!$I22*Operations!$H22=0,0,(Operations!$P22-Operations!$Q22)/(Operations!$H22))) -> 0.1879899521 | S22: =IF(Operations!$H22=0,0,Operations!$P22*'General Variables'!$B$9/Operations!$H22) -> 0.07278795607 | T22: =IF(Operations!$H22=0,0,Operations!$P22*'General Variables'!$B$10/Operations!$H22) -> 0.1091819341 | U22: =SUM(Table3[[#This Row],[Depreciation per Unit]:[Opportunity Cost per Unit]]) -> 0.3699598422 | W22: Mower-conditioner(rotary) | X22: HARVESTING | Y22: 0.16 | Z22: 2.0 | AA22: 2500
A23: Drill | B23: acre | C23: Drill - Grain | D23: Planters | E23: 66251 | G23: 10 | H23: 1000 | I23: 12.5 | J23: 1.1 | K23: Medium Tractor | L23: 4.986666667 | N23: =IF(Operations!$E23>1,Operations!$E23,IF(Operations!$D23=0,0,Operations!$F23/(VLOOKUP(Operations!$D23,ImpDepLookup,2,FALSE)-VLOOKUP(Operations!$D23,ImpDepLookup,3,FALSE)*Operations!$G23^0.5-VLOOKUP(Operations!$D23,ImpDepLookup,4,FALSE)*(Operations!$G23*(Operations!$G23*Operations!$H23/Operations!$I23)^0.5))^2)) -> 66251 | O23: =IF(Operations!$C23="",0,(((Operations!$G23+1)*Operations!$H23/Operations!$I23/1000)^VLOOKUP(Operations!$C23,ImpRepairFac[],4,FALSE)-(Operations!$G23*Operations!$H23/Operations!$I23/1000)^VLOOKUP(Operations!$C23,ImpRepairFac[],4,FALSE))*Operations!$N23*VLOOKUP(Operations!$C23,ImpRepairFac[],3,FALSE)/Operations!$H23) -> 2.940200657 | P23: =IF(Operations!$N23=0,0,Operations!$N23*(VLOOKUP(Operations!$D23,ImpDepLookup,2,FALSE)-VLOOKUP(Operations!$D23,ImpDepLookup,3,FALSE)*Operations!$G23^0.5-VLOOKUP(Operations!$D23,ImpDepLookup,4,FALSE)*(Operations!$G23*Operations!$H23/Operations!$I23)^0.5)^2) -> 26827.1219 | Q23: =IF(Operations!$N23=0,0,Operations!$N23*(VLOOKUP(Operations!$D23,ImpDepLookup,2,FALSE)-VLOOKUP(Operations!$D23,ImpDepLookup,3,FALSE)*(Operations!$G23+1)^0.5-VLOOKUP(Operations!$D23,ImpDepLookup,4,FALSE)*(Operations!$G23*Operations!$H23/Operations!$I23)^0.5)^2) -> 25821.62991 | R23: =IF(Operations!$N23=0,0,IF(Operations!$I23*Operations!$H23=0,0,(Operations!$P23-Operations!$Q23)/(Operations!$H23))) -> 1.005491989 | S23: =IF(Operations!$H23=0,0,Operations!$P23*'General Variables'!$B$9/Operations!$H23) -> 0.536542438 | T23: =IF(Operations!$H23=0,0,Operations!$P23*'General Variables'!$B$10/Operations!$H23) -> 0.804813657 | U23: =SUM(Table3[[#This Row],[Depreciation per Unit]:[Opportunity Cost per Unit]]) -> 2.346848084 | W23: Mulcher-packer | X23: TILLAGE&PLANTING | Y23: 0.16 | Z23: 1.3 | AA23: 2000
A24: Drill w/ Fertilizer | B24: acre | C24: Drill - Grain | D24: Planters | E24: 66251 | G24: 10 | H24: 1000 | I24: 11 | J24: 1.2 | K24: Medium Tractor | L24: 5 | N24: =IF(Operations!$E24>1,Operations!$E24,IF(Operations!$D24=0,0,Operations!$F24/(VLOOKUP(Operations!$D24,ImpDepLookup,2,FALSE)-VLOOKUP(Operations!$D24,ImpDepLookup,3,FALSE)*Operations!$G24^0.5-VLOOKUP(Operations!$D24,ImpDepLookup,4,FALSE)*(Operations!$G24*(Operations!$G24*Operations!$H24/Operations!$I24)^0.5))^2)) -> 66251 | O24: =IF(Operations!$C24="",0,(((Operations!$G24+1)*Operations!$H24/Operations!$I24/1000)^VLOOKUP(Operations!$C24,ImpRepairFac[],4,FALSE)-(Operations!$G24*Operations!$H24/Operations!$I24/1000)^VLOOKUP(Operations!$C24,ImpRepairFac[],4,FALSE))*Operations!$N24*VLOOKUP(Operations!$C24,ImpRepairFac[],3,FALSE)/Operations!$H24) -> 3.845593356 | P24: =IF(Operations!$N24=0,0,Operations!$N24*(VLOOKUP(Operations!$D24,ImpDepLookup,2,FALSE)-VLOOKUP(Operations!$D24,ImpDepLookup,3,FALSE)*Operations!$G24^0.5-VLOOKUP(Operations!$D24,ImpDepLookup,4,FALSE)*(Operations!$G24*Operations!$H24/Operations!$I24)^0.5)^2) -> 26827.1219 | Q24: =IF(Operations!$N24=0,0,Operations!$N24*(VLOOKUP(Operations!$D24,ImpDepLookup,2,FALSE)-VLOOKUP(Operations!$D24,ImpDepLookup,3,FALSE)*(Operations!$G24+1)^0.5-VLOOKUP(Operations!$D24,ImpDepLookup,4,FALSE)*(Operations!$G24*Operations!$H24/Operations!$I24)^0.5)^2) -> 25821.62991 | R24: =IF(Operations!$N24=0,0,IF(Operations!$I24*Operations!$H24=0,0,(Operations!$P24-Operations!$Q24)/(Operations!$H24))) -> 1.005491989 | S24: =IF(Operations!$H24=0,0,Operations!$P24*'General Variables'!$B$9/Operations!$H24) -> 0.536542438 | T24: =IF(Operations!$H24=0,0,Operations!$P24*'General Variables'!$B$10/Operations!$H24) -> 0.804813657 | U24: =SUM(Table3[[#This Row],[Depreciation per Unit]:[Opportunity Cost per Unit]]) -> 2.346848084 | W24: Planter - Row crop | X24: TILLAGE&PLANTING | Y24: 0.32 | Z24: 2.1 | AA24: 1500
A25: Dry Grain | B25: bushel | N25: =IF(Operations!$E25>1,Operations!$E25,IF(Operations!$D25=0,0,Operations!$F25/(VLOOKUP(Operations!$D25,ImpDepLookup,2,FALSE)-VLOOKUP(Operations!$D25,ImpDepLookup,3,FALSE)*Operations!$G25^0.5-VLOOKUP(Operations!$D25,ImpDepLookup,4,FALSE)*(Operations!$G25*(Operations!$G25*Operations!$H25/Operations!$I25)^0.5))^2)) -> 0 | O25: =IF(Operations!$C25="",0,(((Operations!$G25+1)*Operations!$H25/Operations!$I25/1000)^VLOOKUP(Operations!$C25,ImpRepairFac[],4,FALSE)-(Operations!$G25*Operations!$H25/Operations!$I25/1000)^VLOOKUP(Operations!$C25,ImpRepairFac[],4,FALSE))*Operations!$N25*VLOOKUP(Operations!$C25,ImpRepairFac[],3,FALSE)/Operations!$H25) -> 0 | P25: =IF(Operations!$N25=0,0,Operations!$N25*(VLOOKUP(Operations!$D25,ImpDepLookup,2,FALSE)-VLOOKUP(Operations!$D25,ImpDepLookup,3,FALSE)*Operations!$G25^0.5-VLOOKUP(Operations!$D25,ImpDepLookup,4,FALSE)*(Operations!$G25*Operations!$H25/Operations!$I25)^0.5)^2) -> 0 | Q25: =IF(Operations!$N25=0,0,Operations!$N25*(VLOOKUP(Operations!$D25,ImpDepLookup,2,FALSE)-VLOOKUP(Operations!$D25,ImpDepLookup,3,FALSE)*(Operations!$G25+1)^0.5-VLOOKUP(Operations!$D25,ImpDepLookup,4,FALSE)*(Operations!$G25*Operations!$H25/Operations!$I25)^0.5)^2) -> 0 | R25: =IF(Operations!$N25=0,0,IF(Operations!$I25*Operations!$H25=0,0,(Operations!$P25-Operations!$Q25)/(Operations!$H25))) -> 0 | S25: =IF(Operations!$H25=0,0,Operations!$P25*'General Variables'!$B$9/Operations!$H25) -> 0 | T25: =IF(Operations!$H25=0,0,Operations!$P25*'General Variables'!$B$10/Operations!$H25) -> 0 | U25: =SUM(Table3[[#This Row],[Depreciation per Unit]:[Opportunity Cost per Unit]]) -> 0 | W25: Plow - Moldboard | X25: TILLAGE&PLANTING | Y25: 0.29 | Z25: 1.8 | AA25: 2000
A26: Fallow Master | B26: acre | C26: Mulcher-packer | D26: Disks and all other tillage equipment | E26: 59791 | G26: 5 | H26: 2000 | I26: 12.5 | J26: 1.1 | K26: Large Tractor | L26: 8.622580645 | N26: =IF(Operations!$E26>1,Operations!$E26,IF(Operations!$D26=0,0,Operations!$F26/(VLOOKUP(Operations!$D26,ImpDepLookup,2,FALSE)-VLOOKUP(Operations!$D26,ImpDepLookup,3,FALSE)*Operations!$G26^0.5-VLOOKUP(Operations!$D26,ImpDepLookup,4,FALSE)*(Operations!$G26*(Operations!$G26*Operations!$H26/Operations!$I26)^0.5))^2)) -> 59791 | O26: =IF(Operations!$C26="",0,(((Operations!$G26+1)*Operations!$H26/Operations!$I26/1000)^VLOOKUP(Operations!$C26,ImpRepairFac[],4,FALSE)-(Operations!$G26*Operations!$H26/Operations!$I26/1000)^VLOOKUP(Operations!$C26,ImpRepairFac[],4,FALSE))*Operations!$N26*VLOOKUP(Operations!$C26,ImpRepairFac[],3,FALSE)/Operations!$H26) -> 0.9572118379 | P26: =IF(Operations!$N26=0,0,Operations!$N26*(VLOOKUP(Operations!$D26,ImpDepLookup,2,FALSE)-VLOOKUP(Operations!$D26,ImpDepLookup,3,FALSE)*Operations!$G26^0.5-VLOOKUP(Operations!$D26,ImpDepLookup,4,FALSE)*(Operations!$G26*Operations!$H26/Operations!$I26)^0.5)^2) -> 24877.05931 | Q26: =IF(Operations!$N26=0,0,Operations!$N26*(VLOOKUP(Operations!$D26,ImpDepLookup,2,FALSE)-VLOOKUP(Operations!$D26,ImpDepLookup,3,FALSE)*(Operations!$G26+1)^0.5-VLOOKUP(Operations!$D26,ImpDepLookup,4,FALSE)*(Operations!$G26*Operations!$H26/Operations!$I26)^0.5)^2) -> 23099.17784 | R26: =IF(Operations!$N26=0,0,IF(Operations!$I26*Operations!$H26=0,0,(Operations!$P26-Operations!$Q26)/(Operations!$H26))) -> 0.8889407323 | S26: =IF(Operations!$H26=0,0,Operations!$P26*'General Variables'!$B$9/Operations!$H26) -> 0.2487705931 | T26: =IF(Operations!$H26=0,0,Operations!$P26*'General Variables'!$B$10/Operations!$H26) -> 0.3731558896 | U26: =SUM(Table3[[#This Row],[Depreciation per Unit]:[Opportunity Cost per Unit]]) -> 1.510867215 | W26: Potato harvester | X26: HARVESTING | Y26: 0.19 | Z26: 1.4 | AA26: 2500
A27: Field Cultivation | B27: acre | C27: Cultivator - Field | D27: Disks and all other tillage equipment | E27: 59791 | G27: 5 | H27: 2000 | I27: 15 | J27: 1.1 | K27: Medium Tractor | L27: 8.196774194 | N27: =IF(Operations!$E27>1,Operations!$E27,IF(Operations!$D27=0,0,Operations!$F27/(VLOOKUP(Operations!$D27,ImpDepLookup,2,FALSE)-VLOOKUP(Operations!$D27,ImpDepLookup,3,FALSE)*Operations!$G27^0.5-VLOOKUP(Operations!$D27,ImpDepLookup,4,FALSE)*(Operations!$G27*(Operations!$G27*Operations!$H27/Operations!$I27)^0.5))^2)) -> 59791 | O27: =IF(Operations!$C27="",0,(((Operations!$G27+1)*Operations!$H27/Operations!$I27/1000)^VLOOKUP(Operations!$C27,ImpRepairFac[],4,FALSE)-(Operations!$G27*Operations!$H27/Operations!$I27/1000)^VLOOKUP(Operations!$C27,ImpRepairFac[],4,FALSE))*Operations!$N27*VLOOKUP(Operations!$C27,ImpRepairFac[],3,FALSE)/Operations!$H27) -> 1.330494515 | P27: =IF(Operations!$N27=0,0,Operations!$N27*(VLOOKUP(Operations!$D27,ImpDepLookup,2,FALSE)-VLOOKUP(Operations!$D27,ImpDepLookup,3,FALSE)*Operations!$G27^0.5-VLOOKUP(Operations!$D27,ImpDepLookup,4,FALSE)*(Operations!$G27*Operations!$H27/Operations!$I27)^0.5)^2) -> 24877.05931 | Q27: =IF(Operations!$N27=0,0,Operations!$N27*(VLOOKUP(Operations!$D27,ImpDepLookup,2,FALSE)-VLOOKUP(Operations!$D27,ImpDepLookup,3,FALSE)*(Operations!$G27+1)^0.5-VLOOKUP(Operations!$D27,ImpDepLookup,4,FALSE)*(Operations!$G27*Operations!$H27/Operations!$I27)^0.5)^2) -> 23099.17784 | R27: =IF(Operations!$N27=0,0,IF(Operations!$I27*Operations!$H27=0,0,(Operations!$P27-Operations!$Q27)/(Operations!$H27))) -> 0.8889407323 | S27: =IF(Operations!$H27=0,0,Operations!$P27*'General Variables'!$B$9/Operations!$H27) -> 0.2487705931 | T27: =IF(Operations!$H27=0,0,Operations!$P27*'General Variables'!$B$10/Operations!$H27) -> 0.3731558896 | U27: =SUM(Table3[[#This Row],[Depreciation per Unit]:[Opportunity Cost per Unit]]) -> 1.510867215 | W27: Rake - Side delivery | X27: HARVESTING | Y27: 0.17 | Z27: 1.4 | AA27: 2500
A28: Grass Drill | B28: acre | C28: Drill - Grain | D28: Planters | E28: 73000 | G28: 10 | H28: 1000 | I28: 9 | J28: 1.1 | K28: Medium Tractor | L28: 4.293680297 | N28: =IF(Operations!$E28>1,Operations!$E28,IF(Operations!$D28=0,0,Operations!$F28/(VLOOKUP(Operations!$D28,ImpDepLookup,2,FALSE)-VLOOKUP(Operations!$D28,ImpDepLookup,3,FALSE)*Operations!$G28^0.5-VLOOKUP(Operations!$D28,ImpDepLookup,4,FALSE)*(Operations!$G28*(Operations!$G28*Operations!$H28/Operations!$I28)^0.5))^2)) -> 73000 | O28: =IF(Operations!$C28="",0,(((Operations!$G28+1)*Operations!$H28/Operations!$I28/1000)^VLOOKUP(Operations!$C28,ImpRepairFac[],4,FALSE)-(Operations!$G28*Operations!$H28/Operations!$I28/1000)^VLOOKUP(Operations!$C28,ImpRepairFac[],4,FALSE))*Operations!$N28*VLOOKUP(Operations!$C28,ImpRepairFac[],3,FALSE)/Operations!$H28) -> 6.458165199 | P28: =IF(Operations!$N28=0,0,Operations!$N28*(VLOOKUP(Operations!$D28,ImpDepLookup,2,FALSE)-VLOOKUP(Operations!$D28,ImpDepLookup,3,FALSE)*Operations!$G28^0.5-VLOOKUP(Operations!$D28,ImpDepLookup,4,FALSE)*(Operations!$G28*Operations!$H28/Operations!$I28)^0.5)^2) -> 29560.00511 | Q28: =IF(Operations!$N28=0,0,Operations!$N28*(VLOOKUP(Operations!$D28,ImpDepLookup,2,FALSE)-VLOOKUP(Operations!$D28,ImpDepLookup,3,FALSE)*(Operations!$G28+1)^0.5-VLOOKUP(Operations!$D28,ImpDepLookup,4,FALSE)*(Operations!$G28*Operations!$H28/Operations!$I28)^0.5)^2) -> 28452.08349 | R28: =IF(Operations!$N28=0,0,IF(Operations!$I28*Operations!$H28=0,0,(Operations!$P28-Operations!$Q28)/(Operations!$H28))) -> 1.10792162 | S28: =IF(Operations!$H28=0,0,Operations!$P28*'General Variables'!$B$9/Operations!$H28) -> 0.5912001022 | T28: =IF(Operations!$H28=0,0,Operations!$P28*'General Variables'!$B$10/Operations!$H28) -> 0.8868001533 | U28: =SUM(Table3[[#This Row],[Depreciation per Unit]:[Opportunity Cost per Unit]]) -> 2.585921875 | W28: Roller-packer | X28: TILLAGE&PLANTING | Y28: 0.16 | Z28: 1.3 | AA28: 2000
A29: Harrow | B29: acre | C29: Harrow - Spring tooth | D29: Disks and all other tillage equipment | G29: 5 | H29: 1000 | I29: 18.5915493 | J29: 1.1 | K29: Medium Tractor | L29: 2.045070423 | N29: =IF(Operations!$E29>1,Operations!$E29,IF(Operations!$D29=0,0,Operations!$F29/(VLOOKUP(Operations!$D29,ImpDepLookup,2,FALSE)-VLOOKUP(Operations!$D29,ImpDepLookup,3,FALSE)*Operations!$G29^0.5-VLOOKUP(Operations!$D29,ImpDepLookup,4,FALSE)*(Operations!$G29*(Operations!$G29*Operations!$H29/Operations!$I29)^0.5))^2)) -> 0 | O29: =IF(Operations!$C29="",0,(((Operations!$G29+1)*Operations!$H29/Operations!$I29/1000)^VLOOKUP(Operations!$C29,ImpRepairFac[],4,FALSE)-(Operations!$G29*Operations!$H29/Operations!$I29/1000)^VLOOKUP(Operations!$C29,ImpRepairFac[],4,FALSE))*Operations!$N29*VLOOKUP(Operations!$C29,ImpRepairFac[],3,FALSE)/Operations!$H29) -> 0 | P29: =IF(Operations!$N29=0,0,Operations!$N29*(VLOOKUP(Operations!$D29,ImpDepLookup,2,FALSE)-VLOOKUP(Operations!$D29,ImpDepLookup,3,FALSE)*Operations!$G29^0.5-VLOOKUP(Operations!$D29,ImpDepLookup,4,FALSE)*(Operations!$G29*Operations!$H29/Operations!$I29)^0.5)^2) -> 0 | Q29: =IF(Operations!$N29=0,0,Operations!$N29*(VLOOKUP(Operations!$D29,ImpDepLookup,2,FALSE)-VLOOKUP(Operations!$D29,ImpDepLookup,3,FALSE)*(Operations!$G29+1)^0.5-VLOOKUP(Operations!$D29,ImpDepLookup,4,FALSE)*(Operations!$G29*Operations!$H29/Operations!$I29)^0.5)^2) -> 0 | R29: =IF(Operations!$N29=0,0,IF(Operations!$I29*Operations!$H29=0,0,(Operations!$P29-Operations!$Q29)/(Operations!$H29))) -> 0 | S29: =IF(Operations!$H29=0,0,Operations!$P29*'General Variables'!$B$9/Operations!$H29) -> 0 | T29: =IF(Operations!$H29=0,0,Operations!$P29*'General Variables'!$B$10/Operations!$H29) -> 0 | U29: =SUM(Table3[[#This Row],[Depreciation per Unit]:[Opportunity Cost per Unit]]) -> 0 | W29: Rotary hoe | X29: TILLAGE&PLANTING | Y29: 0.23 | Z29: 1.4 | AA29: 2000
A30: Large Round Bale | B30: ton | C30: Baler - Large round | D30: Balers | E30: 22417 | G30: 5 | H30: 1000 | I30: 10 | J30: 1.1 | K30: Medium Tractor | L30: 2.876146789 | N30: =IF(Operations!$E30>1,Operations!$E30,IF(Operations!$D30=0,0,Operations!$F30/(VLOOKUP(Operations!$D30,ImpDepLookup,2,FALSE)-VLOOKUP(Operations!$D30,ImpDepLookup,3,FALSE)*Operations!$G30^0.5-VLOOKUP(Operations!$D30,ImpDepLookup,4,FALSE)*(Operations!$G30*(Operations!$G30*Operations!$H30/Operations!$I30)^0.5))^2)) -> 22417 | O30: =IF(Operations!$C30="",0,(((Operations!$G30+1)*Operations!$H30/Operations!$I30/1000)^VLOOKUP(Operations!$C30,ImpRepairFac[],4,FALSE)-(Operations!$G30*Operations!$H30/Operations!$I30/1000)^VLOOKUP(Operations!$C30,ImpRepairFac[],4,FALSE))*Operations!$N30*VLOOKUP(Operations!$C30,ImpRepairFac[],3,FALSE)/Operations!$H30) -> 1.075258233 | P30: =IF(Operations!$N30=0,0,Operations!$N30*(VLOOKUP(Operations!$D30,ImpDepLookup,2,FALSE)-VLOOKUP(Operations!$D30,ImpDepLookup,3,FALSE)*Operations!$G30^0.5-VLOOKUP(Operations!$D30,ImpDepLookup,4,FALSE)*(Operations!$G30*Operations!$H30/Operations!$I30)^0.5)^2) -> 8789.094989 | Q30: =IF(Operations!$N30=0,0,Operations!$N30*(VLOOKUP(Operations!$D30,ImpDepLookup,2,FALSE)-VLOOKUP(Operations!$D30,ImpDepLookup,3,FALSE)*(Operations!$G30+1)^0.5-VLOOKUP(Operations!$D30,ImpDepLookup,4,FALSE)*(Operations!$G30*Operations!$H30/Operations!$I30)^0.5)^2) -> 8194.377819 | R30: =IF(Operations!$N30=0,0,IF(Operations!$I30*Operations!$H30=0,0,(Operations!$P30-Operations!$Q30)/(Operations!$H30))) -> 0.5947171702 | S30: =IF(Operations!$H30=0,0,Operations!$P30*'General Variables'!$B$9/Operations!$H30) -> 0.1757818998 | T30: =IF(Operations!$H30=0,0,Operations!$P30*'General Variables'!$B$10/Operations!$H30) -> 0.2636728497 | U30: =SUM(Table3[[#This Row],[Depreciation per Unit]:[Opportunity Cost per Unit]]) -> 1.03417192 | W30: Rotary tiller | X30: TILLAGE&PLANTING | Y30: 0.36 | Z30: 2.0 | AA30: 1500
A31: Large Square Bale | B31: ton | C31: Baler - Large rectangular | D31: Balers | E31: 120658 | G31: 5 | H31: 1000 | I31: 16 | J31: 1.1 | K31: Medium Tractor | L31: 6.18597786 | N31: =IF(Operations!$E31>1,Operations!$E31,IF(Operations!$D31=0,0,Operations!$F31/(VLOOKUP(Operations!$D31,ImpDepLookup,2,FALSE)-VLOOKUP(Operations!$D31,ImpDepLookup,3,FALSE)*Operations!$G31^0.5-VLOOKUP(Operations!$D31,ImpDepLookup,4,FALSE)*(Operations!$G31*(Operations!$G31*Operations!$H31/Operations!$I31)^0.5))^2)) -> 120658 | O31: =IF(Operations!$C31="",0,(((Operations!$G31+1)*Operations!$H31/Operations!$I31/1000)^VLOOKUP(Operations!$C31,ImpRepairFac[],4,FALSE)-(Operations!$G31*Operations!$H31/Operations!$I31/1000)^VLOOKUP(Operations!$C31,ImpRepairFac[],4,FALSE))*Operations!$N31*VLOOKUP(Operations!$C31,ImpRepairFac[],3,FALSE)/Operations!$H31) -> 0.5775731326 | P31: =IF(Operations!$N31=0,0,Operations!$N31*(VLOOKUP(Operations!$D31,ImpDepLookup,2,FALSE)-VLOOKUP(Operations!$D31,ImpDepLookup,3,FALSE)*Operations!$G31^0.5-VLOOKUP(Operations!$D31,ImpDepLookup,4,FALSE)*(Operations!$G31*Operations!$H31/Operations!$I31)^0.5)^2) -> 47306.71469 | Q31: =IF(Operations!$N31=0,0,Operations!$N31*(VLOOKUP(Operations!$D31,ImpDepLookup,2,FALSE)-VLOOKUP(Operations!$D31,ImpDepLookup,3,FALSE)*(Operations!$G31+1)^0.5-VLOOKUP(Operations!$D31,ImpDepLookup,4,FALSE)*(Operations!$G31*Operations!$H31/Operations!$I31)^0.5)^2) -> 44105.68938 | R31: =IF(Operations!$N31=0,0,IF(Operations!$I31*Operations!$H31=0,0,(Operations!$P31-Operations!$Q31)/(Operations!$H31))) -> 3.201025308 | S31: =IF(Operations!$H31=0,0,Operations!$P31*'General Variables'!$B$9/Operations!$H31) -> 0.9461342938 | T31: =IF(Operations!$H31=0,0,Operations!$P31*'General Variables'!$B$10/Operations!$H31) -> 1.419201441 | U31: =SUM(Table3[[#This Row],[Depreciation per Unit]:[Opportunity Cost per Unit]]) -> 5.566361042 | W31: Sprayer - Air-carrier | X31: MISCELLANEOUS | Y31: 0.20 | Z31: 1.6 | AA31: 2000
A32: Lift Beets | B32: acre | C32: Sugar beet harvester | D32: Balers | E32: 110000 | G32: 5 | H32: 1000 | I32: 6 | J32: 1.1 | K32: Large Tractor | L32: 6.190697674 | N32: =IF(Operations!$E32>1,Operations!$E32,IF(Operations!$D32=0,0,Operations!$F32/(VLOOKUP(Operations!$D32,ImpDepLookup,2,FALSE)-VLOOKUP(Operations!$D32,ImpDepLookup,3,FALSE)*Operations!$G32^0.5-VLOOKUP(Operations!$D32,ImpDepLookup,4,FALSE)*(Operations!$G32*(Operations!$G32*Operations!$H32/Operations!$I32)^0.5))^2)) -> 110000 | O32: =IF(Operations!$C32="",0,(((Operations!$G32+1)*Operations!$H32/Operations!$I32/1000)^VLOOKUP(Operations!$C32,ImpRepairFac[],4,FALSE)-(Operations!$G32*Operations!$H32/Operations!$I32/1000)^VLOOKUP(Operations!$C32,ImpRepairFac[],4,FALSE))*Operations!$N32*VLOOKUP(Operations!$C32,ImpRepairFac[],3,FALSE)/Operations!$H32) -> 13.69538832 | P32: =IF(Operations!$N32=0,0,Operations!$N32*(VLOOKUP(Operations!$D32,ImpDepLookup,2,FALSE)-VLOOKUP(Operations!$D32,ImpDepLookup,3,FALSE)*Operations!$G32^0.5-VLOOKUP(Operations!$D32,ImpDepLookup,4,FALSE)*(Operations!$G32*Operations!$H32/Operations!$I32)^0.5)^2) -> 43128.00325 | Q32: =IF(Operations!$N32=0,0,Operations!$N32*(VLOOKUP(Operations!$D32,ImpDepLookup,2,FALSE)-VLOOKUP(Operations!$D32,ImpDepLookup,3,FALSE)*(Operations!$G32+1)^0.5-VLOOKUP(Operations!$D32,ImpDepLookup,4,FALSE)*(Operations!$G32*Operations!$H32/Operations!$I32)^0.5)^2) -> 40209.7319 | R32: =IF(Operations!$N32=0,0,IF(Operations!$I32*Operations!$H32=0,0,(Operations!$P32-Operations!$Q32)/(Operations!$H32))) -> 2.918271344 | S32: =IF(Operations!$H32=0,0,Operations!$P32*'General Variables'!$B$9/Operations!$H32) -> 0.862560065 | T32: =IF(Operations!$H32=0,0,Operations!$P32*'General Variables'!$B$10/Operations!$H32) -> 1.293840097 | U32: =SUM(Table3[[#This Row],[Depreciation per Unit]:[Opportunity Cost per Unit]]) -> 5.074671507 | W32: Sprayer - Boom-type | X32: MISCELLANEOUS | Y32: 0.41 | Z32: 1.3 | AA32: 2500
A33: Load Large Square | B33: ton | C33: Wagon - Forage | D33: Swathers and all other harvest equipment | E33: 4213 | G33: 5 | H33: 3000 | I33: 20 | J33: 1.1 | K33: Medium Tractor | L33: 4 | N33: =IF(Operations!$E33>1,Operations!$E33,IF(Operations!$D33=0,0,Operations!$F33/(VLOOKUP(Operations!$D33,ImpDepLookup,2,FALSE)-VLOOKUP(Operations!$D33,ImpDepLookup,3,FALSE)*Operations!$G33^0.5-VLOOKUP(Operations!$D33,ImpDepLookup,4,FALSE)*(Operations!$G33*(Operations!$G33*Operations!$H33/Operations!$I33)^0.5))^2)) -> 4213 | O33: =IF(Operations!$C33="",0,(((Operations!$G33+1)*Operations!$H33/Operations!$I33/1000)^VLOOKUP(Operations!$C33,ImpRepairFac[],4,FALSE)-(Operations!$G33*Operations!$H33/Operations!$I33/1000)^VLOOKUP(Operations!$C33,ImpRepairFac[],4,FALSE))*Operations!$N33*VLOOKUP(Operations!$C33,ImpRepairFac[],3,FALSE)/Operations!$H33) -> 0.04803192647 | P33: =IF(Operations!$N33=0,0,Operations!$N33*(VLOOKUP(Operations!$D33,ImpDepLookup,2,FALSE)-VLOOKUP(Operations!$D33,ImpDepLookup,3,FALSE)*Operations!$G33^0.5-VLOOKUP(Operations!$D33,ImpDepLookup,4,FALSE)*(Operations!$G33*Operations!$H33/Operations!$I33)^0.5)^2) -> 1454.231467 | Q33: =IF(Operations!$N33=0,0,Operations!$N33*(VLOOKUP(Operations!$D33,ImpDepLookup,2,FALSE)-VLOOKUP(Operations!$D33,ImpDepLookup,3,FALSE)*(Operations!$G33+1)^0.5-VLOOKUP(Operations!$D33,ImpDepLookup,4,FALSE)*(Operations!$G33*Operations!$H33/Operations!$I33)^0.5)^2) -> 1359.676478 | R33: =IF(Operations!$N33=0,0,IF(Operations!$I33*Operations!$H33=0,0,(Operations!$P33-Operations!$Q33)/(Operations!$H33))) -> 0.03151832955 | S33: =IF(Operations!$H33=0,0,Operations!$P33*'General Variables'!$B$9/Operations!$H33) -> 0.009694876447 | T33: =IF(Operations!$H33=0,0,Operations!$P33*'General Variables'!$B$10/Operations!$H33) -> 0.01454231467 | U33: =SUM(Table3[[#This Row],[Depreciation per Unit]:[Opportunity Cost per Unit]]) -> 0.05575552066 | W33: Stalk chopper | X33: MISCELLANEOUS | Y33: 0.28 | Z33: 1.4 | AA33: 1200
A34: Move Large Round | B34: ton | D34: Swathers and all other harvest equipment | E34: 4213 | G34: 5 | H34: 3000 | I34: 20 | J34: 1.1 | K34: Medium Tractor | L34: 4 | N34: =IF(Operations!$E34>1,Operations!$E34,IF(Operations!$D34=0,0,Operations!$F34/(VLOOKUP(Operations!$D34,ImpDepLookup,2,FALSE)-VLOOKUP(Operations!$D34,ImpDepLookup,3,FALSE)*Operations!$G34^0.5-VLOOKUP(Operations!$D34,ImpDepLookup,4,FALSE)*(Operations!$G34*(Operations!$G34*Operations!$H34/Operations!$I34)^0.5))^2)) -> 4213 | O34: =IF(Operations!$C34="",0,(((Operations!$G34+1)*Operations!$H34/Operations!$I34/1000)^VLOOKUP(Operations!$C34,ImpRepairFac[],4,FALSE)-(Operations!$G34*Operations!$H34/Operations!$I34/1000)^VLOOKUP(Operations!$C34,ImpRepairFac[],4,FALSE))*Operations!$N34*VLOOKUP(Operations!$C34,ImpRepairFac[],3,FALSE)/Operations!$H34) -> 0 | P34: =IF(Operations!$N34=0,0,Operations!$N34*(VLOOKUP(Operations!$D34,ImpDepLookup,2,FALSE)-VLOOKUP(Operations!$D34,ImpDepLookup,3,FALSE)*Operations!$G34^0.5-VLOOKUP(Operations!$D34,ImpDepLookup,4,FALSE)*(Operations!$G34*Operations!$H34/Operations!$I34)^0.5)^2) -> 1454.231467 | Q34: =IF(Operations!$N34=0,0,Operations!$N34*(VLOOKUP(Operations!$D34,ImpDepLookup,2,FALSE)-VLOOKUP(Operations!$D34,ImpDepLookup,3,FALSE)*(Operations!$G34+1)^0.5-VLOOKUP(Operations!$D34,ImpDepLookup,4,FALSE)*(Operations!$G34*Operations!$H34/Operations!$I34)^0.5)^2) -> 1359.676478 | R34: =IF(Operations!$N34=0,0,IF(Operations!$I34*Operations!$H34=0,0,(Operations!$P34-Operations!$Q34)/(Operations!$H34))) -> 0.03151832955 | S34: =IF(Operations!$H34=0,0,Operations!$P34*'General Variables'!$B$9/Operations!$H34) -> 0.009694876447 | T34: =IF(Operations!$H34=0,0,Operations!$P34*'General Variables'!$B$10/Operations!$H34) -> 0.01454231467 | U34: =SUM(Table3[[#This Row],[Depreciation per Unit]:[Opportunity Cost per Unit]]) -> 0.05575552066 | W34: Sugar beet harvester | X34: HARVESTING | Y34: 0.59 | Z34: 1.3 | AA34: 1500
A35: No-Till Drill | B35: acre | C35: Drill - Grain | D35: Planters | E35: 66251 | G35: 5 | H35: 1000 | I35: 12 | J35: 1.1 | K35: Medium Tractor | L35: 6.069948187 | N35: =IF(Operations!$E35>1,Operations!$E35,IF(Operations!$D35=0,0,Operations!$F35/(VLOOKUP(Operations!$D35,ImpDepLookup,2,FALSE)-VLOOKUP(Operations!$D35,ImpDepLookup,3,FALSE)*Operations!$G35^0.5-VLOOKUP(Operations!$D35,ImpDepLookup,4,FALSE)*(Operations!$G35*(Operations!$G35*Operations!$H35/Operations!$I35)^0.5))^2)) -> 66251 | O35: =IF(Operations!$C35="",0,(((Operations!$G35+1)*Operations!$H35/Operations!$I35/1000)^VLOOKUP(Operations!$C35,ImpRepairFac[],4,FALSE)-(Operations!$G35*Operations!$H35/Operations!$I35/1000)^VLOOKUP(Operations!$C35,ImpRepairFac[],4,FALSE))*Operations!$N35*VLOOKUP(Operations!$C35,ImpRepairFac[],3,FALSE)/Operations!$H35) -> 1.573062205 | P35: =IF(Operations!$N35=0,0,Operations!$N35*(VLOOKUP(Operations!$D35,ImpDepLookup,2,FALSE)-VLOOKUP(Operations!$D35,ImpDepLookup,3,FALSE)*Operations!$G35^0.5-VLOOKUP(Operations!$D35,ImpDepLookup,4,FALSE)*(Operations!$G35*Operations!$H35/Operations!$I35)^0.5)^2) -> 33264.30302 | Q35: =IF(Operations!$N35=0,0,Operations!$N35*(VLOOKUP(Operations!$D35,ImpDepLookup,2,FALSE)-VLOOKUP(Operations!$D35,ImpDepLookup,3,FALSE)*(Operations!$G35+1)^0.5-VLOOKUP(Operations!$D35,ImpDepLookup,4,FALSE)*(Operations!$G35*Operations!$H35/Operations!$I35)^0.5)^2) -> 31719.69929 | R35: =IF(Operations!$N35=0,0,IF(Operations!$I35*Operations!$H35=0,0,(Operations!$P35-Operations!$Q35)/(Operations!$H35))) -> 1.544603727 | S35: =IF(Operations!$H35=0,0,Operations!$P35*'General Variables'!$B$9/Operations!$H35) -> 0.6652860603 | T35: =IF(Operations!$H35=0,0,Operations!$P35*'General Variables'!$B$10/Operations!$H35) -> 0.9979290905 | U35: =SUM(Table3[[#This Row],[Depreciation per Unit]:[Opportunity Cost per Unit]]) -> 3.207818878 | W35: Wagon | X35: MISCELLANEOUS | Y35: 0.19 | Z35: 1.3 | AA35: 3000
A36: Pickett Windrowers | B36: acre | C36: Bean puller-windrower | D36: Swathers and all other harvest equipment | E36: 32000 | G36: 5 | H36: 1000 | I36: 10 | J36: 1.1 | K36: Medium Tractor | L36: 6.073404255 | N36: =IF(Operations!$E36>1,Operations!$E36,IF(Operations!$D36=0,0,Operations!$F36/(VLOOKUP(Operations!$D36,ImpDepLookup,2,FALSE)-VLOOKUP(Operations!$D36,ImpDepLookup,3,FALSE)*Operations!$G36^0.5-VLOOKUP(Operations!$D36,ImpDepLookup,4,FALSE)*(Operations!$G36*(Operations!$G36*Operations!$H36/Operations!$I36)^0.5))^2)) -> 32000 | O36: =IF(Operations!$C36="",0,(((Operations!$G36+1)*Operations!$H36/Operations!$I36/1000)^VLOOKUP(Operations!$C36,ImpRepairFac[],4,FALSE)-(Operations!$G36*Operations!$H36/Operations!$I36/1000)^VLOOKUP(Operations!$C36,ImpRepairFac[],4,FALSE))*Operations!$N36*VLOOKUP(Operations!$C36,ImpRepairFac[],3,FALSE)/Operations!$H36) -> 0.7151115264 | P36: =IF(Operations!$N36=0,0,Operations!$N36*(VLOOKUP(Operations!$D36,ImpDepLookup,2,FALSE)-VLOOKUP(Operations!$D36,ImpDepLookup,3,FALSE)*Operations!$G36^0.5-VLOOKUP(Operations!$D36,ImpDepLookup,4,FALSE)*(Operations!$G36*Operations!$H36/Operations!$I36)^0.5)^2) -> 11045.66982 | Q36: =IF(Operations!$N36=0,0,Operations!$N36*(VLOOKUP(Operations!$D36,ImpDepLookup,2,FALSE)-VLOOKUP(Operations!$D36,ImpDepLookup,3,FALSE)*(Operations!$G36+1)^0.5-VLOOKUP(Operations!$D36,ImpDepLookup,4,FALSE)*(Operations!$G36*Operations!$H36/Operations!$I36)^0.5)^2) -> 10327.47384 | R36: =IF(Operations!$N36=0,0,IF(Operations!$I36*Operations!$H36=0,0,(Operations!$P36-Operations!$Q36)/(Operations!$H36))) -> 0.7181959736 | S36: =IF(Operations!$H36=0,0,Operations!$P36*'General Variables'!$B$9/Operations!$H36) -> 0.2209133964 | T36: =IF(Operations!$H36=0,0,Operations!$P36*'General Variables'!$B$10/Operations!$H36) -> 0.3313700946 | U36: =SUM(Table3[[#This Row],[Depreciation per Unit]:[Opportunity Cost per Unit]]) -> 1.270479464 | W36: Wagon - Forage | X36: MISCELLANEOUS | Y36: 0.16 | Z36: 1.6 | AA36: 2000
A37: Pipe D 125' Lift | B37: acre-inch | C37: Hand move lateral | D37: Manure spreaders and all other miscellaneous equipment | F37: 7500 | G37: 10 | H37: 2600 | I37: 2.25 | J37: =5/24 -> 0.2083333333 | K37: Diesel Pump for Pipe | L37: 3.03 | N37: =IF(Operations!$E37>1,Operations!$E37,IF(Operations!$D37=0,0,Operations!$F37/(VLOOKUP(Operations!$D37,ImpDepLookup,2,FALSE)-VLOOKUP(Operations!$D37,ImpDepLookup,3,FALSE)*Operations!$G37^0.5-VLOOKUP(Operations!$D37,ImpDepLookup,4,FALSE)*(Operations!$G37*(Operations!$G37*Operations!$H37/Operations!$I37)^0.5))^2)) -> 21401.12779 | O37: =IF(Operations!$C37="",0,(((Operations!$G37+1)*Operations!$H37/Operations!$I37/1000)^VLOOKUP(Operations!$C37,ImpRepairFac[],4,FALSE)-(Operations!$G37*Operations!$H37/Operations!$I37/1000)^VLOOKUP(Operations!$C37,ImpRepairFac[],4,FALSE))*Operations!$N37*VLOOKUP(Operations!$C37,ImpRepairFac[],3,FALSE)/Operations!$H37) -> 0.190232247 | P37: =IF(Operations!$N37=0,0,Operations!$N37*(VLOOKUP(Operations!$D37,ImpDepLookup,2,FALSE)-VLOOKUP(Operations!$D37,ImpDepLookup,3,FALSE)*Operations!$G37^0.5-VLOOKUP(Operations!$D37,ImpDepLookup,4,FALSE)*(Operations!$G37*Operations!$H37/Operations!$I37)^0.5)^2) -> 7500 | Q37: =IF(Operations!$N37=0,0,Operations!$N37*(VLOOKUP(Operations!$D37,ImpDepLookup,2,FALSE)-VLOOKUP(Operations!$D37,ImpDepLookup,3,FALSE)*(Operations!$G37+1)^0.5-VLOOKUP(Operations!$D37,ImpDepLookup,4,FALSE)*(Operations!$G37*Operations!$H37/Operations!$I37)^0.5)^2) -> 7072.171032 | R37: =IF(Operations!$N37=0,0,IF(Operations!$I37*Operations!$H37=0,0,(Operations!$P37-Operations!$Q37)/(Operations!$H37))) -> 0.164549603 | S37: =IF(Operations!$H37=0,0,Operations!$P37*'General Variables'!$B$9/Operations!$H37) -> 0.05769230769 | T37: =IF(Operations!$H37=0,0,Operations!$P37*'General Variables'!$B$10/Operations!$H37) -> 0.08653846154 | U37: =SUM(Table3[[#This Row],[Depreciation per Unit]:[Opportunity Cost per Unit]]) -> 0.3087803723 | W37: Hand move lateral | X37: See Table 5-5* | Y37: 0.02 | Z37: 1
A38: Pivot D 125' Lift | B38: acre-inch | C38: Center Pivot | D38: Pivots | E38: 70000 | G38: 10 | H38: =130*20 -> 2600 | I38: 1.8 | J38: =1.5/24 -> 0.0625 | K38: Diesel Pump | L38: 3.34 | N38: =IF(Operations!$E38>1,Operations!$E38,IF(Operations!$D38=0,0,Operations!$F38/(VLOOKUP(Operations!$D38,ImpDepLookup,2,FALSE)-VLOOKUP(Operations!$D38,ImpDepLookup,3,FALSE)*Operations!$G38^0.5-VLOOKUP(Operations!$D38,ImpDepLookup,4,FALSE)*(Operations!$G38*(Operations!$G38*Operations!$H38/Operations!$I38)^0.5))^2)) -> 70000 | O38: =IF(Operations!$C38="",0,(((Operations!$G38+1)*Operations!$H38/Operations!$I38/1000)^VLOOKUP(Operations!$C38,ImpRepairFac[],4,FALSE)-(Operations!$G38*Operations!$H38/Operations!$I38/1000)^VLOOKUP(Operations!$C38,ImpRepairFac[],4,FALSE))*Operations!$N38*VLOOKUP(Operations!$C38,ImpRepairFac[],3,FALSE)/Operations!$H38) -> 1.613888889 | P38: =IF(Operations!$N38=0,0,Operations!$N38*(VLOOKUP(Operations!$D38,ImpDepLookup,2,FALSE)-VLOOKUP(Operations!$D38,ImpDepLookup,3,FALSE)*Operations!$G38^0.5-VLOOKUP(Operations!$D38,ImpDepLookup,4,FALSE)*(Operations!$G38*Operations!$H38/Operations!$I38)^0.5)^2) -> 20650.79331 | Q38: =IF(Operations!$N38=0,0,Operations!$N38*(VLOOKUP(Operations!$D38,ImpDepLookup,2,FALSE)-VLOOKUP(Operations!$D38,ImpDepLookup,3,FALSE)*(Operations!$G38+1)^0.5-VLOOKUP(Operations!$D38,ImpDepLookup,4,FALSE)*(Operations!$G38*Operations!$H38/Operations!$I38)^0.5)^2) -> 19379.9346 | R38: =IF(Operations!$N38=0,0,IF(Operations!$I38*Operations!$H38=0,0,(Operations!$P38-Operations!$Q38)/(Operations!$H38))) -> 0.4887918124 | S38: =IF(Operations!$H38=0,0,Operations!$P38*'General Variables'!$B$9/Operations!$H38) -> 0.1588522563 | T38: =IF(Operations!$H38=0,0,Operations!$P38*'General Variables'!$B$10/Operations!$H38) -> 0.2382783844 | U38: =SUM(Table3[[#This Row],[Depreciation per Unit]:[Opportunity Cost per Unit]]) -> 0.885922453 | W38: End tow lateral | X38: See Table 5-5* | Y38: 0.03 | Z38: 1
A39: Pivot D 125' Lift w/fertigation | B39: acre-inch | C39: Center Pivot | D39: Pivots | E39: 75000 | G39: 10 | H39: =130*20 -> 2600 | I39: 1.8 | J39: =2/24 -> 0.08333333333 | K39: Diesel Pump | L39: 3.34 | N39: =IF(Operations!$E39>1,Operations!$E39,IF(Operations!$D39=0,0,Operations!$F39/(VLOOKUP(Operations!$D39,ImpDepLookup,2,FALSE)-VLOOKUP(Operations!$D39,ImpDepLookup,3,FALSE)*Operations!$G39^0.5-VLOOKUP(Operations!$D39,ImpDepLookup,4,FALSE)*(Operations!$G39*(Operations!$G39*Operations!$H39/Operations!$I39)^0.5))^2)) -> 75000 | O39: =IF(Operations!$C39="",0,(((Operations!$G39+1)*Operations!$H39/Operations!$I39/1000)^VLOOKUP(Operations!$C39,ImpRepairFac[],4,FALSE)-(Operations!$G39*Operations!$H39/Operations!$I39/1000)^VLOOKUP(Operations!$C39,ImpRepairFac[],4,FALSE))*Operations!$N39*VLOOKUP(Operations!$C39,ImpRepairFac[],3,FALSE)/Operations!$H39) -> 1.729166667 | P39: =IF(Operations!$N39=0,0,Operations!$N39*(VLOOKUP(Operations!$D39,ImpDepLookup,2,FALSE)-VLOOKUP(Operations!$D39,ImpDepLookup,3,FALSE)*Operations!$G39^0.5-VLOOKUP(Operations!$D39,ImpDepLookup,4,FALSE)*(Operations!$G39*Operations!$H39/Operations!$I39)^0.5)^2) -> 22125.84998 | Q39: =IF(Operations!$N39=0,0,Operations!$N39*(VLOOKUP(Operations!$D39,ImpDepLookup,2,FALSE)-VLOOKUP(Operations!$D39,ImpDepLookup,3,FALSE)*(Operations!$G39+1)^0.5-VLOOKUP(Operations!$D39,ImpDepLookup,4,FALSE)*(Operations!$G39*Operations!$H39/Operations!$I39)^0.5)^2) -> 20764.21564 | R39: =IF(Operations!$N39=0,0,IF(Operations!$I39*Operations!$H39=0,0,(Operations!$P39-Operations!$Q39)/(Operations!$H39))) -> 0.5237055132 | S39: =IF(Operations!$H39=0,0,Operations!$P39*'General Variables'!$B$9/Operations!$H39) -> 0.170198846 | T39: =IF(Operations!$H39=0,0,Operations!$P39*'General Variables'!$B$10/Operations!$H39) -> 0.255298269 | U39: =SUM(Table3[[#This Row],[Depreciation per Unit]:[Opportunity Cost per Unit]]) -> 0.9492026282 | W39: Side roll lateral | X39: See Table 5-5* | Y39: 0.02 | Z39: 1
A40: Pivot E 125' Lift | B40: acre-inch | C40: Center Pivot | D40: Pivots | E40: 70000 | G40: 10 | H40: =130*20 -> 2600 | I40: 1.8 | J40: =1.5/24 -> 0.0625 | K40: Electric Pump | M40: 47.78 | N40: =IF(Operations!$E40>1,Operations!$E40,IF(Operations!$D40=0,0,Operations!$F40/(VLOOKUP(Operations!$D40,ImpDepLookup,2,FALSE)-VLOOKUP(Operations!$D40,ImpDepLookup,3,FALSE)*Operations!$G40^0.5-VLOOKUP(Operations!$D40,ImpDepLookup,4,FALSE)*(Operations!$G40*(Operations!$G40*Operations!$H40/Operations!$I40)^0.5))^2)) -> 70000 | O40: =IF(Operations!$C40="",0,(((Operations!$G40+1)*Operations!$H40/Operations!$I40/1000)^VLOOKUP(Operations!$C40,ImpRepairFac[],4,FALSE)-(Operations!$G40*Operations!$H40/Operations!$I40/1000)^VLOOKUP(Operations!$C40,ImpRepairFac[],4,FALSE))*Operations!$N40*VLOOKUP(Operations!$C40,ImpRepairFac[],3,FALSE)/Operations!$H40) -> 1.613888889 | P40: =IF(Operations!$N40=0,0,Operations!$N40*(VLOOKUP(Operations!$D40,ImpDepLookup,2,FALSE)-VLOOKUP(Operations!$D40,ImpDepLookup,3,FALSE)*Operations!$G40^0.5-VLOOKUP(Operations!$D40,ImpDepLookup,4,FALSE)*(Operations!$G40*Operations!$H40/Operations!$I40)^0.5)^2) -> 20650.79331 | Q40: =IF(Operations!$N40=0,0,Operations!$N40*(VLOOKUP(Operations!$D40,ImpDepLookup,2,FALSE)-VLOOKUP(Operations!$D40,ImpDepLookup,3,FALSE)*(Operations!$G40+1)^0.5-VLOOKUP(Operations!$D40,ImpDepLookup,4,FALSE)*(Operations!$G40*Operations!$H40/Operations!$I40)^0.5)^2) -> 19379.9346 | R40: =IF(Operations!$N40=0,0,IF(Operations!$I40*Operations!$H40=0,0,(Operations!$P40-Operations!$Q40)/(Operations!$H40))) -> 0.4887918124 | S40: =IF(Operations!$H40=0,0,Operations!$P40*'General Variables'!$B$9/Operations!$H40) -> 0.1588522563 | T40: =IF(Operations!$H40=0,0,Operations!$P40*'General Variables'!$B$10/Operations!$H40) -> 0.2382783844 | U40: =SUM(Table3[[#This Row],[Depreciation per Unit]:[Opportunity Cost per Unit]]) -> 0.885922453 | W40: Lateral | X40: See Table 5-5* | Y40: 0.06 | Z40: 1
A41: Pivot E 125' Lift w/fertigation | B41: acre-inch | C41: Center Pivot | D41: Pivots | E41: 75000 | G41: 10 | H41: =130*20 -> 2600 | I41: 1.8 | J41: =2/24 -> 0.08333333333 | K41: Electric Pump | M41: 47.78 | N41: =IF(Operations!$E41>1,Operations!$E41,IF(Operations!$D41=0,0,Operations!$F41/(VLOOKUP(Operations!$D41,ImpDepLookup,2,FALSE)-VLOOKUP(Operations!$D41,ImpDepLookup,3,FALSE)*Operations!$G41^0.5-VLOOKUP(Operations!$D41,ImpDepLookup,4,FALSE)*(Operations!$G41*(Operations!$G41*Operations!$H41/Operations!$I41)^0.5))^2)) -> 75000 | O41: =IF(Operations!$C41="",0,(((Operations!$G41+1)*Operations!$H41/Operations!$I41/1000)^VLOOKUP(Operations!$C41,ImpRepairFac[],4,FALSE)-(Operations!$G41*Operations!$H41/Operations!$I41/1000)^VLOOKUP(Operations!$C41,ImpRepairFac[],4,FALSE))*Operations!$N41*VLOOKUP(Operations!$C41,ImpRepairFac[],3,FALSE)/Operations!$H41) -> 1.729166667 | P41: =IF(Operations!$N41=0,0,Operations!$N41*(VLOOKUP(Operations!$D41,ImpDepLookup,2,FALSE)-VLOOKUP(Operations!$D41,ImpDepLookup,3,FALSE)*Operations!$G41^0.5-VLOOKUP(Operations!$D41,ImpDepLookup,4,FALSE)*(Operations!$G41*Operations!$H41/Operations!$I41)^0.5)^2) -> 22125.84998 | Q41: =IF(Operations!$N41=0,0,Operations!$N41*(VLOOKUP(Operations!$D41,ImpDepLookup,2,FALSE)-VLOOKUP(Operations!$D41,ImpDepLookup,3,FALSE)*(Operations!$G41+1)^0.5-VLOOKUP(Operations!$D41,ImpDepLookup,4,FALSE)*(Operations!$G41*Operations!$H41/Operations!$I41)^0.5)^2) -> 20764.21564 | R41: =IF(Operations!$N41=0,0,IF(Operations!$I41*Operations!$H41=0,0,(Operations!$P41-Operations!$Q41)/(Operations!$H41))) -> 0.5237055132 | S41: =IF(Operations!$H41=0,0,Operations!$P41*'General Variables'!$B$9/Operations!$H41) -> 0.170198846 | T41: =IF(Operations!$H41=0,0,Operations!$P41*'General Variables'!$B$10/Operations!$H41) -> 0.255298269 | U41: =SUM(Table3[[#This Row],[Depreciation per Unit]:[Opportunity Cost per Unit]]) -> 0.9492026282 | W41: Traveling gun | X41: See Table 5-5* | Y41: 0.06 | Z41: 1
A42: Plant | B42: acre | C42: Planter - Row crop | D42: Planters | E42: 72828 | G42: 5 | H42: 1000 | I42: 10 | J42: 1.2 | K42: Medium Tractor | L42: 2.73 | N42: =IF(Operations!$E42>1,Operations!$E42,IF(Operations!$D42=0,0,Operations!$F42/(VLOOKUP(Operations!$D42,ImpDepLookup,2,FALSE)-VLOOKUP(Operations!$D42,ImpDepLookup,3,FALSE)*Operations!$G42^0.5-VLOOKUP(Operations!$D42,ImpDepLookup,4,FALSE)*(Operations!$G42*(Operations!$G42*Operations!$H42/Operations!$I42)^0.5))^2)) -> 72828 | O42: =IF(Operations!$C42="",0,(((Operations!$G42+1)*Operations!$H42/Operations!$I42/1000)^VLOOKUP(Operations!$C42,ImpRepairFac[],4,FALSE)-(Operations!$G42*Operations!$H42/Operations!$I42/1000)^VLOOKUP(Operations!$C42,ImpRepairFac[],4,FALSE))*Operations!$N42*VLOOKUP(Operations!$C42,ImpRepairFac[],3,FALSE)/Operations!$H42) -> 2.535901957 | P42: =IF(Operations!$N42=0,0,Operations!$N42*(VLOOKUP(Operations!$D42,ImpDepLookup,2,FALSE)-VLOOKUP(Operations!$D42,ImpDepLookup,3,FALSE)*Operations!$G42^0.5-VLOOKUP(Operations!$D42,ImpDepLookup,4,FALSE)*(Operations!$G42*Operations!$H42/Operations!$I42)^0.5)^2) -> 36566.58254 | Q42: =IF(Operations!$N42=0,0,Operations!$N42*(VLOOKUP(Operations!$D42,ImpDepLookup,2,FALSE)-VLOOKUP(Operations!$D42,ImpDepLookup,3,FALSE)*(Operations!$G42+1)^0.5-VLOOKUP(Operations!$D42,ImpDepLookup,4,FALSE)*(Operations!$G42*Operations!$H42/Operations!$I42)^0.5)^2) -> 34868.63987 | R42: =IF(Operations!$N42=0,0,IF(Operations!$I42*Operations!$H42=0,0,(Operations!$P42-Operations!$Q42)/(Operations!$H42))) -> 1.697942676 | S42: =IF(Operations!$H42=0,0,Operations!$P42*'General Variables'!$B$9/Operations!$H42) -> 0.7313316509 | T42: =IF(Operations!$H42=0,0,Operations!$P42*'General Variables'!$B$10/Operations!$H42) -> 1.096997476 | U42: =SUM(Table3[[#This Row],[Depreciation per Unit]:[Opportunity Cost per Unit]]) -> 3.526271803 | W42: Center Pivot | X42: See Table 5-5* | Y42: 0.0415 | Z42: 1
A43: Plant Narrow Row | B43: acre | C43: Planter - Row crop | D43: Planters | E43: 72828 | G43: 5 | H43: 1000 | I43: 10 | J43: 1.2 | K43: Medium Tractor | L43: 2.580373832 | N43: =IF(Operations!$E43>1,Operations!$E43,IF(Operations!$D43=0,0,Operations!$F43/(VLOOKUP(Operations!$D43,ImpDepLookup,2,FALSE)-VLOOKUP(Operations!$D43,ImpDepLookup,3,FALSE)*Operations!$G43^0.5-VLOOKUP(Operations!$D43,ImpDepLookup,4,FALSE)*(Operations!$G43*(Operations!$G43*Operations!$H43/Operations!$I43)^0.5))^2)) -> 72828 | O43: =IF(Operations!$C43="",0,(((Operations!$G43+1)*Operations!$H43/Operations!$I43/1000)^VLOOKUP(Operations!$C43,ImpRepairFac[],4,FALSE)-(Operations!$G43*Operations!$H43/Operations!$I43/1000)^VLOOKUP(Operations!$C43,ImpRepairFac[],4,FALSE))*Operations!$N43*VLOOKUP(Operations!$C43,ImpRepairFac[],3,FALSE)/Operations!$H43) -> 2.535901957 | P43: =IF(Operations!$N43=0,0,Operations!$N43*(VLOOKUP(Operations!$D43,ImpDepLookup,2,FALSE)-VLOOKUP(Operations!$D43,ImpDepLookup,3,FALSE)*Operations!$G43^0.5-VLOOKUP(Operations!$D43,ImpDepLookup,4,FALSE)*(Operations!$G43*Operations!$H43/Operations!$I43)^0.5)^2) -> 36566.58254 | Q43: =IF(Operations!$N43=0,0,Operations!$N43*(VLOOKUP(Operations!$D43,ImpDepLookup,2,FALSE)-VLOOKUP(Operations!$D43,ImpDepLookup,3,FALSE)*(Operations!$G43+1)^0.5-VLOOKUP(Operations!$D43,ImpDepLookup,4,FALSE)*(Operations!$G43*Operations!$H43/Operations!$I43)^0.5)^2) -> 34868.63987 | R43: =IF(Operations!$N43=0,0,IF(Operations!$I43*Operations!$H43=0,0,(Operations!$P43-Operations!$Q43)/(Operations!$H43))) -> 1.697942676 | S43: =IF(Operations!$H43=0,0,Operations!$P43*'General Variables'!$B$9/Operations!$H43) -> 0.7313316509 | T43: =IF(Operations!$H43=0,0,Operations!$P43*'General Variables'!$B$10/Operations!$H43) -> 1.096997476 | U43: =SUM(Table3[[#This Row],[Depreciation per Unit]:[Opportunity Cost per Unit]]) -> 3.526271803 | W43: Center Pivot w/corner | X43: See Table 5-5* | Y43: 0.06 | Z43: 1
A44: Plant No-Till | B44: acre | C44: Planter - Row crop | D44: Planters | E44: 126703 | G44: 5 | H44: 1000 | I44: 10 | J44: 1.2 | K44: Medium Tractor | L44: 3.38 | N44: =IF(Operations!$E44>1,Operations!$E44,IF(Operations!$D44=0,0,Operations!$F44/(VLOOKUP(Operations!$D44,ImpDepLookup,2,FALSE)-VLOOKUP(Operations!$D44,ImpDepLookup,3,FALSE)*Operations!$G44^0.5-VLOOKUP(Operations!$D44,ImpDepLookup,4,FALSE)*(Operations!$G44*(Operations!$G44*Operations!$H44/Operations!$I44)^0.5))^2)) -> 126703 | O44: =IF(Operations!$C44="",0,(((Operations!$G44+1)*Operations!$H44/Operations!$I44/1000)^VLOOKUP(Operations!$C44,ImpRepairFac[],4,FALSE)-(Operations!$G44*Operations!$H44/Operations!$I44/1000)^VLOOKUP(Operations!$C44,ImpRepairFac[],4,FALSE))*Operations!$N44*VLOOKUP(Operations!$C44,ImpRepairFac[],3,FALSE)/Operations!$H44) -> 4.411852387 | P44: =IF(Operations!$N44=0,0,Operations!$N44*(VLOOKUP(Operations!$D44,ImpDepLookup,2,FALSE)-VLOOKUP(Operations!$D44,ImpDepLookup,3,FALSE)*Operations!$G44^0.5-VLOOKUP(Operations!$D44,ImpDepLookup,4,FALSE)*(Operations!$G44*Operations!$H44/Operations!$I44)^0.5)^2) -> 63616.9565 | Q44: =IF(Operations!$N44=0,0,Operations!$N44*(VLOOKUP(Operations!$D44,ImpDepLookup,2,FALSE)-VLOOKUP(Operations!$D44,ImpDepLookup,3,FALSE)*(Operations!$G44+1)^0.5-VLOOKUP(Operations!$D44,ImpDepLookup,4,FALSE)*(Operations!$G44*Operations!$H44/Operations!$I44)^0.5)^2) -> 60662.94937 | R44: =IF(Operations!$N44=0,0,IF(Operations!$I44*Operations!$H44=0,0,(Operations!$P44-Operations!$Q44)/(Operations!$H44))) -> 2.954007125 | S44: =IF(Operations!$H44=0,0,Operations!$P44*'General Variables'!$B$9/Operations!$H44) -> 1.27233913 | T44: =IF(Operations!$H44=0,0,Operations!$P44*'General Variables'!$B$10/Operations!$H44) -> 1.908508695 | U44: =SUM(Table3[[#This Row],[Depreciation per Unit]:[Opportunity Cost per Unit]]) -> 6.13485495 | W44: Linear move with ditch | X44: See Table 5-5* | Y44: 0.06 | Z44: 1
A45: Plow | B45: acre | C45: Plow - Moldboard | D45: Plows | E45: 15874 | G45: 5 | H45: 1000 | I45: 7.5 | J45: 1.1 | K45: Large Tractor | L45: 6 | N45: =IF(Operations!$E45>1,Operations!$E45,IF(Operations!$D45=0,0,Operations!$F45/(VLOOKUP(Operations!$D45,ImpDepLookup,2,FALSE)-VLOOKUP(Operations!$D45,ImpDepLookup,3,FALSE)*Operations!$G45^0.5-VLOOKUP(Operations!$D45,ImpDepLookup,4,FALSE)*(Operations!$G45*(Operations!$G45*Operations!$H45/Operations!$I45)^0.5))^2)) -> 15874 | O45: =IF(Operations!$C45="",0,(((Operations!$G45+1)*Operations!$H45/Operations!$I45/1000)^VLOOKUP(Operations!$C45,ImpRepairFac[],4,FALSE)-(Operations!$G45*Operations!$H45/Operations!$I45/1000)^VLOOKUP(Operations!$C45,ImpRepairFac[],4,FALSE))*Operations!$N45*VLOOKUP(Operations!$C45,ImpRepairFac[],3,FALSE)/Operations!$H45) -> 0.8618683427 | P45: =IF(Operations!$N45=0,0,Operations!$N45*(VLOOKUP(Operations!$D45,ImpDepLookup,2,FALSE)-VLOOKUP(Operations!$D45,ImpDepLookup,3,FALSE)*Operations!$G45^0.5-VLOOKUP(Operations!$D45,ImpDepLookup,4,FALSE)*(Operations!$G45*Operations!$H45/Operations!$I45)^0.5)^2) -> 6180.172781 | Q45: =IF(Operations!$N45=0,0,Operations!$N45*(VLOOKUP(Operations!$D45,ImpDepLookup,2,FALSE)-VLOOKUP(Operations!$D45,ImpDepLookup,3,FALSE)*(Operations!$G45+1)^0.5-VLOOKUP(Operations!$D45,ImpDepLookup,4,FALSE)*(Operations!$G45*Operations!$H45/Operations!$I45)^0.5)^2) -> 5966.436723 | R45: =IF(Operations!$N45=0,0,IF(Operations!$I45*Operations!$H45=0,0,(Operations!$P45-Operations!$Q45)/(Operations!$H45))) -> 0.2137360572 | S45: =IF(Operations!$H45=0,0,Operations!$P45*'General Variables'!$B$9/Operations!$H45) -> 0.1236034556 | T45: =IF(Operations!$H45=0,0,Operations!$P45*'General Variables'!$B$10/Operations!$H45) -> 0.1854051834 | U45: =SUM(Table3[[#This Row],[Depreciation per Unit]:[Opportunity Cost per Unit]]) -> 0.5227446963 | W45: Linear move with pipe | X45: See Table 5-5* | Y45: 0.06 | Z45: 1
A46: Ridge Cultivate/Ditch | B46: acre | C46: Cultivator - Row crop | D46: Disks and all other tillage equipment | E46: 30000 | F46: 4500 | G46: 5 | H46: 1000 | I46: 12 | J46: 1.1 | K46: Medium Tractor | L46: 5.332019704 | N46: =IF(Operations!$E46>1,Operations!$E46,IF(Operations!$D46=0,0,Operations!$F46/(VLOOKUP(Operations!$D46,ImpDepLookup,2,FALSE)-VLOOKUP(Operations!$D46,ImpDepLookup,3,FALSE)*Operations!$G46^0.5-VLOOKUP(Operations!$D46,ImpDepLookup,4,FALSE)*(Operations!$G46*(Operations!$G46*Operations!$H46/Operations!$I46)^0.5))^2)) -> 30000 | O46: =IF(Operations!$C46="",0,(((Operations!$G46+1)*Operations!$H46/Operations!$I46/1000)^VLOOKUP(Operations!$C46,ImpRepairFac[],4,FALSE)-(Operations!$G46*Operations!$H46/Operations!$I46/1000)^VLOOKUP(Operations!$C46,ImpRepairFac[],4,FALSE))*Operations!$N46*VLOOKUP(Operations!$C46,ImpRepairFac[],3,FALSE)/Operations!$H46) -> 0.3667524074 | P46: =IF(Operations!$N46=0,0,Operations!$N46*(VLOOKUP(Operations!$D46,ImpDepLookup,2,FALSE)-VLOOKUP(Operations!$D46,ImpDepLookup,3,FALSE)*Operations!$G46^0.5-VLOOKUP(Operations!$D46,ImpDepLookup,4,FALSE)*(Operations!$G46*Operations!$H46/Operations!$I46)^0.5)^2) -> 12482.00865 | Q46: =IF(Operations!$N46=0,0,Operations!$N46*(VLOOKUP(Operations!$D46,ImpDepLookup,2,FALSE)-VLOOKUP(Operations!$D46,ImpDepLookup,3,FALSE)*(Operations!$G46+1)^0.5-VLOOKUP(Operations!$D46,ImpDepLookup,4,FALSE)*(Operations!$G46*Operations!$H46/Operations!$I46)^0.5)^2) -> 11589.96062 | R46: =IF(Operations!$N46=0,0,IF(Operations!$I46*Operations!$H46=0,0,(Operations!$P46-Operations!$Q46)/(Operations!$H46))) -> 0.8920480329 | S46: =IF(Operations!$H46=0,0,Operations!$P46*'General Variables'!$B$9/Operations!$H46) -> 0.249640173 | T46: =IF(Operations!$H46=0,0,Operations!$P46*'General Variables'!$B$10/Operations!$H46) -> 0.3744602595 | U46: =SUM(Table3[[#This Row],[Depreciation per Unit]:[Opportunity Cost per Unit]]) -> 1.516148466 | W46: Portable solid set | X46: See Table 5-5* | Y46: 0.02 | Z46: 1
A47: Ridge Cultivation | B47: acre | C47: Cultivator - Row crop | D47: Disks and all other tillage equipment | E47: 30000 | G47: 5 | H47: 1500 | I47: 10 | J47: 1 | K47: Medium Tractor | L47: 5.332019704 | N47: =IF(Operations!$E47>1,Operations!$E47,IF(Operations!$D47=0,0,Operations!$F47/(VLOOKUP(Operations!$D47,ImpDepLookup,2,FALSE)-VLOOKUP(Operations!$D47,ImpDepLookup,3,FALSE)*Operations!$G47^0.5-VLOOKUP(Operations!$D47,ImpDepLookup,4,FALSE)*(Operations!$G47*(Operations!$G47*Operations!$H47/Operations!$I47)^0.5))^2)) -> 30000 | O47: =IF(Operations!$C47="",0,(((Operations!$G47+1)*Operations!$H47/Operations!$I47/1000)^VLOOKUP(Operations!$C47,ImpRepairFac[],4,FALSE)-(Operations!$G47*Operations!$H47/Operations!$I47/1000)^VLOOKUP(Operations!$C47,ImpRepairFac[],4,FALSE))*Operations!$N47*VLOOKUP(Operations!$C47,ImpRepairFac[],3,FALSE)/Operations!$H47) -> 0.8910072246 | P47: =IF(Operations!$N47=0,0,Operations!$N47*(VLOOKUP(Operations!$D47,ImpDepLookup,2,FALSE)-VLOOKUP(Operations!$D47,ImpDepLookup,3,FALSE)*Operations!$G47^0.5-VLOOKUP(Operations!$D47,ImpDepLookup,4,FALSE)*(Operations!$G47*Operations!$H47/Operations!$I47)^0.5)^2) -> 12482.00865 | Q47: =IF(Operations!$N47=0,0,Operations!$N47*(VLOOKUP(Operations!$D47,ImpDepLookup,2,FALSE)-VLOOKUP(Operations!$D47,ImpDepLookup,3,FALSE)*(Operations!$G47+1)^0.5-VLOOKUP(Operations!$D47,ImpDepLookup,4,FALSE)*(Operations!$G47*Operations!$H47/Operations!$I47)^0.5)^2) -> 11589.96062 | R47: =IF(Operations!$N47=0,0,IF(Operations!$I47*Operations!$H47=0,0,(Operations!$P47-Operations!$Q47)/(Operations!$H47))) -> 0.5946986886 | S47: =IF(Operations!$H47=0,0,Operations!$P47*'General Variables'!$B$9/Operations!$H47) -> 0.166426782 | T47: =IF(Operations!$H47=0,0,Operations!$P47*'General Variables'!$B$10/Operations!$H47) -> 0.249640173 | U47: =SUM(Table3[[#This Row],[Depreciation per Unit]:[Opportunity Cost per Unit]]) -> 1.010765644 | W47: Permanent solid set | X47: See Table 5-5* | Y47: 0.01 | Z47: 1
A48: Ridge Plant and Band Herbicide | B48: acre | C48: Planter - Row crop | D48: Disks and all other tillage equipment | E48: 126703 | G48: 5 | H48: 1500 | I48: 10 | J48: 1.2 | K48: Medium Tractor | L48: 3.41 | N48: =IF(Operations!$E48>1,Operations!$E48,IF(Operations!$D48=0,0,Operations!$F48/(VLOOKUP(Operations!$D48,ImpDepLookup,2,FALSE)-VLOOKUP(Operations!$D48,ImpDepLookup,3,FALSE)*Operations!$G48^0.5-VLOOKUP(Operations!$D48,ImpDepLookup,4,FALSE)*(Operations!$G48*(Operations!$G48*Operations!$H48/Operations!$I48)^0.5))^2)) -> 126703 | O48: =IF(Operations!$C48="",0,(((Operations!$G48+1)*Operations!$H48/Operations!$I48/1000)^VLOOKUP(Operations!$C48,ImpRepairFac[],4,FALSE)-(Operations!$G48*Operations!$H48/Operations!$I48/1000)^VLOOKUP(Operations!$C48,ImpRepairFac[],4,FALSE))*Operations!$N48*VLOOKUP(Operations!$C48,ImpRepairFac[],3,FALSE)/Operations!$H48) -> 6.891620564 | P48: =IF(Operations!$N48=0,0,Operations!$N48*(VLOOKUP(Operations!$D48,ImpDepLookup,2,FALSE)-VLOOKUP(Operations!$D48,ImpDepLookup,3,FALSE)*Operations!$G48^0.5-VLOOKUP(Operations!$D48,ImpDepLookup,4,FALSE)*(Operations!$G48*Operations!$H48/Operations!$I48)^0.5)^2) -> 52716.93141 | Q48: =IF(Operations!$N48=0,0,Operations!$N48*(VLOOKUP(Operations!$D48,ImpDepLookup,2,FALSE)-VLOOKUP(Operations!$D48,ImpDepLookup,3,FALSE)*(Operations!$G48+1)^0.5-VLOOKUP(Operations!$D48,ImpDepLookup,4,FALSE)*(Operations!$G48*Operations!$H48/Operations!$I48)^0.5)^2) -> 48949.42601 | R48: =IF(Operations!$N48=0,0,IF(Operations!$I48*Operations!$H48=0,0,(Operations!$P48-Operations!$Q48)/(Operations!$H48))) -> 2.511670265 | S48: =IF(Operations!$H48=0,0,Operations!$P48*'General Variables'!$B$9/Operations!$H48) -> 0.7028924187 | T48: =IF(Operations!$H48=0,0,Operations!$P48*'General Variables'!$B$10/Operations!$H48) -> 1.054338628 | U48: =SUM(Table3[[#This Row],[Depreciation per Unit]:[Opportunity Cost per Unit]]) -> 4.268901312 | W48: Orchard hose-pull | X48: See Table 5-5* | Y48: 0.03 | Z48: 1
A49: Rod Weeder | B49: acre | C49: Diskharrow - Tandem | D49: Disks and all other tillage equipment | F49: 7500 | G49: 5 | H49: 1000 | I49: 13.2 | J49: 1 | K49: Medium Tractor | L49: 5.346 | N49: =IF(Operations!$E49>1,Operations!$E49,IF(Operations!$D49=0,0,Operations!$F49/(VLOOKUP(Operations!$D49,ImpDepLookup,2,FALSE)-VLOOKUP(Operations!$D49,ImpDepLookup,3,FALSE)*Operations!$G49^0.5-VLOOKUP(Operations!$D49,ImpDepLookup,4,FALSE)*(Operations!$G49*(Operations!$G49*Operations!$H49/Operations!$I49)^0.5))^2)) -> 18025.94488 | O49: =IF(Operations!$C49="",0,(((Operations!$G49+1)*Operations!$H49/Operations!$I49/1000)^VLOOKUP(Operations!$C49,ImpRepairFac[],4,FALSE)-(Operations!$G49*Operations!$H49/Operations!$I49/1000)^VLOOKUP(Operations!$C49,ImpRepairFac[],4,FALSE))*Operations!$N49*VLOOKUP(Operations!$C49,ImpRepairFac[],3,FALSE)/Operations!$H49) -> 0.2263455021 | P49: =IF(Operations!$N49=0,0,Operations!$N49*(VLOOKUP(Operations!$D49,ImpDepLookup,2,FALSE)-VLOOKUP(Operations!$D49,ImpDepLookup,3,FALSE)*Operations!$G49^0.5-VLOOKUP(Operations!$D49,ImpDepLookup,4,FALSE)*(Operations!$G49*Operations!$H49/Operations!$I49)^0.5)^2) -> 7500 | Q49: =IF(Operations!$N49=0,0,Operations!$N49*(VLOOKUP(Operations!$D49,ImpDepLookup,2,FALSE)-VLOOKUP(Operations!$D49,ImpDepLookup,3,FALSE)*(Operations!$G49+1)^0.5-VLOOKUP(Operations!$D49,ImpDepLookup,4,FALSE)*(Operations!$G49*Operations!$H49/Operations!$I49)^0.5)^2) -> 6963.999711 | R49: =IF(Operations!$N49=0,0,IF(Operations!$I49*Operations!$H49=0,0,(Operations!$P49-Operations!$Q49)/(Operations!$H49))) -> 0.5360002892 | S49: =IF(Operations!$H49=0,0,Operations!$P49*'General Variables'!$B$9/Operations!$H49) -> 0.15 | T49: =IF(Operations!$H49=0,0,Operations!$P49*'General Variables'!$B$10/Operations!$H49) -> 0.225 | U49: =SUM(Table3[[#This Row],[Depreciation per Unit]:[Opportunity Cost per Unit]]) -> 0.9110002892
A50: Rod Weeder & Fertilizer | B50: acre | C50: Diskharrow - Tandem | D50: Disks and all other tillage equipment | F50: 7500 | G50: 5 | H50: 1000 | I50: 13.2 | J50: 1.2 | K50: Medium Tractor | L50: 5.346 | N50: =IF(Operations!$E50>1,Operations!$E50,IF(Operations!$D50=0,0,Operations!$F50/(VLOOKUP(Operations!$D50,ImpDepLookup,2,FALSE)-VLOOKUP(Operations!$D50,ImpDepLookup,3,FALSE)*Operations!$G50^0.5-VLOOKUP(Operations!$D50,ImpDepLookup,4,FALSE)*(Operations!$G50*(Operations!$G50*Operations!$H50/Operations!$I50)^0.5))^2)) -> 18025.94488 | O50: =IF(Operations!$C50="",0,(((Operations!$G50+1)*Operations!$H50/Operations!$I50/1000)^VLOOKUP(Operations!$C50,ImpRepairFac[],4,FALSE)-(Operations!$G50*Operations!$H50/Operations!$I50/1000)^VLOOKUP(Operations!$C50,ImpRepairFac[],4,FALSE))*Operations!$N50*VLOOKUP(Operations!$C50,ImpRepairFac[],3,FALSE)/Operations!$H50) -> 0.2263455021 | P50: =IF(Operations!$N50=0,0,Operations!$N50*(VLOOKUP(Operations!$D50,ImpDepLookup,2,FALSE)-VLOOKUP(Operations!$D50,ImpDepLookup,3,FALSE)*Operations!$G50^0.5-VLOOKUP(Operations!$D50,ImpDepLookup,4,FALSE)*(Operations!$G50*Operations!$H50/Operations!$I50)^0.5)^2) -> 7500 | Q50: =IF(Operations!$N50=0,0,Operations!$N50*(VLOOKUP(Operations!$D50,ImpDepLookup,2,FALSE)-VLOOKUP(Operations!$D50,ImpDepLookup,3,FALSE)*(Operations!$G50+1)^0.5-VLOOKUP(Operations!$D50,ImpDepLookup,4,FALSE)*(Operations!$G50*Operations!$H50/Operations!$I50)^0.5)^2) -> 6963.999711 | R50: =IF(Operations!$N50=0,0,IF(Operations!$I50*Operations!$H50=0,0,(Operations!$P50-Operations!$Q50)/(Operations!$H50))) -> 0.5360002892 | S50: =IF(Operations!$H50=0,0,Operations!$P50*'General Variables'!$B$9/Operations!$H50) -> 0.15 | T50: =IF(Operations!$H50=0,0,Operations!$P50*'General Variables'!$B$10/Operations!$H50) -> 0.225 | U50: =SUM(Table3[[#This Row],[Depreciation per Unit]:[Opportunity Cost per Unit]]) -> 0.9110002892
A51: Roll | B51: acre | C51: Mulcher-packer | D51: Disks and all other tillage equipment | G51: 5 | H51: 300 | I51: 9 | J51: 1 | K51: Medium Tractor | L51: 5.458646617 | N51: =IF(Operations!$E51>1,Operations!$E51,IF(Operations!$D51=0,0,Operations!$F51/(VLOOKUP(Operations!$D51,ImpDepLookup,2,FALSE)-VLOOKUP(Operations!$D51,ImpDepLookup,3,FALSE)*Operations!$G51^0.5-VLOOKUP(Operations!$D51,ImpDepLookup,4,FALSE)*(Operations!$G51*(Operations!$G51*Operations!$H51/Operations!$I51)^0.5))^2)) -> 0 | O51: =IF(Operations!$C51="",0,(((Operations!$G51+1)*Operations!$H51/Operations!$I51/1000)^VLOOKUP(Operations!$C51,ImpRepairFac[],4,FALSE)-(Operations!$G51*Operations!$H51/Operations!$I51/1000)^VLOOKUP(Operations!$C51,ImpRepairFac[],4,FALSE))*Operations!$N51*VLOOKUP(Operations!$C51,ImpRepairFac[],3,FALSE)/Operations!$H51) -> 0 | P51: =IF(Operations!$N51=0,0,Operations!$N51*(VLOOKUP(Operations!$D51,ImpDepLookup,2,FALSE)-VLOOKUP(Operations!$D51,ImpDepLookup,3,FALSE)*Operations!$G51^0.5-VLOOKUP(Operations!$D51,ImpDepLookup,4,FALSE)*(Operations!$G51*Operations!$H51/Operations!$I51)^0.5)^2) -> 0 | Q51: =IF(Operations!$N51=0,0,Operations!$N51*(VLOOKUP(Operations!$D51,ImpDepLookup,2,FALSE)-VLOOKUP(Operations!$D51,ImpDepLookup,3,FALSE)*(Operations!$G51+1)^0.5-VLOOKUP(Operations!$D51,ImpDepLookup,4,FALSE)*(Operations!$G51*Operations!$H51/Operations!$I51)^0.5)^2) -> 0 | R51: =IF(Operations!$N51=0,0,IF(Operations!$I51*Operations!$H51=0,0,(Operations!$P51-Operations!$Q51)/(Operations!$H51))) -> 0 | S51: =IF(Operations!$H51=0,0,Operations!$P51*'General Variables'!$B$9/Operations!$H51) -> 0 | T51: =IF(Operations!$H51=0,0,Operations!$P51*'General Variables'!$B$10/Operations!$H51) -> 0 | U51: =SUM(Table3[[#This Row],[Depreciation per Unit]:[Opportunity Cost per Unit]]) -> 0
A52: Roller Harrow | B52: acre | C52: Mulcher-packer | D52: Disks and all other tillage equipment | E52: 30000 | G52: 5 | H52: 1000 | I52: 10 | J52: 1 | K52: Medium Tractor | L52: 5 | N52: =IF(Operations!$E52>1,Operations!$E52,IF(Operations!$D52=0,0,Operations!$F52/(VLOOKUP(Operations!$D52,ImpDepLookup,2,FALSE)-VLOOKUP(Operations!$D52,ImpDepLookup,3,FALSE)*Operations!$G52^0.5-VLOOKUP(Operations!$D52,ImpDepLookup,4,FALSE)*(Operations!$G52*(Operations!$G52*Operations!$H52/Operations!$I52)^0.5))^2)) -> 30000 | O52: =IF(Operations!$C52="",0,(((Operations!$G52+1)*Operations!$H52/Operations!$I52/1000)^VLOOKUP(Operations!$C52,ImpRepairFac[],4,FALSE)-(Operations!$G52*Operations!$H52/Operations!$I52/1000)^VLOOKUP(Operations!$C52,ImpRepairFac[],4,FALSE))*Operations!$N52*VLOOKUP(Operations!$C52,ImpRepairFac[],3,FALSE)/Operations!$H52) -> 0.521395786 | P52: =IF(Operations!$N52=0,0,Operations!$N52*(VLOOKUP(Operations!$D52,ImpDepLookup,2,FALSE)-VLOOKUP(Operations!$D52,ImpDepLookup,3,FALSE)*Operations!$G52^0.5-VLOOKUP(Operations!$D52,ImpDepLookup,4,FALSE)*(Operations!$G52*Operations!$H52/Operations!$I52)^0.5)^2) -> 12482.00865 | Q52: =IF(Operations!$N52=0,0,Operations!$N52*(VLOOKUP(Operations!$D52,ImpDepLookup,2,FALSE)-VLOOKUP(Operations!$D52,ImpDepLookup,3,FALSE)*(Operations!$G52+1)^0.5-VLOOKUP(Operations!$D52,ImpDepLookup,4,FALSE)*(Operations!$G52*Operations!$H52/Operations!$I52)^0.5)^2) -> 11589.96062 | R52: =IF(Operations!$N52=0,0,IF(Operations!$I52*Operations!$H52=0,0,(Operations!$P52-Operations!$Q52)/(Operations!$H52))) -> 0.8920480329 | S52: =IF(Operations!$H52=0,0,Operations!$P52*'General Variables'!$B$9/Operations!$H52) -> 0.249640173 | T52: =IF(Operations!$H52=0,0,Operations!$P52*'General Variables'!$B$10/Operations!$H52) -> 0.3744602595 | U52: =SUM(Table3[[#This Row],[Depreciation per Unit]:[Opportunity Cost per Unit]]) -> 1.516148466
A53: Rotary Hoe | B53: acre | C53: Rotary hoe | D53: Disks and all other tillage equipment | E53: 25000 | F53: 3000 | G53: 5 | H53: 1000 | I53: 14.66666667 | J53: 1.1 | K53: Medium Tractor | L53: 3.666666667 | N53: =IF(Operations!$E53>1,Operations!$E53,IF(Operations!$D53=0,0,Operations!$F53/(VLOOKUP(Operations!$D53,ImpDepLookup,2,FALSE)-VLOOKUP(Operations!$D53,ImpDepLookup,3,FALSE)*Operations!$G53^0.5-VLOOKUP(Operations!$D53,ImpDepLookup,4,FALSE)*(Operations!$G53*(Operations!$G53*Operations!$H53/Operations!$I53)^0.5))^2)) -> 25000 | O53: =IF(Operations!$C53="",0,(((Operations!$G53+1)*Operations!$H53/Operations!$I53/1000)^VLOOKUP(Operations!$C53,ImpRepairFac[],4,FALSE)-(Operations!$G53*Operations!$H53/Operations!$I53/1000)^VLOOKUP(Operations!$C53,ImpRepairFac[],4,FALSE))*Operations!$N53*VLOOKUP(Operations!$C53,ImpRepairFac[],3,FALSE)/Operations!$H53) -> 0.3706236475 | P53: =IF(Operations!$N53=0,0,Operations!$N53*(VLOOKUP(Operations!$D53,ImpDepLookup,2,FALSE)-VLOOKUP(Operations!$D53,ImpDepLookup,3,FALSE)*Operations!$G53^0.5-VLOOKUP(Operations!$D53,ImpDepLookup,4,FALSE)*(Operations!$G53*Operations!$H53/Operations!$I53)^0.5)^2) -> 10401.67388 | Q53: =IF(Operations!$N53=0,0,Operations!$N53*(VLOOKUP(Operations!$D53,ImpDepLookup,2,FALSE)-VLOOKUP(Operations!$D53,ImpDepLookup,3,FALSE)*(Operations!$G53+1)^0.5-VLOOKUP(Operations!$D53,ImpDepLookup,4,FALSE)*(Operations!$G53*Operations!$H53/Operations!$I53)^0.5)^2) -> 9658.300515 | R53: =IF(Operations!$N53=0,0,IF(Operations!$I53*Operations!$H53=0,0,(Operations!$P53-Operations!$Q53)/(Operations!$H53))) -> 0.7433733608 | S53: =IF(Operations!$H53=0,0,Operations!$P53*'General Variables'!$B$9/Operations!$H53) -> 0.2080334775 | T53: =IF(Operations!$H53=0,0,Operations!$P53*'General Variables'!$B$10/Operations!$H53) -> 0.3120502163 | U53: =SUM(Table3[[#This Row],[Depreciation per Unit]:[Opportunity Cost per Unit]]) -> 1.263457055
A54: Row Crop Cultivation | B54: acre | C54: Cultivator - Row crop | D54: Disks and all other tillage equipment | E54: 30000 | G54: 5 | H54: 1000 | I54: 11 | J54: 1.1 | K54: Medium Tractor | L54: 3.5 | N54: =IF(Operations!$E54>1,Operations!$E54,IF(Operations!$D54=0,0,Operations!$F54/(VLOOKUP(Operations!$D54,ImpDepLookup,2,FALSE)-VLOOKUP(Operations!$D54,ImpDepLookup,3,FALSE)*Operations!$G54^0.5-VLOOKUP(Operations!$D54,ImpDepLookup,4,FALSE)*(Operations!$G54*(Operations!$G54*Operations!$H54/Operations!$I54)^0.5))^2)) -> 30000 | O54: =IF(Operations!$C54="",0,(((Operations!$G54+1)*Operations!$H54/Operations!$I54/1000)^VLOOKUP(Operations!$C54,ImpRepairFac[],4,FALSE)-(Operations!$G54*Operations!$H54/Operations!$I54/1000)^VLOOKUP(Operations!$C54,ImpRepairFac[],4,FALSE))*Operations!$N54*VLOOKUP(Operations!$C54,ImpRepairFac[],3,FALSE)/Operations!$H54) -> 0.4441276453 | P54: =IF(Operations!$N54=0,0,Operations!$N54*(VLOOKUP(Operations!$D54,ImpDepLookup,2,FALSE)-VLOOKUP(Operations!$D54,ImpDepLookup,3,FALSE)*Operations!$G54^0.5-VLOOKUP(Operations!$D54,ImpDepLookup,4,FALSE)*(Operations!$G54*Operations!$H54/Operations!$I54)^0.5)^2) -> 12482.00865 | Q54: =IF(Operations!$N54=0,0,Operations!$N54*(VLOOKUP(Operations!$D54,ImpDepLookup,2,FALSE)-VLOOKUP(Operations!$D54,ImpDepLookup,3,FALSE)*(Operations!$G54+1)^0.5-VLOOKUP(Operations!$D54,ImpDepLookup,4,FALSE)*(Operations!$G54*Operations!$H54/Operations!$I54)^0.5)^2) -> 11589.96062 | R54: =IF(Operations!$N54=0,0,IF(Operations!$I54*Operations!$H54=0,0,(Operations!$P54-Operations!$Q54)/(Operations!$H54))) -> 0.8920480329 | S54: =IF(Operations!$H54=0,0,Operations!$P54*'General Variables'!$B$9/Operations!$H54) -> 0.249640173 | T54: =IF(Operations!$H54=0,0,Operations!$P54*'General Variables'!$B$10/Operations!$H54) -> 0.3744602595 | U54: =SUM(Table3[[#This Row],[Depreciation per Unit]:[Opportunity Cost per Unit]]) -> 1.516148466
A55: Seeder/Packer | B55: acre | C55: Drill - Grain | D55: Planters | E55: 62545 | G55: 5 | H55: 1000 | I55: 8 | J55: 1.2 | K55: Medium Tractor | L55: 4.293680297 | N55: =IF(Operations!$E55>1,Operations!$E55,IF(Operations!$D55=0,0,Operations!$F55/(VLOOKUP(Operations!$D55,ImpDepLookup,2,FALSE)-VLOOKUP(Operations!$D55,ImpDepLookup,3,FALSE)*Operations!$G55^0.5-VLOOKUP(Operations!$D55,ImpDepLookup,4,FALSE)*(Operations!$G55*(Operations!$G55*Operations!$H55/Operations!$I55)^0.5))^2)) -> 62545 | O55: =IF(Operations!$C55="",0,(((Operations!$G55+1)*Operations!$H55/Operations!$I55/1000)^VLOOKUP(Operations!$C55,ImpRepairFac[],4,FALSE)-(Operations!$G55*Operations!$H55/Operations!$I55/1000)^VLOOKUP(Operations!$C55,ImpRepairFac[],4,FALSE))*Operations!$N55*VLOOKUP(Operations!$C55,ImpRepairFac[],3,FALSE)/Operations!$H55) -> 3.47966712 | P55: =IF(Operations!$N55=0,0,Operations!$N55*(VLOOKUP(Operations!$D55,ImpDepLookup,2,FALSE)-VLOOKUP(Operations!$D55,ImpDepLookup,3,FALSE)*Operations!$G55^0.5-VLOOKUP(Operations!$D55,ImpDepLookup,4,FALSE)*(Operations!$G55*Operations!$H55/Operations!$I55)^0.5)^2) -> 31403.53854 | Q55: =IF(Operations!$N55=0,0,Operations!$N55*(VLOOKUP(Operations!$D55,ImpDepLookup,2,FALSE)-VLOOKUP(Operations!$D55,ImpDepLookup,3,FALSE)*(Operations!$G55+1)^0.5-VLOOKUP(Operations!$D55,ImpDepLookup,4,FALSE)*(Operations!$G55*Operations!$H55/Operations!$I55)^0.5)^2) -> 29945.33806 | R55: =IF(Operations!$N55=0,0,IF(Operations!$I55*Operations!$H55=0,0,(Operations!$P55-Operations!$Q55)/(Operations!$H55))) -> 1.458200482 | S55: =IF(Operations!$H55=0,0,Operations!$P55*'General Variables'!$B$9/Operations!$H55) -> 0.6280707709 | T55: =IF(Operations!$H55=0,0,Operations!$P55*'General Variables'!$B$10/Operations!$H55) -> 0.9421061563 | U55: =SUM(Table3[[#This Row],[Depreciation per Unit]:[Opportunity Cost per Unit]]) -> 3.028377409
A56: Spray (Prior Year Stubble) | B56: acre | C56: Sprayer - Boom-type | D56: Manure spreaders and all other miscellaneous equipment | E56: 36000 | G56: 5 | H56: 2500 | I56: 25 | J56: 1.25 | K56: Medium Tractor | L56: 2.64 | N56: =IF(Operations!$E57>1,Operations!$E57,IF(Operations!$D57=0,0,Operations!$F57/(VLOOKUP(Operations!$D57,ImpDepLookup,2,FALSE)-VLOOKUP(Operations!$D57,ImpDepLookup,3,FALSE)*Operations!$G57^0.5-VLOOKUP(Operations!$D57,ImpDepLookup,4,FALSE)*(Operations!$G57*(Operations!$G57*Operations!$H57/Operations!$I57)^0.5))^2)) -> 36000 | O56: =IF(Operations!$C57="",0,(((Operations!$G57+1)*Operations!$H57/Operations!$I57/1000)^VLOOKUP(Operations!$C57,ImpRepairFac[],4,FALSE)-(Operations!$G57*Operations!$H57/Operations!$I57/1000)^VLOOKUP(Operations!$C57,ImpRepairFac[],4,FALSE))*Operations!$N57*VLOOKUP(Operations!$C57,ImpRepairFac[],3,FALSE)/Operations!$H57) -> 0.1857044397 | P56: =IF(Operations!$N56=0,0,Operations!$N56*(VLOOKUP(Operations!$D56,ImpDepLookup,2,FALSE)-VLOOKUP(Operations!$D56,ImpDepLookup,3,FALSE)*Operations!$G56^0.5-VLOOKUP(Operations!$D56,ImpDepLookup,4,FALSE)*(Operations!$G56*Operations!$H56/Operations!$I56)^0.5)^2) -> 17378.71607 | Q56: =IF(Operations!$N57=0,0,Operations!$N57*(VLOOKUP(Operations!$D57,ImpDepLookup,2,FALSE)-VLOOKUP(Operations!$D57,ImpDepLookup,3,FALSE)*(Operations!$G57+1)^0.5-VLOOKUP(Operations!$D57,ImpDepLookup,4,FALSE)*(Operations!$G57*Operations!$H57/Operations!$I57)^0.5)^2) -> 16213.82833 | R56: =IF(Operations!$N56=0,0,IF(Operations!$I56*Operations!$H56=0,0,(Operations!$P56-Operations!$Q56)/(Operations!$H56))) -> 0.4659550974 | S56: =IF(Operations!$H57=0,0,Operations!$P57*'General Variables'!$B$9/Operations!$H57) -> 0.3475743215 | T56: =IF(Operations!$H57=0,0,Operations!$P57*'General Variables'!$B$10/Operations!$H57) -> 0.5213614822 | U56: =SUM(Table3[[#This Row],[Depreciation per Unit]:[Opportunity Cost per Unit]]) -> 1.334890901
A57: Spray Fertilizer | B57: acre | C57: Sprayer - Air-carrier | D57: Manure spreaders and all other miscellaneous equipment | E57: 36000 | G57: 5 | H57: 1000 | I57: 25 | J57: 1.25 | K57: Medium Tractor | L57: 2.64 | N57: =IF(Operations!$E58>1,Operations!$E58,IF(Operations!$D58=0,0,Operations!$F58/(VLOOKUP(Operations!$D58,ImpDepLookup,2,FALSE)-VLOOKUP(Operations!$D58,ImpDepLookup,3,FALSE)*Operations!$G58^0.5-VLOOKUP(Operations!$D58,ImpDepLookup,4,FALSE)*(Operations!$G58*(Operations!$G58*Operations!$H58/Operations!$I58)^0.5))^2)) -> 36000 | O57: =IF(Operations!$C58="",0,(((Operations!$G58+1)*Operations!$H58/Operations!$I58/1000)^VLOOKUP(Operations!$C58,ImpRepairFac[],4,FALSE)-(Operations!$G58*Operations!$H58/Operations!$I58/1000)^VLOOKUP(Operations!$C58,ImpRepairFac[],4,FALSE))*Operations!$N58*VLOOKUP(Operations!$C58,ImpRepairFac[],3,FALSE)/Operations!$H58) -> 0.1857044397 | P57: =IF(Operations!$N57=0,0,Operations!$N57*(VLOOKUP(Operations!$D57,ImpDepLookup,2,FALSE)-VLOOKUP(Operations!$D57,ImpDepLookup,3,FALSE)*Operations!$G57^0.5-VLOOKUP(Operations!$D57,ImpDepLookup,4,FALSE)*(Operations!$G57*Operations!$H57/Operations!$I57)^0.5)^2) -> 17378.71607 | Q57: =IF(Operations!$N58=0,0,Operations!$N58*(VLOOKUP(Operations!$D58,ImpDepLookup,2,FALSE)-VLOOKUP(Operations!$D58,ImpDepLookup,3,FALSE)*(Operations!$G58+1)^0.5-VLOOKUP(Operations!$D58,ImpDepLookup,4,FALSE)*(Operations!$G58*Operations!$H58/Operations!$I58)^0.5)^2) -> 16213.82833 | R57: =IF(Operations!$N57=0,0,IF(Operations!$I57*Operations!$H57=0,0,(Operations!$P57-Operations!$Q57)/(Operations!$H57))) -> 1.164887744 | S57: =IF(Operations!$H58=0,0,Operations!$P58*'General Variables'!$B$9/Operations!$H58) -> 0.3475743215 | T57: =IF(Operations!$H58=0,0,Operations!$P58*'General Variables'!$B$10/Operations!$H58) -> 0.5213614822 | U57: =SUM(Table3[[#This Row],[Depreciation per Unit]:[Opportunity Cost per Unit]]) -> 2.033823547
A58: Spray Fertilizer and Herbicide | B58: acre | C58: Sprayer - Air-carrier | D58: Manure spreaders and all other miscellaneous equipment | E58: 36000 | G58: 5 | H58: 1000 | I58: 25 | J58: 1.25 | K58: Medium Tractor | L58: 2.64 | N58: =IF(Operations!$E59>1,Operations!$E59,IF(Operations!$D59=0,0,Operations!$F59/(VLOOKUP(Operations!$D59,ImpDepLookup,2,FALSE)-VLOOKUP(Operations!$D59,ImpDepLookup,3,FALSE)*Operations!$G59^0.5-VLOOKUP(Operations!$D59,ImpDepLookup,4,FALSE)*(Operations!$G59*(Operations!$G59*Operations!$H59/Operations!$I59)^0.5))^2)) -> 36000 | O58: =IF(Operations!$C59="",0,(((Operations!$G59+1)*Operations!$H59/Operations!$I59/1000)^VLOOKUP(Operations!$C59,ImpRepairFac[],4,FALSE)-(Operations!$G59*Operations!$H59/Operations!$I59/1000)^VLOOKUP(Operations!$C59,ImpRepairFac[],4,FALSE))*Operations!$N59*VLOOKUP(Operations!$C59,ImpRepairFac[],3,FALSE)/Operations!$H59) -> 0 | P58: =IF(Operations!$N58=0,0,Operations!$N58*(VLOOKUP(Operations!$D58,ImpDepLookup,2,FALSE)-VLOOKUP(Operations!$D58,ImpDepLookup,3,FALSE)*Operations!$G58^0.5-VLOOKUP(Operations!$D58,ImpDepLookup,4,FALSE)*(Operations!$G58*Operations!$H58/Operations!$I58)^0.5)^2) -> 17378.71607 | Q58: =IF(Operations!$N59=0,0,Operations!$N59*(VLOOKUP(Operations!$D59,ImpDepLookup,2,FALSE)-VLOOKUP(Operations!$D59,ImpDepLookup,3,FALSE)*(Operations!$G59+1)^0.5-VLOOKUP(Operations!$D59,ImpDepLookup,4,FALSE)*(Operations!$G59*Operations!$H59/Operations!$I59)^0.5)^2) -> 0 | R58: =IF(Operations!$N58=0,0,IF(Operations!$I58*Operations!$H58=0,0,(Operations!$P58-Operations!$Q58)/(Operations!$H58))) -> 17.37871607 | S58: =IF(Operations!$H59=0,0,Operations!$P59*'General Variables'!$B$9/Operations!$H59) -> 0 | T58: =IF(Operations!$H59=0,0,Operations!$P59*'General Variables'!$B$10/Operations!$H59) -> 0 | U58: =SUM(Table3[[#This Row],[Depreciation per Unit]:[Opportunity Cost per Unit]]) -> 17.37871607
A59: Spray Herbicide | B59: acre | C59: Sprayer - Boom-type | D59: Manure spreaders and all other miscellaneous equipment | E59: 36000 | G59: 5 | H59: 2500 | I59: 25 | J59: 1.25 | K59: Medium Tractor | L59: 2.64 | N59: =IF(Operations!$E71>1,Operations!$E71,IF(Operations!$D71=0,0,Operations!$F71/(VLOOKUP(Operations!$D71,ImpDepLookup,2,FALSE)-VLOOKUP(Operations!$D71,ImpDepLookup,3,FALSE)*Operations!$G71^0.5-VLOOKUP(Operations!$D71,ImpDepLookup,4,FALSE)*(Operations!$G71*(Operations!$G71*Operations!$H71/Operations!$I71)^0.5))^2)) -> 0 | O59: =IF(Operations!$C71="",0,(((Operations!$G71+1)*Operations!$H71/Operations!$I71/1000)^VLOOKUP(Operations!$C71,ImpRepairFac[],4,FALSE)-(Operations!$G71*Operations!$H71/Operations!$I71/1000)^VLOOKUP(Operations!$C71,ImpRepairFac[],4,FALSE))*Operations!$N71*VLOOKUP(Operations!$C71,ImpRepairFac[],3,FALSE)/Operations!$H71) -> 0.2878371272 | P59: =IF(Operations!$N59=0,0,Operations!$N59*(VLOOKUP(Operations!$D59,ImpDepLookup,2,FALSE)-VLOOKUP(Operations!$D59,ImpDepLookup,3,FALSE)*Operations!$G59^0.5-VLOOKUP(Operations!$D59,ImpDepLookup,4,FALSE)*(Operations!$G59*Operations!$H59/Operations!$I59)^0.5)^2) -> 0 | Q59: =IF(Operations!$N71=0,0,Operations!$N71*(VLOOKUP(Operations!$D71,ImpDepLookup,2,FALSE)-VLOOKUP(Operations!$D71,ImpDepLookup,3,FALSE)*(Operations!$G71+1)^0.5-VLOOKUP(Operations!$D71,ImpDepLookup,4,FALSE)*(Operations!$G71*Operations!$H71/Operations!$I71)^0.5)^2) -> 2389.196527 | R59: =IF(Operations!$N59=0,0,IF(Operations!$I59*Operations!$H59=0,0,(Operations!$P59-Operations!$Q59)/(Operations!$H59))) -> 0 | S59: =IF(Operations!$H71=0,0,Operations!$P71*'General Variables'!$B$9/Operations!$H71) -> 0.01703564451 | T59: =IF(Operations!$H71=0,0,Operations!$P71*'General Variables'!$B$10/Operations!$H71) -> 0.02555346677 | U59: =SUM(Table3[[#This Row],[Depreciation per Unit]:[Opportunity Cost per Unit]]) -> 0.04258911128
A60: Spray Insecticide | B60: acre | C60: Sprayer - Boom-type | D60: Manure spreaders and all other miscellaneous equipment | E60: 36000 | G60: 5 | H60: 2500 | I60: 25 | J60: 1.25 | K60: Medium Tractor | L60: 2.64 | N60: =IF(Operations!$E56>1,Operations!$E56,IF(Operations!$D56=0,0,Operations!$F56/(VLOOKUP(Operations!$D56,ImpDepLookup,2,FALSE)-VLOOKUP(Operations!$D56,ImpDepLookup,3,FALSE)*Operations!$G56^0.5-VLOOKUP(Operations!$D56,ImpDepLookup,4,FALSE)*(Operations!$G56*(Operations!$G56*Operations!$H56/Operations!$I56)^0.5))^2)) -> 36000 | O60: =IF(Operations!$C56="",0,(((Operations!$G56+1)*Operations!$H56/Operations!$I56/1000)^VLOOKUP(Operations!$C56,ImpRepairFac[],4,FALSE)-(Operations!$G56*Operations!$H56/Operations!$I56/1000)^VLOOKUP(Operations!$C56,ImpRepairFac[],4,FALSE))*Operations!$N56*VLOOKUP(Operations!$C56,ImpRepairFac[],3,FALSE)/Operations!$H56) -> 0.6413168168 | P60: =IF(Operations!$N60=0,0,Operations!$N60*(VLOOKUP(Operations!$D60,ImpDepLookup,2,FALSE)-VLOOKUP(Operations!$D60,ImpDepLookup,3,FALSE)*Operations!$G60^0.5-VLOOKUP(Operations!$D60,ImpDepLookup,4,FALSE)*(Operations!$G60*Operations!$H60/Operations!$I60)^0.5)^2) -> 17378.71607 | Q60: =IF(Operations!$N56=0,0,Operations!$N56*(VLOOKUP(Operations!$D56,ImpDepLookup,2,FALSE)-VLOOKUP(Operations!$D56,ImpDepLookup,3,FALSE)*(Operations!$G56+1)^0.5-VLOOKUP(Operations!$D56,ImpDepLookup,4,FALSE)*(Operations!$G56*Operations!$H56/Operations!$I56)^0.5)^2) -> 16213.82833 | R60: =IF(Operations!$N60=0,0,IF(Operations!$I60*Operations!$H60=0,0,(Operations!$P60-Operations!$Q60)/(Operations!$H60))) -> 0.4659550974 | S60: =IF(Operations!$H56=0,0,Operations!$P56*'General Variables'!$B$9/Operations!$H56) -> 0.1390297286 | T60: =IF(Operations!$H56=0,0,Operations!$P56*'General Variables'!$B$10/Operations!$H56) -> 0.2085445929 | U60: =SUM(Table3[[#This Row],[Depreciation per Unit]:[Opportunity Cost per Unit]]) -> 0.8135294189
A61: Spray Spring Burndown Herbicide | B61: acre | C61: Sprayer - Boom-type | D61: Manure spreaders and all other miscellaneous equipment | E61: 36000 | G61: 5 | H61: 2500 | I61: 25 | J61: 1.25 | K61: Medium Tractor | L61: 2.64 | N61: =IF(Operations!$E60>1,Operations!$E60,IF(Operations!$D60=0,0,Operations!$F60/(VLOOKUP(Operations!$D60,ImpDepLookup,2,FALSE)-VLOOKUP(Operations!$D60,ImpDepLookup,3,FALSE)*Operations!$G60^0.5-VLOOKUP(Operations!$D60,ImpDepLookup,4,FALSE)*(Operations!$G60*(Operations!$G60*Operations!$H60/Operations!$I60)^0.5))^2)) -> 36000 | O61: =IF(Operations!$C60="",0,(((Operations!$G60+1)*Operations!$H60/Operations!$I60/1000)^VLOOKUP(Operations!$C60,ImpRepairFac[],4,FALSE)-(Operations!$G60*Operations!$H60/Operations!$I60/1000)^VLOOKUP(Operations!$C60,ImpRepairFac[],4,FALSE))*Operations!$N60*VLOOKUP(Operations!$C60,ImpRepairFac[],3,FALSE)/Operations!$H60) -> 0.6413168168 | P61: =IF(Operations!$N61=0,0,Operations!$N61*(VLOOKUP(Operations!$D61,ImpDepLookup,2,FALSE)-VLOOKUP(Operations!$D61,ImpDepLookup,3,FALSE)*Operations!$G61^0.5-VLOOKUP(Operations!$D61,ImpDepLookup,4,FALSE)*(Operations!$G61*Operations!$H61/Operations!$I61)^0.5)^2) -> 17378.71607 | Q61: =IF(Operations!$N60=0,0,Operations!$N60*(VLOOKUP(Operations!$D60,ImpDepLookup,2,FALSE)-VLOOKUP(Operations!$D60,ImpDepLookup,3,FALSE)*(Operations!$G60+1)^0.5-VLOOKUP(Operations!$D60,ImpDepLookup,4,FALSE)*(Operations!$G60*Operations!$H60/Operations!$I60)^0.5)^2) -> 16213.82833 | R61: =IF(Operations!$N61=0,0,IF(Operations!$I61*Operations!$H61=0,0,(Operations!$P61-Operations!$Q61)/(Operations!$H61))) -> 0.4659550974 | S61: =IF(Operations!$H60=0,0,Operations!$P60*'General Variables'!$B$9/Operations!$H60) -> 0.1390297286 | T61: =IF(Operations!$H60=0,0,Operations!$P60*'General Variables'!$B$10/Operations!$H60) -> 0.2085445929 | U61: =SUM(Table3[[#This Row],[Depreciation per Unit]:[Opportunity Cost per Unit]]) -> 0.8135294189
A62: Spread Fertilizer | B62: acre | D62: Manure spreaders and all other miscellaneous equipment | G62: 5 | H62: 1000 | I62: 12.7 | J62: 1 | K62: Medium Tractor | L62: 3.861702128 | N62: =IF(Operations!$E61>1,Operations!$E61,IF(Operations!$D61=0,0,Operations!$F61/(VLOOKUP(Operations!$D61,ImpDepLookup,2,FALSE)-VLOOKUP(Operations!$D61,ImpDepLookup,3,FALSE)*Operations!$G61^0.5-VLOOKUP(Operations!$D61,ImpDepLookup,4,FALSE)*(Operations!$G61*(Operations!$G61*Operations!$H61/Operations!$I61)^0.5))^2)) -> 36000 | O62: =IF(Operations!$C61="",0,(((Operations!$G61+1)*Operations!$H61/Operations!$I61/1000)^VLOOKUP(Operations!$C61,ImpRepairFac[],4,FALSE)-(Operations!$G61*Operations!$H61/Operations!$I61/1000)^VLOOKUP(Operations!$C61,ImpRepairFac[],4,FALSE))*Operations!$N61*VLOOKUP(Operations!$C61,ImpRepairFac[],3,FALSE)/Operations!$H61) -> 0.6413168168 | P62: =IF(Operations!$N62=0,0,Operations!$N62*(VLOOKUP(Operations!$D62,ImpDepLookup,2,FALSE)-VLOOKUP(Operations!$D62,ImpDepLookup,3,FALSE)*Operations!$G62^0.5-VLOOKUP(Operations!$D62,ImpDepLookup,4,FALSE)*(Operations!$G62*Operations!$H62/Operations!$I62)^0.5)^2) -> 17378.71607 | Q62: =IF(Operations!$N61=0,0,Operations!$N61*(VLOOKUP(Operations!$D61,ImpDepLookup,2,FALSE)-VLOOKUP(Operations!$D61,ImpDepLookup,3,FALSE)*(Operations!$G61+1)^0.5-VLOOKUP(Operations!$D61,ImpDepLookup,4,FALSE)*(Operations!$G61*Operations!$H61/Operations!$I61)^0.5)^2) -> 16213.82833 | R62: =IF(Operations!$N62=0,0,IF(Operations!$I62*Operations!$H62=0,0,(Operations!$P62-Operations!$Q62)/(Operations!$H62))) -> 1.164887744 | S62: =IF(Operations!$H61=0,0,Operations!$P61*'General Variables'!$B$9/Operations!$H61) -> 0.1390297286 | T62: =IF(Operations!$H61=0,0,Operations!$P61*'General Variables'!$B$10/Operations!$H61) -> 0.2085445929 | U62: =SUM(Table3[[#This Row],[Depreciation per Unit]:[Opportunity Cost per Unit]]) -> 1.512462065
A63: Spread Manure | B63: Custom | N63: =IF(Operations!$E62>1,Operations!$E62,IF(Operations!$D62=0,0,Operations!$F62/(VLOOKUP(Operations!$D62,ImpDepLookup,2,FALSE)-VLOOKUP(Operations!$D62,ImpDepLookup,3,FALSE)*Operations!$G62^0.5-VLOOKUP(Operations!$D62,ImpDepLookup,4,FALSE)*(Operations!$G62*(Operations!$G62*Operations!$H62/Operations!$I62)^0.5))^2)) -> 0 | O63: =IF(Operations!$C62="",0,(((Operations!$G62+1)*Operations!$H62/Operations!$I62/1000)^VLOOKUP(Operations!$C62,ImpRepairFac[],4,FALSE)-(Operations!$G62*Operations!$H62/Operations!$I62/1000)^VLOOKUP(Operations!$C62,ImpRepairFac[],4,FALSE))*Operations!$N62*VLOOKUP(Operations!$C62,ImpRepairFac[],3,FALSE)/Operations!$H62) -> 0 | P63: =IF(Operations!$N63=0,0,Operations!$N63*(VLOOKUP(Operations!$D63,ImpDepLookup,2,FALSE)-VLOOKUP(Operations!$D63,ImpDepLookup,3,FALSE)*Operations!$G63^0.5-VLOOKUP(Operations!$D63,ImpDepLookup,4,FALSE)*(Operations!$G63*Operations!$H63/Operations!$I63)^0.5)^2) -> 0 | Q63: =IF(Operations!$N62=0,0,Operations!$N62*(VLOOKUP(Operations!$D62,ImpDepLookup,2,FALSE)-VLOOKUP(Operations!$D62,ImpDepLookup,3,FALSE)*(Operations!$G62+1)^0.5-VLOOKUP(Operations!$D62,ImpDepLookup,4,FALSE)*(Operations!$G62*Operations!$H62/Operations!$I62)^0.5)^2) -> 16213.82833 | R63: =IF(Operations!$N63=0,0,IF(Operations!$I63*Operations!$H63=0,0,(Operations!$P63-Operations!$Q63)/(Operations!$H63))) -> 0 | S63: =IF(Operations!$H62=0,0,Operations!$P62*'General Variables'!$B$9/Operations!$H62) -> 0.3475743215 | T63: =IF(Operations!$H62=0,0,Operations!$P62*'General Variables'!$B$10/Operations!$H62) -> 0.5213614822 | U63: =SUM(Table3[[#This Row],[Depreciation per Unit]:[Opportunity Cost per Unit]]) -> 0.8689358037
A64: Stack Small Square | B64: ton | C64: Wagon | D64: Swathers and all other harvest equipment | E64: 13000 | G64: 5 | H64: 1250 | I64: 10 | J64: 1 | K64: Medium Tractor | L64: 2 | N64: =IF(Operations!$E63>1,Operations!$E63,IF(Operations!$D63=0,0,Operations!$F63/(VLOOKUP(Operations!$D63,ImpDepLookup,2,FALSE)-VLOOKUP(Operations!$D63,ImpDepLookup,3,FALSE)*Operations!$G63^0.5-VLOOKUP(Operations!$D63,ImpDepLookup,4,FALSE)*(Operations!$G63*(Operations!$G63*Operations!$H63/Operations!$I63)^0.5))^2)) -> 0 | O64: =IF(Operations!$C63="",0,(((Operations!$G63+1)*Operations!$H63/Operations!$I63/1000)^VLOOKUP(Operations!$C63,ImpRepairFac[],4,FALSE)-(Operations!$G63*Operations!$H63/Operations!$I63/1000)^VLOOKUP(Operations!$C63,ImpRepairFac[],4,FALSE))*Operations!$N63*VLOOKUP(Operations!$C63,ImpRepairFac[],3,FALSE)/Operations!$H63) -> 0 | P64: =IF(Operations!$N64=0,0,Operations!$N64*(VLOOKUP(Operations!$D64,ImpDepLookup,2,FALSE)-VLOOKUP(Operations!$D64,ImpDepLookup,3,FALSE)*Operations!$G64^0.5-VLOOKUP(Operations!$D64,ImpDepLookup,4,FALSE)*(Operations!$G64*Operations!$H64/Operations!$I64)^0.5)^2) -> 0 | Q64: =IF(Operations!$N63=0,0,Operations!$N63*(VLOOKUP(Operations!$D63,ImpDepLookup,2,FALSE)-VLOOKUP(Operations!$D63,ImpDepLookup,3,FALSE)*(Operations!$G63+1)^0.5-VLOOKUP(Operations!$D63,ImpDepLookup,4,FALSE)*(Operations!$G63*Operations!$H63/Operations!$I63)^0.5)^2) -> 0 | R64: =IF(Operations!$N64=0,0,IF(Operations!$I64*Operations!$H64=0,0,(Operations!$P64-Operations!$Q64)/(Operations!$H64))) -> 0 | S64: =IF(Operations!$H63=0,0,Operations!$P63*'General Variables'!$B$9/Operations!$H63) -> 0 | T64: =IF(Operations!$H63=0,0,Operations!$P63*'General Variables'!$B$10/Operations!$H63) -> 0 | U64: =SUM(Table3[[#This Row],[Depreciation per Unit]:[Opportunity Cost per Unit]]) -> 0
A65: Subsoil | B65: acre | C65: Chisel plow (Coulter) | D65: Disks and all other tillage equipment | E65: 59791 | G65: 5 | H65: 500 | I65: 9 | J65: 1 | K65: Large Tractor | L65: 8.25 | N65: =IF(Operations!$E64>1,Operations!$E64,IF(Operations!$D64=0,0,Operations!$F64/(VLOOKUP(Operations!$D64,ImpDepLookup,2,FALSE)-VLOOKUP(Operations!$D64,ImpDepLookup,3,FALSE)*Operations!$G64^0.5-VLOOKUP(Operations!$D64,ImpDepLookup,4,FALSE)*(Operations!$G64*(Operations!$G64*Operations!$H64/Operations!$I64)^0.5))^2)) -> 13000 | O65: =IF(Operations!$C64="",0,(((Operations!$G64+1)*Operations!$H64/Operations!$I64/1000)^VLOOKUP(Operations!$C64,ImpRepairFac[],4,FALSE)-(Operations!$G64*Operations!$H64/Operations!$I64/1000)^VLOOKUP(Operations!$C64,ImpRepairFac[],4,FALSE))*Operations!$N64*VLOOKUP(Operations!$C64,ImpRepairFac[],3,FALSE)/Operations!$H64) -> 0 | P65: =IF(Operations!$N65=0,0,Operations!$N65*(VLOOKUP(Operations!$D65,ImpDepLookup,2,FALSE)-VLOOKUP(Operations!$D65,ImpDepLookup,3,FALSE)*Operations!$G65^0.5-VLOOKUP(Operations!$D65,ImpDepLookup,4,FALSE)*(Operations!$G65*Operations!$H65/Operations!$I65)^0.5)^2) -> 5408.870416 | Q65: =IF(Operations!$N64=0,0,Operations!$N64*(VLOOKUP(Operations!$D64,ImpDepLookup,2,FALSE)-VLOOKUP(Operations!$D64,ImpDepLookup,3,FALSE)*(Operations!$G64+1)^0.5-VLOOKUP(Operations!$D64,ImpDepLookup,4,FALSE)*(Operations!$G64*Operations!$H64/Operations!$I64)^0.5)^2) -> 0 | R65: =IF(Operations!$N65=0,0,IF(Operations!$I65*Operations!$H65=0,0,(Operations!$P65-Operations!$Q65)/(Operations!$H65))) -> 10.81774083 | S65: =IF(Operations!$H64=0,0,Operations!$P64*'General Variables'!$B$9/Operations!$H64) -> 0 | T65: =IF(Operations!$H64=0,0,Operations!$P64*'General Variables'!$B$10/Operations!$H64) -> 0 | U65: =SUM(Table3[[#This Row],[Depreciation per Unit]:[Opportunity Cost per Unit]]) -> 10.81774083
A66: Swath/Condition Hay | B66: acre | C66: Mower-conditioner | D66: Swathers and all other harvest equipment | E66: 0 | G66: 5 | H66: 2000 | I66: 10 | J66: 1 | K66: Windrower | L66: 5 | N66: =IF(Operations!$E65>1,Operations!$E65,IF(Operations!$D65=0,0,Operations!$F65/(VLOOKUP(Operations!$D65,ImpDepLookup,2,FALSE)-VLOOKUP(Operations!$D65,ImpDepLookup,3,FALSE)*Operations!$G65^0.5-VLOOKUP(Operations!$D65,ImpDepLookup,4,FALSE)*(Operations!$G65*(Operations!$G65*Operations!$H65/Operations!$I65)^0.5))^2)) -> 59791 | O66: =IF(Operations!$C65="",0,(((Operations!$G65+1)*Operations!$H65/Operations!$I65/1000)^VLOOKUP(Operations!$C65,ImpRepairFac[],4,FALSE)-(Operations!$G65*Operations!$H65/Operations!$I65/1000)^VLOOKUP(Operations!$C65,ImpRepairFac[],4,FALSE))*Operations!$N65*VLOOKUP(Operations!$C65,ImpRepairFac[],3,FALSE)/Operations!$H65) -> 0.3522728263 | P66: =IF(Operations!$N66=0,0,Operations!$N66*(VLOOKUP(Operations!$D66,ImpDepLookup,2,FALSE)-VLOOKUP(Operations!$D66,ImpDepLookup,3,FALSE)*Operations!$G66^0.5-VLOOKUP(Operations!$D66,ImpDepLookup,4,FALSE)*(Operations!$G66*Operations!$H66/Operations!$I66)^0.5)^2) -> 20638.48888 | Q66: =IF(Operations!$N65=0,0,Operations!$N65*(VLOOKUP(Operations!$D65,ImpDepLookup,2,FALSE)-VLOOKUP(Operations!$D65,ImpDepLookup,3,FALSE)*(Operations!$G65+1)^0.5-VLOOKUP(Operations!$D65,ImpDepLookup,4,FALSE)*(Operations!$G65*Operations!$H65/Operations!$I65)^0.5)^2) -> 5022.316268 | R66: =IF(Operations!$N66=0,0,IF(Operations!$I66*Operations!$H66=0,0,(Operations!$P66-Operations!$Q66)/(Operations!$H66))) -> 7.808086305 | S66: =IF(Operations!$H65=0,0,Operations!$P65*'General Variables'!$B$9/Operations!$H65) -> 0.2163548166 | T66: =IF(Operations!$H65=0,0,Operations!$P65*'General Variables'!$B$10/Operations!$H65) -> 0.3245322249 | U66: =SUM(Table3[[#This Row],[Depreciation per Unit]:[Opportunity Cost per Unit]]) -> 8.348973347
A67: Till Plant Beets | B67: acre | C67: Planter - Row crop | D67: Planters | E67: 48000 | G67: 5 | H67: 1000 | I67: 6 | J67: 1.1 | K67: Large Tractor | L67: 8.25 | N67: =IF(Operations!$E66>1,Operations!$E66,IF(Operations!$D66=0,0,Operations!$F66/(VLOOKUP(Operations!$D66,ImpDepLookup,2,FALSE)-VLOOKUP(Operations!$D66,ImpDepLookup,3,FALSE)*Operations!$G66^0.5-VLOOKUP(Operations!$D66,ImpDepLookup,4,FALSE)*(Operations!$G66*(Operations!$G66*Operations!$H66/Operations!$I66)^0.5))^2)) -> 0 | O67: =IF(Operations!$C66="",0,(((Operations!$G66+1)*Operations!$H66/Operations!$I66/1000)^VLOOKUP(Operations!$C66,ImpRepairFac[],4,FALSE)-(Operations!$G66*Operations!$H66/Operations!$I66/1000)^VLOOKUP(Operations!$C66,ImpRepairFac[],4,FALSE))*Operations!$N66*VLOOKUP(Operations!$C66,ImpRepairFac[],3,FALSE)/Operations!$H66) -> 1.822720692 | P67: =IF(Operations!$N67=0,0,Operations!$N67*(VLOOKUP(Operations!$D67,ImpDepLookup,2,FALSE)-VLOOKUP(Operations!$D67,ImpDepLookup,3,FALSE)*Operations!$G67^0.5-VLOOKUP(Operations!$D67,ImpDepLookup,4,FALSE)*(Operations!$G67*Operations!$H67/Operations!$I67)^0.5)^2) -> 0 | Q67: =IF(Operations!$N66=0,0,Operations!$N66*(VLOOKUP(Operations!$D66,ImpDepLookup,2,FALSE)-VLOOKUP(Operations!$D66,ImpDepLookup,3,FALSE)*(Operations!$G66+1)^0.5-VLOOKUP(Operations!$D66,ImpDepLookup,4,FALSE)*(Operations!$G66*Operations!$H66/Operations!$I66)^0.5)^2) -> 19296.56215 | R67: =IF(Operations!$N67=0,0,IF(Operations!$I67*Operations!$H67=0,0,(Operations!$P67-Operations!$Q67)/(Operations!$H67))) -> 0 | S67: =IF(Operations!$H66=0,0,Operations!$P66*'General Variables'!$B$9/Operations!$H66) -> 0.2063848888 | T67: =IF(Operations!$H66=0,0,Operations!$P66*'General Variables'!$B$10/Operations!$H66) -> 0.3095773332 | U67: =SUM(Table3[[#This Row],[Depreciation per Unit]:[Opportunity Cost per Unit]]) -> 0.515962222
A68: Top Beets | B68: acre | C68: Beet topper | D68: Swathers and all other harvest equipment | E68: 50000 | G68: 5 | H68: 1000 | I68: 5.789473684 | J68: 1 | K68: Medium Tractor | L68: 3.5 | N68: =IF(Operations!$E67>1,Operations!$E67,IF(Operations!$D67=0,0,Operations!$F67/(VLOOKUP(Operations!$D67,ImpDepLookup,2,FALSE)-VLOOKUP(Operations!$D67,ImpDepLookup,3,FALSE)*Operations!$G67^0.5-VLOOKUP(Operations!$D67,ImpDepLookup,4,FALSE)*(Operations!$G67*(Operations!$G67*Operations!$H67/Operations!$I67)^0.5))^2)) -> 48000 | O68: =IF(Operations!$C67="",0,(((Operations!$G67+1)*Operations!$H67/Operations!$I67/1000)^VLOOKUP(Operations!$C67,ImpRepairFac[],4,FALSE)-(Operations!$G67*Operations!$H67/Operations!$I67/1000)^VLOOKUP(Operations!$C67,ImpRepairFac[],4,FALSE))*Operations!$N67*VLOOKUP(Operations!$C67,ImpRepairFac[],3,FALSE)/Operations!$H67) -> 0 | P68: =IF(Operations!$N68=0,0,Operations!$N68*(VLOOKUP(Operations!$D68,ImpDepLookup,2,FALSE)-VLOOKUP(Operations!$D68,ImpDepLookup,3,FALSE)*Operations!$G68^0.5-VLOOKUP(Operations!$D68,ImpDepLookup,4,FALSE)*(Operations!$G68*Operations!$H68/Operations!$I68)^0.5)^2) -> 16568.50473 | Q68: =IF(Operations!$N67=0,0,Operations!$N67*(VLOOKUP(Operations!$D67,ImpDepLookup,2,FALSE)-VLOOKUP(Operations!$D67,ImpDepLookup,3,FALSE)*(Operations!$G67+1)^0.5-VLOOKUP(Operations!$D67,ImpDepLookup,4,FALSE)*(Operations!$G67*Operations!$H67/Operations!$I67)^0.5)^2) -> 0 | R68: =IF(Operations!$N68=0,0,IF(Operations!$I68*Operations!$H68=0,0,(Operations!$P68-Operations!$Q68)/(Operations!$H68))) -> 16.56850473 | S68: =IF(Operations!$H67=0,0,Operations!$P67*'General Variables'!$B$9/Operations!$H67) -> 0 | T68: =IF(Operations!$H67=0,0,Operations!$P67*'General Variables'!$B$10/Operations!$H67) -> 0 | U68: =SUM(Table3[[#This Row],[Depreciation per Unit]:[Opportunity Cost per Unit]]) -> 16.56850473
A69: Truck | B69: Custom | G69: 5 | K69: Large Tractor | N69: =IF(Operations!$E68>1,Operations!$E68,IF(Operations!$D68=0,0,Operations!$F68/(VLOOKUP(Operations!$D68,ImpDepLookup,2,FALSE)-VLOOKUP(Operations!$D68,ImpDepLookup,3,FALSE)*Operations!$G68^0.5-VLOOKUP(Operations!$D68,ImpDepLookup,4,FALSE)*(Operations!$G68*(Operations!$G68*Operations!$H68/Operations!$I68)^0.5))^2)) -> 50000 | O69: =IF(Operations!$C68="",0,(((Operations!$G68+1)*Operations!$H68/Operations!$I68/1000)^VLOOKUP(Operations!$C68,ImpRepairFac[],4,FALSE)-(Operations!$G68*Operations!$H68/Operations!$I68/1000)^VLOOKUP(Operations!$C68,ImpRepairFac[],4,FALSE))*Operations!$N68*VLOOKUP(Operations!$C68,ImpRepairFac[],3,FALSE)/Operations!$H68) -> 3.18297936 | P69: =IF(Operations!$N69=0,0,Operations!$N69*(VLOOKUP(Operations!$D69,ImpDepLookup,2,FALSE)-VLOOKUP(Operations!$D69,ImpDepLookup,3,FALSE)*Operations!$G69^0.5-VLOOKUP(Operations!$D69,ImpDepLookup,4,FALSE)*(Operations!$G69*Operations!$H69/Operations!$I69)^0.5)^2) ->  | Q69: =IF(Operations!$N68=0,0,Operations!$N68*(VLOOKUP(Operations!$D68,ImpDepLookup,2,FALSE)-VLOOKUP(Operations!$D68,ImpDepLookup,3,FALSE)*(Operations!$G68+1)^0.5-VLOOKUP(Operations!$D68,ImpDepLookup,4,FALSE)*(Operations!$G68*Operations!$H68/Operations!$I68)^0.5)^2) -> 15491.21077 | R69: =IF(Operations!$N69=0,0,IF(Operations!$I69*Operations!$H69=0,0,(Operations!$P69-Operations!$Q69)/(Operations!$H69))) ->  | S69: =IF(Operations!$H68=0,0,Operations!$P68*'General Variables'!$B$9/Operations!$H68) -> 0.3313700946 | T69: =IF(Operations!$H68=0,0,Operations!$P68*'General Variables'!$B$10/Operations!$H68) -> 0.4970551418 | U69: =SUM(Table3[[#This Row],[Depreciation per Unit]:[Opportunity Cost per Unit]]) -> 
A70: Turn Windrows | B70: acre | C70: Rake - Side delivery | D70: Swathers and all other harvest equipment | E70: 7403 | G70: 5 | H70: 1000 | I70: 12 | J70: 1 | K70: Medium Tractor | L70: 2.097196262 | N70: =IF(Operations!$E69>1,Operations!$E69,IF(Operations!$D69=0,0,Operations!$F69/(VLOOKUP(Operations!$D69,ImpDepLookup,2,FALSE)-VLOOKUP(Operations!$D69,ImpDepLookup,3,FALSE)*Operations!$G69^0.5-VLOOKUP(Operations!$D69,ImpDepLookup,4,FALSE)*(Operations!$G69*(Operations!$G69*Operations!$H69/Operations!$I69)^0.5))^2)) -> 0 | O70: =IF(Operations!$C69="",0,(((Operations!$G69+1)*Operations!$H69/Operations!$I69/1000)^VLOOKUP(Operations!$C69,ImpRepairFac[],4,FALSE)-(Operations!$G69*Operations!$H69/Operations!$I69/1000)^VLOOKUP(Operations!$C69,ImpRepairFac[],4,FALSE))*Operations!$N69*VLOOKUP(Operations!$C69,ImpRepairFac[],3,FALSE)/Operations!$H69) -> 0 | P70: =IF(Operations!$N70=0,0,Operations!$N70*(VLOOKUP(Operations!$D70,ImpDepLookup,2,FALSE)-VLOOKUP(Operations!$D70,ImpDepLookup,3,FALSE)*Operations!$G70^0.5-VLOOKUP(Operations!$D70,ImpDepLookup,4,FALSE)*(Operations!$G70*Operations!$H70/Operations!$I70)^0.5)^2) -> 0 | Q70: =IF(Operations!$N69=0,0,Operations!$N69*(VLOOKUP(Operations!$D69,ImpDepLookup,2,FALSE)-VLOOKUP(Operations!$D69,ImpDepLookup,3,FALSE)*(Operations!$G69+1)^0.5-VLOOKUP(Operations!$D69,ImpDepLookup,4,FALSE)*(Operations!$G69*Operations!$H69/Operations!$I69)^0.5)^2) ->  | R70: =IF(Operations!$N70=0,0,IF(Operations!$I70*Operations!$H70=0,0,(Operations!$P70-Operations!$Q70)/(Operations!$H70))) -> 0 | S70: =IF(Operations!$H69=0,0,Operations!$P69*'General Variables'!$B$9/Operations!$H69) -> 0 | T70: =IF(Operations!$H69=0,0,Operations!$P69*'General Variables'!$B$10/Operations!$H69) -> 0 | U70: =SUM(Table3[[#This Row],[Depreciation per Unit]:[Opportunity Cost per Unit]]) -> 0
A71: Windrow Grain | B71: acre | C71: Mower-conditioner | D71: Swathers and all other harvest equipment | E71: 0 | G71: 5 | H71: 3000 | I71: 10 | J71: 1 | K71: Windrower | L71: 5 | N71: =IF(Operations!$E70>1,Operations!$E70,IF(Operations!$D70=0,0,Operations!$F70/(VLOOKUP(Operations!$D70,ImpDepLookup,2,FALSE)-VLOOKUP(Operations!$D70,ImpDepLookup,3,FALSE)*Operations!$G70^0.5-VLOOKUP(Operations!$D70,ImpDepLookup,4,FALSE)*(Operations!$G70*(Operations!$G70*Operations!$H70/Operations!$I70)^0.5))^2)) -> 7403 | O71: =IF(Operations!$C70="",0,(((Operations!$G70+1)*Operations!$H70/Operations!$I70/1000)^VLOOKUP(Operations!$C70,ImpRepairFac[],4,FALSE)-(Operations!$G70*Operations!$H70/Operations!$I70/1000)^VLOOKUP(Operations!$C70,ImpRepairFac[],4,FALSE))*Operations!$N70*VLOOKUP(Operations!$C70,ImpRepairFac[],3,FALSE)/Operations!$H70) -> 0 | P71: =IF(Operations!$N71=0,0,Operations!$N71*(VLOOKUP(Operations!$D71,ImpDepLookup,2,FALSE)-VLOOKUP(Operations!$D71,ImpDepLookup,3,FALSE)*Operations!$G71^0.5-VLOOKUP(Operations!$D71,ImpDepLookup,4,FALSE)*(Operations!$G71*Operations!$H71/Operations!$I71)^0.5)^2) -> 2555.346677 | Q71: =IF(Operations!$N70=0,0,Operations!$N70*(VLOOKUP(Operations!$D70,ImpDepLookup,2,FALSE)-VLOOKUP(Operations!$D70,ImpDepLookup,3,FALSE)*(Operations!$G70+1)^0.5-VLOOKUP(Operations!$D70,ImpDepLookup,4,FALSE)*(Operations!$G70*Operations!$H70/Operations!$I70)^0.5)^2) -> 0 | R71: =IF(Operations!$N71=0,0,IF(Operations!$I71*Operations!$H71=0,0,(Operations!$P71-Operations!$Q71)/(Operations!$H71))) -> 0.8517822257 | S71: =IF(Operations!$H70=0,0,Operations!$P70*'General Variables'!$B$9/Operations!$H70) -> 0 | T71: =IF(Operations!$H70=0,0,Operations!$P70*'General Variables'!$B$10/Operations!$H70) -> 0 | U71: =SUM(Table3[[#This Row],[Depreciation per Unit]:[Opportunity Cost per Unit]]) -> 0.8517822257
N72: =IF(Operations!$E72>1,Operations!$E72,IF(Operations!$D72=0,0,Operations!$F72/(VLOOKUP(Operations!$D72,ImpDepLookup,2,FALSE)-VLOOKUP(Operations!$D72,ImpDepLookup,3,FALSE)*Operations!$G72^0.5-VLOOKUP(Operations!$D72,ImpDepLookup,4,FALSE)*(Operations!$G72*(Operations!$G72*Operations!$H72/Operations!$I72)^0.5))^2)) -> 0 | O72: =IF(Operations!$C72="",0,(((Operations!$G72+1)*Operations!$H72/Operations!$I72/1000)^VLOOKUP(Operations!$C72,ImpRepairFac[],4,FALSE)-(Operations!$G72*Operations!$H72/Operations!$I72/1000)^VLOOKUP(Operations!$C72,ImpRepairFac[],4,FALSE))*Operations!$N72*VLOOKUP(Operations!$C72,ImpRepairFac[],3,FALSE)/Operations!$H72) -> 0 | P72: =IF(Operations!$N72=0,0,Operations!$N72*(VLOOKUP(Operations!$D72,ImpDepLookup,2,FALSE)-VLOOKUP(Operations!$D72,ImpDepLookup,3,FALSE)*Operations!$G72^0.5-VLOOKUP(Operations!$D72,ImpDepLookup,4,FALSE)*(Operations!$G72*Operations!$H72/Operations!$I72)^0.5)^2) -> 0 | Q72: =IF(Operations!$N72=0,0,Operations!$N72*(VLOOKUP(Operations!$D72,ImpDepLookup,2,FALSE)-VLOOKUP(Operations!$D72,ImpDepLookup,3,FALSE)*(Operations!$G72+1)^0.5-VLOOKUP(Operations!$D72,ImpDepLookup,4,FALSE)*(Operations!$G72*Operations!$H72/Operations!$I72)^0.5)^2) -> 0 | R72: =IF(Operations!$N72=0,0,IF(Operations!$I72*Operations!$H72=0,0,(Operations!$P72-Operations!$Q72)/(Operations!$H72))) -> 0 | S72: =IF(Operations!$H72=0,0,Operations!$P72*'General Variables'!$B$9/Operations!$H72) -> 0 | T72: =IF(Operations!$H72=0,0,Operations!$P72*'General Variables'!$B$10/Operations!$H72) -> 0 | U72: =SUM(Table3[[#This Row],[Depreciation per Unit]:[Opportunity Cost per Unit]]) -> 0
N73: =IF(Operations!$E73>1,Operations!$E73,IF(Operations!$D73=0,0,Operations!$F73/(VLOOKUP(Operations!$D73,ImpDepLookup,2,FALSE)-VLOOKUP(Operations!$D73,ImpDepLookup,3,FALSE)*Operations!$G73^0.5-VLOOKUP(Operations!$D73,ImpDepLookup,4,FALSE)*(Operations!$G73*(Operations!$G73*Operations!$H73/Operations!$I73)^0.5))^2)) -> 0 | O73: =IF(Operations!$C73="",0,(((Operations!$G73+1)*Operations!$H73/Operations!$I73/1000)^VLOOKUP(Operations!$C73,ImpRepairFac[],4,FALSE)-(Operations!$G73*Operations!$H73/Operations!$I73/1000)^VLOOKUP(Operations!$C73,ImpRepairFac[],4,FALSE))*Operations!$N73*VLOOKUP(Operations!$C73,ImpRepairFac[],3,FALSE)/Operations!$H73) -> 0 | P73: =IF(Operations!$N73=0,0,Operations!$N73*(VLOOKUP(Operations!$D73,ImpDepLookup,2,FALSE)-VLOOKUP(Operations!$D73,ImpDepLookup,3,FALSE)*Operations!$G73^0.5-VLOOKUP(Operations!$D73,ImpDepLookup,4,FALSE)*(Operations!$G73*Operations!$H73/Operations!$I73)^0.5)^2) -> 0 | Q73: =IF(Operations!$N73=0,0,Operations!$N73*(VLOOKUP(Operations!$D73,ImpDepLookup,2,FALSE)-VLOOKUP(Operations!$D73,ImpDepLookup,3,FALSE)*(Operations!$G73+1)^0.5-VLOOKUP(Operations!$D73,ImpDepLookup,4,FALSE)*(Operations!$G73*Operations!$H73/Operations!$I73)^0.5)^2) -> 0 | R73: =IF(Operations!$N73=0,0,IF(Operations!$I73*Operations!$H73=0,0,(Operations!$P73-Operations!$Q73)/(Operations!$H73))) -> 0 | S73: =IF(Operations!$H73=0,0,Operations!$P73*'General Variables'!$B$9/Operations!$H73) -> 0 | T73: =IF(Operations!$H73=0,0,Operations!$P73*'General Variables'!$B$10/Operations!$H73) -> 0 | U73: =SUM(Table3[[#This Row],[Depreciation per Unit]:[Opportunity Cost per Unit]]) -> 0
N74: =IF(Operations!$E74>1,Operations!$E74,IF(Operations!$D74=0,0,Operations!$F74/(VLOOKUP(Operations!$D74,ImpDepLookup,2,FALSE)-VLOOKUP(Operations!$D74,ImpDepLookup,3,FALSE)*Operations!$G74^0.5-VLOOKUP(Operations!$D74,ImpDepLookup,4,FALSE)*(Operations!$G74*(Operations!$G74*Operations!$H74/Operations!$I74)^0.5))^2)) -> 0 | O74: =IF(Operations!$C74="",0,(((Operations!$G74+1)*Operations!$H74/Operations!$I74/1000)^VLOOKUP(Operations!$C74,ImpRepairFac[],4,FALSE)-(Operations!$G74*Operations!$H74/Operations!$I74/1000)^VLOOKUP(Operations!$C74,ImpRepairFac[],4,FALSE))*Operations!$N74*VLOOKUP(Operations!$C74,ImpRepairFac[],3,FALSE)/Operations!$H74) -> 0 | P74: =IF(Operations!$N74=0,0,Operations!$N74*(VLOOKUP(Operations!$D74,ImpDepLookup,2,FALSE)-VLOOKUP(Operations!$D74,ImpDepLookup,3,FALSE)*Operations!$G74^0.5-VLOOKUP(Operations!$D74,ImpDepLookup,4,FALSE)*(Operations!$G74*Operations!$H74/Operations!$I74)^0.5)^2) -> 0 | Q74: =IF(Operations!$N74=0,0,Operations!$N74*(VLOOKUP(Operations!$D74,ImpDepLookup,2,FALSE)-VLOOKUP(Operations!$D74,ImpDepLookup,3,FALSE)*(Operations!$G74+1)^0.5-VLOOKUP(Operations!$D74,ImpDepLookup,4,FALSE)*(Operations!$G74*Operations!$H74/Operations!$I74)^0.5)^2) -> 0 | R74: =IF(Operations!$N74=0,0,IF(Operations!$I74*Operations!$H74=0,0,(Operations!$P74-Operations!$Q74)/(Operations!$H74))) -> 0 | S74: =IF(Operations!$H74=0,0,Operations!$P74*'General Variables'!$B$9/Operations!$H74) -> 0 | T74: =IF(Operations!$H74=0,0,Operations!$P74*'General Variables'!$B$10/Operations!$H74) -> 0 | U74: =SUM(Table3[[#This Row],[Depreciation per Unit]:[Opportunity Cost per Unit]]) -> 0
N75: =IF(Operations!$E75>1,Operations!$E75,IF(Operations!$D75=0,0,Operations!$F75/(VLOOKUP(Operations!$D75,ImpDepLookup,2,FALSE)-VLOOKUP(Operations!$D75,ImpDepLookup,3,FALSE)*Operations!$G75^0.5-VLOOKUP(Operations!$D75,ImpDepLookup,4,FALSE)*(Operations!$G75*(Operations!$G75*Operations!$H75/Operations!$I75)^0.5))^2)) -> 0 | O75: =IF(Operations!$C75="",0,(((Operations!$G75+1)*Operations!$H75/Operations!$I75/1000)^VLOOKUP(Operations!$C75,ImpRepairFac[],4,FALSE)-(Operations!$G75*Operations!$H75/Operations!$I75/1000)^VLOOKUP(Operations!$C75,ImpRepairFac[],4,FALSE))*Operations!$N75*VLOOKUP(Operations!$C75,ImpRepairFac[],3,FALSE)/Operations!$H75) -> 0 | P75: =IF(Operations!$N75=0,0,Operations!$N75*(VLOOKUP(Operations!$D75,ImpDepLookup,2,FALSE)-VLOOKUP(Operations!$D75,ImpDepLookup,3,FALSE)*Operations!$G75^0.5-VLOOKUP(Operations!$D75,ImpDepLookup,4,FALSE)*(Operations!$G75*Operations!$H75/Operations!$I75)^0.5)^2) -> 0 | Q75: =IF(Operations!$N75=0,0,Operations!$N75*(VLOOKUP(Operations!$D75,ImpDepLookup,2,FALSE)-VLOOKUP(Operations!$D75,ImpDepLookup,3,FALSE)*(Operations!$G75+1)^0.5-VLOOKUP(Operations!$D75,ImpDepLookup,4,FALSE)*(Operations!$G75*Operations!$H75/Operations!$I75)^0.5)^2) -> 0 | R75: =IF(Operations!$N75=0,0,IF(Operations!$I75*Operations!$H75=0,0,(Operations!$P75-Operations!$Q75)/(Operations!$H75))) -> 0 | S75: =IF(Operations!$H75=0,0,Operations!$P75*'General Variables'!$B$9/Operations!$H75) -> 0 | T75: =IF(Operations!$H75=0,0,Operations!$P75*'General Variables'!$B$10/Operations!$H75) -> 0 | U75: =SUM(Table3[[#This Row],[Depreciation per Unit]:[Opportunity Cost per Unit]]) -> 0
N76: =IF(Operations!$E76>1,Operations!$E76,IF(Operations!$D76=0,0,Operations!$F76/(VLOOKUP(Operations!$D76,ImpDepLookup,2,FALSE)-VLOOKUP(Operations!$D76,ImpDepLookup,3,FALSE)*Operations!$G76^0.5-VLOOKUP(Operations!$D76,ImpDepLookup,4,FALSE)*(Operations!$G76*(Operations!$G76*Operations!$H76/Operations!$I76)^0.5))^2)) -> 0 | O76: =IF(Operations!$C76="",0,(((Operations!$G76+1)*Operations!$H76/Operations!$I76/1000)^VLOOKUP(Operations!$C76,ImpRepairFac[],4,FALSE)-(Operations!$G76*Operations!$H76/Operations!$I76/1000)^VLOOKUP(Operations!$C76,ImpRepairFac[],4,FALSE))*Operations!$N76*VLOOKUP(Operations!$C76,ImpRepairFac[],3,FALSE)/Operations!$H76) -> 0 | P76: =IF(Operations!$N76=0,0,Operations!$N76*(VLOOKUP(Operations!$D76,ImpDepLookup,2,FALSE)-VLOOKUP(Operations!$D76,ImpDepLookup,3,FALSE)*Operations!$G76^0.5-VLOOKUP(Operations!$D76,ImpDepLookup,4,FALSE)*(Operations!$G76*Operations!$H76/Operations!$I76)^0.5)^2) -> 0 | Q76: =IF(Operations!$N76=0,0,Operations!$N76*(VLOOKUP(Operations!$D76,ImpDepLookup,2,FALSE)-VLOOKUP(Operations!$D76,ImpDepLookup,3,FALSE)*(Operations!$G76+1)^0.5-VLOOKUP(Operations!$D76,ImpDepLookup,4,FALSE)*(Operations!$G76*Operations!$H76/Operations!$I76)^0.5)^2) -> 0 | R76: =IF(Operations!$N76=0,0,IF(Operations!$I76*Operations!$H76=0,0,(Operations!$P76-Operations!$Q76)/(Operations!$H76))) -> 0 | S76: =IF(Operations!$H76=0,0,Operations!$P76*'General Variables'!$B$9/Operations!$H76) -> 0 | T76: =IF(Operations!$H76=0,0,Operations!$P76*'General Variables'!$B$10/Operations!$H76) -> 0 | U76: =SUM(Table3[[#This Row],[Depreciation per Unit]:[Opportunity Cost per Unit]]) -> 0
N77: =IF(Operations!$E77>1,Operations!$E77,IF(Operations!$D77=0,0,Operations!$F77/(VLOOKUP(Operations!$D77,ImpDepLookup,2,FALSE)-VLOOKUP(Operations!$D77,ImpDepLookup,3,FALSE)*Operations!$G77^0.5-VLOOKUP(Operations!$D77,ImpDepLookup,4,FALSE)*(Operations!$G77*(Operations!$G77*Operations!$H77/Operations!$I77)^0.5))^2)) -> 0 | O77: =IF(Operations!$C77="",0,(((Operations!$G77+1)*Operations!$H77/Operations!$I77/1000)^VLOOKUP(Operations!$C77,ImpRepairFac[],4,FALSE)-(Operations!$G77*Operations!$H77/Operations!$I77/1000)^VLOOKUP(Operations!$C77,ImpRepairFac[],4,FALSE))*Operations!$N77*VLOOKUP(Operations!$C77,ImpRepairFac[],3,FALSE)/Operations!$H77) -> 0 | P77: =IF(Operations!$N77=0,0,Operations!$N77*(VLOOKUP(Operations!$D77,ImpDepLookup,2,FALSE)-VLOOKUP(Operations!$D77,ImpDepLookup,3,FALSE)*Operations!$G77^0.5-VLOOKUP(Operations!$D77,ImpDepLookup,4,FALSE)*(Operations!$G77*Operations!$H77/Operations!$I77)^0.5)^2) -> 0 | Q77: =IF(Operations!$N77=0,0,Operations!$N77*(VLOOKUP(Operations!$D77,ImpDepLookup,2,FALSE)-VLOOKUP(Operations!$D77,ImpDepLookup,3,FALSE)*(Operations!$G77+1)^0.5-VLOOKUP(Operations!$D77,ImpDepLookup,4,FALSE)*(Operations!$G77*Operations!$H77/Operations!$I77)^0.5)^2) -> 0 | R77: =IF(Operations!$N77=0,0,IF(Operations!$I77*Operations!$H77=0,0,(Operations!$P77-Operations!$Q77)/(Operations!$H77))) -> 0 | S77: =IF(Operations!$H77=0,0,Operations!$P77*'General Variables'!$B$9/Operations!$H77) -> 0 | T77: =IF(Operations!$H77=0,0,Operations!$P77*'General Variables'!$B$10/Operations!$H77) -> 0 | U77: =SUM(Table3[[#This Row],[Depreciation per Unit]:[Opportunity Cost per Unit]]) -> 0
N78: =IF(Operations!$E78>1,Operations!$E78,IF(Operations!$D78=0,0,Operations!$F78/(VLOOKUP(Operations!$D78,ImpDepLookup,2,FALSE)-VLOOKUP(Operations!$D78,ImpDepLookup,3,FALSE)*Operations!$G78^0.5-VLOOKUP(Operations!$D78,ImpDepLookup,4,FALSE)*(Operations!$G78*(Operations!$G78*Operations!$H78/Operations!$I78)^0.5))^2)) -> 0 | O78: =IF(Operations!$C78="",0,(((Operations!$G78+1)*Operations!$H78/Operations!$I78/1000)^VLOOKUP(Operations!$C78,ImpRepairFac[],4,FALSE)-(Operations!$G78*Operations!$H78/Operations!$I78/1000)^VLOOKUP(Operations!$C78,ImpRepairFac[],4,FALSE))*Operations!$N78*VLOOKUP(Operations!$C78,ImpRepairFac[],3,FALSE)/Operations!$H78) -> 0 | P78: =IF(Operations!$N78=0,0,Operations!$N78*(VLOOKUP(Operations!$D78,ImpDepLookup,2,FALSE)-VLOOKUP(Operations!$D78,ImpDepLookup,3,FALSE)*Operations!$G78^0.5-VLOOKUP(Operations!$D78,ImpDepLookup,4,FALSE)*(Operations!$G78*Operations!$H78/Operations!$I78)^0.5)^2) -> 0 | Q78: =IF(Operations!$N78=0,0,Operations!$N78*(VLOOKUP(Operations!$D78,ImpDepLookup,2,FALSE)-VLOOKUP(Operations!$D78,ImpDepLookup,3,FALSE)*(Operations!$G78+1)^0.5-VLOOKUP(Operations!$D78,ImpDepLookup,4,FALSE)*(Operations!$G78*Operations!$H78/Operations!$I78)^0.5)^2) -> 0 | R78: =IF(Operations!$N78=0,0,IF(Operations!$I78*Operations!$H78=0,0,(Operations!$P78-Operations!$Q78)/(Operations!$H78))) -> 0 | S78: =IF(Operations!$H78=0,0,Operations!$P78*'General Variables'!$B$9/Operations!$H78) -> 0 | T78: =IF(Operations!$H78=0,0,Operations!$P78*'General Variables'!$B$10/Operations!$H78) -> 0 | U78: =SUM(Table3[[#This Row],[Depreciation per Unit]:[Opportunity Cost per Unit]]) -> 0
N79: =IF(Operations!$E79>1,Operations!$E79,IF(Operations!$D79=0,0,Operations!$F79/(VLOOKUP(Operations!$D79,ImpDepLookup,2,FALSE)-VLOOKUP(Operations!$D79,ImpDepLookup,3,FALSE)*Operations!$G79^0.5-VLOOKUP(Operations!$D79,ImpDepLookup,4,FALSE)*(Operations!$G79*(Operations!$G79*Operations!$H79/Operations!$I79)^0.5))^2)) -> 0 | O79: =IF(Operations!$C79="",0,(((Operations!$G79+1)*Operations!$H79/Operations!$I79/1000)^VLOOKUP(Operations!$C79,ImpRepairFac[],4,FALSE)-(Operations!$G79*Operations!$H79/Operations!$I79/1000)^VLOOKUP(Operations!$C79,ImpRepairFac[],4,FALSE))*Operations!$N79*VLOOKUP(Operations!$C79,ImpRepairFac[],3,FALSE)/Operations!$H79) -> 0 | P79: =IF(Operations!$N79=0,0,Operations!$N79*(VLOOKUP(Operations!$D79,ImpDepLookup,2,FALSE)-VLOOKUP(Operations!$D79,ImpDepLookup,3,FALSE)*Operations!$G79^0.5-VLOOKUP(Operations!$D79,ImpDepLookup,4,FALSE)*(Operations!$G79*Operations!$H79/Operations!$I79)^0.5)^2) -> 0 | Q79: =IF(Operations!$N79=0,0,Operations!$N79*(VLOOKUP(Operations!$D79,ImpDepLookup,2,FALSE)-VLOOKUP(Operations!$D79,ImpDepLookup,3,FALSE)*(Operations!$G79+1)^0.5-VLOOKUP(Operations!$D79,ImpDepLookup,4,FALSE)*(Operations!$G79*Operations!$H79/Operations!$I79)^0.5)^2) -> 0 | R79: =IF(Operations!$N79=0,0,IF(Operations!$I79*Operations!$H79=0,0,(Operations!$P79-Operations!$Q79)/(Operations!$H79))) -> 0 | S79: =IF(Operations!$H79=0,0,Operations!$P79*'General Variables'!$B$9/Operations!$H79) -> 0 | T79: =IF(Operations!$H79=0,0,Operations!$P79*'General Variables'!$B$10/Operations!$H79) -> 0 | U79: =SUM(Table3[[#This Row],[Depreciation per Unit]:[Opportunity Cost per Unit]]) -> 0
N80: =IF(Operations!$E80>1,Operations!$E80,IF(Operations!$D80=0,0,Operations!$F80/(VLOOKUP(Operations!$D80,ImpDepLookup,2,FALSE)-VLOOKUP(Operations!$D80,ImpDepLookup,3,FALSE)*Operations!$G80^0.5-VLOOKUP(Operations!$D80,ImpDepLookup,4,FALSE)*(Operations!$G80*(Operations!$G80*Operations!$H80/Operations!$I80)^0.5))^2)) -> 0 | O80: =IF(Operations!$C80="",0,(((Operations!$G80+1)*Operations!$H80/Operations!$I80/1000)^VLOOKUP(Operations!$C80,ImpRepairFac[],4,FALSE)-(Operations!$G80*Operations!$H80/Operations!$I80/1000)^VLOOKUP(Operations!$C80,ImpRepairFac[],4,FALSE))*Operations!$N80*VLOOKUP(Operations!$C80,ImpRepairFac[],3,FALSE)/Operations!$H80) -> 0 | P80: =IF(Operations!$N80=0,0,Operations!$N80*(VLOOKUP(Operations!$D80,ImpDepLookup,2,FALSE)-VLOOKUP(Operations!$D80,ImpDepLookup,3,FALSE)*Operations!$G80^0.5-VLOOKUP(Operations!$D80,ImpDepLookup,4,FALSE)*(Operations!$G80*Operations!$H80/Operations!$I80)^0.5)^2) -> 0 | Q80: =IF(Operations!$N80=0,0,Operations!$N80*(VLOOKUP(Operations!$D80,ImpDepLookup,2,FALSE)-VLOOKUP(Operations!$D80,ImpDepLookup,3,FALSE)*(Operations!$G80+1)^0.5-VLOOKUP(Operations!$D80,ImpDepLookup,4,FALSE)*(Operations!$G80*Operations!$H80/Operations!$I80)^0.5)^2) -> 0 | R80: =IF(Operations!$N80=0,0,IF(Operations!$I80*Operations!$H80=0,0,(Operations!$P80-Operations!$Q80)/(Operations!$H80))) -> 0 | S80: =IF(Operations!$H80=0,0,Operations!$P80*'General Variables'!$B$9/Operations!$H80) -> 0 | T80: =IF(Operations!$H80=0,0,Operations!$P80*'General Variables'!$B$10/Operations!$H80) -> 0 | U80: =SUM(Table3[[#This Row],[Depreciation per Unit]:[Opportunity Cost per Unit]]) -> 0
N81: =IF(Operations!$E81>1,Operations!$E81,IF(Operations!$D81=0,0,Operations!$F81/(VLOOKUP(Operations!$D81,ImpDepLookup,2,FALSE)-VLOOKUP(Operations!$D81,ImpDepLookup,3,FALSE)*Operations!$G81^0.5-VLOOKUP(Operations!$D81,ImpDepLookup,4,FALSE)*(Operations!$G81*(Operations!$G81*Operations!$H81/Operations!$I81)^0.5))^2)) -> 0 | O81: =IF(Operations!$C81="",0,(((Operations!$G81+1)*Operations!$H81/Operations!$I81/1000)^VLOOKUP(Operations!$C81,ImpRepairFac[],4,FALSE)-(Operations!$G81*Operations!$H81/Operations!$I81/1000)^VLOOKUP(Operations!$C81,ImpRepairFac[],4,FALSE))*Operations!$N81*VLOOKUP(Operations!$C81,ImpRepairFac[],3,FALSE)/Operations!$H81) -> 0 | P81: =IF(Operations!$N81=0,0,Operations!$N81*(VLOOKUP(Operations!$D81,ImpDepLookup,2,FALSE)-VLOOKUP(Operations!$D81,ImpDepLookup,3,FALSE)*Operations!$G81^0.5-VLOOKUP(Operations!$D81,ImpDepLookup,4,FALSE)*(Operations!$G81*Operations!$H81/Operations!$I81)^0.5)^2) -> 0 | Q81: =IF(Operations!$N81=0,0,Operations!$N81*(VLOOKUP(Operations!$D81,ImpDepLookup,2,FALSE)-VLOOKUP(Operations!$D81,ImpDepLookup,3,FALSE)*(Operations!$G81+1)^0.5-VLOOKUP(Operations!$D81,ImpDepLookup,4,FALSE)*(Operations!$G81*Operations!$H81/Operations!$I81)^0.5)^2) -> 0 | R81: =IF(Operations!$N81=0,0,IF(Operations!$I81*Operations!$H81=0,0,(Operations!$P81-Operations!$Q81)/(Operations!$H81))) -> 0 | S81: =IF(Operations!$H81=0,0,Operations!$P81*'General Variables'!$B$9/Operations!$H81) -> 0 | T81: =IF(Operations!$H81=0,0,Operations!$P81*'General Variables'!$B$10/Operations!$H81) -> 0 | U81: =SUM(Table3[[#This Row],[Depreciation per Unit]:[Opportunity Cost per Unit]]) -> 0
N82: =IF(Operations!$E82>1,Operations!$E82,IF(Operations!$D82=0,0,Operations!$F82/(VLOOKUP(Operations!$D82,ImpDepLookup,2,FALSE)-VLOOKUP(Operations!$D82,ImpDepLookup,3,FALSE)*Operations!$G82^0.5-VLOOKUP(Operations!$D82,ImpDepLookup,4,FALSE)*(Operations!$G82*(Operations!$G82*Operations!$H82/Operations!$I82)^0.5))^2)) -> 0 | O82: =IF(Operations!$C82="",0,(((Operations!$G82+1)*Operations!$H82/Operations!$I82/1000)^VLOOKUP(Operations!$C82,ImpRepairFac[],4,FALSE)-(Operations!$G82*Operations!$H82/Operations!$I82/1000)^VLOOKUP(Operations!$C82,ImpRepairFac[],4,FALSE))*Operations!$N82*VLOOKUP(Operations!$C82,ImpRepairFac[],3,FALSE)/Operations!$H82) -> 0 | P82: =IF(Operations!$N82=0,0,Operations!$N82*(VLOOKUP(Operations!$D82,ImpDepLookup,2,FALSE)-VLOOKUP(Operations!$D82,ImpDepLookup,3,FALSE)*Operations!$G82^0.5-VLOOKUP(Operations!$D82,ImpDepLookup,4,FALSE)*(Operations!$G82*Operations!$H82/Operations!$I82)^0.5)^2) -> 0 | Q82: =IF(Operations!$N82=0,0,Operations!$N82*(VLOOKUP(Operations!$D82,ImpDepLookup,2,FALSE)-VLOOKUP(Operations!$D82,ImpDepLookup,3,FALSE)*(Operations!$G82+1)^0.5-VLOOKUP(Operations!$D82,ImpDepLookup,4,FALSE)*(Operations!$G82*Operations!$H82/Operations!$I82)^0.5)^2) -> 0 | R82: =IF(Operations!$N82=0,0,IF(Operations!$I82*Operations!$H82=0,0,(Operations!$P82-Operations!$Q82)/(Operations!$H82))) -> 0 | S82: =IF(Operations!$H82=0,0,Operations!$P82*'General Variables'!$B$9/Operations!$H82) -> 0 | T82: =IF(Operations!$H82=0,0,Operations!$P82*'General Variables'!$B$10/Operations!$H82) -> 0 | U82: =SUM(Table3[[#This Row],[Depreciation per Unit]:[Opportunity Cost per Unit]]) -> 0
N83: =IF(Operations!$E83>1,Operations!$E83,IF(Operations!$D83=0,0,Operations!$F83/(VLOOKUP(Operations!$D83,ImpDepLookup,2,FALSE)-VLOOKUP(Operations!$D83,ImpDepLookup,3,FALSE)*Operations!$G83^0.5-VLOOKUP(Operations!$D83,ImpDepLookup,4,FALSE)*(Operations!$G83*(Operations!$G83*Operations!$H83/Operations!$I83)^0.5))^2)) -> 0 | O83: =IF(Operations!$C83="",0,(((Operations!$G83+1)*Operations!$H83/Operations!$I83/1000)^VLOOKUP(Operations!$C83,ImpRepairFac[],4,FALSE)-(Operations!$G83*Operations!$H83/Operations!$I83/1000)^VLOOKUP(Operations!$C83,ImpRepairFac[],4,FALSE))*Operations!$N83*VLOOKUP(Operations!$C83,ImpRepairFac[],3,FALSE)/Operations!$H83) -> 0 | P83: =IF(Operations!$N83=0,0,Operations!$N83*(VLOOKUP(Operations!$D83,ImpDepLookup,2,FALSE)-VLOOKUP(Operations!$D83,ImpDepLookup,3,FALSE)*Operations!$G83^0.5-VLOOKUP(Operations!$D83,ImpDepLookup,4,FALSE)*(Operations!$G83*Operations!$H83/Operations!$I83)^0.5)^2) -> 0 | Q83: =IF(Operations!$N83=0,0,Operations!$N83*(VLOOKUP(Operations!$D83,ImpDepLookup,2,FALSE)-VLOOKUP(Operations!$D83,ImpDepLookup,3,FALSE)*(Operations!$G83+1)^0.5-VLOOKUP(Operations!$D83,ImpDepLookup,4,FALSE)*(Operations!$G83*Operations!$H83/Operations!$I83)^0.5)^2) -> 0 | R83: =IF(Operations!$N83=0,0,IF(Operations!$I83*Operations!$H83=0,0,(Operations!$P83-Operations!$Q83)/(Operations!$H83))) -> 0 | S83: =IF(Operations!$H83=0,0,Operations!$P83*'General Variables'!$B$9/Operations!$H83) -> 0 | T83: =IF(Operations!$H83=0,0,Operations!$P83*'General Variables'!$B$10/Operations!$H83) -> 0 | U83: =SUM(Table3[[#This Row],[Depreciation per Unit]:[Opportunity Cost per Unit]]) -> 0
N84: =IF(Operations!$E84>1,Operations!$E84,IF(Operations!$D84=0,0,Operations!$F84/(VLOOKUP(Operations!$D84,ImpDepLookup,2,FALSE)-VLOOKUP(Operations!$D84,ImpDepLookup,3,FALSE)*Operations!$G84^0.5-VLOOKUP(Operations!$D84,ImpDepLookup,4,FALSE)*(Operations!$G84*(Operations!$G84*Operations!$H84/Operations!$I84)^0.5))^2)) -> 0 | O84: =IF(Operations!$C84="",0,(((Operations!$G84+1)*Operations!$H84/Operations!$I84/1000)^VLOOKUP(Operations!$C84,ImpRepairFac[],4,FALSE)-(Operations!$G84*Operations!$H84/Operations!$I84/1000)^VLOOKUP(Operations!$C84,ImpRepairFac[],4,FALSE))*Operations!$N84*VLOOKUP(Operations!$C84,ImpRepairFac[],3,FALSE)/Operations!$H84) -> 0 | P84: =IF(Operations!$N84=0,0,Operations!$N84*(VLOOKUP(Operations!$D84,ImpDepLookup,2,FALSE)-VLOOKUP(Operations!$D84,ImpDepLookup,3,FALSE)*Operations!$G84^0.5-VLOOKUP(Operations!$D84,ImpDepLookup,4,FALSE)*(Operations!$G84*Operations!$H84/Operations!$I84)^0.5)^2) -> 0 | Q84: =IF(Operations!$N84=0,0,Operations!$N84*(VLOOKUP(Operations!$D84,ImpDepLookup,2,FALSE)-VLOOKUP(Operations!$D84,ImpDepLookup,3,FALSE)*(Operations!$G84+1)^0.5-VLOOKUP(Operations!$D84,ImpDepLookup,4,FALSE)*(Operations!$G84*Operations!$H84/Operations!$I84)^0.5)^2) -> 0 | R84: =IF(Operations!$N84=0,0,IF(Operations!$I84*Operations!$H84=0,0,(Operations!$P84-Operations!$Q84)/(Operations!$H84))) -> 0 | S84: =IF(Operations!$H84=0,0,Operations!$P84*'General Variables'!$B$9/Operations!$H84) -> 0 | T84: =IF(Operations!$H84=0,0,Operations!$P84*'General Variables'!$B$10/Operations!$H84) -> 0 | U84: =SUM(Table3[[#This Row],[Depreciation per Unit]:[Opportunity Cost per Unit]]) -> 0
N85: =IF(Operations!$E85>1,Operations!$E85,IF(Operations!$D85=0,0,Operations!$F85/(VLOOKUP(Operations!$D85,ImpDepLookup,2,FALSE)-VLOOKUP(Operations!$D85,ImpDepLookup,3,FALSE)*Operations!$G85^0.5-VLOOKUP(Operations!$D85,ImpDepLookup,4,FALSE)*(Operations!$G85*(Operations!$G85*Operations!$H85/Operations!$I85)^0.5))^2)) -> 0 | O85: =IF(Operations!$C85="",0,(((Operations!$G85+1)*Operations!$H85/Operations!$I85/1000)^VLOOKUP(Operations!$C85,ImpRepairFac[],4,FALSE)-(Operations!$G85*Operations!$H85/Operations!$I85/1000)^VLOOKUP(Operations!$C85,ImpRepairFac[],4,FALSE))*Operations!$N85*VLOOKUP(Operations!$C85,ImpRepairFac[],3,FALSE)/Operations!$H85) -> 0 | P85: =IF(Operations!$N85=0,0,Operations!$N85*(VLOOKUP(Operations!$D85,ImpDepLookup,2,FALSE)-VLOOKUP(Operations!$D85,ImpDepLookup,3,FALSE)*Operations!$G85^0.5-VLOOKUP(Operations!$D85,ImpDepLookup,4,FALSE)*(Operations!$G85*Operations!$H85/Operations!$I85)^0.5)^2) -> 0 | Q85: =IF(Operations!$N85=0,0,Operations!$N85*(VLOOKUP(Operations!$D85,ImpDepLookup,2,FALSE)-VLOOKUP(Operations!$D85,ImpDepLookup,3,FALSE)*(Operations!$G85+1)^0.5-VLOOKUP(Operations!$D85,ImpDepLookup,4,FALSE)*(Operations!$G85*Operations!$H85/Operations!$I85)^0.5)^2) -> 0 | R85: =IF(Operations!$N85=0,0,IF(Operations!$I85*Operations!$H85=0,0,(Operations!$P85-Operations!$Q85)/(Operations!$H85))) -> 0 | S85: =IF(Operations!$H85=0,0,Operations!$P85*'General Variables'!$B$9/Operations!$H85) -> 0 | T85: =IF(Operations!$H85=0,0,Operations!$P85*'General Variables'!$B$10/Operations!$H85) -> 0 | U85: =SUM(Table3[[#This Row],[Depreciation per Unit]:[Opportunity Cost per Unit]]) -> 0
N86: =IF(Operations!$E86>1,Operations!$E86,IF(Operations!$D86=0,0,Operations!$F86/(VLOOKUP(Operations!$D86,ImpDepLookup,2,FALSE)-VLOOKUP(Operations!$D86,ImpDepLookup,3,FALSE)*Operations!$G86^0.5-VLOOKUP(Operations!$D86,ImpDepLookup,4,FALSE)*(Operations!$G86*(Operations!$G86*Operations!$H86/Operations!$I86)^0.5))^2)) -> 0 | O86: =IF(Operations!$C86="",0,(((Operations!$G86+1)*Operations!$H86/Operations!$I86/1000)^VLOOKUP(Operations!$C86,ImpRepairFac[],4,FALSE)-(Operations!$G86*Operations!$H86/Operations!$I86/1000)^VLOOKUP(Operations!$C86,ImpRepairFac[],4,FALSE))*Operations!$N86*VLOOKUP(Operations!$C86,ImpRepairFac[],3,FALSE)/Operations!$H86) -> 0 | P86: =IF(Operations!$N86=0,0,Operations!$N86*(VLOOKUP(Operations!$D86,ImpDepLookup,2,FALSE)-VLOOKUP(Operations!$D86,ImpDepLookup,3,FALSE)*Operations!$G86^0.5-VLOOKUP(Operations!$D86,ImpDepLookup,4,FALSE)*(Operations!$G86*Operations!$H86/Operations!$I86)^0.5)^2) -> 0 | Q86: =IF(Operations!$N86=0,0,Operations!$N86*(VLOOKUP(Operations!$D86,ImpDepLookup,2,FALSE)-VLOOKUP(Operations!$D86,ImpDepLookup,3,FALSE)*(Operations!$G86+1)^0.5-VLOOKUP(Operations!$D86,ImpDepLookup,4,FALSE)*(Operations!$G86*Operations!$H86/Operations!$I86)^0.5)^2) -> 0 | R86: =IF(Operations!$N86=0,0,IF(Operations!$I86*Operations!$H86=0,0,(Operations!$P86-Operations!$Q86)/(Operations!$H86))) -> 0 | S86: =IF(Operations!$H86=0,0,Operations!$P86*'General Variables'!$B$9/Operations!$H86) -> 0 | T86: =IF(Operations!$H86=0,0,Operations!$P86*'General Variables'!$B$10/Operations!$H86) -> 0 | U86: =SUM(Table3[[#This Row],[Depreciation per Unit]:[Opportunity Cost per Unit]]) -> 0
N87: =IF(Operations!$E87>1,Operations!$E87,IF(Operations!$D87=0,0,Operations!$F87/(VLOOKUP(Operations!$D87,ImpDepLookup,2,FALSE)-VLOOKUP(Operations!$D87,ImpDepLookup,3,FALSE)*Operations!$G87^0.5-VLOOKUP(Operations!$D87,ImpDepLookup,4,FALSE)*(Operations!$G87*(Operations!$G87*Operations!$H87/Operations!$I87)^0.5))^2)) -> 0 | O87: =IF(Operations!$C87="",0,(((Operations!$G87+1)*Operations!$H87/Operations!$I87/1000)^VLOOKUP(Operations!$C87,ImpRepairFac[],4,FALSE)-(Operations!$G87*Operations!$H87/Operations!$I87/1000)^VLOOKUP(Operations!$C87,ImpRepairFac[],4,FALSE))*Operations!$N87*VLOOKUP(Operations!$C87,ImpRepairFac[],3,FALSE)/Operations!$H87) -> 0 | P87: =IF(Operations!$N87=0,0,Operations!$N87*(VLOOKUP(Operations!$D87,ImpDepLookup,2,FALSE)-VLOOKUP(Operations!$D87,ImpDepLookup,3,FALSE)*Operations!$G87^0.5-VLOOKUP(Operations!$D87,ImpDepLookup,4,FALSE)*(Operations!$G87*Operations!$H87/Operations!$I87)^0.5)^2) -> 0 | Q87: =IF(Operations!$N87=0,0,Operations!$N87*(VLOOKUP(Operations!$D87,ImpDepLookup,2,FALSE)-VLOOKUP(Operations!$D87,ImpDepLookup,3,FALSE)*(Operations!$G87+1)^0.5-VLOOKUP(Operations!$D87,ImpDepLookup,4,FALSE)*(Operations!$G87*Operations!$H87/Operations!$I87)^0.5)^2) -> 0 | R87: =IF(Operations!$N87=0,0,IF(Operations!$I87*Operations!$H87=0,0,(Operations!$P87-Operations!$Q87)/(Operations!$H87))) -> 0 | S87: =IF(Operations!$H87=0,0,Operations!$P87*'General Variables'!$B$9/Operations!$H87) -> 0 | T87: =IF(Operations!$H87=0,0,Operations!$P87*'General Variables'!$B$10/Operations!$H87) -> 0 | U87: =SUM(Table3[[#This Row],[Depreciation per Unit]:[Opportunity Cost per Unit]]) -> 0
N88: =IF(Operations!$E88>1,Operations!$E88,IF(Operations!$D88=0,0,Operations!$F88/(VLOOKUP(Operations!$D88,ImpDepLookup,2,FALSE)-VLOOKUP(Operations!$D88,ImpDepLookup,3,FALSE)*Operations!$G88^0.5-VLOOKUP(Operations!$D88,ImpDepLookup,4,FALSE)*(Operations!$G88*(Operations!$G88*Operations!$H88/Operations!$I88)^0.5))^2)) -> 0 | O88: =IF(Operations!$C88="",0,(((Operations!$G88+1)*Operations!$H88/Operations!$I88/1000)^VLOOKUP(Operations!$C88,ImpRepairFac[],4,FALSE)-(Operations!$G88*Operations!$H88/Operations!$I88/1000)^VLOOKUP(Operations!$C88,ImpRepairFac[],4,FALSE))*Operations!$N88*VLOOKUP(Operations!$C88,ImpRepairFac[],3,FALSE)/Operations!$H88) -> 0 | P88: =IF(Operations!$N88=0,0,Operations!$N88*(VLOOKUP(Operations!$D88,ImpDepLookup,2,FALSE)-VLOOKUP(Operations!$D88,ImpDepLookup,3,FALSE)*Operations!$G88^0.5-VLOOKUP(Operations!$D88,ImpDepLookup,4,FALSE)*(Operations!$G88*Operations!$H88/Operations!$I88)^0.5)^2) -> 0 | Q88: =IF(Operations!$N88=0,0,Operations!$N88*(VLOOKUP(Operations!$D88,ImpDepLookup,2,FALSE)-VLOOKUP(Operations!$D88,ImpDepLookup,3,FALSE)*(Operations!$G88+1)^0.5-VLOOKUP(Operations!$D88,ImpDepLookup,4,FALSE)*(Operations!$G88*Operations!$H88/Operations!$I88)^0.5)^2) -> 0 | R88: =IF(Operations!$N88=0,0,IF(Operations!$I88*Operations!$H88=0,0,(Operations!$P88-Operations!$Q88)/(Operations!$H88))) -> 0 | S88: =IF(Operations!$H88=0,0,Operations!$P88*'General Variables'!$B$9/Operations!$H88) -> 0 | T88: =IF(Operations!$H88=0,0,Operations!$P88*'General Variables'!$B$10/Operations!$H88) -> 0 | U88: =SUM(Table3[[#This Row],[Depreciation per Unit]:[Opportunity Cost per Unit]]) -> 0
N89: =IF(Operations!$E89>1,Operations!$E89,IF(Operations!$D89=0,0,Operations!$F89/(VLOOKUP(Operations!$D89,ImpDepLookup,2,FALSE)-VLOOKUP(Operations!$D89,ImpDepLookup,3,FALSE)*Operations!$G89^0.5-VLOOKUP(Operations!$D89,ImpDepLookup,4,FALSE)*(Operations!$G89*(Operations!$G89*Operations!$H89/Operations!$I89)^0.5))^2)) -> 0 | O89: =IF(Operations!$C89="",0,(((Operations!$G89+1)*Operations!$H89/Operations!$I89/1000)^VLOOKUP(Operations!$C89,ImpRepairFac[],4,FALSE)-(Operations!$G89*Operations!$H89/Operations!$I89/1000)^VLOOKUP(Operations!$C89,ImpRepairFac[],4,FALSE))*Operations!$N89*VLOOKUP(Operations!$C89,ImpRepairFac[],3,FALSE)/Operations!$H89) -> 0 | P89: =IF(Operations!$N89=0,0,Operations!$N89*(VLOOKUP(Operations!$D89,ImpDepLookup,2,FALSE)-VLOOKUP(Operations!$D89,ImpDepLookup,3,FALSE)*Operations!$G89^0.5-VLOOKUP(Operations!$D89,ImpDepLookup,4,FALSE)*(Operations!$G89*Operations!$H89/Operations!$I89)^0.5)^2) -> 0 | Q89: =IF(Operations!$N89=0,0,Operations!$N89*(VLOOKUP(Operations!$D89,ImpDepLookup,2,FALSE)-VLOOKUP(Operations!$D89,ImpDepLookup,3,FALSE)*(Operations!$G89+1)^0.5-VLOOKUP(Operations!$D89,ImpDepLookup,4,FALSE)*(Operations!$G89*Operations!$H89/Operations!$I89)^0.5)^2) -> 0 | R89: =IF(Operations!$N89=0,0,IF(Operations!$I89*Operations!$H89=0,0,(Operations!$P89-Operations!$Q89)/(Operations!$H89))) -> 0 | S89: =IF(Operations!$H89=0,0,Operations!$P89*'General Variables'!$B$9/Operations!$H89) -> 0 | T89: =IF(Operations!$H89=0,0,Operations!$P89*'General Variables'!$B$10/Operations!$H89) -> 0 | U89: =SUM(Table3[[#This Row],[Depreciation per Unit]:[Opportunity Cost per Unit]]) -> 0
N90: =IF(Operations!$E90>1,Operations!$E90,IF(Operations!$D90=0,0,Operations!$F90/(VLOOKUP(Operations!$D90,ImpDepLookup,2,FALSE)-VLOOKUP(Operations!$D90,ImpDepLookup,3,FALSE)*Operations!$G90^0.5-VLOOKUP(Operations!$D90,ImpDepLookup,4,FALSE)*(Operations!$G90*(Operations!$G90*Operations!$H90/Operations!$I90)^0.5))^2)) -> 0 | O90: =IF(Operations!$C90="",0,(((Operations!$G90+1)*Operations!$H90/Operations!$I90/1000)^VLOOKUP(Operations!$C90,ImpRepairFac[],4,FALSE)-(Operations!$G90*Operations!$H90/Operations!$I90/1000)^VLOOKUP(Operations!$C90,ImpRepairFac[],4,FALSE))*Operations!$N90*VLOOKUP(Operations!$C90,ImpRepairFac[],3,FALSE)/Operations!$H90) -> 0 | P90: =IF(Operations!$N90=0,0,Operations!$N90*(VLOOKUP(Operations!$D90,ImpDepLookup,2,FALSE)-VLOOKUP(Operations!$D90,ImpDepLookup,3,FALSE)*Operations!$G90^0.5-VLOOKUP(Operations!$D90,ImpDepLookup,4,FALSE)*(Operations!$G90*Operations!$H90/Operations!$I90)^0.5)^2) -> 0 | Q90: =IF(Operations!$N90=0,0,Operations!$N90*(VLOOKUP(Operations!$D90,ImpDepLookup,2,FALSE)-VLOOKUP(Operations!$D90,ImpDepLookup,3,FALSE)*(Operations!$G90+1)^0.5-VLOOKUP(Operations!$D90,ImpDepLookup,4,FALSE)*(Operations!$G90*Operations!$H90/Operations!$I90)^0.5)^2) -> 0 | R90: =IF(Operations!$N90=0,0,IF(Operations!$I90*Operations!$H90=0,0,(Operations!$P90-Operations!$Q90)/(Operations!$H90))) -> 0 | S90: =IF(Operations!$H90=0,0,Operations!$P90*'General Variables'!$B$9/Operations!$H90) -> 0 | T90: =IF(Operations!$H90=0,0,Operations!$P90*'General Variables'!$B$10/Operations!$H90) -> 0 | U90: =SUM(Table3[[#This Row],[Depreciation per Unit]:[Opportunity Cost per Unit]]) -> 0
N91: =IF(Operations!$E91>1,Operations!$E91,IF(Operations!$D91=0,0,Operations!$F91/(VLOOKUP(Operations!$D91,ImpDepLookup,2,FALSE)-VLOOKUP(Operations!$D91,ImpDepLookup,3,FALSE)*Operations!$G91^0.5-VLOOKUP(Operations!$D91,ImpDepLookup,4,FALSE)*(Operations!$G91*(Operations!$G91*Operations!$H91/Operations!$I91)^0.5))^2)) -> 0 | O91: =IF(Operations!$C91="",0,(((Operations!$G91+1)*Operations!$H91/Operations!$I91/1000)^VLOOKUP(Operations!$C91,ImpRepairFac[],4,FALSE)-(Operations!$G91*Operations!$H91/Operations!$I91/1000)^VLOOKUP(Operations!$C91,ImpRepairFac[],4,FALSE))*Operations!$N91*VLOOKUP(Operations!$C91,ImpRepairFac[],3,FALSE)/Operations!$H91) -> 0 | P91: =IF(Operations!$N91=0,0,Operations!$N91*(VLOOKUP(Operations!$D91,ImpDepLookup,2,FALSE)-VLOOKUP(Operations!$D91,ImpDepLookup,3,FALSE)*Operations!$G91^0.5-VLOOKUP(Operations!$D91,ImpDepLookup,4,FALSE)*(Operations!$G91*Operations!$H91/Operations!$I91)^0.5)^2) -> 0 | Q91: =IF(Operations!$N91=0,0,Operations!$N91*(VLOOKUP(Operations!$D91,ImpDepLookup,2,FALSE)-VLOOKUP(Operations!$D91,ImpDepLookup,3,FALSE)*(Operations!$G91+1)^0.5-VLOOKUP(Operations!$D91,ImpDepLookup,4,FALSE)*(Operations!$G91*Operations!$H91/Operations!$I91)^0.5)^2) -> 0 | R91: =IF(Operations!$N91=0,0,IF(Operations!$I91*Operations!$H91=0,0,(Operations!$P91-Operations!$Q91)/(Operations!$H91))) -> 0 | S91: =IF(Operations!$H91=0,0,Operations!$P91*'General Variables'!$B$9/Operations!$H91) -> 0 | T91: =IF(Operations!$H91=0,0,Operations!$P91*'General Variables'!$B$10/Operations!$H91) -> 0 | U91: =SUM(Table3[[#This Row],[Depreciation per Unit]:[Opportunity Cost per Unit]]) -> 0
N92: =IF(Operations!$E92>1,Operations!$E92,IF(Operations!$D92=0,0,Operations!$F92/(VLOOKUP(Operations!$D92,ImpDepLookup,2,FALSE)-VLOOKUP(Operations!$D92,ImpDepLookup,3,FALSE)*Operations!$G92^0.5-VLOOKUP(Operations!$D92,ImpDepLookup,4,FALSE)*(Operations!$G92*(Operations!$G92*Operations!$H92/Operations!$I92)^0.5))^2)) -> 0 | O92: =IF(Operations!$C92="",0,(((Operations!$G92+1)*Operations!$H92/Operations!$I92/1000)^VLOOKUP(Operations!$C92,ImpRepairFac[],4,FALSE)-(Operations!$G92*Operations!$H92/Operations!$I92/1000)^VLOOKUP(Operations!$C92,ImpRepairFac[],4,FALSE))*Operations!$N92*VLOOKUP(Operations!$C92,ImpRepairFac[],3,FALSE)/Operations!$H92) -> 0 | P92: =IF(Operations!$N92=0,0,Operations!$N92*(VLOOKUP(Operations!$D92,ImpDepLookup,2,FALSE)-VLOOKUP(Operations!$D92,ImpDepLookup,3,FALSE)*Operations!$G92^0.5-VLOOKUP(Operations!$D92,ImpDepLookup,4,FALSE)*(Operations!$G92*Operations!$H92/Operations!$I92)^0.5)^2) -> 0 | Q92: =IF(Operations!$N92=0,0,Operations!$N92*(VLOOKUP(Operations!$D92,ImpDepLookup,2,FALSE)-VLOOKUP(Operations!$D92,ImpDepLookup,3,FALSE)*(Operations!$G92+1)^0.5-VLOOKUP(Operations!$D92,ImpDepLookup,4,FALSE)*(Operations!$G92*Operations!$H92/Operations!$I92)^0.5)^2) -> 0 | R92: =IF(Operations!$N92=0,0,IF(Operations!$I92*Operations!$H92=0,0,(Operations!$P92-Operations!$Q92)/(Operations!$H92))) -> 0 | S92: =IF(Operations!$H92=0,0,Operations!$P92*'General Variables'!$B$9/Operations!$H92) -> 0 | T92: =IF(Operations!$H92=0,0,Operations!$P92*'General Variables'!$B$10/Operations!$H92) -> 0 | U92: =SUM(Table3[[#This Row],[Depreciation per Unit]:[Opportunity Cost per Unit]]) -> 0
N93: =IF(Operations!$E93>1,Operations!$E93,IF(Operations!$D93=0,0,Operations!$F93/(VLOOKUP(Operations!$D93,ImpDepLookup,2,FALSE)-VLOOKUP(Operations!$D93,ImpDepLookup,3,FALSE)*Operations!$G93^0.5-VLOOKUP(Operations!$D93,ImpDepLookup,4,FALSE)*(Operations!$G93*(Operations!$G93*Operations!$H93/Operations!$I93)^0.5))^2)) -> 0 | O93: =IF(Operations!$C93="",0,(((Operations!$G93+1)*Operations!$H93/Operations!$I93/1000)^VLOOKUP(Operations!$C93,ImpRepairFac[],4,FALSE)-(Operations!$G93*Operations!$H93/Operations!$I93/1000)^VLOOKUP(Operations!$C93,ImpRepairFac[],4,FALSE))*Operations!$N93*VLOOKUP(Operations!$C93,ImpRepairFac[],3,FALSE)/Operations!$H93) -> 0 | P93: =IF(Operations!$N93=0,0,Operations!$N93*(VLOOKUP(Operations!$D93,ImpDepLookup,2,FALSE)-VLOOKUP(Operations!$D93,ImpDepLookup,3,FALSE)*Operations!$G93^0.5-VLOOKUP(Operations!$D93,ImpDepLookup,4,FALSE)*(Operations!$G93*Operations!$H93/Operations!$I93)^0.5)^2) -> 0 | Q93: =IF(Operations!$N93=0,0,Operations!$N93*(VLOOKUP(Operations!$D93,ImpDepLookup,2,FALSE)-VLOOKUP(Operations!$D93,ImpDepLookup,3,FALSE)*(Operations!$G93+1)^0.5-VLOOKUP(Operations!$D93,ImpDepLookup,4,FALSE)*(Operations!$G93*Operations!$H93/Operations!$I93)^0.5)^2) -> 0 | R93: =IF(Operations!$N93=0,0,IF(Operations!$I93*Operations!$H93=0,0,(Operations!$P93-Operations!$Q93)/(Operations!$H93))) -> 0 | S93: =IF(Operations!$H93=0,0,Operations!$P93*'General Variables'!$B$9/Operations!$H93) -> 0 | T93: =IF(Operations!$H93=0,0,Operations!$P93*'General Variables'!$B$10/Operations!$H93) -> 0 | U93: =SUM(Table3[[#This Row],[Depreciation per Unit]:[Opportunity Cost per Unit]]) -> 0
N94: =IF(Operations!$E94>1,Operations!$E94,IF(Operations!$D94=0,0,Operations!$F94/(VLOOKUP(Operations!$D94,ImpDepLookup,2,FALSE)-VLOOKUP(Operations!$D94,ImpDepLookup,3,FALSE)*Operations!$G94^0.5-VLOOKUP(Operations!$D94,ImpDepLookup,4,FALSE)*(Operations!$G94*(Operations!$G94*Operations!$H94/Operations!$I94)^0.5))^2)) -> 0 | O94: =IF(Operations!$C94="",0,(((Operations!$G94+1)*Operations!$H94/Operations!$I94/1000)^VLOOKUP(Operations!$C94,ImpRepairFac[],4,FALSE)-(Operations!$G94*Operations!$H94/Operations!$I94/1000)^VLOOKUP(Operations!$C94,ImpRepairFac[],4,FALSE))*Operations!$N94*VLOOKUP(Operations!$C94,ImpRepairFac[],3,FALSE)/Operations!$H94) -> 0 | P94: =IF(Operations!$N94=0,0,Operations!$N94*(VLOOKUP(Operations!$D94,ImpDepLookup,2,FALSE)-VLOOKUP(Operations!$D94,ImpDepLookup,3,FALSE)*Operations!$G94^0.5-VLOOKUP(Operations!$D94,ImpDepLookup,4,FALSE)*(Operations!$G94*Operations!$H94/Operations!$I94)^0.5)^2) -> 0 | Q94: =IF(Operations!$N94=0,0,Operations!$N94*(VLOOKUP(Operations!$D94,ImpDepLookup,2,FALSE)-VLOOKUP(Operations!$D94,ImpDepLookup,3,FALSE)*(Operations!$G94+1)^0.5-VLOOKUP(Operations!$D94,ImpDepLookup,4,FALSE)*(Operations!$G94*Operations!$H94/Operations!$I94)^0.5)^2) -> 0 | R94: =IF(Operations!$N94=0,0,IF(Operations!$I94*Operations!$H94=0,0,(Operations!$P94-Operations!$Q94)/(Operations!$H94))) -> 0 | S94: =IF(Operations!$H94=0,0,Operations!$P94*'General Variables'!$B$9/Operations!$H94) -> 0 | T94: =IF(Operations!$H94=0,0,Operations!$P94*'General Variables'!$B$10/Operations!$H94) -> 0 | U94: =SUM(Table3[[#This Row],[Depreciation per Unit]:[Opportunity Cost per Unit]]) -> 0
N95: =IF(Operations!$E95>1,Operations!$E95,IF(Operations!$D95=0,0,Operations!$F95/(VLOOKUP(Operations!$D95,ImpDepLookup,2,FALSE)-VLOOKUP(Operations!$D95,ImpDepLookup,3,FALSE)*Operations!$G95^0.5-VLOOKUP(Operations!$D95,ImpDepLookup,4,FALSE)*(Operations!$G95*(Operations!$G95*Operations!$H95/Operations!$I95)^0.5))^2)) -> 0 | O95: =IF(Operations!$C95="",0,(((Operations!$G95+1)*Operations!$H95/Operations!$I95/1000)^VLOOKUP(Operations!$C95,ImpRepairFac[],4,FALSE)-(Operations!$G95*Operations!$H95/Operations!$I95/1000)^VLOOKUP(Operations!$C95,ImpRepairFac[],4,FALSE))*Operations!$N95*VLOOKUP(Operations!$C95,ImpRepairFac[],3,FALSE)/Operations!$H95) -> 0 | P95: =IF(Operations!$N95=0,0,Operations!$N95*(VLOOKUP(Operations!$D95,ImpDepLookup,2,FALSE)-VLOOKUP(Operations!$D95,ImpDepLookup,3,FALSE)*Operations!$G95^0.5-VLOOKUP(Operations!$D95,ImpDepLookup,4,FALSE)*(Operations!$G95*Operations!$H95/Operations!$I95)^0.5)^2) -> 0 | Q95: =IF(Operations!$N95=0,0,Operations!$N95*(VLOOKUP(Operations!$D95,ImpDepLookup,2,FALSE)-VLOOKUP(Operations!$D95,ImpDepLookup,3,FALSE)*(Operations!$G95+1)^0.5-VLOOKUP(Operations!$D95,ImpDepLookup,4,FALSE)*(Operations!$G95*Operations!$H95/Operations!$I95)^0.5)^2) -> 0 | R95: =IF(Operations!$N95=0,0,IF(Operations!$I95*Operations!$H95=0,0,(Operations!$P95-Operations!$Q95)/(Operations!$H95))) -> 0 | S95: =IF(Operations!$H95=0,0,Operations!$P95*'General Variables'!$B$9/Operations!$H95) -> 0 | T95: =IF(Operations!$H95=0,0,Operations!$P95*'General Variables'!$B$10/Operations!$H95) -> 0 | U95: =SUM(Table3[[#This Row],[Depreciation per Unit]:[Opportunity Cost per Unit]]) -> 0
N96: =IF(Operations!$E96>1,Operations!$E96,IF(Operations!$D96=0,0,Operations!$F96/(VLOOKUP(Operations!$D96,ImpDepLookup,2,FALSE)-VLOOKUP(Operations!$D96,ImpDepLookup,3,FALSE)*Operations!$G96^0.5-VLOOKUP(Operations!$D96,ImpDepLookup,4,FALSE)*(Operations!$G96*(Operations!$G96*Operations!$H96/Operations!$I96)^0.5))^2)) -> 0 | O96: =IF(Operations!$C96="",0,(((Operations!$G96+1)*Operations!$H96/Operations!$I96/1000)^VLOOKUP(Operations!$C96,ImpRepairFac[],4,FALSE)-(Operations!$G96*Operations!$H96/Operations!$I96/1000)^VLOOKUP(Operations!$C96,ImpRepairFac[],4,FALSE))*Operations!$N96*VLOOKUP(Operations!$C96,ImpRepairFac[],3,FALSE)/Operations!$H96) -> 0 | P96: =IF(Operations!$N96=0,0,Operations!$N96*(VLOOKUP(Operations!$D96,ImpDepLookup,2,FALSE)-VLOOKUP(Operations!$D96,ImpDepLookup,3,FALSE)*Operations!$G96^0.5-VLOOKUP(Operations!$D96,ImpDepLookup,4,FALSE)*(Operations!$G96*Operations!$H96/Operations!$I96)^0.5)^2) -> 0 | Q96: =IF(Operations!$N96=0,0,Operations!$N96*(VLOOKUP(Operations!$D96,ImpDepLookup,2,FALSE)-VLOOKUP(Operations!$D96,ImpDepLookup,3,FALSE)*(Operations!$G96+1)^0.5-VLOOKUP(Operations!$D96,ImpDepLookup,4,FALSE)*(Operations!$G96*Operations!$H96/Operations!$I96)^0.5)^2) -> 0 | R96: =IF(Operations!$N96=0,0,IF(Operations!$I96*Operations!$H96=0,0,(Operations!$P96-Operations!$Q96)/(Operations!$H96))) -> 0 | S96: =IF(Operations!$H96=0,0,Operations!$P96*'General Variables'!$B$9/Operations!$H96) -> 0 | T96: =IF(Operations!$H96=0,0,Operations!$P96*'General Variables'!$B$10/Operations!$H96) -> 0 | U96: =SUM(Table3[[#This Row],[Depreciation per Unit]:[Opportunity Cost per Unit]]) -> 0
N97: =IF(Operations!$E97>1,Operations!$E97,IF(Operations!$D97=0,0,Operations!$F97/(VLOOKUP(Operations!$D97,ImpDepLookup,2,FALSE)-VLOOKUP(Operations!$D97,ImpDepLookup,3,FALSE)*Operations!$G97^0.5-VLOOKUP(Operations!$D97,ImpDepLookup,4,FALSE)*(Operations!$G97*(Operations!$G97*Operations!$H97/Operations!$I97)^0.5))^2)) -> 0 | O97: =IF(Operations!$C97="",0,(((Operations!$G97+1)*Operations!$H97/Operations!$I97/1000)^VLOOKUP(Operations!$C97,ImpRepairFac[],4,FALSE)-(Operations!$G97*Operations!$H97/Operations!$I97/1000)^VLOOKUP(Operations!$C97,ImpRepairFac[],4,FALSE))*Operations!$N97*VLOOKUP(Operations!$C97,ImpRepairFac[],3,FALSE)/Operations!$H97) -> 0 | P97: =IF(Operations!$N97=0,0,Operations!$N97*(VLOOKUP(Operations!$D97,ImpDepLookup,2,FALSE)-VLOOKUP(Operations!$D97,ImpDepLookup,3,FALSE)*Operations!$G97^0.5-VLOOKUP(Operations!$D97,ImpDepLookup,4,FALSE)*(Operations!$G97*Operations!$H97/Operations!$I97)^0.5)^2) -> 0 | Q97: =IF(Operations!$N97=0,0,Operations!$N97*(VLOOKUP(Operations!$D97,ImpDepLookup,2,FALSE)-VLOOKUP(Operations!$D97,ImpDepLookup,3,FALSE)*(Operations!$G97+1)^0.5-VLOOKUP(Operations!$D97,ImpDepLookup,4,FALSE)*(Operations!$G97*Operations!$H97/Operations!$I97)^0.5)^2) -> 0 | R97: =IF(Operations!$N97=0,0,IF(Operations!$I97*Operations!$H97=0,0,(Operations!$P97-Operations!$Q97)/(Operations!$H97))) -> 0 | S97: =IF(Operations!$H97=0,0,Operations!$P97*'General Variables'!$B$9/Operations!$H97) -> 0 | T97: =IF(Operations!$H97=0,0,Operations!$P97*'General Variables'!$B$10/Operations!$H97) -> 0 | U97: =SUM(Table3[[#This Row],[Depreciation per Unit]:[Opportunity Cost per Unit]]) -> 0
N98: =IF(Operations!$E98>1,Operations!$E98,IF(Operations!$D98=0,0,Operations!$F98/(VLOOKUP(Operations!$D98,ImpDepLookup,2,FALSE)-VLOOKUP(Operations!$D98,ImpDepLookup,3,FALSE)*Operations!$G98^0.5-VLOOKUP(Operations!$D98,ImpDepLookup,4,FALSE)*(Operations!$G98*(Operations!$G98*Operations!$H98/Operations!$I98)^0.5))^2)) -> 0 | O98: =IF(Operations!$C98="",0,(((Operations!$G98+1)*Operations!$H98/Operations!$I98/1000)^VLOOKUP(Operations!$C98,ImpRepairFac[],4,FALSE)-(Operations!$G98*Operations!$H98/Operations!$I98/1000)^VLOOKUP(Operations!$C98,ImpRepairFac[],4,FALSE))*Operations!$N98*VLOOKUP(Operations!$C98,ImpRepairFac[],3,FALSE)/Operations!$H98) -> 0 | P98: =IF(Operations!$N98=0,0,Operations!$N98*(VLOOKUP(Operations!$D98,ImpDepLookup,2,FALSE)-VLOOKUP(Operations!$D98,ImpDepLookup,3,FALSE)*Operations!$G98^0.5-VLOOKUP(Operations!$D98,ImpDepLookup,4,FALSE)*(Operations!$G98*Operations!$H98/Operations!$I98)^0.5)^2) -> 0 | Q98: =IF(Operations!$N98=0,0,Operations!$N98*(VLOOKUP(Operations!$D98,ImpDepLookup,2,FALSE)-VLOOKUP(Operations!$D98,ImpDepLookup,3,FALSE)*(Operations!$G98+1)^0.5-VLOOKUP(Operations!$D98,ImpDepLookup,4,FALSE)*(Operations!$G98*Operations!$H98/Operations!$I98)^0.5)^2) -> 0 | R98: =IF(Operations!$N98=0,0,IF(Operations!$I98*Operations!$H98=0,0,(Operations!$P98-Operations!$Q98)/(Operations!$H98))) -> 0 | S98: =IF(Operations!$H98=0,0,Operations!$P98*'General Variables'!$B$9/Operations!$H98) -> 0 | T98: =IF(Operations!$H98=0,0,Operations!$P98*'General Variables'!$B$10/Operations!$H98) -> 0 | U98: =SUM(Table3[[#This Row],[Depreciation per Unit]:[Opportunity Cost per Unit]]) -> 0
N99: =IF(Operations!$E99>1,Operations!$E99,IF(Operations!$D99=0,0,Operations!$F99/(VLOOKUP(Operations!$D99,ImpDepLookup,2,FALSE)-VLOOKUP(Operations!$D99,ImpDepLookup,3,FALSE)*Operations!$G99^0.5-VLOOKUP(Operations!$D99,ImpDepLookup,4,FALSE)*(Operations!$G99*(Operations!$G99*Operations!$H99/Operations!$I99)^0.5))^2)) -> 0 | O99: =IF(Operations!$C99="",0,(((Operations!$G99+1)*Operations!$H99/Operations!$I99/1000)^VLOOKUP(Operations!$C99,ImpRepairFac[],4,FALSE)-(Operations!$G99*Operations!$H99/Operations!$I99/1000)^VLOOKUP(Operations!$C99,ImpRepairFac[],4,FALSE))*Operations!$N99*VLOOKUP(Operations!$C99,ImpRepairFac[],3,FALSE)/Operations!$H99) -> 0 | P99: =IF(Operations!$N99=0,0,Operations!$N99*(VLOOKUP(Operations!$D99,ImpDepLookup,2,FALSE)-VLOOKUP(Operations!$D99,ImpDepLookup,3,FALSE)*Operations!$G99^0.5-VLOOKUP(Operations!$D99,ImpDepLookup,4,FALSE)*(Operations!$G99*Operations!$H99/Operations!$I99)^0.5)^2) -> 0 | Q99: =IF(Operations!$N99=0,0,Operations!$N99*(VLOOKUP(Operations!$D99,ImpDepLookup,2,FALSE)-VLOOKUP(Operations!$D99,ImpDepLookup,3,FALSE)*(Operations!$G99+1)^0.5-VLOOKUP(Operations!$D99,ImpDepLookup,4,FALSE)*(Operations!$G99*Operations!$H99/Operations!$I99)^0.5)^2) -> 0 | R99: =IF(Operations!$N99=0,0,IF(Operations!$I99*Operations!$H99=0,0,(Operations!$P99-Operations!$Q99)/(Operations!$H99))) -> 0 | S99: =IF(Operations!$H99=0,0,Operations!$P99*'General Variables'!$B$9/Operations!$H99) -> 0 | T99: =IF(Operations!$H99=0,0,Operations!$P99*'General Variables'!$B$10/Operations!$H99) -> 0 | U99: =SUM(Table3[[#This Row],[Depreciation per Unit]:[Opportunity Cost per Unit]]) -> 0
N100: =IF(Operations!$E100>1,Operations!$E100,IF(Operations!$D100=0,0,Operations!$F100/(VLOOKUP(Operations!$D100,ImpDepLookup,2,FALSE)-VLOOKUP(Operations!$D100,ImpDepLookup,3,FALSE)*Operations!$G100^0.5-VLOOKUP(Operations!$D100,ImpDepLookup,4,FALSE)*(Operations!$G100*(Operations!$G100*Operations!$H100/Operations!$I100)^0.5))^2)) -> 0 | O100: =IF(Operations!$C100="",0,(((Operations!$G100+1)*Operations!$H100/Operations!$I100/1000)^VLOOKUP(Operations!$C100,ImpRepairFac[],4,FALSE)-(Operations!$G100*Operations!$H100/Operations!$I100/1000)^VLOOKUP(Operations!$C100,ImpRepairFac[],4,FALSE))*Operations!$N100*VLOOKUP(Operations!$C100,ImpRepairFac[],3,FALSE)/Operations!$H100) -> 0 | P100: =IF(Operations!$N100=0,0,Operations!$N100*(VLOOKUP(Operations!$D100,ImpDepLookup,2,FALSE)-VLOOKUP(Operations!$D100,ImpDepLookup,3,FALSE)*Operations!$G100^0.5-VLOOKUP(Operations!$D100,ImpDepLookup,4,FALSE)*(Operations!$G100*Operations!$H100/Operations!$I100)^0.5)^2) -> 0 | Q100: =IF(Operations!$N100=0,0,Operations!$N100*(VLOOKUP(Operations!$D100,ImpDepLookup,2,FALSE)-VLOOKUP(Operations!$D100,ImpDepLookup,3,FALSE)*(Operations!$G100+1)^0.5-VLOOKUP(Operations!$D100,ImpDepLookup,4,FALSE)*(Operations!$G100*Operations!$H100/Operations!$I100)^0.5)^2) -> 0 | R100: =IF(Operations!$N100=0,0,IF(Operations!$I100*Operations!$H100=0,0,(Operations!$P100-Operations!$Q100)/(Operations!$H100))) -> 0 | S100: =IF(Operations!$H100=0,0,Operations!$P100*'General Variables'!$B$9/Operations!$H100) -> 0 | T100: =IF(Operations!$H100=0,0,Operations!$P100*'General Variables'!$B$10/Operations!$H100) -> 0 | U100: =SUM(Table3[[#This Row],[Depreciation per Unit]:[Opportunity Cost per Unit]]) -> 0
N101: =IF(Operations!$E101>1,Operations!$E101,IF(Operations!$D101=0,0,Operations!$F101/(VLOOKUP(Operations!$D101,ImpDepLookup,2,FALSE)-VLOOKUP(Operations!$D101,ImpDepLookup,3,FALSE)*Operations!$G101^0.5-VLOOKUP(Operations!$D101,ImpDepLookup,4,FALSE)*(Operations!$G101*(Operations!$G101*Operations!$H101/Operations!$I101)^0.5))^2)) -> 0 | O101: =IF(Operations!$C101="",0,(((Operations!$G101+1)*Operations!$H101/Operations!$I101/1000)^VLOOKUP(Operations!$C101,ImpRepairFac[],4,FALSE)-(Operations!$G101*Operations!$H101/Operations!$I101/1000)^VLOOKUP(Operations!$C101,ImpRepairFac[],4,FALSE))*Operations!$N101*VLOOKUP(Operations!$C101,ImpRepairFac[],3,FALSE)/Operations!$H101) -> 0 | P101: =IF(Operations!$N101=0,0,Operations!$N101*(VLOOKUP(Operations!$D101,ImpDepLookup,2,FALSE)-VLOOKUP(Operations!$D101,ImpDepLookup,3,FALSE)*Operations!$G101^0.5-VLOOKUP(Operations!$D101,ImpDepLookup,4,FALSE)*(Operations!$G101*Operations!$H101/Operations!$I101)^0.5)^2) -> 0 | Q101: =IF(Operations!$N101=0,0,Operations!$N101*(VLOOKUP(Operations!$D101,ImpDepLookup,2,FALSE)-VLOOKUP(Operations!$D101,ImpDepLookup,3,FALSE)*(Operations!$G101+1)^0.5-VLOOKUP(Operations!$D101,ImpDepLookup,4,FALSE)*(Operations!$G101*Operations!$H101/Operations!$I101)^0.5)^2) -> 0 | R101: =IF(Operations!$N101=0,0,IF(Operations!$I101*Operations!$H101=0,0,(Operations!$P101-Operations!$Q101)/(Operations!$H101))) -> 0 | S101: =IF(Operations!$H101=0,0,Operations!$P101*'General Variables'!$B$9/Operations!$H101) -> 0 | T101: =IF(Operations!$H101=0,0,Operations!$P101*'General Variables'!$B$10/Operations!$H101) -> 0 | U101: =SUM(Table3[[#This Row],[Depreciation per Unit]:[Opportunity Cost per Unit]]) -> 0

Sheet Start (hidden)

Sheet Stop (hidden)

Sheet 77-Cover Crop
B2: Region | F2: Detail | J2: Water Source
B3: Tillage System | C3: Conventional Tillage | G3: Yield Goal | J3: acre/inches
B4: Cropping System | G4: Actural Yield | J4: Follows Legume?
G5: =IFERROR(VALUE(LEFT($H$4,FIND(" ",$H$4))),"") ->  | H5: =IFERROR(RIGHT(H4,LEN(H4)-LEN(G5)-1),"") -> 
A6: =REPLACE(CELL("filename",$A$1),1,FIND("]",CELL("filename",$A$1)),"") & IF($G$2="","", ", " & $G$2 ) & IF($C$2="","",", "&$C$2&"") & IF($C$3="","",", "&$C$3) & IF($C$4="","",", "&$C$4) & IF($H$3="","",", "&$H$3 & " Yield Goal") & IF(K2="","",", " &K2) -> 77-Cover Crop, Conventional Tillage
B7: ='General Variables'!$B$3 & " Budget " & REPLACE(CELL("filename",$A$1),1,FIND("]",CELL("filename",$A$1)),"") & IF($G$2="","", ", " & $G$2 ) & IF($C$2="","",", "&$C$2) & IF($C$3="","",", "&$C$3) & IF($C$4="","",", "&$C$4) & IF($H$3="","",", "&$H$3 & " Yield Goal") & IF($H$4="",""," (" & $H$4 & " Actual Yield)") -> 2018 Budget 77-Cover Crop, Conventional Tillage
B8: =IF(K2="","",K2)&IF(LEFT(K2,5)="Pivot",", 800 GPM 35 PSI","") & IF(K2="Gravity Irrigated, fed by a well",", 1,000 GPM 10 PSI","") & IF(K3="","",", "& K3&" "&J3) -> 
B10: Field Operations | C10: Times or Qty | E10: ="Labor @ $" &TEXT('General Variables'!B4,"#.00")& " /Hr" -> Labor @ $20.00 /Hr | F10: ="Fuel @ $" & TEXT('General Variables'!B5,"#.00") & " and Lube" -> Fuel @ $2.45 and Lube | G10: Repairs | I10: Ownership | K10: Total | L10: Your Estimate
D11: Unit | G11: Power | H11: Imp. | I11: Power | J11: Imp.
A12: 1 | B12: Disk | C12: 1 | E12: =IF(B12=0,"",IF(C12>9999,"",ROUND('General Variables'!$B$4*VLOOKUP(B12,Operations!$A$2:$U$101,10,FALSE)/VLOOKUP(B12,Operations!$A$2:$U$101,9,FALSE)*C12,2))) -> 2.02 | F12: =IF(B12=0,0,IF(C12>9999,"",ROUND(IF(VLOOKUP(B12,Operations!$A$2:$U$101,12,FALSE)=0,VLOOKUP(B12,Operations!$A$2:$U$101,13,FALSE)*'General Variables'!$B$8,VLOOKUP(B12,Operations!$A$2:$U$101,12,FALSE)*'General Variables'!$B$7)/VLOOKUP(B12,Operations!$A$2:$U$101,9,FALSE)*C12,2))) -> 2.14 | G12: =IF(B12=0,0,IF(C12>9999,"",ROUND(VLOOKUP(VLOOKUP(B12,Operations!$A$2:$U$101,11,FALSE),PowerUnits[],10,FALSE)/VLOOKUP(B12,Operations!$A$2:$U$101,9,FALSE)*C12,2))) -> 0.3 | H12: =IF(B12=0,"",IF(C12>9999,"",ROUND(VLOOKUP($B12,Operations!$A$2:$U$101,15,FALSE)*C12,2))) -> 1.27 | I12: =IF(B12=0,0,IF(C12>9999,"",ROUND(VLOOKUP(VLOOKUP(B12,Operations!$A$2:$U$101,11,FALSE),PowerUnits[],16,FALSE)/VLOOKUP(B12,Operations!$A$2:$U$101,9,FALSE)*C12,2))) -> 4.04 | J12: =IF(B12=0,"",IF(C12>9999,"",ROUND(VLOOKUP($B12,Operations!$A$2:$U$101,21,FALSE)*$C12,2))) -> 1.14 | K12: =IF(C12>9999,"",ROUND(SUM(E12:J12),2)) -> 10.91
A13: 2 | B13: Broadcast Seed | C13: Custom | E13: =IF(B13=0,"",IF(C13>9999,"",ROUND('General Variables'!$B$4*VLOOKUP(B13,Operations!$A$2:$U$101,10,FALSE)/VLOOKUP(B13,Operations!$A$2:$U$101,9,FALSE)*C13,2))) ->  | F13: =IF(B13=0,0,IF(C13>9999,"",ROUND(IF(VLOOKUP(B13,Operations!$A$2:$U$101,12,FALSE)=0,VLOOKUP(B13,Operations!$A$2:$U$101,13,FALSE)*'General Variables'!$B$8,VLOOKUP(B13,Operations!$A$2:$U$101,12,FALSE)*'General Variables'!$B$7)/VLOOKUP(B13,Operations!$A$2:$U$101,9,FALSE)*C13,2))) ->  | G13: =IF(B13=0,0,IF(C13>9999,"",ROUND(VLOOKUP(VLOOKUP(B13,Operations!$A$2:$U$101,11,FALSE),PowerUnits[],10,FALSE)/VLOOKUP(B13,Operations!$A$2:$U$101,9,FALSE)*C13,2))) ->  | H13: =IF(B13=0,"",IF(C13>9999,"",ROUND(VLOOKUP($B13,Operations!$A$2:$U$101,15,FALSE)*C13,2))) ->  | I13: =IF(B13=0,0,IF(C13>9999,"",ROUND(VLOOKUP(VLOOKUP(B13,Operations!$A$2:$U$101,11,FALSE),PowerUnits[],16,FALSE)/VLOOKUP(B13,Operations!$A$2:$U$101,9,FALSE)*C13,2))) ->  | J13: =IF(B13=0,"",IF(C13>9999,"",ROUND(VLOOKUP($B13,Operations!$A$2:$U$101,21,FALSE)*$C13,2))) ->  | K13: =IF(C13>9999,"",ROUND(SUM(E13:J13),2)) -> 
A14: 3 | B14: Field Cultivation | C14: 1 | E14: =IF(B14=0,"",IF(C14>9999,"",ROUND('General Variables'!$B$4*VLOOKUP(B14,Operations!$A$2:$U$101,10,FALSE)/VLOOKUP(B14,Operations!$A$2:$U$101,9,FALSE)*C14,2))) -> 1.47 | F14: =IF(B14=0,0,IF(C14>9999,"",ROUND(IF(VLOOKUP(B14,Operations!$A$2:$U$101,12,FALSE)=0,VLOOKUP(B14,Operations!$A$2:$U$101,13,FALSE)*'General Variables'!$B$8,VLOOKUP(B14,Operations!$A$2:$U$101,12,FALSE)*'General Variables'!$B$7)/VLOOKUP(B14,Operations!$A$2:$U$101,9,FALSE)*C14,2))) -> 1.54 | G14: =IF(B14=0,0,IF(C14>9999,"",ROUND(VLOOKUP(VLOOKUP(B14,Operations!$A$2:$U$101,11,FALSE),PowerUnits[],10,FALSE)/VLOOKUP(B14,Operations!$A$2:$U$101,9,FALSE)*C14,2))) -> 0.58 | H14: =IF(B14=0,"",IF(C14>9999,"",ROUND(VLOOKUP($B14,Operations!$A$2:$U$101,15,FALSE)*C14,2))) -> 1.33 | I14: =IF(B14=0,0,IF(C14>9999,"",ROUND(VLOOKUP(VLOOKUP(B14,Operations!$A$2:$U$101,11,FALSE),PowerUnits[],16,FALSE)/VLOOKUP(B14,Operations!$A$2:$U$101,9,FALSE)*C14,2))) -> 1.8 | J14: =IF(B14=0,"",IF(C14>9999,"",ROUND(VLOOKUP($B14,Operations!$A$2:$U$101,21,FALSE)*$C14,2))) -> 1.51 | K14: 8.23
A15: 4 | E15: =IF(B15=0,"",IF(C15>9999,"",ROUND('General Variables'!$B$4*VLOOKUP(B15,Operations!$A$2:$U$101,10,FALSE)/VLOOKUP(B15,Operations!$A$2:$U$101,9,FALSE)*C15,2))) ->  | F15: =IF(B15=0,0,IF(C15>9999,"",ROUND(IF(VLOOKUP(B15,Operations!$A$2:$U$101,12,FALSE)=0,VLOOKUP(B15,Operations!$A$2:$U$101,13,FALSE)*'General Variables'!$B$8,VLOOKUP(B15,Operations!$A$2:$U$101,12,FALSE)*'General Variables'!$B$7)/VLOOKUP(B15,Operations!$A$2:$U$101,9,FALSE)*C15,2))) -> 0 | G15: =IF(B15=0,0,IF(C15>9999,"",ROUND(VLOOKUP(VLOOKUP(B15,Operations!$A$2:$U$101,11,FALSE),PowerUnits[],10,FALSE)/VLOOKUP(B15,Operations!$A$2:$U$101,9,FALSE)*C15,2))) -> 0 | H15: =IF(B15=0,"",IF(C15>9999,"",ROUND(VLOOKUP($B15,Operations!$A$2:$U$101,15,FALSE)*C15,2))) ->  | I15: =IF(B15=0,0,IF(C15>9999,"",ROUND(VLOOKUP(VLOOKUP(B15,Operations!$A$2:$U$101,11,FALSE),PowerUnits[],16,FALSE)/VLOOKUP(B15,Operations!$A$2:$U$101,9,FALSE)*C15,2))) -> 0 | J15: =IF(B15=0,"",IF(C15>9999,"",ROUND(VLOOKUP($B15,Operations!$A$2:$U$101,21,FALSE)*$C15,2))) ->  | K15: 0
A16: 5 | E16: =IF(B16=0,"",IF(C16>9999,"",ROUND('General Variables'!$B$4*VLOOKUP(B16,Operations!$A$2:$U$101,10,FALSE)/VLOOKUP(B16,Operations!$A$2:$U$101,9,FALSE)*C16,2))) ->  | F16: =IF(B16=0,0,IF(C16>9999,"",ROUND(IF(VLOOKUP(B16,Operations!$A$2:$U$101,12,FALSE)=0,VLOOKUP(B16,Operations!$A$2:$U$101,13,FALSE)*'General Variables'!$B$8,VLOOKUP(B16,Operations!$A$2:$U$101,12,FALSE)*'General Variables'!$B$7)/VLOOKUP(B16,Operations!$A$2:$U$101,9,FALSE)*C16,2))) -> 0 | G16: =IF(B16=0,0,IF(C16>9999,"",ROUND(VLOOKUP(VLOOKUP(B16,Operations!$A$2:$U$101,11,FALSE),PowerUnits[],10,FALSE)/VLOOKUP(B16,Operations!$A$2:$U$101,9,FALSE)*C16,2))) -> 0 | H16: =IF(B16=0,"",IF(C16>9999,"",ROUND(VLOOKUP($B16,Operations!$A$2:$U$101,15,FALSE)*C16,2))) ->  | I16: =IF(B16=0,0,IF(C16>9999,"",ROUND(VLOOKUP(VLOOKUP(B16,Operations!$A$2:$U$101,11,FALSE),PowerUnits[],16,FALSE)/VLOOKUP(B16,Operations!$A$2:$U$101,9,FALSE)*C16,2))) -> 0 | J16: =IF(B16=0,"",IF(C16>9999,"",ROUND(VLOOKUP($B16,Operations!$A$2:$U$101,21,FALSE)*$C16,2))) ->  | K16: 0
A17: 6 | E17: =IF(B17=0,"",IF(C17>9999,"",ROUND('General Variables'!$B$4*VLOOKUP(B17,Operations!$A$2:$U$101,10,FALSE)/VLOOKUP(B17,Operations!$A$2:$U$101,9,FALSE)*C17,2))) ->  | F17: =IF(B17=0,0,IF(C17>9999,"",ROUND(IF(VLOOKUP(B17,Operations!$A$2:$U$101,12,FALSE)=0,VLOOKUP(B17,Operations!$A$2:$U$101,13,FALSE)*'General Variables'!$B$8,VLOOKUP(B17,Operations!$A$2:$U$101,12,FALSE)*'General Variables'!$B$7)/VLOOKUP(B17,Operations!$A$2:$U$101,9,FALSE)*C17,2))) -> 0 | G17: =IF(B17=0,0,IF(C17>9999,"",ROUND(VLOOKUP(VLOOKUP(B17,Operations!$A$2:$U$101,11,FALSE),PowerUnits[],10,FALSE)/VLOOKUP(B17,Operations!$A$2:$U$101,9,FALSE)*C17,2))) -> 0 | H17: =IF(B17=0,"",IF(C17>9999,"",ROUND(VLOOKUP($B17,Operations!$A$2:$U$101,15,FALSE)*C17,2))) ->  | I17: =IF(B17=0,0,IF(C17>9999,"",ROUND(VLOOKUP(VLOOKUP(B17,Operations!$A$2:$U$101,11,FALSE),PowerUnits[],16,FALSE)/VLOOKUP(B17,Operations!$A$2:$U$101,9,FALSE)*C17,2))) -> 0 | J17: =IF(B17=0,"",IF(C17>9999,"",ROUND(VLOOKUP($B17,Operations!$A$2:$U$101,21,FALSE)*$C17,2))) ->  | K17: 0
A18: 7 | E18: =IF(B18=0,"",IF(C18>9999,"",ROUND('General Variables'!$B$4*VLOOKUP(B18,Operations!$A$2:$U$101,10,FALSE)/VLOOKUP(B18,Operations!$A$2:$U$101,9,FALSE)*C18,2))) ->  | F18: =IF(B18=0,0,IF(C18>9999,"",ROUND(IF(VLOOKUP(B18,Operations!$A$2:$U$101,12,FALSE)=0,VLOOKUP(B18,Operations!$A$2:$U$101,13,FALSE)*'General Variables'!$B$8,VLOOKUP(B18,Operations!$A$2:$U$101,12,FALSE)*'General Variables'!$B$7)/VLOOKUP(B18,Operations!$A$2:$U$101,9,FALSE)*C18,2))) -> 0 | G18: =IF(B18=0,0,IF(C18>9999,"",ROUND(VLOOKUP(VLOOKUP(B18,Operations!$A$2:$U$101,11,FALSE),PowerUnits[],10,FALSE)/VLOOKUP(B18,Operations!$A$2:$U$101,9,FALSE)*C18,2))) -> 0 | H18: =IF(B18=0,"",IF(C18>9999,"",ROUND(VLOOKUP($B18,Operations!$A$2:$U$101,15,FALSE)*C18,2))) ->  | I18: =IF(B18=0,0,IF(C18>9999,"",ROUND(VLOOKUP(VLOOKUP(B18,Operations!$A$2:$U$101,11,FALSE),PowerUnits[],16,FALSE)/VLOOKUP(B18,Operations!$A$2:$U$101,9,FALSE)*C18,2))) -> 0 | J18: =IF(B18=0,"",IF(C18>9999,"",ROUND(VLOOKUP($B18,Operations!$A$2:$U$101,21,FALSE)*$C18,2))) ->  | K18: 0
A19: 8 | E19: =IF(B19=0,"",IF(C19>9999,"",ROUND('General Variables'!$B$4*VLOOKUP(B19,Operations!$A$2:$U$101,10,FALSE)/VLOOKUP(B19,Operations!$A$2:$U$101,9,FALSE)*C19,2))) ->  | F19: =IF(B19=0,0,IF(C19>9999,"",ROUND(IF(VLOOKUP(B19,Operations!$A$2:$U$101,12,FALSE)=0,VLOOKUP(B19,Operations!$A$2:$U$101,13,FALSE)*'General Variables'!$B$8,VLOOKUP(B19,Operations!$A$2:$U$101,12,FALSE)*'General Variables'!$B$7)/VLOOKUP(B19,Operations!$A$2:$U$101,9,FALSE)*C19,2))) -> 0 | G19: =IF(B19=0,0,IF(C19>9999,"",ROUND(VLOOKUP(VLOOKUP(B19,Operations!$A$2:$U$101,11,FALSE),PowerUnits[],10,FALSE)/VLOOKUP(B19,Operations!$A$2:$U$101,9,FALSE)*C19,2))) -> 0 | H19: =IF(B19=0,"",IF(C19>9999,"",ROUND(VLOOKUP($B19,Operations!$A$2:$U$101,15,FALSE)*C19,2))) ->  | I19: =IF(B19=0,0,IF(C19>9999,"",ROUND(VLOOKUP(VLOOKUP(B19,Operations!$A$2:$U$101,11,FALSE),PowerUnits[],16,FALSE)/VLOOKUP(B19,Operations!$A$2:$U$101,9,FALSE)*C19,2))) -> 0 | J19: =IF(B19=0,"",IF(C19>9999,"",ROUND(VLOOKUP($B19,Operations!$A$2:$U$101,21,FALSE)*$C19,2))) ->  | K19: =IF(C19>9999,"",ROUND(SUM(E19:J19),2)) -> 0
A20: 9 | E20: =IF(B20=0,"",IF(C20>9999,"",ROUND('General Variables'!$B$4*VLOOKUP(B20,Operations!$A$2:$U$101,10,FALSE)/VLOOKUP(B20,Operations!$A$2:$U$101,9,FALSE)*C20,2))) ->  | F20: =IF(B20=0,0,IF(C20>9999,"",ROUND(IF(VLOOKUP(B20,Operations!$A$2:$U$101,12,FALSE)=0,VLOOKUP(B20,Operations!$A$2:$U$101,13,FALSE)*'General Variables'!$B$8,VLOOKUP(B20,Operations!$A$2:$U$101,12,FALSE)*'General Variables'!$B$7)/VLOOKUP(B20,Operations!$A$2:$U$101,9,FALSE)*C20,2))) -> 0 | G20: =IF(B20=0,0,IF(C20>9999,"",ROUND(VLOOKUP(VLOOKUP(B20,Operations!$A$2:$U$101,11,FALSE),PowerUnits[],10,FALSE)/VLOOKUP(B20,Operations!$A$2:$U$101,9,FALSE)*C20,2))) -> 0 | H20: =IF(B20=0,"",IF(C20>9999,"",ROUND(VLOOKUP($B20,Operations!$A$2:$U$101,15,FALSE)*C20,2))) ->  | I20: =IF(B20=0,0,IF(C20>9999,"",ROUND(VLOOKUP(VLOOKUP(B20,Operations!$A$2:$U$101,11,FALSE),PowerUnits[],16,FALSE)/VLOOKUP(B20,Operations!$A$2:$U$101,9,FALSE)*C20,2))) -> 0 | J20: =IF(B20=0,"",IF(C20>9999,"",ROUND(VLOOKUP($B20,Operations!$A$2:$U$101,21,FALSE)*$C20,2))) ->  | K20: 0
A21: 10 | E21: =IF(B21=0,"",IF(C21>9999,"",ROUND('General Variables'!$B$4*VLOOKUP(B21,Operations!$A$2:$U$101,10,FALSE)/VLOOKUP(B21,Operations!$A$2:$U$101,9,FALSE)*C21,2))) ->  | F21: =IF(B21=0,0,IF(C21>9999,"",ROUND(IF(VLOOKUP(B21,Operations!$A$2:$U$101,12,FALSE)=0,VLOOKUP(B21,Operations!$A$2:$U$101,13,FALSE)*'General Variables'!$B$8,VLOOKUP(B21,Operations!$A$2:$U$101,12,FALSE)*'General Variables'!$B$7)/VLOOKUP(B21,Operations!$A$2:$U$101,9,FALSE)*C21,2))) -> 0 | G21: =IF(B21=0,0,IF(C21>9999,"",ROUND(VLOOKUP(VLOOKUP(B21,Operations!$A$2:$U$101,11,FALSE),PowerUnits[],10,FALSE)/VLOOKUP(B21,Operations!$A$2:$U$101,9,FALSE)*C21,2))) -> 0 | H21: =IF(B21=0,"",IF(C21>9999,"",ROUND(VLOOKUP($B21,Operations!$A$2:$U$101,15,FALSE)*C21,2))) ->  | I21: =IF(B21=0,0,IF(C21>9999,"",ROUND(VLOOKUP(VLOOKUP(B21,Operations!$A$2:$U$101,11,FALSE),PowerUnits[],16,FALSE)/VLOOKUP(B21,Operations!$A$2:$U$101,9,FALSE)*C21,2))) -> 0 | J21: =IF(B21=0,"",IF(C21>9999,"",ROUND(VLOOKUP($B21,Operations!$A$2:$U$101,21,FALSE)*$C21,2))) ->  | K21: 0
A22: 11 | E22: =IF(B22=0,"",IF(C22>9999,"",ROUND('General Variables'!$B$4*VLOOKUP(B22,Operations!$A$2:$U$101,10,FALSE)/VLOOKUP(B22,Operations!$A$2:$U$101,9,FALSE)*C22,2))) ->  | F22: =IF(B22=0,0,IF(C22>9999,"",ROUND(IF(VLOOKUP(B22,Operations!$A$2:$U$101,12,FALSE)=0,VLOOKUP(B22,Operations!$A$2:$U$101,13,FALSE)*'General Variables'!$B$8,VLOOKUP(B22,Operations!$A$2:$U$101,12,FALSE)*'General Variables'!$B$7)/VLOOKUP(B22,Operations!$A$2:$U$101,9,FALSE)*C22,2))) -> 0 | G22: =IF(B22=0,0,IF(C22>9999,"",ROUND(VLOOKUP(VLOOKUP(B22,Operations!$A$2:$U$101,11,FALSE),PowerUnits[],10,FALSE)/VLOOKUP(B22,Operations!$A$2:$U$101,9,FALSE)*C22,2))) -> 0 | H22: =IF(B22=0,"",IF(C22>9999,"",ROUND(VLOOKUP($B22,Operations!$A$2:$U$101,15,FALSE)*C22,2))) ->  | I22: =IF(B22=0,0,IF(C22>9999,"",ROUND(VLOOKUP(VLOOKUP(B22,Operations!$A$2:$U$101,11,FALSE),PowerUnits[],16,FALSE)/VLOOKUP(B22,Operations!$A$2:$U$101,9,FALSE)*C22,2))) -> 0 | J22: =IF(B22=0,"",IF(C22>9999,"",ROUND(VLOOKUP($B22,Operations!$A$2:$U$101,21,FALSE)*$C22,2))) ->  | K22: 0
A23: 12 | E23: =IF(B23=0,"",IF(C23>9999,"",ROUND('General Variables'!$B$4*VLOOKUP(B23,Operations!$A$2:$U$101,10,FALSE)/VLOOKUP(B23,Operations!$A$2:$U$101,9,FALSE)*C23,2))) ->  | F23: =IF(B23=0,0,IF(C23>9999,"",ROUND(IF(VLOOKUP(B23,Operations!$A$2:$U$101,12,FALSE)=0,VLOOKUP(B23,Operations!$A$2:$U$101,13,FALSE)*'General Variables'!$B$8,VLOOKUP(B23,Operations!$A$2:$U$101,12,FALSE)*'General Variables'!$B$7)/VLOOKUP(B23,Operations!$A$2:$U$101,9,FALSE)*C23,2))) -> 0 | G23: =IF(B23=0,0,IF(C23>9999,"",ROUND(VLOOKUP(VLOOKUP(B23,Operations!$A$2:$U$101,11,FALSE),PowerUnits[],10,FALSE)/VLOOKUP(B23,Operations!$A$2:$U$101,9,FALSE)*C23,2))) -> 0 | H23: =IF(B23=0,"",IF(C23>9999,"",ROUND(VLOOKUP($B23,Operations!$A$2:$U$101,15,FALSE)*C23,2))) ->  | I23: =IF(B23=0,0,IF(C23>9999,"",ROUND(VLOOKUP(VLOOKUP(B23,Operations!$A$2:$U$101,11,FALSE),PowerUnits[],16,FALSE)/VLOOKUP(B23,Operations!$A$2:$U$101,9,FALSE)*C23,2))) -> 0 | J23: =IF(B23=0,"",IF(C23>9999,"",ROUND(VLOOKUP($B23,Operations!$A$2:$U$101,21,FALSE)*$C23,2))) ->  | K23: 0
A24: 13 | E24: =IF(B24=0,"",IF(C24>9999,"",ROUND('General Variables'!$B$4*VLOOKUP(B24,Operations!$A$2:$U$101,10,FALSE)/VLOOKUP(B24,Operations!$A$2:$U$101,9,FALSE)*C24,2))) ->  | F24: =IF(B24=0,0,IF(C24>9999,"",ROUND(IF(VLOOKUP(B24,Operations!$A$2:$U$101,12,FALSE)=0,VLOOKUP(B24,Operations!$A$2:$U$101,13,FALSE)*'General Variables'!$B$8,VLOOKUP(B24,Operations!$A$2:$U$101,12,FALSE)*'General Variables'!$B$7)/VLOOKUP(B24,Operations!$A$2:$U$101,9,FALSE)*C24,2))) -> 0 | G24: =IF(B24=0,0,IF(C24>9999,"",ROUND(VLOOKUP(VLOOKUP(B24,Operations!$A$2:$U$101,11,FALSE),PowerUnits[],10,FALSE)/VLOOKUP(B24,Operations!$A$2:$U$101,9,FALSE)*C24,2))) -> 0 | H24: =IF(B24=0,"",IF(C24>9999,"",ROUND(VLOOKUP($B24,Operations!$A$2:$U$101,15,FALSE)*C24,2))) ->  | I24: =IF(B24=0,0,IF(C24>9999,"",ROUND(VLOOKUP(VLOOKUP(B24,Operations!$A$2:$U$101,11,FALSE),PowerUnits[],16,FALSE)/VLOOKUP(B24,Operations!$A$2:$U$101,9,FALSE)*C24,2))) -> 0 | J24: =IF(B24=0,"",IF(C24>9999,"",ROUND(VLOOKUP($B24,Operations!$A$2:$U$101,21,FALSE)*$C24,2))) ->  | K24: 0
A25: 14 | E25: =IF(B25=0,"",IF(C25>9999,"",ROUND('General Variables'!$B$4*VLOOKUP(B25,Operations!$A$2:$U$101,10,FALSE)/VLOOKUP(B25,Operations!$A$2:$U$101,9,FALSE)*C25,2))) ->  | F25: =IF(B25=0,0,IF(C25>9999,"",ROUND(IF(VLOOKUP(B25,Operations!$A$2:$U$101,12,FALSE)=0,VLOOKUP(B25,Operations!$A$2:$U$101,13,FALSE)*'General Variables'!$B$8,VLOOKUP(B25,Operations!$A$2:$U$101,12,FALSE)*'General Variables'!$B$7)/VLOOKUP(B25,Operations!$A$2:$U$101,9,FALSE)*C25,2))) -> 0 | G25: =IF(B25=0,0,IF(C25>9999,"",ROUND(VLOOKUP(VLOOKUP(B25,Operations!$A$2:$U$101,11,FALSE),PowerUnits[],10,FALSE)/VLOOKUP(B25,Operations!$A$2:$U$101,9,FALSE)*C25,2))) -> 0 | H25: =IF(B25=0,"",IF(C25>9999,"",ROUND(VLOOKUP($B25,Operations!$A$2:$U$101,15,FALSE)*C25,2))) ->  | I25: =IF(B25=0,0,IF(C25>9999,"",ROUND(VLOOKUP(VLOOKUP(B25,Operations!$A$2:$U$101,11,FALSE),PowerUnits[],16,FALSE)/VLOOKUP(B25,Operations!$A$2:$U$101,9,FALSE)*C25,2))) -> 0 | J25: =IF(B25=0,"",IF(C25>9999,"",ROUND(VLOOKUP($B25,Operations!$A$2:$U$101,21,FALSE)*$C25,2))) ->  | K25: 0
A26: 15 | E26: =IF(B26=0,"",IF(C26>9999,"",ROUND('General Variables'!$B$4*VLOOKUP(B26,Operations!$A$2:$U$101,10,FALSE)/VLOOKUP(B26,Operations!$A$2:$U$101,9,FALSE)*C26,2))) ->  | F26: =IF(B26=0,0,IF(C26>9999,"",ROUND(IF(VLOOKUP(B26,Operations!$A$2:$U$101,12,FALSE)=0,VLOOKUP(B26,Operations!$A$2:$U$101,13,FALSE)*'General Variables'!$B$8,VLOOKUP(B26,Operations!$A$2:$U$101,12,FALSE)*'General Variables'!$B$7)/VLOOKUP(B26,Operations!$A$2:$U$101,9,FALSE)*C26,2))) -> 0 | G26: =IF(B26=0,0,IF(C26>9999,"",ROUND(VLOOKUP(VLOOKUP(B26,Operations!$A$2:$U$101,11,FALSE),PowerUnits[],10,FALSE)/VLOOKUP(B26,Operations!$A$2:$U$101,9,FALSE)*C26,2))) -> 0 | H26: =IF(B26=0,"",IF(C26>9999,"",ROUND(VLOOKUP($B26,Operations!$A$2:$U$101,15,FALSE)*C26,2))) ->  | I26: =IF(B26=0,0,IF(C26>9999,"",ROUND(VLOOKUP(VLOOKUP(B26,Operations!$A$2:$U$101,11,FALSE),PowerUnits[],16,FALSE)/VLOOKUP(B26,Operations!$A$2:$U$101,9,FALSE)*C26,2))) -> 0 | J26: =IF(B26=0,"",IF(C26>9999,"",ROUND(VLOOKUP($B26,Operations!$A$2:$U$101,21,FALSE)*$C26,2))) ->  | K26: 0
A27: 16 | E27: =IF(B27=0,"",IF(C27>9999,"",ROUND('General Variables'!$B$4*VLOOKUP(B27,Operations!$A$2:$U$101,10,FALSE)/VLOOKUP(B27,Operations!$A$2:$U$101,9,FALSE)*C27,2))) ->  | F27: =IF(B27=0,0,IF(C27>9999,"",ROUND(IF(VLOOKUP(B27,Operations!$A$2:$U$101,12,FALSE)=0,VLOOKUP(B27,Operations!$A$2:$U$101,13,FALSE)*'General Variables'!$B$8,VLOOKUP(B27,Operations!$A$2:$U$101,12,FALSE)*'General Variables'!$B$7)/VLOOKUP(B27,Operations!$A$2:$U$101,9,FALSE)*C27,2))) -> 0 | G27: =IF(B27=0,0,IF(C27>9999,"",ROUND(VLOOKUP(VLOOKUP(B27,Operations!$A$2:$U$101,11,FALSE),PowerUnits[],10,FALSE)/VLOOKUP(B27,Operations!$A$2:$U$101,9,FALSE)*C27,2))) -> 0 | H27: =IF(B27=0,"",IF(C27>9999,"",ROUND(VLOOKUP($B27,Operations!$A$2:$U$101,15,FALSE)*C27,2))) ->  | I27: =IF(B27=0,0,IF(C27>9999,"",ROUND(VLOOKUP(VLOOKUP(B27,Operations!$A$2:$U$101,11,FALSE),PowerUnits[],16,FALSE)/VLOOKUP(B27,Operations!$A$2:$U$101,9,FALSE)*C27,2))) -> 0 | J27: =IF(B27=0,"",IF(C27>9999,"",ROUND(VLOOKUP($B27,Operations!$A$2:$U$101,21,FALSE)*$C27,2))) ->  | K27: 0
A28: 17 | E28: =IF(B28=0,"",IF(C28>9999,"",ROUND('General Variables'!$B$4*VLOOKUP(B28,Operations!$A$2:$U$101,10,FALSE)/VLOOKUP(B28,Operations!$A$2:$U$101,9,FALSE)*C28,2))) ->  | F28: =IF(B28=0,0,IF(C28>9999,"",ROUND(IF(VLOOKUP(B28,Operations!$A$2:$U$101,12,FALSE)=0,VLOOKUP(B28,Operations!$A$2:$U$101,13,FALSE)*'General Variables'!$B$8,VLOOKUP(B28,Operations!$A$2:$U$101,12,FALSE)*'General Variables'!$B$7)/VLOOKUP(B28,Operations!$A$2:$U$101,9,FALSE)*C28,2))) -> 0 | G28: =IF(B28=0,0,IF(C28>9999,"",ROUND(VLOOKUP(VLOOKUP(B28,Operations!$A$2:$U$101,11,FALSE),PowerUnits[],10,FALSE)/VLOOKUP(B28,Operations!$A$2:$U$101,9,FALSE)*C28,2))) -> 0 | H28: =IF(B28=0,"",IF(C28>9999,"",ROUND(VLOOKUP($B28,Operations!$A$2:$U$101,15,FALSE)*C28,2))) ->  | I28: =IF(B28=0,0,IF(C28>9999,"",ROUND(VLOOKUP(VLOOKUP(B28,Operations!$A$2:$U$101,11,FALSE),PowerUnits[],16,FALSE)/VLOOKUP(B28,Operations!$A$2:$U$101,9,FALSE)*C28,2))) -> 0 | J28: =IF(B28=0,"",IF(C28>9999,"",ROUND(VLOOKUP($B28,Operations!$A$2:$U$101,21,FALSE)*$C28,2))) ->  | K28: 0
A29: 18 | E29: =IF(B29=0,"",IF(C29>9999,"",ROUND('General Variables'!$B$4*VLOOKUP(B29,Operations!$A$2:$U$101,10,FALSE)/VLOOKUP(B29,Operations!$A$2:$U$101,9,FALSE)*C29,2))) ->  | F29: =IF(B29=0,0,IF(C29>9999,"",ROUND(IF(VLOOKUP(B29,Operations!$A$2:$U$101,12,FALSE)=0,VLOOKUP(B29,Operations!$A$2:$U$101,13,FALSE)*'General Variables'!$B$8,VLOOKUP(B29,Operations!$A$2:$U$101,12,FALSE)*'General Variables'!$B$7)/VLOOKUP(B29,Operations!$A$2:$U$101,9,FALSE)*C29,2))) -> 0 | G29: =IF(B29=0,0,IF(C29>9999,"",ROUND(VLOOKUP(VLOOKUP(B29,Operations!$A$2:$U$101,11,FALSE),PowerUnits[],10,FALSE)/VLOOKUP(B29,Operations!$A$2:$U$101,9,FALSE)*C29,2))) -> 0 | H29: =IF(B29=0,"",IF(C29>9999,"",ROUND(VLOOKUP($B29,Operations!$A$2:$U$101,15,FALSE)*C29,2))) ->  | I29: =IF(B29=0,0,IF(C29>9999,"",ROUND(VLOOKUP(VLOOKUP(B29,Operations!$A$2:$U$101,11,FALSE),PowerUnits[],16,FALSE)/VLOOKUP(B29,Operations!$A$2:$U$101,9,FALSE)*C29,2))) -> 0 | J29: =IF(B29=0,"",IF(C29>9999,"",ROUND(VLOOKUP($B29,Operations!$A$2:$U$101,21,FALSE)*$C29,2))) ->  | K29: 0
A30: 19 | E30: =IF(B30=0,"",IF(C30>9999,"",ROUND('General Variables'!$B$4*VLOOKUP(B30,Operations!$A$2:$U$101,10,FALSE)/VLOOKUP(B30,Operations!$A$2:$U$101,9,FALSE)*C30,2))) ->  | F30: =IF(B30=0,0,IF(C30>9999,"",ROUND(IF(VLOOKUP(B30,Operations!$A$2:$U$101,12,FALSE)=0,VLOOKUP(B30,Operations!$A$2:$U$101,13,FALSE)*'General Variables'!$B$8,VLOOKUP(B30,Operations!$A$2:$U$101,12,FALSE)*'General Variables'!$B$7)/VLOOKUP(B30,Operations!$A$2:$U$101,9,FALSE)*C30,2))) -> 0 | G30: =IF(B30=0,0,IF(C30>9999,"",ROUND(VLOOKUP(VLOOKUP(B30,Operations!$A$2:$U$101,11,FALSE),PowerUnits[],10,FALSE)/VLOOKUP(B30,Operations!$A$2:$U$101,9,FALSE)*C30,2))) -> 0 | H30: =IF(B30=0,"",IF(C30>9999,"",ROUND(VLOOKUP($B30,Operations!$A$2:$U$101,15,FALSE)*C30,2))) ->  | I30: =IF(B30=0,0,IF(C30>9999,"",ROUND(VLOOKUP(VLOOKUP(B30,Operations!$A$2:$U$101,11,FALSE),PowerUnits[],16,FALSE)/VLOOKUP(B30,Operations!$A$2:$U$101,9,FALSE)*C30,2))) -> 0 | J30: =IF(B30=0,"",IF(C30>9999,"",ROUND(VLOOKUP($B30,Operations!$A$2:$U$101,21,FALSE)*$C30,2))) ->  | K30: 0
A31: 20 | E31: =IF(B31=0,"",IF(C31>9999,"",ROUND('General Variables'!$B$4*VLOOKUP(B31,Operations!$A$2:$U$101,10,FALSE)/VLOOKUP(B31,Operations!$A$2:$U$101,9,FALSE)*C31,2))) ->  | F31: =IF(B31=0,0,IF(C31>9999,"",ROUND(IF(VLOOKUP(B31,Operations!$A$2:$U$101,12,FALSE)=0,VLOOKUP(B31,Operations!$A$2:$U$101,13,FALSE)*'General Variables'!$B$8,VLOOKUP(B31,Operations!$A$2:$U$101,12,FALSE)*'General Variables'!$B$7)/VLOOKUP(B31,Operations!$A$2:$U$101,9,FALSE)*C31,2))) -> 0 | G31: =IF(B31=0,0,IF(C31>9999,"",ROUND(VLOOKUP(VLOOKUP(B31,Operations!$A$2:$U$101,11,FALSE),PowerUnits[],10,FALSE)/VLOOKUP(B31,Operations!$A$2:$U$101,9,FALSE)*C31,2))) -> 0 | H31: =IF(B31=0,"",IF(C31>9999,"",ROUND(VLOOKUP($B31,Operations!$A$2:$U$101,15,FALSE)*C31,2))) ->  | I31: =IF(B31=0,0,IF(C31>9999,"",ROUND(VLOOKUP(VLOOKUP(B31,Operations!$A$2:$U$101,11,FALSE),PowerUnits[],16,FALSE)/VLOOKUP(B31,Operations!$A$2:$U$101,9,FALSE)*C31,2))) -> 0 | J31: =IF(B31=0,"",IF(C31>9999,"",ROUND(VLOOKUP($B31,Operations!$A$2:$U$101,21,FALSE)*$C31,2))) ->  | K31: 0
C33: Total for Field Operations | E33: =SUM(E12:E31) -> 3.49 | F33: =SUM(F12:F31) -> 3.68 | G33: 0.88 | H33: 2.6 | I33: 5.84 | J33: 2.65 | K33: 19.14
F35: Operation Index | G35: Percent Acres Applied | H35: Application | J35: Applied Price | L35: Your Estimate
B36: Materials & Services | H36: Rate | I36: Unit | K36: Total
B37: Cover Crop | C37: =IF(B37=0,"",VLOOKUP($B37,Table2[],2,FALSE)) -> Seed | F37: 2 | G37: 1 | H37: 1 | I37: =IF($B37=0,"",VLOOKUP($B37,Table2[],5,FALSE)) -> acre | J37: =IF($B37=0,"",VLOOKUP($B37,Table2[],7,FALSE)) -> 15 | K37: =IF(B37=0,0,ROUND(G37*H37*J37,2)) -> 15
B38: Broadcast Seed | C38: =IF(B38=0,"",VLOOKUP($B38,Table2[],2,FALSE)) -> Custom | F38: 2 | G38: 1 | H38: 1 | I38: =IF($B38=0,"",VLOOKUP($B38,Table2[],5,FALSE)) -> acre | J38: =IF($B38=0,"",VLOOKUP($B38,Table2[],7,FALSE)) -> 5 | K38: =IF(B38=0,0,ROUND(G38*H38*J38,2)) -> 5
C39: =IF(B39=0,"",VLOOKUP($B39,Table2[],2,FALSE)) ->  | I39: =IF($B39=0,"",VLOOKUP($B39,Table2[],5,FALSE)) ->  | J39: =IF($B39=0,"",VLOOKUP($B39,Table2[],7,FALSE)) ->  | K39: 0
C40: =IF(B40=0,"",VLOOKUP($B40,Table2[],2,FALSE)) ->  | I40: =IF($B40=0,"",VLOOKUP($B40,Table2[],5,FALSE)) ->  | J40: =IF($B40=0,"",VLOOKUP($B40,Table2[],7,FALSE)) ->  | K40: 0
C41: =IF(B41=0,"",VLOOKUP($B41,Table2[],2,FALSE)) ->  | I41: =IF($B41=0,"",VLOOKUP($B41,Table2[],5,FALSE)) ->  | J41: =IF($B41=0,"",VLOOKUP($B41,Table2[],7,FALSE)) ->  | K41: 0
C42: =IF(B42=0,"",VLOOKUP($B42,Table2[],2,FALSE)) ->  | I42: =IF($B42=0,"",VLOOKUP($B42,Table2[],5,FALSE)) ->  | J42: =IF($B42=0,"",VLOOKUP($B42,Table2[],7,FALSE)) ->  | K42: 0
C43: =IF(B43=0,"",VLOOKUP($B43,Table2[],2,FALSE)) ->  | I43: =IF($B43=0,"",VLOOKUP($B43,Table2[],5,FALSE)) ->  | J43: =IF($B43=0,"",VLOOKUP($B43,Table2[],7,FALSE)) ->  | K43: 0
C44: =IF(B44=0,"",VLOOKUP($B44,Table2[],2,FALSE)) ->  | I44: =IF($B44=0,"",VLOOKUP($B44,Table2[],5,FALSE)) ->  | J44: =IF($B44=0,"",VLOOKUP($B44,Table2[],7,FALSE)) ->  | K44: 0
C45: =IF(B45=0,"",VLOOKUP($B45,Table2[],2,FALSE)) ->  | I45: =IF($B45=0,"",VLOOKUP($B45,Table2[],5,FALSE)) ->  | J45: =IF($B45=0,"",VLOOKUP($B45,Table2[],7,FALSE)) ->  | K45: 0
C46: =IF(B46=0,"",VLOOKUP($B46,Table2[],2,FALSE)) ->  | I46: =IF($B46=0,"",VLOOKUP($B46,Table2[],5,FALSE)) ->  | J46: =IF($B46=0,"",VLOOKUP($B46,Table2[],7,FALSE)) ->  | K46: 0
C47: =IF(B47=0,"",VLOOKUP($B47,Table2[],2,FALSE)) ->  | I47: =IF($B47=0,"",VLOOKUP($B47,Table2[],5,FALSE)) ->  | J47: =IF($B47=0,"",VLOOKUP($B47,Table2[],7,FALSE)) ->  | K47: 0
C48: =IF(B48=0,"",VLOOKUP($B48,Table2[],2,FALSE)) ->  | I48: =IF($B48=0,"",VLOOKUP($B48,Table2[],5,FALSE)) ->  | J48: =IF($B48=0,"",VLOOKUP($B48,Table2[],7,FALSE)) ->  | K48: 0
C49: =IF(B49=0,"",VLOOKUP($B49,Table2[],2,FALSE)) ->  | I49: =IF($B49=0,"",VLOOKUP($B49,Table2[],5,FALSE)) ->  | J49: =IF($B49=0,"",VLOOKUP($B49,Table2[],7,FALSE)) ->  | K49: 0
C50: =IF(B50=0,"",VLOOKUP($B50,Table2[],2,FALSE)) ->  | I50: =IF($B50=0,"",VLOOKUP($B50,Table2[],5,FALSE)) ->  | J50: =IF($B50=0,"",VLOOKUP($B50,Table2[],7,FALSE)) ->  | K50: 0
C51: =IF(B51=0,"",VLOOKUP($B51,Table2[],2,FALSE)) ->  | I51: =IF($B51=0,"",VLOOKUP($B51,Table2[],5,FALSE)) ->  | J51: =IF($B51=0,"",VLOOKUP($B51,Table2[],7,FALSE)) ->  | K51: 0
C52: =IF(B52=0,"",VLOOKUP($B52,Table2[],2,FALSE)) ->  | I52: =IF($B52=0,"",VLOOKUP($B52,Table2[],5,FALSE)) ->  | J52: =IF($B52=0,"",VLOOKUP($B52,Table2[],7,FALSE)) ->  | K52: 0
C53: =IF(B53=0,"",VLOOKUP($B53,Table2[],2,FALSE)) ->  | I53: =IF($B53=0,"",VLOOKUP($B53,Table2[],5,FALSE)) ->  | J53: =IF($B53=0,"",VLOOKUP($B53,Table2[],7,FALSE)) ->  | K53: 0
C54: =IF(B54=0,"",VLOOKUP($B54,Table2[],2,FALSE)) ->  | I54: =IF($B54=0,"",VLOOKUP($B54,Table2[],5,FALSE)) ->  | J54: =IF($B54=0,"",VLOOKUP($B54,Table2[],7,FALSE)) ->  | K54: 0
C55: =IF(B55=0,"",VLOOKUP($B55,Table2[],2,FALSE)) ->  | I55: =IF($B55=0,"",VLOOKUP($B55,Table2[],5,FALSE)) ->  | J55: =IF($B55=0,"",VLOOKUP($B55,Table2[],7,FALSE)) ->  | K55: 0
C56: =IF(B56=0,"",VLOOKUP($B56,Table2[],2,FALSE)) ->  | I56: =IF($B56=0,"",VLOOKUP($B56,Table2[],5,FALSE)) ->  | J56: =IF($B56=0,"",VLOOKUP($B56,Table2[],7,FALSE)) ->  | K56: =IF(B56=0,0,ROUND(G56*H56*J56,2)) -> 0
C57: =IF(B57=0,"",VLOOKUP($B57,Table2[],2,FALSE)) ->  | I57: =IF($B57=0,"",VLOOKUP($B57,Table2[],5,FALSE)) ->  | J57: =IF($B57=0,"",VLOOKUP($B57,Table2[],7,FALSE)) ->  | K57: =IF(B57=0,0,ROUND(G57*H57*J57,2)) -> 0
C58: =IF(B58=0,"",VLOOKUP($B58,Table2[],2,FALSE)) ->  | I58: =IF($B58=0,"",VLOOKUP($B58,Table2[],5,FALSE)) ->  | J58: =IF($B58=0,"",VLOOKUP($B58,Table2[],7,FALSE)) ->  | K58: =IF(B58=0,0,ROUND(G58*H58*J58,2)) -> 0
C59: =IF(B59=0,"",VLOOKUP($B59,Table2[],2,FALSE)) ->  | I59: =IF($B59=0,"",VLOOKUP($B59,Table2[],5,FALSE)) ->  | J59: =IF($B59=0,"",VLOOKUP($B59,Table2[],7,FALSE)) ->  | K59: =IF(B59=0,0,ROUND(G59*H59*J59,2)) -> 0
C60: =IF(B60=0,"",VLOOKUP($B60,Table2[],2,FALSE)) ->  | I60: =IF($B60=0,"",VLOOKUP($B60,Table2[],5,FALSE)) ->  | J60: =IF($B60=0,"",VLOOKUP($B60,Table2[],7,FALSE)) ->  | K60: =IF(B60=0,0,ROUND(G60*H60*J60,2)) -> 0
C61: Crop Insurance | K61: =IF(B61=0,0,J61) -> 0
C63: Total Materials & Services | K63: =SUM(K37:K61) -> 20
B65: Total listed costs for Field Operations and Materials and Services | K65: =K33+K63 -> 39.14
D66: Interest on Operations Capital | E66: =ROUND(SUM($E$33:$H$33)+$K$63,2) -> 30.65 | F66: cash expense @ | H66: ='General Variables'!$B$11 -> 0.055 | I66: =CONCATENATE("for ",TEXT('General Variables'!$B$12,"0.0")," mo.") -> for 6.0 mo. | K66: =E66*H66*'General Variables'!$B$12/12 -> 0.842875
B67: Total Operating and Use Related Ownership Costs | K67: =SUM(K65:K66) -> 39.982875
B69: Overhead (accounting, liability insurance, vehicle cost, office expense) | K69: 0
B70: Real Estate Opportunity | F70: =IF(C70=0,0,VLOOKUP(C70,RETable,2,FALSE)) -> 0 | G70: per acre @ | I70: ='General Variables'!$B$10 -> 0.03 | K70: =ROUND(F70*I70,2) -> 0
B71: Real Estate Taxes | F71: =IF(C70=0,0,VLOOKUP(C70,RETable,2,FALSE)) -> 0 | G71: per acre @ | I71: ='General Variables'!$B$13 -> 0.01 | K71: =ROUND(F71*I71,2) -> 0
B72: Total Cost per Acre Including Overhead | K72: =SUM(K67:K71) -> 39.982875
B74: =IF(G5="","","Cost per "&H5) ->  | K74: =IF(G5="","",K72/G5) -> 
B75: =IF(G5="","","Cash Cost per "&H5) ->  | K75: =IF(G5="","",(E66+K66)/G5) -> 
H110: ='General Variables'!A18 -> Corn Dryland
H111: ='General Variables'!A19 -> Corn Dryland Ecofallow | K111: Yes
H112: ='General Variables'!A20 -> Corn Irrigated | K112: No
H113: ='General Variables'!A21 -> Dry Beans
H114: ='General Variables'!A22 -> Grain Sorghum Dryland
H115: ='General Variables'!A23 -> Grain Sorghum Irrigated
H116: ='General Variables'!A24 -> Millet
H117: ='General Variables'!A25 -> Oats
H118: ='General Variables'!A26 -> Soybeans Dryland
H119: ='General Variables'!A27 -> Soybeans Irrigated
H120: ='General Variables'!A28 -> Sugar Beets
H121: ='General Variables'!A29 -> Sunflower Dryland
H122: ='General Variables'!A30 -> Sunflower Irrigated
H123: ='General Variables'!A31 -> Wheat After Crop
H124: ='General Variables'!A32 -> Wheat Fallowed
H125: ='General Variables'!A33 -> Wheat Irrigated
B240: =IF(Operations!A132="","",Operations!A132) ->  | C240: =IF(Materials!B132="","",Materials!B132) -> Sorghum Sudan Brown Midrib
B241: =IF(Operations!A133="","",Operations!A133) ->  | C241: =IF(Materials!B133="","",Materials!B133) -> Sugar Beets RR Poncho
B242: =IF(Operations!A134="","",Operations!A134) ->  | C242: =IF(Materials!B134="","",Materials!B134) -> Sunflower Clearfield
B243: =IF(Operations!A135="","",Operations!A135) ->  | C243: =IF(Materials!B135="","",Materials!B135) -> Wheat
B244: =IF(Operations!A136="","",Operations!A136) ->  | C244: =IF(Materials!B136="","",Materials!B136) -> Wheat (Certified and Treated)

Sheet 78-Cover Crop
B2: Region | F2: Detail | J2: Water Source
B3: Tillage System | C3: No Till | G3: Yield Goal | J3: acre/inches
B4: Cropping System | G4: Actural Yield | J4: Follows Legume?
G5: =IFERROR(VALUE(LEFT($H$4,FIND(" ",$H$4))),"") ->  | H5: =IFERROR(RIGHT(H4,LEN(H4)-LEN(G5)-1),"") -> 
A6: =REPLACE(CELL("filename",$A$1),1,FIND("]",CELL("filename",$A$1)),"") & IF($G$2="","", ", " & $G$2 ) & IF($C$2="","",", "&$C$2&"") & IF($C$3="","",", "&$C$3) & IF($C$4="","",", "&$C$4) & IF($H$3="","",", "&$H$3 & " Yield Goal") & IF(K2="","",", " &K2) -> 78-Cover Crop, No Till
B7: ='General Variables'!$B$3 & " Budget " & REPLACE(CELL("filename",$A$1),1,FIND("]",CELL("filename",$A$1)),"") & IF($G$2="","", ", " & $G$2 ) & IF($C$2="","",", "&$C$2) & IF($C$3="","",", "&$C$3) & IF($C$4="","",", "&$C$4) & IF($H$3="","",", "&$H$3 & " Yield Goal") & IF($H$4="",""," (" & $H$4 & " Actual Yield)") -> 2018 Budget 78-Cover Crop, No Till
B8: =IF(K2="","",K2)&IF(LEFT(K2,5)="Pivot",", 800 GPM 35 PSI","") & IF(K2="Gravity Irrigated, fed by a well",", 1,000 GPM 10 PSI","") & IF(K3="","",", "& K3&" "&J3) -> 
B10: Field Operations | C10: Times or Qty | E10: ="Labor @ $" &TEXT('General Variables'!B4,"#.00")& " /Hr" -> Labor @ $20.00 /Hr | F10: ="Fuel @ $" & TEXT('General Variables'!B5,"#.00") & " and Lube" -> Fuel @ $2.45 and Lube | G10: Repairs | I10: Ownership | K10: Total | L10: Your Estimate
D11: Unit | G11: Power | H11: Imp. | I11: Power | J11: Imp.
A12: 1 | B12: No-Till Drill | C12: 1 | E12: =IF(B12=0,"",IF(C12>9999,"",ROUND('General Variables'!$B$4*VLOOKUP(B12,Operations!$A$2:$U$101,10,FALSE)/VLOOKUP(B12,Operations!$A$2:$U$101,9,FALSE)*C12,2))) -> 1.83 | F12: =IF(B12=0,0,IF(C12>9999,"",ROUND(IF(VLOOKUP(B12,Operations!$A$2:$U$101,12,FALSE)=0,VLOOKUP(B12,Operations!$A$2:$U$101,13,FALSE)*'General Variables'!$B$8,VLOOKUP(B12,Operations!$A$2:$U$101,12,FALSE)*'General Variables'!$B$7)/VLOOKUP(B12,Operations!$A$2:$U$101,9,FALSE)*C12,2))) -> 1.43 | G12: =IF(B12=0,0,IF(C12>9999,"",ROUND(VLOOKUP(VLOOKUP(B12,Operations!$A$2:$U$101,11,FALSE),PowerUnits[],10,FALSE)/VLOOKUP(B12,Operations!$A$2:$U$101,9,FALSE)*C12,2))) -> 0.72 | H12: =IF(B12=0,"",IF(C12>9999,"",ROUND(VLOOKUP($B12,Operations!$A$2:$U$101,15,FALSE)*C12,2))) -> 1.57 | I12: =IF(B12=0,0,IF(C12>9999,"",ROUND(VLOOKUP(VLOOKUP(B12,Operations!$A$2:$U$101,11,FALSE),PowerUnits[],16,FALSE)/VLOOKUP(B12,Operations!$A$2:$U$101,9,FALSE)*C12,2))) -> 2.25 | J12: =IF(B12=0,"",IF(C12>9999,"",ROUND(VLOOKUP($B12,Operations!$A$2:$U$101,21,FALSE)*$C12,2))) -> 3.21 | K12: =IF(C12>9999,"",ROUND(SUM(E12:J12),2)) -> 11.01
A13: 2 | B13: Spray Herbicide | C13: 1 | E13: =IF(B13=0,"",IF(C13>9999,"",ROUND('General Variables'!$B$4*VLOOKUP(B13,Operations!$A$2:$U$101,10,FALSE)/VLOOKUP(B13,Operations!$A$2:$U$101,9,FALSE)*C13,2))) -> 1 | F13: =IF(B13=0,0,IF(C13>9999,"",ROUND(IF(VLOOKUP(B13,Operations!$A$2:$U$101,12,FALSE)=0,VLOOKUP(B13,Operations!$A$2:$U$101,13,FALSE)*'General Variables'!$B$8,VLOOKUP(B13,Operations!$A$2:$U$101,12,FALSE)*'General Variables'!$B$7)/VLOOKUP(B13,Operations!$A$2:$U$101,9,FALSE)*C13,2))) -> 0.3 | G13: =IF(B13=0,0,IF(C13>9999,"",ROUND(VLOOKUP(VLOOKUP(B13,Operations!$A$2:$U$101,11,FALSE),PowerUnits[],10,FALSE)/VLOOKUP(B13,Operations!$A$2:$U$101,9,FALSE)*C13,2))) -> 0.35 | H13: =IF(B13=0,"",IF(C13>9999,"",ROUND(VLOOKUP($B13,Operations!$A$2:$U$101,15,FALSE)*C13,2))) -> 0.29 | I13: =IF(B13=0,0,IF(C13>9999,"",ROUND(VLOOKUP(VLOOKUP(B13,Operations!$A$2:$U$101,11,FALSE),PowerUnits[],16,FALSE)/VLOOKUP(B13,Operations!$A$2:$U$101,9,FALSE)*C13,2))) -> 1.08 | J13: =IF(B13=0,"",IF(C13>9999,"",ROUND(VLOOKUP($B13,Operations!$A$2:$U$101,21,FALSE)*$C13,2))) -> 0.04 | K13: =IF(C13>9999,"",ROUND(SUM(E13:J13),2)) -> 3.06
A14: 3 | E14: =IF(B14=0,"",IF(C14>9999,"",ROUND('General Variables'!$B$4*VLOOKUP(B14,Operations!$A$2:$U$101,10,FALSE)/VLOOKUP(B14,Operations!$A$2:$U$101,9,FALSE)*C14,2))) ->  | F14: =IF(B14=0,0,IF(C14>9999,"",ROUND(IF(VLOOKUP(B14,Operations!$A$2:$U$101,12,FALSE)=0,VLOOKUP(B14,Operations!$A$2:$U$101,13,FALSE)*'General Variables'!$B$8,VLOOKUP(B14,Operations!$A$2:$U$101,12,FALSE)*'General Variables'!$B$7)/VLOOKUP(B14,Operations!$A$2:$U$101,9,FALSE)*C14,2))) -> 0 | G14: =IF(B14=0,0,IF(C14>9999,"",ROUND(VLOOKUP(VLOOKUP(B14,Operations!$A$2:$U$101,11,FALSE),PowerUnits[],10,FALSE)/VLOOKUP(B14,Operations!$A$2:$U$101,9,FALSE)*C14,2))) -> 0 | H14: =IF(B14=0,"",IF(C14>9999,"",ROUND(VLOOKUP($B14,Operations!$A$2:$U$101,15,FALSE)*C14,2))) ->  | I14: =IF(B14=0,0,IF(C14>9999,"",ROUND(VLOOKUP(VLOOKUP(B14,Operations!$A$2:$U$101,11,FALSE),PowerUnits[],16,FALSE)/VLOOKUP(B14,Operations!$A$2:$U$101,9,FALSE)*C14,2))) -> 0 | J14: =IF(B14=0,"",IF(C14>9999,"",ROUND(VLOOKUP($B14,Operations!$A$2:$U$101,21,FALSE)*$C14,2))) ->  | K14: 0
A15: 4 | E15: =IF(B15=0,"",IF(C15>9999,"",ROUND('General Variables'!$B$4*VLOOKUP(B15,Operations!$A$2:$U$101,10,FALSE)/VLOOKUP(B15,Operations!$A$2:$U$101,9,FALSE)*C15,2))) ->  | F15: =IF(B15=0,0,IF(C15>9999,"",ROUND(IF(VLOOKUP(B15,Operations!$A$2:$U$101,12,FALSE)=0,VLOOKUP(B15,Operations!$A$2:$U$101,13,FALSE)*'General Variables'!$B$8,VLOOKUP(B15,Operations!$A$2:$U$101,12,FALSE)*'General Variables'!$B$7)/VLOOKUP(B15,Operations!$A$2:$U$101,9,FALSE)*C15,2))) -> 0 | G15: =IF(B15=0,0,IF(C15>9999,"",ROUND(VLOOKUP(VLOOKUP(B15,Operations!$A$2:$U$101,11,FALSE),PowerUnits[],10,FALSE)/VLOOKUP(B15,Operations!$A$2:$U$101,9,FALSE)*C15,2))) -> 0 | H15: =IF(B15=0,"",IF(C15>9999,"",ROUND(VLOOKUP($B15,Operations!$A$2:$U$101,15,FALSE)*C15,2))) ->  | I15: =IF(B15=0,0,IF(C15>9999,"",ROUND(VLOOKUP(VLOOKUP(B15,Operations!$A$2:$U$101,11,FALSE),PowerUnits[],16,FALSE)/VLOOKUP(B15,Operations!$A$2:$U$101,9,FALSE)*C15,2))) -> 0 | J15: =IF(B15=0,"",IF(C15>9999,"",ROUND(VLOOKUP($B15,Operations!$A$2:$U$101,21,FALSE)*$C15,2))) ->  | K15: 0
A16: 5 | E16: =IF(B16=0,"",IF(C16>9999,"",ROUND('General Variables'!$B$4*VLOOKUP(B16,Operations!$A$2:$U$101,10,FALSE)/VLOOKUP(B16,Operations!$A$2:$U$101,9,FALSE)*C16,2))) ->  | F16: =IF(B16=0,0,IF(C16>9999,"",ROUND(IF(VLOOKUP(B16,Operations!$A$2:$U$101,12,FALSE)=0,VLOOKUP(B16,Operations!$A$2:$U$101,13,FALSE)*'General Variables'!$B$8,VLOOKUP(B16,Operations!$A$2:$U$101,12,FALSE)*'General Variables'!$B$7)/VLOOKUP(B16,Operations!$A$2:$U$101,9,FALSE)*C16,2))) -> 0 | G16: =IF(B16=0,0,IF(C16>9999,"",ROUND(VLOOKUP(VLOOKUP(B16,Operations!$A$2:$U$101,11,FALSE),PowerUnits[],10,FALSE)/VLOOKUP(B16,Operations!$A$2:$U$101,9,FALSE)*C16,2))) -> 0 | H16: =IF(B16=0,"",IF(C16>9999,"",ROUND(VLOOKUP($B16,Operations!$A$2:$U$101,15,FALSE)*C16,2))) ->  | I16: =IF(B16=0,0,IF(C16>9999,"",ROUND(VLOOKUP(VLOOKUP(B16,Operations!$A$2:$U$101,11,FALSE),PowerUnits[],16,FALSE)/VLOOKUP(B16,Operations!$A$2:$U$101,9,FALSE)*C16,2))) -> 0 | J16: =IF(B16=0,"",IF(C16>9999,"",ROUND(VLOOKUP($B16,Operations!$A$2:$U$101,21,FALSE)*$C16,2))) ->  | K16: 0
A17: 6 | E17: =IF(B17=0,"",IF(C17>9999,"",ROUND('General Variables'!$B$4*VLOOKUP(B17,Operations!$A$2:$U$101,10,FALSE)/VLOOKUP(B17,Operations!$A$2:$U$101,9,FALSE)*C17,2))) ->  | F17: =IF(B17=0,0,IF(C17>9999,"",ROUND(IF(VLOOKUP(B17,Operations!$A$2:$U$101,12,FALSE)=0,VLOOKUP(B17,Operations!$A$2:$U$101,13,FALSE)*'General Variables'!$B$8,VLOOKUP(B17,Operations!$A$2:$U$101,12,FALSE)*'General Variables'!$B$7)/VLOOKUP(B17,Operations!$A$2:$U$101,9,FALSE)*C17,2))) -> 0 | G17: =IF(B17=0,0,IF(C17>9999,"",ROUND(VLOOKUP(VLOOKUP(B17,Operations!$A$2:$U$101,11,FALSE),PowerUnits[],10,FALSE)/VLOOKUP(B17,Operations!$A$2:$U$101,9,FALSE)*C17,2))) -> 0 | H17: =IF(B17=0,"",IF(C17>9999,"",ROUND(VLOOKUP($B17,Operations!$A$2:$U$101,15,FALSE)*C17,2))) ->  | I17: =IF(B17=0,0,IF(C17>9999,"",ROUND(VLOOKUP(VLOOKUP(B17,Operations!$A$2:$U$101,11,FALSE),PowerUnits[],16,FALSE)/VLOOKUP(B17,Operations!$A$2:$U$101,9,FALSE)*C17,2))) -> 0 | J17: =IF(B17=0,"",IF(C17>9999,"",ROUND(VLOOKUP($B17,Operations!$A$2:$U$101,21,FALSE)*$C17,2))) ->  | K17: 0
A18: 7 | E18: =IF(B18=0,"",IF(C18>9999,"",ROUND('General Variables'!$B$4*VLOOKUP(B18,Operations!$A$2:$U$101,10,FALSE)/VLOOKUP(B18,Operations!$A$2:$U$101,9,FALSE)*C18,2))) ->  | F18: =IF(B18=0,0,IF(C18>9999,"",ROUND(IF(VLOOKUP(B18,Operations!$A$2:$U$101,12,FALSE)=0,VLOOKUP(B18,Operations!$A$2:$U$101,13,FALSE)*'General Variables'!$B$8,VLOOKUP(B18,Operations!$A$2:$U$101,12,FALSE)*'General Variables'!$B$7)/VLOOKUP(B18,Operations!$A$2:$U$101,9,FALSE)*C18,2))) -> 0 | G18: =IF(B18=0,0,IF(C18>9999,"",ROUND(VLOOKUP(VLOOKUP(B18,Operations!$A$2:$U$101,11,FALSE),PowerUnits[],10,FALSE)/VLOOKUP(B18,Operations!$A$2:$U$101,9,FALSE)*C18,2))) -> 0 | H18: =IF(B18=0,"",IF(C18>9999,"",ROUND(VLOOKUP($B18,Operations!$A$2:$U$101,15,FALSE)*C18,2))) ->  | I18: =IF(B18=0,0,IF(C18>9999,"",ROUND(VLOOKUP(VLOOKUP(B18,Operations!$A$2:$U$101,11,FALSE),PowerUnits[],16,FALSE)/VLOOKUP(B18,Operations!$A$2:$U$101,9,FALSE)*C18,2))) -> 0 | J18: =IF(B18=0,"",IF(C18>9999,"",ROUND(VLOOKUP($B18,Operations!$A$2:$U$101,21,FALSE)*$C18,2))) ->  | K18: 0
A19: 8 | E19: =IF(B19=0,"",IF(C19>9999,"",ROUND('General Variables'!$B$4*VLOOKUP(B19,Operations!$A$2:$U$101,10,FALSE)/VLOOKUP(B19,Operations!$A$2:$U$101,9,FALSE)*C19,2))) ->  | F19: =IF(B19=0,0,IF(C19>9999,"",ROUND(IF(VLOOKUP(B19,Operations!$A$2:$U$101,12,FALSE)=0,VLOOKUP(B19,Operations!$A$2:$U$101,13,FALSE)*'General Variables'!$B$8,VLOOKUP(B19,Operations!$A$2:$U$101,12,FALSE)*'General Variables'!$B$7)/VLOOKUP(B19,Operations!$A$2:$U$101,9,FALSE)*C19,2))) -> 0 | G19: =IF(B19=0,0,IF(C19>9999,"",ROUND(VLOOKUP(VLOOKUP(B19,Operations!$A$2:$U$101,11,FALSE),PowerUnits[],10,FALSE)/VLOOKUP(B19,Operations!$A$2:$U$101,9,FALSE)*C19,2))) -> 0 | H19: =IF(B19=0,"",IF(C19>9999,"",ROUND(VLOOKUP($B19,Operations!$A$2:$U$101,15,FALSE)*C19,2))) ->  | I19: =IF(B19=0,0,IF(C19>9999,"",ROUND(VLOOKUP(VLOOKUP(B19,Operations!$A$2:$U$101,11,FALSE),PowerUnits[],16,FALSE)/VLOOKUP(B19,Operations!$A$2:$U$101,9,FALSE)*C19,2))) -> 0 | J19: =IF(B19=0,"",IF(C19>9999,"",ROUND(VLOOKUP($B19,Operations!$A$2:$U$101,21,FALSE)*$C19,2))) ->  | K19: =IF(C19>9999,"",ROUND(SUM(E19:J19),2)) -> 0
A20: 9 | E20: =IF(B20=0,"",IF(C20>9999,"",ROUND('General Variables'!$B$4*VLOOKUP(B20,Operations!$A$2:$U$101,10,FALSE)/VLOOKUP(B20,Operations!$A$2:$U$101,9,FALSE)*C20,2))) ->  | F20: =IF(B20=0,0,IF(C20>9999,"",ROUND(IF(VLOOKUP(B20,Operations!$A$2:$U$101,12,FALSE)=0,VLOOKUP(B20,Operations!$A$2:$U$101,13,FALSE)*'General Variables'!$B$8,VLOOKUP(B20,Operations!$A$2:$U$101,12,FALSE)*'General Variables'!$B$7)/VLOOKUP(B20,Operations!$A$2:$U$101,9,FALSE)*C20,2))) -> 0 | G20: =IF(B20=0,0,IF(C20>9999,"",ROUND(VLOOKUP(VLOOKUP(B20,Operations!$A$2:$U$101,11,FALSE),PowerUnits[],10,FALSE)/VLOOKUP(B20,Operations!$A$2:$U$101,9,FALSE)*C20,2))) -> 0 | H20: =IF(B20=0,"",IF(C20>9999,"",ROUND(VLOOKUP($B20,Operations!$A$2:$U$101,15,FALSE)*C20,2))) ->  | I20: =IF(B20=0,0,IF(C20>9999,"",ROUND(VLOOKUP(VLOOKUP(B20,Operations!$A$2:$U$101,11,FALSE),PowerUnits[],16,FALSE)/VLOOKUP(B20,Operations!$A$2:$U$101,9,FALSE)*C20,2))) -> 0 | J20: =IF(B20=0,"",IF(C20>9999,"",ROUND(VLOOKUP($B20,Operations!$A$2:$U$101,21,FALSE)*$C20,2))) ->  | K20: 0
A21: 10 | E21: =IF(B21=0,"",IF(C21>9999,"",ROUND('General Variables'!$B$4*VLOOKUP(B21,Operations!$A$2:$U$101,10,FALSE)/VLOOKUP(B21,Operations!$A$2:$U$101,9,FALSE)*C21,2))) ->  | F21: =IF(B21=0,0,IF(C21>9999,"",ROUND(IF(VLOOKUP(B21,Operations!$A$2:$U$101,12,FALSE)=0,VLOOKUP(B21,Operations!$A$2:$U$101,13,FALSE)*'General Variables'!$B$8,VLOOKUP(B21,Operations!$A$2:$U$101,12,FALSE)*'General Variables'!$B$7)/VLOOKUP(B21,Operations!$A$2:$U$101,9,FALSE)*C21,2))) -> 0 | G21: =IF(B21=0,0,IF(C21>9999,"",ROUND(VLOOKUP(VLOOKUP(B21,Operations!$A$2:$U$101,11,FALSE),PowerUnits[],10,FALSE)/VLOOKUP(B21,Operations!$A$2:$U$101,9,FALSE)*C21,2))) -> 0 | H21: =IF(B21=0,"",IF(C21>9999,"",ROUND(VLOOKUP($B21,Operations!$A$2:$U$101,15,FALSE)*C21,2))) ->  | I21: =IF(B21=0,0,IF(C21>9999,"",ROUND(VLOOKUP(VLOOKUP(B21,Operations!$A$2:$U$101,11,FALSE),PowerUnits[],16,FALSE)/VLOOKUP(B21,Operations!$A$2:$U$101,9,FALSE)*C21,2))) -> 0 | J21: =IF(B21=0,"",IF(C21>9999,"",ROUND(VLOOKUP($B21,Operations!$A$2:$U$101,21,FALSE)*$C21,2))) ->  | K21: 0
A22: 11 | E22: =IF(B22=0,"",IF(C22>9999,"",ROUND('General Variables'!$B$4*VLOOKUP(B22,Operations!$A$2:$U$101,10,FALSE)/VLOOKUP(B22,Operations!$A$2:$U$101,9,FALSE)*C22,2))) ->  | F22: =IF(B22=0,0,IF(C22>9999,"",ROUND(IF(VLOOKUP(B22,Operations!$A$2:$U$101,12,FALSE)=0,VLOOKUP(B22,Operations!$A$2:$U$101,13,FALSE)*'General Variables'!$B$8,VLOOKUP(B22,Operations!$A$2:$U$101,12,FALSE)*'General Variables'!$B$7)/VLOOKUP(B22,Operations!$A$2:$U$101,9,FALSE)*C22,2))) -> 0 | G22: =IF(B22=0,0,IF(C22>9999,"",ROUND(VLOOKUP(VLOOKUP(B22,Operations!$A$2:$U$101,11,FALSE),PowerUnits[],10,FALSE)/VLOOKUP(B22,Operations!$A$2:$U$101,9,FALSE)*C22,2))) -> 0 | H22: =IF(B22=0,"",IF(C22>9999,"",ROUND(VLOOKUP($B22,Operations!$A$2:$U$101,15,FALSE)*C22,2))) ->  | I22: =IF(B22=0,0,IF(C22>9999,"",ROUND(VLOOKUP(VLOOKUP(B22,Operations!$A$2:$U$101,11,FALSE),PowerUnits[],16,FALSE)/VLOOKUP(B22,Operations!$A$2:$U$101,9,FALSE)*C22,2))) -> 0 | J22: =IF(B22=0,"",IF(C22>9999,"",ROUND(VLOOKUP($B22,Operations!$A$2:$U$101,21,FALSE)*$C22,2))) ->  | K22: 0
A23: 12 | E23: =IF(B23=0,"",IF(C23>9999,"",ROUND('General Variables'!$B$4*VLOOKUP(B23,Operations!$A$2:$U$101,10,FALSE)/VLOOKUP(B23,Operations!$A$2:$U$101,9,FALSE)*C23,2))) ->  | F23: =IF(B23=0,0,IF(C23>9999,"",ROUND(IF(VLOOKUP(B23,Operations!$A$2:$U$101,12,FALSE)=0,VLOOKUP(B23,Operations!$A$2:$U$101,13,FALSE)*'General Variables'!$B$8,VLOOKUP(B23,Operations!$A$2:$U$101,12,FALSE)*'General Variables'!$B$7)/VLOOKUP(B23,Operations!$A$2:$U$101,9,FALSE)*C23,2))) -> 0 | G23: =IF(B23=0,0,IF(C23>9999,"",ROUND(VLOOKUP(VLOOKUP(B23,Operations!$A$2:$U$101,11,FALSE),PowerUnits[],10,FALSE)/VLOOKUP(B23,Operations!$A$2:$U$101,9,FALSE)*C23,2))) -> 0 | H23: =IF(B23=0,"",IF(C23>9999,"",ROUND(VLOOKUP($B23,Operations!$A$2:$U$101,15,FALSE)*C23,2))) ->  | I23: =IF(B23=0,0,IF(C23>9999,"",ROUND(VLOOKUP(VLOOKUP(B23,Operations!$A$2:$U$101,11,FALSE),PowerUnits[],16,FALSE)/VLOOKUP(B23,Operations!$A$2:$U$101,9,FALSE)*C23,2))) -> 0 | J23: =IF(B23=0,"",IF(C23>9999,"",ROUND(VLOOKUP($B23,Operations!$A$2:$U$101,21,FALSE)*$C23,2))) ->  | K23: 0
A24: 13 | E24: =IF(B24=0,"",IF(C24>9999,"",ROUND('General Variables'!$B$4*VLOOKUP(B24,Operations!$A$2:$U$101,10,FALSE)/VLOOKUP(B24,Operations!$A$2:$U$101,9,FALSE)*C24,2))) ->  | F24: =IF(B24=0,0,IF(C24>9999,"",ROUND(IF(VLOOKUP(B24,Operations!$A$2:$U$101,12,FALSE)=0,VLOOKUP(B24,Operations!$A$2:$U$101,13,FALSE)*'General Variables'!$B$8,VLOOKUP(B24,Operations!$A$2:$U$101,12,FALSE)*'General Variables'!$B$7)/VLOOKUP(B24,Operations!$A$2:$U$101,9,FALSE)*C24,2))) -> 0 | G24: =IF(B24=0,0,IF(C24>9999,"",ROUND(VLOOKUP(VLOOKUP(B24,Operations!$A$2:$U$101,11,FALSE),PowerUnits[],10,FALSE)/VLOOKUP(B24,Operations!$A$2:$U$101,9,FALSE)*C24,2))) -> 0 | H24: =IF(B24=0,"",IF(C24>9999,"",ROUND(VLOOKUP($B24,Operations!$A$2:$U$101,15,FALSE)*C24,2))) ->  | I24: =IF(B24=0,0,IF(C24>9999,"",ROUND(VLOOKUP(VLOOKUP(B24,Operations!$A$2:$U$101,11,FALSE),PowerUnits[],16,FALSE)/VLOOKUP(B24,Operations!$A$2:$U$101,9,FALSE)*C24,2))) -> 0 | J24: =IF(B24=0,"",IF(C24>9999,"",ROUND(VLOOKUP($B24,Operations!$A$2:$U$101,21,FALSE)*$C24,2))) ->  | K24: 0
A25: 14 | E25: =IF(B25=0,"",IF(C25>9999,"",ROUND('General Variables'!$B$4*VLOOKUP(B25,Operations!$A$2:$U$101,10,FALSE)/VLOOKUP(B25,Operations!$A$2:$U$101,9,FALSE)*C25,2))) ->  | F25: =IF(B25=0,0,IF(C25>9999,"",ROUND(IF(VLOOKUP(B25,Operations!$A$2:$U$101,12,FALSE)=0,VLOOKUP(B25,Operations!$A$2:$U$101,13,FALSE)*'General Variables'!$B$8,VLOOKUP(B25,Operations!$A$2:$U$101,12,FALSE)*'General Variables'!$B$7)/VLOOKUP(B25,Operations!$A$2:$U$101,9,FALSE)*C25,2))) -> 0 | G25: =IF(B25=0,0,IF(C25>9999,"",ROUND(VLOOKUP(VLOOKUP(B25,Operations!$A$2:$U$101,11,FALSE),PowerUnits[],10,FALSE)/VLOOKUP(B25,Operations!$A$2:$U$101,9,FALSE)*C25,2))) -> 0 | H25: =IF(B25=0,"",IF(C25>9999,"",ROUND(VLOOKUP($B25,Operations!$A$2:$U$101,15,FALSE)*C25,2))) ->  | I25: =IF(B25=0,0,IF(C25>9999,"",ROUND(VLOOKUP(VLOOKUP(B25,Operations!$A$2:$U$101,11,FALSE),PowerUnits[],16,FALSE)/VLOOKUP(B25,Operations!$A$2:$U$101,9,FALSE)*C25,2))) -> 0 | J25: =IF(B25=0,"",IF(C25>9999,"",ROUND(VLOOKUP($B25,Operations!$A$2:$U$101,21,FALSE)*$C25,2))) ->  | K25: 0
A26: 15 | E26: =IF(B26=0,"",IF(C26>9999,"",ROUND('General Variables'!$B$4*VLOOKUP(B26,Operations!$A$2:$U$101,10,FALSE)/VLOOKUP(B26,Operations!$A$2:$U$101,9,FALSE)*C26,2))) ->  | F26: =IF(B26=0,0,IF(C26>9999,"",ROUND(IF(VLOOKUP(B26,Operations!$A$2:$U$101,12,FALSE)=0,VLOOKUP(B26,Operations!$A$2:$U$101,13,FALSE)*'General Variables'!$B$8,VLOOKUP(B26,Operations!$A$2:$U$101,12,FALSE)*'General Variables'!$B$7)/VLOOKUP(B26,Operations!$A$2:$U$101,9,FALSE)*C26,2))) -> 0 | G26: =IF(B26=0,0,IF(C26>9999,"",ROUND(VLOOKUP(VLOOKUP(B26,Operations!$A$2:$U$101,11,FALSE),PowerUnits[],10,FALSE)/VLOOKUP(B26,Operations!$A$2:$U$101,9,FALSE)*C26,2))) -> 0 | H26: =IF(B26=0,"",IF(C26>9999,"",ROUND(VLOOKUP($B26,Operations!$A$2:$U$101,15,FALSE)*C26,2))) ->  | I26: =IF(B26=0,0,IF(C26>9999,"",ROUND(VLOOKUP(VLOOKUP(B26,Operations!$A$2:$U$101,11,FALSE),PowerUnits[],16,FALSE)/VLOOKUP(B26,Operations!$A$2:$U$101,9,FALSE)*C26,2))) -> 0 | J26: =IF(B26=0,"",IF(C26>9999,"",ROUND(VLOOKUP($B26,Operations!$A$2:$U$101,21,FALSE)*$C26,2))) ->  | K26: 0
A27: 16 | E27: =IF(B27=0,"",IF(C27>9999,"",ROUND('General Variables'!$B$4*VLOOKUP(B27,Operations!$A$2:$U$101,10,FALSE)/VLOOKUP(B27,Operations!$A$2:$U$101,9,FALSE)*C27,2))) ->  | F27: =IF(B27=0,0,IF(C27>9999,"",ROUND(IF(VLOOKUP(B27,Operations!$A$2:$U$101,12,FALSE)=0,VLOOKUP(B27,Operations!$A$2:$U$101,13,FALSE)*'General Variables'!$B$8,VLOOKUP(B27,Operations!$A$2:$U$101,12,FALSE)*'General Variables'!$B$7)/VLOOKUP(B27,Operations!$A$2:$U$101,9,FALSE)*C27,2))) -> 0 | G27: =IF(B27=0,0,IF(C27>9999,"",ROUND(VLOOKUP(VLOOKUP(B27,Operations!$A$2:$U$101,11,FALSE),PowerUnits[],10,FALSE)/VLOOKUP(B27,Operations!$A$2:$U$101,9,FALSE)*C27,2))) -> 0 | H27: =IF(B27=0,"",IF(C27>9999,"",ROUND(VLOOKUP($B27,Operations!$A$2:$U$101,15,FALSE)*C27,2))) ->  | I27: =IF(B27=0,0,IF(C27>9999,"",ROUND(VLOOKUP(VLOOKUP(B27,Operations!$A$2:$U$101,11,FALSE),PowerUnits[],16,FALSE)/VLOOKUP(B27,Operations!$A$2:$U$101,9,FALSE)*C27,2))) -> 0 | J27: =IF(B27=0,"",IF(C27>9999,"",ROUND(VLOOKUP($B27,Operations!$A$2:$U$101,21,FALSE)*$C27,2))) ->  | K27: 0
A28: 17 | E28: =IF(B28=0,"",IF(C28>9999,"",ROUND('General Variables'!$B$4*VLOOKUP(B28,Operations!$A$2:$U$101,10,FALSE)/VLOOKUP(B28,Operations!$A$2:$U$101,9,FALSE)*C28,2))) ->  | F28: =IF(B28=0,0,IF(C28>9999,"",ROUND(IF(VLOOKUP(B28,Operations!$A$2:$U$101,12,FALSE)=0,VLOOKUP(B28,Operations!$A$2:$U$101,13,FALSE)*'General Variables'!$B$8,VLOOKUP(B28,Operations!$A$2:$U$101,12,FALSE)*'General Variables'!$B$7)/VLOOKUP(B28,Operations!$A$2:$U$101,9,FALSE)*C28,2))) -> 0 | G28: =IF(B28=0,0,IF(C28>9999,"",ROUND(VLOOKUP(VLOOKUP(B28,Operations!$A$2:$U$101,11,FALSE),PowerUnits[],10,FALSE)/VLOOKUP(B28,Operations!$A$2:$U$101,9,FALSE)*C28,2))) -> 0 | H28: =IF(B28=0,"",IF(C28>9999,"",ROUND(VLOOKUP($B28,Operations!$A$2:$U$101,15,FALSE)*C28,2))) ->  | I28: =IF(B28=0,0,IF(C28>9999,"",ROUND(VLOOKUP(VLOOKUP(B28,Operations!$A$2:$U$101,11,FALSE),PowerUnits[],16,FALSE)/VLOOKUP(B28,Operations!$A$2:$U$101,9,FALSE)*C28,2))) -> 0 | J28: =IF(B28=0,"",IF(C28>9999,"",ROUND(VLOOKUP($B28,Operations!$A$2:$U$101,21,FALSE)*$C28,2))) ->  | K28: 0
A29: 18 | E29: =IF(B29=0,"",IF(C29>9999,"",ROUND('General Variables'!$B$4*VLOOKUP(B29,Operations!$A$2:$U$101,10,FALSE)/VLOOKUP(B29,Operations!$A$2:$U$101,9,FALSE)*C29,2))) ->  | F29: =IF(B29=0,0,IF(C29>9999,"",ROUND(IF(VLOOKUP(B29,Operations!$A$2:$U$101,12,FALSE)=0,VLOOKUP(B29,Operations!$A$2:$U$101,13,FALSE)*'General Variables'!$B$8,VLOOKUP(B29,Operations!$A$2:$U$101,12,FALSE)*'General Variables'!$B$7)/VLOOKUP(B29,Operations!$A$2:$U$101,9,FALSE)*C29,2))) -> 0 | G29: =IF(B29=0,0,IF(C29>9999,"",ROUND(VLOOKUP(VLOOKUP(B29,Operations!$A$2:$U$101,11,FALSE),PowerUnits[],10,FALSE)/VLOOKUP(B29,Operations!$A$2:$U$101,9,FALSE)*C29,2))) -> 0 | H29: =IF(B29=0,"",IF(C29>9999,"",ROUND(VLOOKUP($B29,Operations!$A$2:$U$101,15,FALSE)*C29,2))) ->  | I29: =IF(B29=0,0,IF(C29>9999,"",ROUND(VLOOKUP(VLOOKUP(B29,Operations!$A$2:$U$101,11,FALSE),PowerUnits[],16,FALSE)/VLOOKUP(B29,Operations!$A$2:$U$101,9,FALSE)*C29,2))) -> 0 | J29: =IF(B29=0,"",IF(C29>9999,"",ROUND(VLOOKUP($B29,Operations!$A$2:$U$101,21,FALSE)*$C29,2))) ->  | K29: 0
A30: 19 | E30: =IF(B30=0,"",IF(C30>9999,"",ROUND('General Variables'!$B$4*VLOOKUP(B30,Operations!$A$2:$U$101,10,FALSE)/VLOOKUP(B30,Operations!$A$2:$U$101,9,FALSE)*C30,2))) ->  | F30: =IF(B30=0,0,IF(C30>9999,"",ROUND(IF(VLOOKUP(B30,Operations!$A$2:$U$101,12,FALSE)=0,VLOOKUP(B30,Operations!$A$2:$U$101,13,FALSE)*'General Variables'!$B$8,VLOOKUP(B30,Operations!$A$2:$U$101,12,FALSE)*'General Variables'!$B$7)/VLOOKUP(B30,Operations!$A$2:$U$101,9,FALSE)*C30,2))) -> 0 | G30: =IF(B30=0,0,IF(C30>9999,"",ROUND(VLOOKUP(VLOOKUP(B30,Operations!$A$2:$U$101,11,FALSE),PowerUnits[],10,FALSE)/VLOOKUP(B30,Operations!$A$2:$U$101,9,FALSE)*C30,2))) -> 0 | H30: =IF(B30=0,"",IF(C30>9999,"",ROUND(VLOOKUP($B30,Operations!$A$2:$U$101,15,FALSE)*C30,2))) ->  | I30: =IF(B30=0,0,IF(C30>9999,"",ROUND(VLOOKUP(VLOOKUP(B30,Operations!$A$2:$U$101,11,FALSE),PowerUnits[],16,FALSE)/VLOOKUP(B30,Operations!$A$2:$U$101,9,FALSE)*C30,2))) -> 0 | J30: =IF(B30=0,"",IF(C30>9999,"",ROUND(VLOOKUP($B30,Operations!$A$2:$U$101,21,FALSE)*$C30,2))) ->  | K30: 0
A31: 20 | E31: =IF(B31=0,"",IF(C31>9999,"",ROUND('General Variables'!$B$4*VLOOKUP(B31,Operations!$A$2:$U$101,10,FALSE)/VLOOKUP(B31,Operations!$A$2:$U$101,9,FALSE)*C31,2))) ->  | F31: =IF(B31=0,0,IF(C31>9999,"",ROUND(IF(VLOOKUP(B31,Operations!$A$2:$U$101,12,FALSE)=0,VLOOKUP(B31,Operations!$A$2:$U$101,13,FALSE)*'General Variables'!$B$8,VLOOKUP(B31,Operations!$A$2:$U$101,12,FALSE)*'General Variables'!$B$7)/VLOOKUP(B31,Operations!$A$2:$U$101,9,FALSE)*C31,2))) -> 0 | G31: =IF(B31=0,0,IF(C31>9999,"",ROUND(VLOOKUP(VLOOKUP(B31,Operations!$A$2:$U$101,11,FALSE),PowerUnits[],10,FALSE)/VLOOKUP(B31,Operations!$A$2:$U$101,9,FALSE)*C31,2))) -> 0 | H31: =IF(B31=0,"",IF(C31>9999,"",ROUND(VLOOKUP($B31,Operations!$A$2:$U$101,15,FALSE)*C31,2))) ->  | I31: =IF(B31=0,0,IF(C31>9999,"",ROUND(VLOOKUP(VLOOKUP(B31,Operations!$A$2:$U$101,11,FALSE),PowerUnits[],16,FALSE)/VLOOKUP(B31,Operations!$A$2:$U$101,9,FALSE)*C31,2))) -> 0 | J31: =IF(B31=0,"",IF(C31>9999,"",ROUND(VLOOKUP($B31,Operations!$A$2:$U$101,21,FALSE)*$C31,2))) ->  | K31: 0
C33: Total for Field Operations | E33: =SUM(E12:E31) -> 2.83 | F33: =SUM(F12:F31) -> 1.73 | G33: 1.07 | H33: 1.86 | I33: 3.33 | J33: 3.25 | K33: 14.07
F35: Operation Index | G35: Percent Acres Applied | H35: Application | J35: Applied Price | L35: Your Estimate
B36: Materials & Services | H36: Rate | I36: Unit | K36: Total
B37: Cover Crop | C37: =IF(B37=0,"",VLOOKUP($B37,Table2[],2,FALSE)) -> Seed | F37: 1 | G37: 1 | H37: 1 | I37: =IF($B37=0,"",VLOOKUP($B37,Table2[],5,FALSE)) -> acre | J37: =IF($B37=0,"",VLOOKUP($B37,Table2[],7,FALSE)) -> 15 | K37: =IF(B37=0,0,ROUND(G37*H37*J37,2)) -> 15
A38: * | B38: 2,4-D Ester LV4 | C38: =IF(B38=0,"",VLOOKUP($B38,Table2[],2,FALSE)) -> Herbicide | F38: 2 | G38: 1 | H38: 1 | I38: =IF($B38=0,"",VLOOKUP($B38,Table2[],5,FALSE)) -> pint | J38: =IF($B38=0,"",VLOOKUP($B38,Table2[],7,FALSE)) -> 2.125 | K38: =IF(B38=0,0,ROUND(G38*H38*J38,2)) -> 2.13
B39: Glyphosate w/Surfactant | C39: =IF(B39=0,"",VLOOKUP($B39,Table2[],2,FALSE)) -> Herbicide | F39: 2 | G39: 1 | H39: 32 | I39: =IF($B39=0,"",VLOOKUP($B39,Table2[],5,FALSE)) -> ounce | J39: =IF($B39=0,"",VLOOKUP($B39,Table2[],7,FALSE)) -> 0.1171875 | K39: 3.75
C40: =IF(B40=0,"",VLOOKUP($B40,Table2[],2,FALSE)) ->  | I40: =IF($B40=0,"",VLOOKUP($B40,Table2[],5,FALSE)) ->  | J40: =IF($B40=0,"",VLOOKUP($B40,Table2[],7,FALSE)) ->  | K40: 0
C41: =IF(B41=0,"",VLOOKUP($B41,Table2[],2,FALSE)) ->  | I41: =IF($B41=0,"",VLOOKUP($B41,Table2[],5,FALSE)) ->  | J41: =IF($B41=0,"",VLOOKUP($B41,Table2[],7,FALSE)) ->  | K41: 0
C42: =IF(B42=0,"",VLOOKUP($B42,Table2[],2,FALSE)) ->  | I42: =IF($B42=0,"",VLOOKUP($B42,Table2[],5,FALSE)) ->  | J42: =IF($B42=0,"",VLOOKUP($B42,Table2[],7,FALSE)) ->  | K42: 0
C43: =IF(B43=0,"",VLOOKUP($B43,Table2[],2,FALSE)) ->  | I43: =IF($B43=0,"",VLOOKUP($B43,Table2[],5,FALSE)) ->  | J43: =IF($B43=0,"",VLOOKUP($B43,Table2[],7,FALSE)) ->  | K43: 0
C44: =IF(B44=0,"",VLOOKUP($B44,Table2[],2,FALSE)) ->  | I44: =IF($B44=0,"",VLOOKUP($B44,Table2[],5,FALSE)) ->  | J44: =IF($B44=0,"",VLOOKUP($B44,Table2[],7,FALSE)) ->  | K44: 0
C45: =IF(B45=0,"",VLOOKUP($B45,Table2[],2,FALSE)) ->  | I45: =IF($B45=0,"",VLOOKUP($B45,Table2[],5,FALSE)) ->  | J45: =IF($B45=0,"",VLOOKUP($B45,Table2[],7,FALSE)) ->  | K45: 0
C46: =IF(B46=0,"",VLOOKUP($B46,Table2[],2,FALSE)) ->  | I46: =IF($B46=0,"",VLOOKUP($B46,Table2[],5,FALSE)) ->  | J46: =IF($B46=0,"",VLOOKUP($B46,Table2[],7,FALSE)) ->  | K46: 0
C47: =IF(B47=0,"",VLOOKUP($B47,Table2[],2,FALSE)) ->  | I47: =IF($B47=0,"",VLOOKUP($B47,Table2[],5,FALSE)) ->  | J47: =IF($B47=0,"",VLOOKUP($B47,Table2[],7,FALSE)) ->  | K47: 0
C48: =IF(B48=0,"",VLOOKUP($B48,Table2[],2,FALSE)) ->  | I48: =IF($B48=0,"",VLOOKUP($B48,Table2[],5,FALSE)) ->  | J48: =IF($B48=0,"",VLOOKUP($B48,Table2[],7,FALSE)) ->  | K48: 0
C49: =IF(B49=0,"",VLOOKUP($B49,Table2[],2,FALSE)) ->  | I49: =IF($B49=0,"",VLOOKUP($B49,Table2[],5,FALSE)) ->  | J49: =IF($B49=0,"",VLOOKUP($B49,Table2[],7,FALSE)) ->  | K49: 0
C50: =IF(B50=0,"",VLOOKUP($B50,Table2[],2,FALSE)) ->  | I50: =IF($B50=0,"",VLOOKUP($B50,Table2[],5,FALSE)) ->  | J50: =IF($B50=0,"",VLOOKUP($B50,Table2[],7,FALSE)) ->  | K50: 0
C51: =IF(B51=0,"",VLOOKUP($B51,Table2[],2,FALSE)) ->  | I51: =IF($B51=0,"",VLOOKUP($B51,Table2[],5,FALSE)) ->  | J51: =IF($B51=0,"",VLOOKUP($B51,Table2[],7,FALSE)) ->  | K51: 0
C52: =IF(B52=0,"",VLOOKUP($B52,Table2[],2,FALSE)) ->  | I52: =IF($B52=0,"",VLOOKUP($B52,Table2[],5,FALSE)) ->  | J52: =IF($B52=0,"",VLOOKUP($B52,Table2[],7,FALSE)) ->  | K52: 0
C53: =IF(B53=0,"",VLOOKUP($B53,Table2[],2,FALSE)) ->  | I53: =IF($B53=0,"",VLOOKUP($B53,Table2[],5,FALSE)) ->  | J53: =IF($B53=0,"",VLOOKUP($B53,Table2[],7,FALSE)) ->  | K53: 0
C54: =IF(B54=0,"",VLOOKUP($B54,Table2[],2,FALSE)) ->  | I54: =IF($B54=0,"",VLOOKUP($B54,Table2[],5,FALSE)) ->  | J54: =IF($B54=0,"",VLOOKUP($B54,Table2[],7,FALSE)) ->  | K54: 0
C55: =IF(B55=0,"",VLOOKUP($B55,Table2[],2,FALSE)) ->  | I55: =IF($B55=0,"",VLOOKUP($B55,Table2[],5,FALSE)) ->  | J55: =IF($B55=0,"",VLOOKUP($B55,Table2[],7,FALSE)) ->  | K55: 0
C56: =IF(B56=0,"",VLOOKUP($B56,Table2[],2,FALSE)) ->  | I56: =IF($B56=0,"",VLOOKUP($B56,Table2[],5,FALSE)) ->  | J56: =IF($B56=0,"",VLOOKUP($B56,Table2[],7,FALSE)) ->  | K56: =IF(B56=0,0,ROUND(G56*H56*J56,2)) -> 0
C57: =IF(B57=0,"",VLOOKUP($B57,Table2[],2,FALSE)) ->  | I57: =IF($B57=0,"",VLOOKUP($B57,Table2[],5,FALSE)) ->  | J57: =IF($B57=0,"",VLOOKUP($B57,Table2[],7,FALSE)) ->  | K57: =IF(B57=0,0,ROUND(G57*H57*J57,2)) -> 0
C58: =IF(B58=0,"",VLOOKUP($B58,Table2[],2,FALSE)) ->  | I58: =IF($B58=0,"",VLOOKUP($B58,Table2[],5,FALSE)) ->  | J58: =IF($B58=0,"",VLOOKUP($B58,Table2[],7,FALSE)) ->  | K58: =IF(B58=0,0,ROUND(G58*H58*J58,2)) -> 0
C59: =IF(B59=0,"",VLOOKUP($B59,Table2[],2,FALSE)) ->  | I59: =IF($B59=0,"",VLOOKUP($B59,Table2[],5,FALSE)) ->  | J59: =IF($B59=0,"",VLOOKUP($B59,Table2[],7,FALSE)) ->  | K59: =IF(B59=0,0,ROUND(G59*H59*J59,2)) -> 0
C60: =IF(B60=0,"",VLOOKUP($B60,Table2[],2,FALSE)) ->  | I60: =IF($B60=0,"",VLOOKUP($B60,Table2[],5,FALSE)) ->  | J60: =IF($B60=0,"",VLOOKUP($B60,Table2[],7,FALSE)) ->  | K60: =IF(B60=0,0,ROUND(G60*H60*J60,2)) -> 0
C61: Crop Insurance | K61: =IF(B61=0,0,J61) -> 0
C63: Total Materials & Services | K63: =SUM(K37:K61) -> 20.88
B64: * Cannot use with some cover crops.
B65: Total listed costs for Field Operations and Materials and Services | K65: =K33+K63 -> 34.95
D66: Interest on Operations Capital | E66: =ROUND(SUM($E$33:$H$33)+$K$63,2) -> 28.37 | F66: cash expense @ | H66: ='General Variables'!$B$11 -> 0.055 | I66: =CONCATENATE("for ",TEXT('General Variables'!$B$12,"0.0")," mo.") -> for 6.0 mo. | K66: =E66*H66*'General Variables'!$B$12/12 -> 0.780175
B67: Total Operating and Use Related Ownership Costs | K67: =SUM(K65:K66) -> 35.730175
B69: Overhead (accounting, liability insurance, vehicle cost, office expense) | K69: 0
B70: Real Estate Opportunity | F70: =IF(C70=0,0,VLOOKUP(C70,RETable,2,FALSE)) -> 0 | G70: per acre @ | I70: ='General Variables'!$B$10 -> 0.03 | K70: =ROUND(F70*I70,2) -> 0
B71: Real Estate Taxes | F71: =IF(C70=0,0,VLOOKUP(C70,RETable,2,FALSE)) -> 0 | G71: per acre @ | I71: ='General Variables'!$B$13 -> 0.01 | K71: =ROUND(F71*I71,2) -> 0
B72: Total Cost per Acre Including Overhead | K72: =SUM(K67:K71) -> 35.730175
B74: =IF(G5="","","Cost per "&H5) ->  | K74: =IF(G5="","",K72/G5) -> 
B75: =IF(G5="","","Cash Cost per "&H5) ->  | K75: =IF(G5="","",(E66+K66)/G5) -> 
H110: ='General Variables'!A18 -> Corn Dryland
H111: ='General Variables'!A19 -> Corn Dryland Ecofallow | K111: Yes
H112: ='General Variables'!A20 -> Corn Irrigated | K112: No
H113: ='General Variables'!A21 -> Dry Beans
H114: ='General Variables'!A22 -> Grain Sorghum Dryland
H115: ='General Variables'!A23 -> Grain Sorghum Irrigated
H116: ='General Variables'!A24 -> Millet
H117: ='General Variables'!A25 -> Oats
H118: ='General Variables'!A26 -> Soybeans Dryland
H119: ='General Variables'!A27 -> Soybeans Irrigated
H120: ='General Variables'!A28 -> Sugar Beets
H121: ='General Variables'!A29 -> Sunflower Dryland
H122: ='General Variables'!A30 -> Sunflower Irrigated
H123: ='General Variables'!A31 -> Wheat After Crop
H124: ='General Variables'!A32 -> Wheat Fallowed
H125: ='General Variables'!A33 -> Wheat Irrigated
B240: =IF(Operations!A132="","",Operations!A132) ->  | C240: =IF(Materials!B132="","",Materials!B132) -> Sorghum Sudan Brown Midrib
B241: =IF(Operations!A133="","",Operations!A133) ->  | C241: =IF(Materials!B133="","",Materials!B133) -> Sugar Beets RR Poncho
B242: =IF(Operations!A134="","",Operations!A134) ->  | C242: =IF(Materials!B134="","",Materials!B134) -> Sunflower Clearfield
B243: =IF(Operations!A135="","",Operations!A135) ->  | C243: =IF(Materials!B135="","",Materials!B135) -> Wheat
B244: =IF(Operations!A136="","",Operations!A136) ->  | C244: =IF(Materials!B136="","",Materials!B136) -> Wheat (Certified and Treated)

Sheet Budget Listing (hidden)
D1: Budgets | E1: Cash BE | K1: Crop | L1: Page
A2: 1 | B2: Alfalfa | C2: ="'"&A2&"-"&B2&"'!" -> '1-Alfalfa'! | D2: =INDIRECT(C2&"A6") ->  | E2: =INDIRECT($C2&"K75") ->  | K2: =D2 ->  | L2: 12
A3: 2 | B3: Alfalfa | C3: ="'"&A3&"-"&B3&"'!" -> '2-Alfalfa'! | D3: =INDIRECT(C3&"A6") ->  | E3: =INDIRECT($C3&"K75") ->  | K3: =D3 ->  | L3: =L2+1 -> 13
A4: 3 | B4: Alfalfa | C4: '3-Alfalfa'! | L4: =L3+1 -> 14
A5: 4 | B5: Alfalfa | C5: '4-Alfalfa'! | L5: 15
A6: 5 | B6: Alfalfa | C6: '5-Alfalfa'! | L6: 16
A7: 6 | B7: Alfalfa | C7: '6-Alfalfa'! | L7: 17
A8: 7 | B8: Alfalfa | C8: '7-Alfalfa'! | L8: 18
A9: 8 | B9: Alfalfa | C9: '8-Alfalfa'! | L9: 19
